Workbook

Sheet Visor
A1: Resultados del Programa de apoyo al empleo joven-Estrategia Sacúdete
A2: Reporte por sector económico - consolidado postulaciones julio y agosto 2021
A4: Seleccione el sector económico | D4: Industrias manufactureras | N4: =IFERROR(VLOOKUP(D4,Hoja4!$C$2:$D$23,2,FALSE),"") -> C
E8: Total Empleadores beneficiados | I8: % | K8: Total Empleadores beneficiados | O8: % | Q8: Recursos asociados en Millones
B10: General | E10: =Hoja4!I24 -> 6857 | I10: =E10/$E$10 -> 1 | K10: =Hoja4!K24 -> 77574 | O10: =K10/$K$10 -> 1 | Q10: =Hoja4!M24/1000000 -> 23195.52624
B11: ="Sección "&N4 -> Sección C | E11: =VLOOKUP(N4,Hoja4!$H$1:$M$24,2,FALSE) -> 1073 | I11: =E11/$E$10 -> 0.1564824267 | K11: =VLOOKUP(N4,Hoja4!$H$1:$M$24,4,FALSE) -> 6565 | O11: =K11/$K$10 -> 0.0846288705 | Q11: =VLOOKUP(N4,Hoja4!$H$1:$M$24,6,FALSE)/1000000 -> 1896.54385
B30: Empleadores | E30: Natural | H30: Jurídica | L30: Recurso en millones | O30: Natural | R30: Jurídica
B31: ="Total sección "&N4 -> Total sección C | E31: =COUNTIFS(insumos2!$AN$1:$AN$399999,"Aprobado con subsidio",insumos2!$AK$1:$AK$399999,"Natural") -> 73 | H31: =COUNTIFS(insumos2!$AN$1:$AN$399999,"Aprobado con subsidio",insumos2!$AK$1:$AK$399999,"Jurídica") -> 1000 | L31: ="Total sección "&N4 -> Total sección C | O31: =SUMIFS(insumos1!$K$2:$K$372158,insumos1!$H$2:$H$372158,Visor!N4,insumos1!$I$2:$I$372158,"Natural")/1000000 -> 45.4262 | R31: =SUMIFS(insumos1!$K$2:$K$372158,insumos1!$H$2:$H$372158,Visor!N4,insumos1!$I$2:$I$372158,"Jurídica")/1000000 -> 1851.11765
B32: ="% sección "&N4 -> % sección C | E32: =E31/(E31+H31) -> 0.06803355079 | H32: =H31/(E31+H31) -> 0.9319664492 | L32: ="% sección "&N4 -> % sección C | O32: =O31/(O31+R31) -> 0.02395209581 | R32: =R31/(O31+R31) -> 0.9760479042
B33: ="% general" -> % general | E33: 0.1646 | H33: 0.8354 | L33: ="% general" -> % general | O33: 0.0563 | R33: 0.9437
C36: Tamaño | E36: Empleadores | H36: % | J36: Empleados | N36: % | P36: Recursos en millones
C37: Micro | E37: =COUNTIFS(insumos2!$AN$2:$AN$399999,"Aprobado con subsidio",insumos2!$AO$2:$AO$399999,"MICRO") -> 301 | H37: =E37/$E$42 -> 0.2805219012 | J37: =SUMIFS(insumos2!$AI$2:$AI$399999,insumos2!$AN$2:$AN$399999,"Aprobado con subsidio",insumos2!$AO$2:$AO$399999,"MICRO") -> 488 | N37: =J37/$J$42 -> 0.0743335872 | P37: =SUMIFS(insumos1!$K$2:$K$372158,insumos1!$H$2:$H$372158,Visor!N4,insumos1!$J$2:$J$372158,"MICRO")/1000000 -> 132.417373
C38: Pequeña | E38: =COUNTIFS(insumos2!$AN$2:$AN$399999,"Aprobado con subsidio",insumos2!$AO$2:$AO$399999,"PEQUEÑA") -> 404 | H38: 0.3765144455 | J38: =SUMIFS(insumos2!$AI$2:$AI$399999,insumos2!$AN$2:$AN$399999,"Aprobado con subsidio",insumos2!$AO$2:$AO$399999,"PEQUEÑA") -> 1217 | N38: 0.1853769992 | P38: =SUMIFS(insumos1!$K$2:$K$372158,insumos1!$H$2:$H$372158,Visor!N4,insumos1!$J$2:$J$372158,"PEQUEÑA")/1000000 -> 331.384129
C39: Mediana | E39: =COUNTIFS(insumos2!$AN$2:$AN$399999,"Aprobado con subsidio",insumos2!$AO$2:$AO$399999,"MEDIANA") -> 235 | H39: 0.2190121156 | J39: =SUMIFS(insumos2!$AI$2:$AI$399999,insumos2!$AN$2:$AN$399999,"Aprobado con subsidio",insumos2!$AO$2:$AO$399999,"MEDIANA") -> 1454 | N39: 0.2214775324 | P39: =SUMIFS(insumos1!$K$2:$K$372158,insumos1!$H$2:$H$372158,Visor!N4,insumos1!$J$2:$J$372158,"MEDIANA")/1000000 -> 406.110228
C40: Grande | E40: =COUNTIFS(insumos2!$AN$2:$AN$399999,"Aprobado con subsidio",insumos2!$AO$2:$AO$399999,"GRANDE") -> 83 | H40: 0.07735321528 | J40: =SUMIFS(insumos2!$AI$2:$AI$399999,insumos2!$AN$2:$AN$399999,"Aprobado con subsidio",insumos2!$AO$2:$AO$399999,"GRANDE") -> 1186 | N40: 0.1806549886 | P40: =SUMIFS(insumos1!$K$2:$K$372158,insumos1!$H$2:$H$372158,Visor!N4,insumos1!$J$2:$J$372158,"GRANDE")/1000000 -> 322.980282
C41: Muy grande | E41: =COUNTIFS(insumos2!$AN$2:$AN$399999,"Aprobado con subsidio",insumos2!$AO$2:$AO$399999,"MUY GRANDE") -> 50 | H41: 0.04659832246 | J41: =SUMIFS(insumos2!$AI$2:$AI$399999,insumos2!$AN$2:$AN$399999,"Aprobado con subsidio",insumos2!$AO$2:$AO$399999,"MUY GRANDE") -> 2220 | N41: 0.3381568926 | P41: =SUMIFS(insumos1!$K$2:$K$372158,insumos1!$H$2:$H$372158,Visor!N4,insumos1!$J$2:$J$372158,"MUY GRANDE")/1000000 -> 703.651838
C42: Total | E42: =COUNTIFS(insumos2!$AN$2:$AN$399999,"Aprobado con subsidio") -> 1073 | H42: 1 | J42: =SUMIFS(insumos2!$AI$2:$AI$399999,insumos2!$AN$2:$AN$399999,"Aprobado con subsidio") -> 6565 | N42: 1 | P42: =P41+P40+P39+P37+P38 -> 1896.54385
B44: Tamaño | C44: ="Sección "&N4 -> Sección C | D44: general | E44: ="Sección "&N4 -> Sección C | F44: general
B45: Micro | C45: =H37 -> 0.2805219012 | D45: 0.6376801371 | E45: =N37 -> 0.0743335872 | F45: 0.104427293
B46: Pequeña | C46: =H38 -> 0.3765144455 | D46: 0.2743797922 | E46: =N38 -> 0.1853769992 | F46: 0.1894298344
B47: Mediana | C47: =H39 -> 0.2190121156 | D47: 0.06616490439 | E47: =N39 -> 0.2214775324 | F47: 0.1934365931
B48: Grande | C48: =H40 -> 0.07735321528 | D48: 0.01371264116 | E48: =N40 -> 0.1806549886 | F48: 0.1301781558
B49: Muy Grande | C49: =H41 -> 0.04659832246 | D49: 0.008062525129 | E49: =N41 -> 0.3381568926 | F49: 0.3835281237
G61: Actividad económica | J61: =D4 -> Industrias manufactureras | U61: =N4 -> C
A66: Distribución Departamental | K66: Distribución en los principales municipios del País
A67: Departamento | D67: Empleadores | F67: % | G67: Empleados | I67: % | K67: Departamento | M67: Municipio | P67: Empleadores | R67: % | S67: Empleados | U67: %
A68: =insumos2!BE2 -> Bogotá | D68: =insumos2!BF2 -> 334 | F68: =D68/$D$96 -> 0.311276794 | G68: =insumos2!BG2 -> 1994 | I68: =G68/$G$96 -> 0.3037319117 | K68: =insumos2!BN2 -> Bogotá | M68: =insumos2!BO2 -> Bogotá, d.c. | P68: =insumos2!BP2 -> 334 | R68: =P68/$P$96 -> 0.311276794 | S68: =insumos2!BQ2 -> 1994 | U68: =S68/$S$96 -> 0.3037319117
A69: =insumos2!BE3 -> Antioquia | D69: =insumos2!BF3 -> 322 | F69: 0.3000931966 | G69: =insumos2!BG3 -> 2122 | I69: 0.323229246 | K69: =insumos2!BN3 -> Antioquia | M69: =insumos2!BO3 -> Medellín | P69: =insumos2!BP3 -> 163 | R69: =P69/$P$96 -> 0.1519105312 | S69: =insumos2!BQ3 -> 901 | U69: =S69/$S$96 -> 0.1372429551
A70: =insumos2!BE4 -> Valle del cauca | D70: =insumos2!BF4 -> 111 | F70: 0.1034482759 | G70: =insumos2!BG4 -> 587 | I70: 0.08941355674 | K70: =insumos2!BN4 -> Valle del cauca | M70: =insumos2!BO4 -> Cali | P70: =insumos2!BP4 -> 74 | R70: 0.06896551724 | S70: =insumos2!BQ4 -> 310 | U70: 0.04722010663
A71: =insumos2!BE5 -> Cundinamarca | D71: =insumos2!BF5 -> 69 | F71: 0.064305685 | G71: =insumos2!BG5 -> 530 | I71: 0.08073115004 | K71: =insumos2!BN5 -> Antioquia | M71: =insumos2!BO5 -> Itagüí | P71: =insumos2!BP5 -> 32 | R71: 0.02982292637 | S71: =insumos2!BQ5 -> 181 | U71: 0.02757044935
A72: =insumos2!BE6 -> Santander | D72: =insumos2!BF6 -> 55 | F72: 0.05125815471 | G72: =insumos2!BG6 -> 215 | I72: 0.03274942879 | K72: =insumos2!BN6 -> Santander | M72: =insumos2!BO6 -> Bucaramanga | P72: =insumos2!BP6 -> 30 | R72: 0.02795899348 | S72: =insumos2!BQ6 -> 113 | U72: 0.01721249048
A73: =insumos2!BE7 -> Atlántico | D73: =insumos2!BF7 -> 32 | F73: 0.02982292637 | G73: =insumos2!BG7 -> 161 | I73: 0.02452399086 | K73: =insumos2!BN7 -> Atlántico | M73: =insumos2!BO7 -> Barranquilla | P73: =insumos2!BP7 -> 25 | R73: 0.02329916123 | S73: =insumos2!BQ7 -> 123 | U73: 0.01873571973
A74: =insumos2!BE8 -> Risaralda | D74: =insumos2!BF8 -> 30 | F74: 0.02795899348 | G74: =insumos2!BG8 -> 252 | I74: 0.038385377 | K74: =insumos2!BN8 -> Antioquia | M74: =insumos2!BO8 -> La estrella | P74: =insumos2!BP8 -> 21 | R74: 0.01957129543 | S74: =insumos2!BQ8 -> 128 | U74: 0.01949733435
A75: =insumos2!BE9 -> Norte de stder | D75: =insumos2!BF9 -> 23 | F75: 0.02143522833 | G75: =insumos2!BG9 -> 104 | I75: 0.01584158416 | K75: =insumos2!BN9 -> Norte de stder | M75: =insumos2!BO9 -> Cucuta | P75: =insumos2!BP9 -> 20 | R75: 0.01863932898 | S75: =insumos2!BQ9 -> 64 | U75: 0.009748667174
A76: =insumos2!BE10 -> Tolima | D76: =insumos2!BF10 -> 15 | F76: 0.01397949674 | G76: =insumos2!BG10 -> 68 | I76: 0.01035795887 | K76: =insumos2!BN10 -> Antioquia | M76: =insumos2!BO10 -> Rionegro | P76: =insumos2!BP10 -> 18 | R76: 0.01677539609 | S76: =insumos2!BQ10 -> 248 | U76: 0.0377760853
A77: =insumos2!BE11 -> Boyacá | D77: =insumos2!BF11 -> 12 | F77: 0.01118359739 | G77: =insumos2!BG11 -> 53 | I77: 0.008073115004 | K77: =insumos2!BN11 -> Valle del cauca | M77: =insumos2!BO11 -> Yumbo | P77: =insumos2!BP11 -> 18 | R77: 0.01677539609 | S77: =insumos2!BQ11 -> 203 | U77: 0.03092155369
A78: =insumos2!BE12 -> Quindío | D78: =insumos2!BF12 -> 12 | F78: 0.01118359739 | G78: =insumos2!BG12 -> 114 | I78: 0.0173648134 | K78: =insumos2!BN12 -> Risaralda | M78: =insumos2!BO12 -> Pereira | P78: =insumos2!BP12 -> 17 | R78: 0.01584342964 | S78: =insumos2!BQ12 -> 118 | U78: 0.0179741051
A79: =insumos2!BE13 -> Caldas | D79: =insumos2!BF13 -> 12 | F79: 0.01118359739 | G79: =insumos2!BG13 -> 38 | I79: 0.005788271135 | K79: =insumos2!BN13 -> Antioquia | M79: =insumos2!BO13 -> Envigado | P79: =insumos2!BP13 -> 15 | R79: 0.01397949674 | S79: =insumos2!BQ13 -> 54 | U79: 0.008225437928
A80: =insumos2!BE14 -> Meta | D80: =insumos2!BF14 -> 11 | F80: 0.01025163094 | G80: =insumos2!BG14 -> 20 | I80: 0.003046458492 | K80: =insumos2!BN14 -> Cundinamarca | M80: =insumos2!BO14 -> Cota | P80: =insumos2!BP14 -> 15 | R80: 0.01397949674 | S80: =insumos2!BQ14 -> 61 | U80: 0.009291698401
A81: =insumos2!BE15 -> Nariño | D81: =insumos2!BF15 -> 9 | F81: 0.008387698043 | G81: =insumos2!BG15 -> 20 | I81: 0.003046458492 | K81: =insumos2!BN15 -> Antioquia | M81: =insumos2!BO15 -> Sabaneta | P81: =insumos2!BP15 -> 14 | R81: 0.01304753029 | S81: =insumos2!BQ15 -> 88 | U81: 0.01340441736
A82: =insumos2!BE16 -> Bolívar | D82: =insumos2!BF16 -> 7 | F82: 0.006523765144 | G82: =insumos2!BG16 -> 65 | I82: 0.009900990099 | K82: =insumos2!BN16 -> Tolima | M82: =insumos2!BO16 -> Ibagué | P82: =insumos2!BP16 -> 12 | R82: 0.01118359739 | S82: =insumos2!BQ16 -> 56 | U82: 0.008530083778
A83: =insumos2!BE17 -> Córdoba | D83: =insumos2!BF17 -> 4 | F83: 0.003727865797 | G83: =insumos2!BG17 -> 143 | I83: 0.02178217822 | K83: =insumos2!BN17 -> Risaralda | M83: =insumos2!BO17 -> Dosquebradas | P83: =insumos2!BP17 -> 12 | R83: 0.01118359739 | S83: =insumos2!BQ17 -> 131 | U83: 0.01995430312
A84: =insumos2!BE18 -> Cauca | D84: =insumos2!BF18 -> 3 | F84: 0.002795899348 | G84: =insumos2!BG18 -> 18 | I84: 0.002741812643 | K84: =insumos2!BN18 -> Cundinamarca | M84: =insumos2!BO18 -> Funza | P84: =insumos2!BP18 -> 11 | R84: 0.01025163094 | S84: =insumos2!BQ18 -> 36 | U84: 0.005483625286
A85: =insumos2!BE19 -> Magdalena | D85: =insumos2!BF19 -> 2 | F85: 0.001863932898 | G85: =insumos2!BG19 -> 4 | I85: 0.0006092916984 | K85: =insumos2!BN19 -> Cundinamarca | M85: =insumos2!BO19 -> Soacha | P85: =insumos2!BP19 -> 11 | R85: 0.01025163094 | S85: =insumos2!BQ19 -> 58 | U85: 0.008834729627
A86: =insumos2!BE20 -> Huila | D86: =insumos2!BF20 -> 2 | F86: 0.001863932898 | G86: =insumos2!BG20 -> 5 | I86: 0.000761614623 | K86: =insumos2!BN20 -> Caldas | M86: =insumos2!BO20 -> Manizales | P86: =insumos2!BP20 -> 10 | R86: 0.009319664492 | S86: =insumos2!BQ20 -> 30 | U86: 0.004569687738
A87: =insumos2!BE21 -> Casanare | D87: =insumos2!BF21 -> 2 | F87: 0.001863932898 | G87: =insumos2!BG21 -> 35 | I87: 0.005331302361 | K87: =insumos2!BN21 -> Valle del cauca | M87: =insumos2!BO21 -> Palmira | P87: =insumos2!BP21 -> 10 | R87: 0.009319664492 | S87: =insumos2!BQ21 -> 40 | U87: 0.006092916984
A88: =insumos2!BE22 -> Cesar | D88: =insumos2!BF22 -> 2 | F88: 0.001863932898 | G88: =insumos2!BG22 -> 3 | I88: 0.0004569687738 | K88: =insumos2!BN22 -> Antioquia | M88: =insumos2!BO22 -> Bello | P88: =insumos2!BP22 -> 10 | R88: 0.009319664492 | S88: =insumos2!BQ22 -> 29 | U88: 0.004417364813
A89: =insumos2!BE23 -> Caquetá | D89: =insumos2!BF23 -> 2 | F89: 0.001863932898 | G89: =insumos2!BG23 -> 6 | I89: 0.0009139375476 | K89: =insumos2!BN23 -> Antioquia | M89: =insumos2!BO23 -> El santuario | P89: =insumos2!BP23 -> 9 | R89: 0.008387698043 | S89: =insumos2!BQ23 -> 20 | U89: 0.003046458492
A90: =insumos2!BE24 -> Sucre | D90: =insumos2!BF24 -> 1 | F90: 0.0009319664492 | G90: =insumos2!BG24 -> 6 | I90: 0.0009139375476 | K90: =insumos2!BN24 -> Santander | M90: =insumos2!BO24 -> Girón | P90: =insumos2!BP24 -> 9 | R90: 0.008387698043 | S90: =insumos2!BQ24 -> 39 | U90: 0.005940594059
A91: =insumos2!BE25 -> Arauca | D91: =insumos2!BF25 -> 1 | F91: 0.0009319664492 | G91: =insumos2!BG25 -> 2 | I91: 0.0003046458492 | K91: =insumos2!BN25 -> Antioquia | M91: =insumos2!BO25 -> Girardota | P91: =insumos2!BP25 -> 9 | R91: 0.008387698043 | S91: =insumos2!BQ25 -> 132 | U91: 0.02010662605
A92: =insumos2!BE26 -> Vaupés | D92: =insumos2!BF26 -> 0 | F92: 0 | G92: =insumos2!BG26 -> 0 | I92: 0 | K92: =insumos2!BN26 -> Nariño | M92: =insumos2!BO26 -> Pasto | P92: =insumos2!BP26 -> 8 | R92: 0.007455731594 | S92: =insumos2!BQ26 -> 18 | U92: 0.002741812643
A93: =insumos2!BE27 -> La guajira | D93: =insumos2!BF27 -> 0 | F93: 0 | G93: =insumos2!BG27 -> 0 | I93: 0 | K93: =insumos2!BN27 -> Meta | M93: =insumos2!BO27 -> Villavicencio | P93: =insumos2!BP27 -> 7 | R93: 0.006523765144 | S93: =insumos2!BQ27 -> 16 | U93: 0.002437166794
A94: =insumos2!BE28 -> San Andrés | D94: =insumos2!BF28 -> 0 | F94: 0 | G94: =insumos2!BG28 -> 0 | I94: 0 | K94: =insumos2!BN28 -> Antioquia | M94: =insumos2!BO28 -> Marinilla | P94: =insumos2!BP28 -> 7 | R94: 0.006523765144 | S94: =insumos2!BQ28 -> 35 | U94: 0.005331302361
A95: =insumos2!BE29 -> Otros | D95: =insumos2!BF29 -> 0 | F95: 0 | G95: =insumos2!BG29 -> 0 | I95: 0 | K95: =insumos2!BN29 -> Otros | M95: =insumos2!BO29 -> Otros | P95: =insumos2!BP29 -> 152 | R95: 0.1416589003 | S95: =insumos2!BQ29 -> 1339 | U95: 0.203960396
A96: =insumos2!BE30 -> Total | D96: =insumos2!BF30 -> 1073 | F96: 1 | G96: =insumos2!BG30 -> 6565 | I96: 1 | K96: =insumos2!BN30 -> Total | P96: =insumos2!BP30 -> 1073 | R96: 1 | S96: =insumos2!BQ30 -> 6565 | U96: 1
G127: Actividad económica | J127: =J61 -> Industrias manufactureras | U127: =U61 -> C
B131: Sexo | D131: ="Total empleadores sección "&N4 -> Total empleadores sección C | G131: %
B133: Hombres | D133: =VLOOKUP(N4,Hoja4!$H$2:$P$23,7,FALSE) -> 2488 | G133: =D133/$D$136 -> 0.3789794364
B134: Mujeres | D134: =VLOOKUP(N4,Hoja4!$H$2:$P$23,8,FALSE) -> 3914 | G134: =D134/$D$136 -> 0.5961919269
B135: No disponible | D135: =VLOOKUP(N4,Hoja4!$H$2:$P$23,9,FALSE) -> 163 | G135: =D135/$D$136 -> 0.02482863671
B136: Total | D136: =D135+D134+D133 -> 6565 | G136: =D136/$D$136 -> 1
B139: ="Para la Sección "&U127&" hay "&ROUND(VLOOKUP(U127,Hoja4!$H$2:$R$23,11,FALSE),0)&" mujeres por cada 100 hombres beneficiados del Programa." -> Para la Sección C hay 157 mujeres por cada 100 hombres beneficiados del Programa.
B152: ="Grupo o División de la sección "&U127 -> Grupo o División de la sección C | I152: Empleadores | M152: % | O152: Empleados | S152: %
B153: =IF(insumos2!BV2=0,"",insumos2!BV2) -> Elaboración de productos alimenticios | I153: =IF(insumos2!BV2=0,"",insumos2!BW2) -> 214 | M153: =IFERROR(I153/insumos2!$BT$28,"") -> 0.1994408201 | O153: =IF(insumos2!BX2=0,"",insumos2!BX2) -> 1560 | S153: =IFERROR(O153/insumos2!$BU$28,"") -> 0.2376237624
B154: =IF(insumos2!BV3=0,"",insumos2!BV3) -> Confección de prendas de vestir | I154: =IF(insumos2!BV3=0,"",insumos2!BW3) -> 202 | M154: =IFERROR(I154/insumos2!$BT$28,"") -> 0.1882572227 | O154: =IF(insumos2!BX3=0,"",insumos2!BX3) -> 1632 | S154: =IFERROR(O154/insumos2!$BU$28,"") -> 0.2485910129
B155: =IF(insumos2!BV4=0,"",insumos2!BV4) -> Instalación, mantenimiento y reparación especializado de maquinaria y equipo | I155: =IF(insumos2!BV4=0,"",insumos2!BW4) -> 86 | M155: =IFERROR(I155/insumos2!$BT$28,"") -> 0.08014911463 | O155: =IF(insumos2!BX4=0,"",insumos2!BX4) -> 260 | S155: =IFERROR(O155/insumos2!$BU$28,"") -> 0.0396039604
B156: =IF(insumos2!BV5=0,"",insumos2!BV5) -> Fabricación de productos elaborados de metal, excepto maquinaria y equipo | I156: =IF(insumos2!BV5=0,"",insumos2!BW5) -> 80 | M156: =IFERROR(I156/insumos2!$BT$28,"") -> 0.07455731594 | O156: =IF(insumos2!BX5=0,"",insumos2!BX5) -> 335 | S156: =IFERROR(O156/insumos2!$BU$28,"") -> 0.05102817974
B157: =IF(insumos2!BV6=0,"",insumos2!BV6) -> Fabricación de productos de caucho y de plástico | I157: =IF(insumos2!BV6=0,"",insumos2!BW6) -> 62 | M157: =IFERROR(I157/insumos2!$BT$28,"") -> 0.05778191985 | O157: =IF(insumos2!BX6=0,"",insumos2!BX6) -> 353 | S157: =IFERROR(O157/insumos2!$BU$28,"") -> 0.05376999238
B158: =IF(insumos2!BV7=0,"",insumos2!BV7) -> Fabricación de sustancias y productos químicos | I158: =IF(insumos2!BV7=0,"",insumos2!BW7) -> 56 | M158: =IFERROR(I158/insumos2!$BT$28,"") -> 0.05219012116 | O158: =IF(insumos2!BX7=0,"",insumos2!BX7) -> 300 | S158: =IFERROR(O158/insumos2!$BU$28,"") -> 0.04569687738
B159: =IF(insumos2!BV8=0,"",insumos2!BV8) -> Fabricación de productos textiles | I159: =IF(insumos2!BV8=0,"",insumos2!BW8) -> 55 | M159: =IFERROR(I159/insumos2!$BT$28,"") -> 0.05125815471 | O159: =IF(insumos2!BX8=0,"",insumos2!BX8) -> 405 | S159: =IFERROR(O159/insumos2!$BU$28,"") -> 0.06169078446
B160: =IF(insumos2!BV9=0,"",insumos2!BV9) -> Otras industrias manufactureras | I160: =IF(insumos2!BV9=0,"",insumos2!BW9) -> 43 | M160: =IFERROR(I160/insumos2!$BT$28,"") -> 0.04007455732 | O160: =IF(insumos2!BX9=0,"",insumos2!BX9) -> 147 | S160: =IFERROR(O160/insumos2!$BU$28,"") -> 0.02239146992
B161: =IF(insumos2!BV10=0,"",insumos2!BV10) -> Curtido y recurtido de cueros; fabricación de calzado; fabricación de artículos de viaje, maletas, bolsos de mano y artículos similares, y fabricación de artículos de talabartería y guarnicionería; adobo y teñido de pieles | I161: =IF(insumos2!BV10=0,"",insumos2!BW10) -> 35 | M161: =IFERROR(I161/insumos2!$BT$28,"") -> 0.03261882572 | O161: =IF(insumos2!BX10=0,"",insumos2!BX10) -> 360 | S161: =IFERROR(O161/insumos2!$BU$28,"") -> 0.05483625286
B162: =IF(insumos2!BV11=0,"",insumos2!BV11) -> Actividades de impresión y de producción de copias a partir de grabaciones originales | I162: =IF(insumos2!BV11=0,"",insumos2!BW11) -> 31 | M162: =IFERROR(I162/insumos2!$BT$28,"") -> 0.02889095993 | O162: =IF(insumos2!BX11=0,"",insumos2!BX11) -> 84 | S162: =IFERROR(O162/insumos2!$BU$28,"") -> 0.01279512567
B163: =IF(insumos2!BV12=0,"",insumos2!BV12) -> Fabricación de otros productos minerales no metálicos | I163: =IF(insumos2!BV12=0,"",insumos2!BW12) -> 26 | M163: =IFERROR(I163/insumos2!$BT$28,"") -> 0.02423112768 | O163: =IF(insumos2!BX12=0,"",insumos2!BX12) -> 154 | S163: =IFERROR(O163/insumos2!$BU$28,"") -> 0.02345773039
B164: =IF(insumos2!BV13=0,"",insumos2!BV13) -> Fabricación de maquinaria y equipo n.c.p. | I164: =IF(insumos2!BV13=0,"",insumos2!BW13) -> 25 | M164: =IFERROR(I164/insumos2!$BT$28,"") -> 0.02329916123 | O164: =IF(insumos2!BX13=0,"",insumos2!BX13) -> 155 | S164: =IFERROR(O164/insumos2!$BU$28,"") -> 0.02361005331
B165: =IF(insumos2!BV14=0,"",insumos2!BV14) -> Fabricación de muebles, colchones y somieres | I165: =IF(insumos2!BV14=0,"",insumos2!BW14) -> 22 | M165: =IFERROR(I165/insumos2!$BT$28,"") -> 0.02050326188 | O165: =IF(insumos2!BX14=0,"",insumos2!BX14) -> 72 | S165: =IFERROR(O165/insumos2!$BU$28,"") -> 0.01096725057
B166: =IF(insumos2!BV15=0,"",insumos2!BV15) -> Fabricación de productos farmacéuticos, sustancias químicas medicinales y productos botánicos de uso farmacéutico | I166: =IF(insumos2!BV15=0,"",insumos2!BW15) -> 22 | M166: =IFERROR(I166/insumos2!$BT$28,"") -> 0.02050326188 | O166: =IF(insumos2!BX15=0,"",insumos2!BX15) -> 96 | S166: =IFERROR(O166/insumos2!$BU$28,"") -> 0.01462300076
B167: =IF(insumos2!BV16=0,"",insumos2!BV16) -> Elaboración de bebidas | I167: =IF(insumos2!BV16=0,"",insumos2!BW16) -> 20 | M167: =IFERROR(I167/insumos2!$BT$28,"") -> 0.01863932898 | O167: =IF(insumos2!BX16=0,"",insumos2!BX16) -> 56 | S167: =IFERROR(O167/insumos2!$BU$28,"") -> 0.008530083778
B168: =IF(insumos2!BV17=0,"",insumos2!BV17) -> Transformación de la madera y fabricación de productos de madera y de corcho, excepto muebles; fabricación de artículos de cestería y espartería | I168: =IF(insumos2!BV17=0,"",insumos2!BW17) -> 20 | M168: =IFERROR(I168/insumos2!$BT$28,"") -> 0.01863932898 | O168: =IF(insumos2!BX17=0,"",insumos2!BX17) -> 55 | S168: =IFERROR(O168/insumos2!$BU$28,"") -> 0.008377760853
B169: =IF(insumos2!BV18=0,"",insumos2!BV18) -> Fabricación de papel, cartón y productos de papel y cartón | I169: =IF(insumos2!BV18=0,"",insumos2!BW18) -> 19 | M169: =IFERROR(I169/insumos2!$BT$28,"") -> 0.01770736253 | O169: =IF(insumos2!BX18=0,"",insumos2!BX18) -> 61 | S169: =IFERROR(O169/insumos2!$BU$28,"") -> 0.009291698401
B170: =IF(insumos2!BV19=0,"",insumos2!BV19) -> Fabricación de vehículos automotores, remolques y semirremolques | I170: =IF(insumos2!BV19=0,"",insumos2!BW19) -> 18 | M170: =IFERROR(I170/insumos2!$BT$28,"") -> 0.01677539609 | O170: =IF(insumos2!BX19=0,"",insumos2!BX19) -> 74 | S170: =IFERROR(O170/insumos2!$BU$28,"") -> 0.01127189642
B171: =IF(insumos2!BV20=0,"",insumos2!BV20) -> Fabricación de aparatos y equipo eléctrico | I171: =IF(insumos2!BV20=0,"",insumos2!BW20) -> 14 | M171: =IFERROR(I171/insumos2!$BT$28,"") -> 0.01304753029 | O171: =IF(insumos2!BX20=0,"",insumos2!BX20) -> 242 | S171: =IFERROR(O171/insumos2!$BU$28,"") -> 0.03686214775
B172: =IF(insumos2!BV21=0,"",insumos2!BV21) -> Fabricación de productos metalúrgicos básicos | I172: =IF(insumos2!BV21=0,"",insumos2!BW21) -> 11 | M172: =IFERROR(I172/insumos2!$BT$28,"") -> 0.01025163094 | O172: =IF(insumos2!BX21=0,"",insumos2!BX21) -> 36 | S172: =IFERROR(O172/insumos2!$BU$28,"") -> 0.005483625286
B173: =IF(insumos2!BV22=0,"",insumos2!BV22) -> Fabricación de productos informáticos, electrónicos y ópticos | I173: =IF(insumos2!BV22=0,"",insumos2!BW22) -> 6 | M173: =IFERROR(I173/insumos2!$BT$28,"") -> 0.005591798695 | O173: =IF(insumos2!BX22=0,"",insumos2!BX22) -> 31 | S173: =IFERROR(O173/insumos2!$BU$28,"") -> 0.004722010663
B174: =IF(insumos2!BV23=0,"",insumos2!BV23) -> Fabricación de otros tipos de equipo de transporte | I174: =IF(insumos2!BV23=0,"",insumos2!BW23) -> 3 | M174: =IFERROR(I174/insumos2!$BT$28,"") -> 0.002795899348 | O174: =IF(insumos2!BX23=0,"",insumos2!BX23) -> 83 | S174: =IFERROR(O174/insumos2!$BU$28,"") -> 0.01264280274
B175: =IF(insumos2!BV24=0,"",insumos2!BV24) -> Coquización, fabricación de productos de la refinación del petróleo y actividad de mezcla de combustibles | I175: =IF(insumos2!BV24=0,"",insumos2!BW24) -> 2 | M175: =IFERROR(I175/insumos2!$BT$28,"") -> 0.001863932898 | O175: =IF(insumos2!BX24=0,"",insumos2!BX24) -> 2 | S175: =IFERROR(O175/insumos2!$BU$28,"") -> 0.0003046458492
B176: =IF(insumos2!BV25=0,"",insumos2!BV25) -> Elaboración de productos de tabaco | I176: =IF(insumos2!BV25=0,"",insumos2!BW25) -> 1 | M176: =IFERROR(I176/insumos2!$BT$28,"") -> 0.0009319664492 | O176: =IF(insumos2!BX25=0,"",insumos2!BX25) -> 12 | S176: =IFERROR(O176/insumos2!$BU$28,"") -> 0.001827875095
B177: =IF(insumos2!BV26=0,"",insumos2!BV26) ->  | I177: =IF(insumos2!BV26=0,"",insumos2!BW26) ->  | M177: =IFERROR(I177/insumos2!$BT$28,"") ->  | O177: =IF(insumos2!BX26=0,"",insumos2!BX26) ->  | S177: =IFERROR(O177/insumos2!$BU$28,"") -> 
B180: Postulaciones recibidas en la sección | F180: Cantidad | I180: % | L180: Empleados postulados en la sección | P180: Cantidad | S180: %
B181: Total solicitudes | F181: =COUNT(insumos2!$AI$2:$AI$399999) -> 2616 | I181: =F181/$F$181 -> 1 | L181: Total empleados | P181: =SUM(insumos2!$AI$2:$AJ$399999) -> 18944 | S181: =P181/$P$181 -> 1
B182: Empleadores con beneficiados | F182: =COUNTIFS(insumos2!$AN$2:$AN$399999,"Aprobado con subsidio") -> 1073 | I182: =F182/$F$181 -> 0.4101681957 | L182: Conformidad | P182: =SUMIFS(insumos2!$AI$2:$AI$399999,insumos2!$AN$2:$AN$399999,"Aprobado con subsidio") -> 6565 | S182: =P182/$P$181 -> 0.3465477196
B183: Empleadores sin beneficio | F183: =F181-F182 -> 1543 | I183: =F183/$F$181 -> 0.5898318043 | L183: No conformidad | P183: =P181-P182 -> 12379 | S183: =P183/$P$181 -> 0.6534522804

Sheet insumos1 (hidden)
A1: Ciclo | B1: DIVIPOLA1 | C1: MpioNOM | D1: Depto | E1: DeptoNOM | F1: NOM_AECONOMICA1 | G1: SECTOR_ECONOMICO1 | H1: actividad | I1: TIPO_PERSONA1 | J1: SIZE1 | K1: Suma de RECURSOS1 | Q1: Suma de Suma de RECURSOS1 | R1: Etiquetas de columna
B2: 63001 | C2: ARMENIA | D2: 63 | E2: QUINDÍO | F2: COMERCIO AL POR MAYOR Y AL POR MENOR; REPARACIÓN DE VEHÍCULOS AUTOMOTORES Y MOTOCICLETAS | G2: 4774 | H2: G | I2: Natural | J2: PEQUEÑA | K2: 681393 | Q2: Etiquetas de fila | R2: 1 | S2: 2 | T2: 3 | U2: 4 | V2: 5 | W2: 6 | X2: 7 | Y2: 8 | Z2: 9 | AA2: 10 | AB2: 11 | AC2: EO_SA | AD2: Total general
B3: 50001 | C3: VILLAVICENCIO | D3: 50 | E3: META | F3: COMERCIO AL POR MAYOR Y AL POR MENOR; REPARACIÓN DE VEHÍCULOS AUTOMOTORES Y MOTOCICLETAS | G3: 4541 | H3: G | I3: Natural | J3: PEQUEÑA | K3: 227131 | Q3: ACTIVIDADES ARTÍSTICAS, DE ENTRETENIMIENTO Y RECREACIÓN | R3: 15487875000 | S3: 15599142000 | T3: 12897144000 | U3: 11213397000 | V3: 13012425000 | W3: 11462866000 | X3: 11571104000 | Y3: 11202419000 | Z3: 11060261000 | AA3: 11675829000 | AB3: 10661911000 | AC3: 4176688000 | AD3: 140021061000
B4: 5001 | C4: MEDELLÍN | D4: 5 | E4: ANTIOQUIA | F4: COMERCIO AL POR MAYOR Y AL POR MENOR; REPARACIÓN DE VEHÍCULOS AUTOMOTORES Y MOTOCICLETAS | G4: 4773 | H4: G | I4: Natural | J4: MICRO | K4: 454262 | Q4: ACTIVIDADES DE ATENCIÓN DE LA SALUD HUMANA Y DE ASISTENCIA SOCIAL | R4: 63169470000 | S4: 59343570000 | T4: 43074720000 | U4: 34766199000 | V4: 33470467000 | W4: 26348770000 | X4: 24864742000 | Y4: 21808556000 | Z4: 21944785000 | AA4: 22446095000 | AB4: 19709237000 | AC4: 4906018000 | AD4: 375852629000
B5: 63001 | C5: ARMENIA | D5: 63 | E5: QUINDÍO | F5: COMERCIO AL POR MAYOR Y AL POR MENOR; REPARACIÓN DE VEHÍCULOS AUTOMOTORES Y MOTOCICLETAS | G5: 4752 | H5: G | I5: Natural | J5: MICRO | K5: 454262 | Q5: ACTIVIDADES DE LOS HOGARES INDIVIDUALES EN CALIDAD DE EMPLEADORES; ACTIVIDADES NO DIFERENCIADAS DE LOS HOGARES INDIVIDUALES COMO PRODUCTORES DE BIENES Y SERVICIOS PARA USO PROPIO | R5: 53703000 | S5: 64233000 | T5: 50544000 | U5: 59319000 | V5: 45995000 | W5: 48629000 | X5: 47840000 | Y5: 51263000 | Z5: 66816000 | AA5: 50743000 | AB5: 73898000 | AC5: 2195000 | AD5: 615178000
B6: 5615 | C6: RIONEGRO | D6: 5 | E6: ANTIOQUIA | F6: ACTIVIDADES ARTÍSTICAS, DE ENTRETENIMIENTO Y RECREACIÓN | G6: 9312 | H6: R | I6: Natural | J6: MICRO | K6: 227131 | Q6: ACTIVIDADES DE ORGANIZACIONES Y ENTIDADES EXTRATERRITORIALES | R6: 6669000 | S6: 37206000 | T6: 15444000 | U6: 15093000 | V6: 12992000 | W6: 7550000 | X6: 7550000 | Y6: 10536000 | Z6: 4994000 | AA6: 20239000 | AD6: 138273000
B7: 66001 | C7: PEREIRA | D7: 66 | E7: RISARALDA | F7: COMERCIO AL POR MAYOR Y AL POR MENOR; REPARACIÓN DE VEHÍCULOS AUTOMOTORES Y MOTOCICLETAS | G7: 4771 | H7: G | I7: Natural | J7: MICRO | K7: 1135655 | Q7: ACTIVIDADES DE SERVICIOS ADMINISTRATIVOS Y DE APOYO | R7: 133808922000 | S7: 147424914000 | T7: 135768204000 | U7: 117859833000 | V7: 122010438000 | W7: 117864897000 | X7: 111245264000 | Y7: 83641688000 | Z7: 78337356000 | AA7: 86002923000 | AB7: 73768010000 | AC7: 17959704000 | AD7: 1225692153000
B8: 25269 | C8: FACATATIVÁ | D8: 25 | E8: CUNDINAMARCA | F8: COMERCIO AL POR MAYOR Y AL POR MENOR; REPARACIÓN DE VEHÍCULOS AUTOMOTORES Y MOTOCICLETAS | G8: 4773 | H8: G | I8: Natural | J8: MICRO | K8: 227131 | Q8: ACTIVIDADES FINANCIERAS Y DE SEGUROS | R8: 7251309000 | S8: 7558785000 | T8: 5632497000 | U8: 4413123000 | V8: 4771350000 | W8: 4209638000 | X8: 4411793000 | Y8: 3828825000 | Z8: 3185105000 | AA8: 3331751000 | AB8: 2588258000 | AC8: 705981000 | AD8: 51888415000
B9: 11001 | C9: BOGOTÁ, D.C. | D9: 11 | E9: BOGOTÁ, D.C. | F9: COMERCIO AL POR MAYOR Y AL POR MENOR; REPARACIÓN DE VEHÍCULOS AUTOMOTORES Y MOTOCICLETAS | G9: 4723 | H9: G | I9: Natural | J9: MICRO | K9: 1135655 | Q9: ACTIVIDADES INMOBILIARIAS | R9: 8052642000 | S9: 8673561000 | T9: 7076511000 | U9: 7244991000 | V9: 7637814000 | W9: 7404676000 | X9: 7099201000 | Y9: 5951076000 | Z9: 6224999000 | AA9: 6208288000 | AB9: 5656808000 | AC9: 1884147000 | AD9: 79114714000
B10: 66001 | C10: PEREIRA | D10: 66 | E10: RISARALDA | F10: COMERCIO AL POR MAYOR Y AL POR MENOR; REPARACIÓN DE VEHÍCULOS AUTOMOTORES Y MOTOCICLETAS | G10: 4772 | H10: G | I10: Natural | J10: MICRO | K10: 227131 | Q10: ACTIVIDADES PROFESIONALES, CIENTÍFICAS Y TÉCNICAS | R10: 38787255000 | S10: 44501535000 | T10: 42058926000 | U10: 36757422000 | V10: 42561024000 | W10: 38047358000 | X10: 33171472000 | Y10: 27017263000 | Z10: 31363570000 | AA10: 31329788000 | AB10: 28294315000 | AC10: 9064014000 | AD10: 402953942000
B11: 25899 | C11: ZIPAQUIRÁ | D11: 25 | E11: CUNDINAMARCA | F11: COMERCIO AL POR MAYOR Y AL POR MENOR; REPARACIÓN DE VEHÍCULOS AUTOMOTORES Y MOTOCICLETAS | G11: 4632 | H11: G | I11: Natural | J11: MICRO | K11: 681393 | Q11: ADMINISTRACIÓN PÚBLICA Y DEFENSA; PLANES DE SEGURIDAD SOCIAL DE AFILIACIÓN OBLIGATORIA | R11: 841698000 | S11: 1175499000 | T11: 4308876000 | U11: 1197261000 | V11: 5325234000 | W11: 5334473000 | X11: 5320268000 | Y11: 4800503000 | Z11: 4359920000 | AA11: 870291000 | AB11: 1102633000 | AC11: 3123248000 | AD11: 37759904000
B12: 5001 | C12: MEDELLÍN | D12: 5 | E12: ANTIOQUIA | F12: OTRAS ACTIVIDADES DE SERVICIOS | G12: 9609 | H12: S | I12: Natural | J12: MICRO | K12: 227131 | Q12: AGRICULTURA, GANADERÍA, CAZA, SILVICULTURA Y PESCA | R12: 29879577000 | S12: 31821309000 | T12: 29911167000 | U12: 23507172000 | V12: 21901099000 | W12: 17863871000 | X12: 17712151000 | Y12: 14413350000 | Z12: 17532894000 | AA12: 12241882000 | AB12: 10714729000 | AC12: 8590335000 | AD12: 236089536000
B13: 5001 | C13: MEDELLÍN | D13: 5 | E13: ANTIOQUIA | F13: COMERCIO AL POR MAYOR Y AL POR MENOR; REPARACIÓN DE VEHÍCULOS AUTOMOTORES Y MOTOCICLETAS | G13: 4642 | H13: G | I13: Natural | J13: MICRO | K13: 454262 | Q13: ALOJAMIENTO Y SERVICIOS DE COMIDA | R13: 37098594000 | S13: 36363951000 | T13: 33191262000 | U13: 30448548000 | V13: 33634135000 | W13: 31534904000 | X13: 27308304000 | Y13: 25650039000 | Z13: 27754359000 | AA13: 30925183000 | AB13: 25833243000 | AC13: 2046446000 | AD13: 341788968000
B14: 5001 | C14: MEDELLÍN | D14: 5 | E14: ANTIOQUIA | F14: COMERCIO AL POR MAYOR Y AL POR MENOR; REPARACIÓN DE VEHÍCULOS AUTOMOTORES Y MOTOCICLETAS | G14: 4723 | H14: G | I14: Natural | J14: MICRO | K14: 227131 | Q14: COMERCIO AL POR MAYOR Y AL POR MENOR; REPARACIÓN DE VEHÍCULOS AUTOMOTORES Y MOTOCICLETAS | R14: 160029324000 | S14: 151233966000 | T14: 120997773000 | U14: 106466724000 | V14: 101776309000 | W14: 83140825000 | X14: 77206118000 | Y14: 63588260000 | Z14: 66304104000 | AA14: 85241054000 | AC14: 12259238000 | AD14: 1028243695000
B15: 5360 | C15: ITAGUI | D15: 5 | E15: ANTIOQUIA | F15: COMERCIO AL POR MAYOR Y AL POR MENOR; REPARACIÓN DE VEHÍCULOS AUTOMOTORES Y MOTOCICLETAS | G15: 4723 | H15: G | I15: Natural | J15: MICRO | K15: 681393 | Q15: COMERCIO AL POR MAYOR Y AL POR MENOR; REPARACIÓN DE VEHÍCULOS AUTOMOTORES Y MOTOCICLETAS. | AB15: 64540497000 | AD15: 64540497000
B16: 5001 | C16: MEDELLÍN | D16: 5 | E16: ANTIOQUIA | F16: AGRICULTURA, GANADERÍA, CAZA, SILVICULTURA Y PESCA | G16: 141 | H16: A | I16: Natural | J16: MICRO | K16: 227131 | Q16: CONSTRUCCIÓN | R16: 59637006000 | S16: 68136822000 | T16: 64444653000 | U16: 58476951000 | V16: 50573115000 | W16: 50366303000 | X16: 47593881000 | Y16: 43325865000 | Z16: 38946646000 | AA16: 44852815000 | AB16: 42488115000 | AC16: 6756983000 | AD16: 575599155000
B17: 25322 | C17: GUASCA | D17: 25 | E17: CUNDINAMARCA | F17: COMERCIO AL POR MAYOR Y AL POR MENOR; REPARACIÓN DE VEHÍCULOS AUTOMOTORES Y MOTOCICLETAS | G17: 4771 | H17: G | I17: Natural | J17: MICRO | K17: 681393 | Q17: DISTRIBUCIÓN DE AGUA; EVACUACIÓN Y TRATAMIENTO DE AGUAS RESIDUALES, GESTIÓN DE DESECHOS Y ACTIVIDADES DE SANEAMIENTO AMBIENTAL | R17: 3493152000 | S17: 3403998000 | T17: 4203225000 | U17: 2494908000 | V17: 2012691000 | W17: 1897715000 | X17: 1757712000 | Y17: 1665455000 | Z17: 1541508000 | AA17: 1622823000 | AB17: 1218578000 | AC17: 257212000 | AD17: 25568977000
B18: 11001 | C18: BOGOTÁ, D.C. | D18: 11 | E18: BOGOTÁ, D.C. | F18: ALOJAMIENTO Y SERVICIOS DE COMIDA | G18: 5611 | H18: I | I18: Natural | J18: MICRO | K18: 681393 | Q18: EDUCACIÓN | R18: 27161784000 | S18: 29268486000 | T18: 26893269000 | U18: 28889757000 | V18: 31233825000 | W18: 29896995000 | X18: 30011790000 | Y18: 23380372000 | Z18: 15114704000 | AA18: 15513482000 | AB18: 20530311000 | AC18: 4561508000 | AD18: 282456283000
B19: 5088 | C19: BELLO | D19: 5 | E19: ANTIOQUIA | F19: COMERCIO AL POR MAYOR Y AL POR MENOR; REPARACIÓN DE VEHÍCULOS AUTOMOTORES Y MOTOCICLETAS | G19: 4719 | H19: G | I19: Natural | J19: MICRO | K19: 227131 | Q19: EXPLOTACIÓN DE MINAS Y CANTERAS | R19: 11917503000 | S19: 12650040000 | T19: 12428910000 | U19: 11866959000 | V19: 9389242000 | W19: 9148594000 | X19: 7355448000 | Y19: 8388868000 | Z19: 8211359000 | AA19: 5644153000 | AB19: 5851554000 | AC19: 721720000 | AD19: 103574350000
B20: 5001 | C20: MEDELLÍN | D20: 5 | E20: ANTIOQUIA | F20: COMERCIO AL POR MAYOR Y AL POR MENOR; REPARACIÓN DE VEHÍCULOS AUTOMOTORES Y MOTOCICLETAS | G20: 4669 | H20: G | I20: Natural | J20: MICRO | K20: 227131 | Q20: INDUSTRIAS MANUFACTURERAS | R20: 147655521000 | S20: 141350157000 | T20: 113489883000 | U20: 93844764000 | V20: 93837609000 | W20: 74405105000 | X20: 67748738000 | Y20: 59465421000 | Z20: 57514549000 | AA20: 71463338000 | AB20: 62642202000 | AC20: 10585445000 | AD20: 994002732000
B21: 5088 | C21: BELLO | D21: 5 | E21: ANTIOQUIA | F21: ACTIVIDADES PROFESIONALES, CIENTÍFICAS Y TÉCNICAS | G21: 6920 | H21: M | I21: Natural | J21: MICRO | K21: 227131 | Q21: INFORMACIÓN Y COMUNICACIONES | R21: 22157577000 | S21: 19511739000 | T21: 19300437000 | U21: 15005250000 | V21: 14974249000 | W21: 13390190000 | X21: 12263220000 | Y21: 10040469000 | Z21: 9773523000 | AA21: 11483698000 | AB21: 9430071000 | AC21: 1685650000 | AD21: 159016073000
B22: 11001 | C22: BOGOTÁ, D.C. | D22: 11 | E22: BOGOTÁ, D.C. | F22: ACTIVIDADES PROFESIONALES, CIENTÍFICAS Y TÉCNICAS | G22: 6910 | H22: M | I22: Natural | J22: MICRO | K22: 227131 | Q22: OTRAS | R22: 22113000 | S22: 53001000 | T22: 56511000 | U22: 47385000 | V22: 38795000 | W22: 39496000 | X22: 34583000 | Y22: 18169000 | Z22: 18064000 | AA22: 16067000 | AB22: 16521000 | AD22: 360705000
B23: 68547 | C23: PIEDECUESTA | D23: 68 | E23: SANTANDER | F23: ALOJAMIENTO Y SERVICIOS DE COMIDA | G23: 5511 | H23: I | I23: Natural | J23: MEDIANA | K23: 1817048 | Q23: OTRAS ACTIVIDADES DE SERVICIOS | R23: 18685836000 | S23: 19227780000 | T23: 16021044000 | U23: 13804830000 | V23: 14740328000 | W23: 13756463000 | X23: 13855824000 | Y23: 11248425000 | Z23: 12183466000 | AA23: 11368761000 | AB23: 10701251000 | AC23: 3028864000 | AD23: 158622872000
B24: 11001 | C24: BOGOTÁ, D.C. | D24: 11 | E24: BOGOTÁ, D.C. | F24: INDUSTRIAS MANUFACTURERAS | G24: 1410 | H24: C | I24: Natural | J24: PEQUEÑA | K24: 1362786 | Q24: SUMINISTRO DE ELECTRICIDAD, GAS, VAPOR Y AIRE ACONDICIONADO | R24: 611793000 | S24: 661284000 | T24: 421902000 | U24: 547911000 | V24: 404594000 | W24: 302352000 | X24: 259519000 | Y24: 257848000 | Z24: 301357000 | AA24: 149310000 | AB24: 263130000 | AC24: 115934000 | AD24: 4296934000
B25: 11001 | C25: BOGOTÁ, D.C. | D25: 11 | E25: BOGOTÁ, D.C. | F25: INDUSTRIAS MANUFACTURERAS | G25: 1410 | H25: C | I25: Natural | J25: MICRO | K25: 454262 | Q25: TRANSPORTE Y ALMACENAMIENTO | R25: 69643314000 | S25: 65129805000 | T25: 55977480000 | U25: 47176155000 | V25: 47190439000 | W25: 44541004000 | X25: 45504585000 | Y25: 38474533000 | Z25: 42841372000 | AA25: 43788614000 | AB25: 43173234000 | AC25: 8556974000 | AD25: 551997509000
B26: 54001 | C26: CÚCUTA | D26: 54 | E26: NORTE DE SANTANDER | F26: ALOJAMIENTO Y SERVICIOS DE COMIDA | G26: 5611 | H26: I | I26: Natural | J26: MICRO | K26: 454262 | Q26: Total general | R26: 855452637000 | S26: 863190783000 | T26: 748220382000 | U26: 646103952000 | V26: 650554169000 | W26: 581012674000 | X26: 546351107000 | Y26: 458229203000 | Z26: 454585711000 | AA26: 496247127000 | AB26: 439258506000 | AC26: 100988304000 | AD26: 6840194555000
B27: 11001 | C27: BOGOTÁ, D.C. | D27: 11 | E27: BOGOTÁ, D.C. | F27: ACTIVIDADES PROFESIONALES, CIENTÍFICAS Y TÉCNICAS | G27: 6920 | H27: M | I27: Natural | J27: MICRO | K27: 227131
B28: 17001 | C28: MANIZALES | D28: 17 | E28: CALDAS | F28: CONSTRUCCIÓN | G28: 4290 | H28: F | I28: Natural | J28: MICRO | K28: 227131
B29: 17001 | C29: MANIZALES | D29: 17 | E29: CALDAS | F29: CONSTRUCCIÓN | G29: 4290 | H29: F | I29: Natural | J29: MICRO | K29: 2044179
B30: 17001 | C30: MANIZALES | D30: 17 | E30: CALDAS | F30: COMERCIO AL POR MAYOR Y AL POR MENOR; REPARACIÓN DE VEHÍCULOS AUTOMOTORES Y MOTOCICLETAS | G30: 4759 | H30: G | I30: Natural | J30: PEQUEÑA | K30: 227131
B31: 68001 | C31: BUCARAMANGA | D31: 68 | E31: SANTANDER | F31: COMERCIO AL POR MAYOR Y AL POR MENOR; REPARACIÓN DE VEHÍCULOS AUTOMOTORES Y MOTOCICLETAS | G31: 4741 | H31: G | I31: Natural | J31: PEQUEÑA | K31: 454262
B32: 11001 | C32: BOGOTÁ, D.C. | D32: 11 | E32: BOGOTÁ, D.C. | F32: COMERCIO AL POR MAYOR Y AL POR MENOR; REPARACIÓN DE VEHÍCULOS AUTOMOTORES Y MOTOCICLETAS | G32: 4645 | H32: G | I32: Natural | J32: MICRO | K32: 454262
B33: 11001 | C33: BOGOTÁ, D.C. | D33: 11 | E33: BOGOTÁ, D.C. | F33: COMERCIO AL POR MAYOR Y AL POR MENOR; REPARACIÓN DE VEHÍCULOS AUTOMOTORES Y MOTOCICLETAS | G33: 4771 | H33: G | I33: Natural | J33: MICRO | K33: 227131
B34: 11001 | C34: BOGOTÁ, D.C. | D34: 11 | E34: BOGOTÁ, D.C. | F34: COMERCIO AL POR MAYOR Y AL POR MENOR; REPARACIÓN DE VEHÍCULOS AUTOMOTORES Y MOTOCICLETAS | G34: 4773 | H34: G | I34: Natural | J34: PEQUEÑA | K34: 681393
B35: 11001 | C35: BOGOTÁ, D.C. | D35: 11 | E35: BOGOTÁ, D.C. | F35: ACTIVIDADES DE SERVICIOS ADMINISTRATIVOS Y DE APOYO | G35: 8220 | H35: N | I35: Natural | J35: PEQUEÑA | K35: 2498441
B36: 5001 | C36: MEDELLÍN | D36: 5 | E36: ANTIOQUIA | F36: COMERCIO AL POR MAYOR Y AL POR MENOR; REPARACIÓN DE VEHÍCULOS AUTOMOTORES Y MOTOCICLETAS | G36: 4620 | H36: G | I36: Natural | J36: MICRO | K36: 454262
B37: 5001 | C37: MEDELLÍN | D37: 5 | E37: ANTIOQUIA | F37: COMERCIO AL POR MAYOR Y AL POR MENOR; REPARACIÓN DE VEHÍCULOS AUTOMOTORES Y MOTOCICLETAS | G37: 4530 | H37: G | I37: Natural | J37: MICRO | K37: 454262
B38: 5001 | C38: MEDELLÍN | D38: 5 | E38: ANTIOQUIA | F38: ALOJAMIENTO Y SERVICIOS DE COMIDA | G38: 5611 | H38: I | I38: Natural | J38: MICRO | K38: 454262
B39: 5001 | C39: MEDELLÍN | D39: 5 | E39: ANTIOQUIA | F39: ALOJAMIENTO Y SERVICIOS DE COMIDA | G39: 5612 | H39: I | I39: Natural | J39: MICRO | K39: 227131
B40: 5045 | C40: APARTADÓ | D40: 5 | E40: ANTIOQUIA | F40: COMERCIO AL POR MAYOR Y AL POR MENOR; REPARACIÓN DE VEHÍCULOS AUTOMOTORES Y MOTOCICLETAS | G40: 4530 | H40: G | I40: Natural | J40: MICRO | K40: 227131
B41: 5360 | C41: ITAGUI | D41: 5 | E41: ANTIOQUIA | F41: COMERCIO AL POR MAYOR Y AL POR MENOR; REPARACIÓN DE VEHÍCULOS AUTOMOTORES Y MOTOCICLETAS | G41: 4791 | H41: G | I41: Natural | J41: MICRO | K41: 681393
B42: 5001 | C42: MEDELLÍN | D42: 5 | E42: ANTIOQUIA | F42: COMERCIO AL POR MAYOR Y AL POR MENOR; REPARACIÓN DE VEHÍCULOS AUTOMOTORES Y MOTOCICLETAS | G42: 4741 | H42: G | I42: Natural | J42: MICRO | K42: 227131
B43: 5001 | C43: MEDELLÍN | D43: 5 | E43: ANTIOQUIA | F43: COMERCIO AL POR MAYOR Y AL POR MENOR; REPARACIÓN DE VEHÍCULOS AUTOMOTORES Y MOTOCICLETAS | G43: 4719 | H43: G | I43: Natural | J43: MICRO | K43: 227131
B44: 23417 | C44: LORICA | D44: 23 | E44: CÓRDOBA | F44: COMERCIO AL POR MAYOR Y AL POR MENOR; REPARACIÓN DE VEHÍCULOS AUTOMOTORES Y MOTOCICLETAS | G44: 4773 | H44: G | I44: Natural | J44: MICRO | K44: 454262
B45: 5697 | C45: EL SANTUARIO | D45: 5 | E45: ANTIOQUIA | F45: INDUSTRIAS MANUFACTURERAS | G45: 1410 | H45: C | I45: Natural | J45: PEQUEÑA | K45: 227131
B46: 8758 | C46: SOLEDAD | D46: 8 | E46: ATLÁNTICO | F46: COMERCIO AL POR MAYOR Y AL POR MENOR; REPARACIÓN DE VEHÍCULOS AUTOMOTORES Y MOTOCICLETAS | G46: 4723 | H46: G | I46: Natural | J46: PEQUEÑA | K46: 454262
B47: 70001 | C47: SINCELEJO | D47: 70 | E47: SUCRE | F47: OTRAS ACTIVIDADES DE SERVICIOS | G47: 9602 | H47: S | I47: Natural | J47: MICRO | K47: 227131
B48: 13001 | C48: CARTAGENA | D48: 13 | E48: BOLÍVAR | F48: ALOJAMIENTO Y SERVICIOS DE COMIDA | G48: 5613 | H48: I | I48: Natural | J48: MICRO | K48: 227131
B49: 15001 | C49: TUNJA | D49: 15 | E49: BOYACÁ | F49: ALOJAMIENTO Y SERVICIOS DE COMIDA | G49: 5611 | H49: I | I49: Natural | J49: MICRO | K49: 227131
B50: 15189 | C50: CIÉNEGA | D50: 15 | E50: BOYACÁ | F50: INDUSTRIAS MANUFACTURERAS | G50: 1040 | H50: C | I50: Natural | J50: PEQUEÑA | K50: 227131
B51: 15238 | C51: DUITAMA | D51: 15 | E51: BOYACÁ | F51: CONSTRUCCIÓN | G51: 4111 | H51: F | I51: Natural | J51: MICRO | K51: 681393
B52: 15001 | C52: TUNJA | D52: 15 | E52: BOYACÁ | F52: ALOJAMIENTO Y SERVICIOS DE COMIDA | G52: 5611 | H52: I | I52: Natural | J52: MICRO | K52: 227131
B53: 15001 | C53: TUNJA | D53: 15 | E53: BOYACÁ | F53: ACTIVIDADES INMOBILIARIAS | G53: 6810 | H53: L | I53: Natural | J53: MICRO | K53: 227131
B54: 15491 | C54: NOBSA | D54: 15 | E54: BOYACÁ | F54: EDUCACIÓN | G54: 8513 | H54: P | I54: Natural | J54: PEQUEÑA | K54: 227131
B55: 17001 | C55: MANIZALES | D55: 17 | E55: CALDAS | F55: ALOJAMIENTO Y SERVICIOS DE COMIDA | G55: 5611 | H55: I | I55: Natural | J55: MICRO | K55: 227131
B56: 5001 | C56: MEDELLÍN | D56: 5 | E56: ANTIOQUIA | F56: INDUSTRIAS MANUFACTURERAS | G56: 1081 | H56: C | I56: Natural | J56: MICRO | K56: 227131
B57: 19001 | C57: POPAYÁN | D57: 19 | E57: CAUCA | F57: COMERCIO AL POR MAYOR Y AL POR MENOR; REPARACIÓN DE VEHÍCULOS AUTOMOTORES Y MOTOCICLETAS | G57: 4773 | H57: G | I57: Natural | J57: MICRO | K57: 227131
B58: 76001 | C58: CALI | D58: 76 | E58: VALLE DEL CAUCA | F58: INDUSTRIAS MANUFACTURERAS | G58: 1089 | H58: C | I58: Natural | J58: MICRO | K58: 454262
B59: 19001 | C59: POPAYÁN | D59: 19 | E59: CAUCA | F59: OTRAS | G59: 90 | H59: Otras | I59: Natural | J59: MICRO | K59: 227131
B60: 19698 | C60: SANTANDER DE QUILICHAO | D60: 19 | E60: CAUCA | F60: COMERCIO AL POR MAYOR Y AL POR MENOR; REPARACIÓN DE VEHÍCULOS AUTOMOTORES Y MOTOCICLETAS | G60: 4772 | H60: G | I60: Natural | J60: MICRO | K60: 908524
B61: 19698 | C61: SANTANDER DE QUILICHAO | D61: 19 | E61: CAUCA | F61: COMERCIO AL POR MAYOR Y AL POR MENOR; REPARACIÓN DE VEHÍCULOS AUTOMOTORES Y MOTOCICLETAS | G61: 4773 | H61: G | I61: Natural | J61: MICRO | K61: 227131
B62: 20250 | C62: EL PASO | D62: 20 | E62: CESAR | F62: COMERCIO AL POR MAYOR Y AL POR MENOR; REPARACIÓN DE VEHÍCULOS AUTOMOTORES Y MOTOCICLETAS | G62: 4723 | H62: G | I62: Natural | J62: MICRO | K62: 454262
B63: 23001 | C63: MONTERÍA | D63: 23 | E63: CÓRDOBA | F63: ALOJAMIENTO Y SERVICIOS DE COMIDA | G63: 5619 | H63: I | I63: Natural | J63: MICRO | K63: 454262
B64: 20011 | C64: AGUACHICA | D64: 20 | E64: CESAR | F64: COMERCIO AL POR MAYOR Y AL POR MENOR; REPARACIÓN DE VEHÍCULOS AUTOMOTORES Y MOTOCICLETAS | G64: 4754 | H64: G | I64: Natural | J64: MICRO | K64: 454262
B65: 5631 | C65: SABANETA | D65: 5 | E65: ANTIOQUIA | F65: INDUSTRIAS MANUFACTURERAS | G65: 2511 | H65: C | I65: Natural | J65: PEQUEÑA | K65: 2952703
B66: 41551 | C66: PITALITO | D66: 41 | E66: HUILA | F66: COMERCIO AL POR MAYOR Y AL POR MENOR; REPARACIÓN DE VEHÍCULOS AUTOMOTORES Y MOTOCICLETAS | G66: 4755 | H66: G | I66: Natural | J66: MICRO | K66: 227131
B67: 41396 | C67: LA PLATA | D67: 41 | E67: HUILA | F67: COMERCIO AL POR MAYOR Y AL POR MENOR; REPARACIÓN DE VEHÍCULOS AUTOMOTORES Y MOTOCICLETAS | G67: 4663 | H67: G | I67: Natural | J67: PEQUEÑA | K67: 454262
B68: 20001 | C68: VALLEDUPAR | D68: 20 | E68: CESAR | F68: COMERCIO AL POR MAYOR Y AL POR MENOR; REPARACIÓN DE VEHÍCULOS AUTOMOTORES Y MOTOCICLETAS | G68: 4719 | H68: G | I68: Natural | J68: MICRO | K68: 227131
B69: 11001 | C69: BOGOTÁ, D.C. | D69: 11 | E69: BOGOTÁ, D.C. | F69: INFORMACIÓN Y COMUNICACIONES | G69: 6202 | H69: J | I69: Natural | J69: MICRO | K69: 454262
B70: 66682 | C70: SANTA ROSA DE CABAL | D70: 66 | E70: RISARALDA | F70: ALOJAMIENTO Y SERVICIOS DE COMIDA | G70: 5611 | H70: I | I70: Natural | J70: PEQUEÑA | K70: 454262
B71: 66001 | C71: PEREIRA | D71: 66 | E71: RISARALDA | F71: COMERCIO AL POR MAYOR Y AL POR MENOR; REPARACIÓN DE VEHÍCULOS AUTOMOTORES Y MOTOCICLETAS | G71: 4741 | H71: G | I71: Natural | J71: MICRO | K71: 908524
B72: 66001 | C72: PEREIRA | D72: 66 | E72: RISARALDA | F72: COMERCIO AL POR MAYOR Y AL POR MENOR; REPARACIÓN DE VEHÍCULOS AUTOMOTORES Y MOTOCICLETAS | G72: 4772 | H72: G | I72: Natural | J72: MICRO | K72: 454262
B73: 63001 | C73: ARMENIA | D73: 63 | E73: QUINDÍO | F73: INFORMACIÓN Y COMUNICACIONES | G73: 6201 | H73: J | I73: Natural | J73: MICRO | K73: 227131
B74: 66001 | C74: PEREIRA | D74: 66 | E74: RISARALDA | F74: COMERCIO AL POR MAYOR Y AL POR MENOR; REPARACIÓN DE VEHÍCULOS AUTOMOTORES Y MOTOCICLETAS | G74: 4771 | H74: G | I74: Natural | J74: MICRO | K74: 681393
B75: 54405 | C75: LOS PATIOS | D75: 54 | E75: NORTE DE SANTANDER | F75: COMERCIO AL POR MAYOR Y AL POR MENOR; REPARACIÓN DE VEHÍCULOS AUTOMOTORES Y MOTOCICLETAS | G75: 4711 | H75: G | I75: Natural | J75: MICRO | K75: 1135655
B76: 54001 | C76: CÚCUTA | D76: 54 | E76: NORTE DE SANTANDER | F76: ACTIVIDADES PROFESIONALES, CIENTÍFICAS Y TÉCNICAS | G76: 7020 | H76: M | I76: Natural | J76: MICRO | K76: 227131
B77: 54001 | C77: CÚCUTA | D77: 54 | E77: NORTE DE SANTANDER | F77: COMERCIO AL POR MAYOR Y AL POR MENOR; REPARACIÓN DE VEHÍCULOS AUTOMOTORES Y MOTOCICLETAS | G77: 4791 | H77: G | I77: Natural | J77: MICRO | K77: 681393
B78: 54001 | C78: CÚCUTA | D78: 54 | E78: NORTE DE SANTANDER | F78: COMERCIO AL POR MAYOR Y AL POR MENOR; REPARACIÓN DE VEHÍCULOS AUTOMOTORES Y MOTOCICLETAS | G78: 4752 | H78: G | I78: Natural | J78: MICRO | K78: 454262
B79: 54001 | C79: CÚCUTA | D79: 54 | E79: NORTE DE SANTANDER | F79: COMERCIO AL POR MAYOR Y AL POR MENOR; REPARACIÓN DE VEHÍCULOS AUTOMOTORES Y MOTOCICLETAS | G79: 4759 | H79: G | I79: Natural | J79: MICRO | K79: 1135655
B80: 63001 | C80: ARMENIA | D80: 63 | E80: QUINDÍO | F80: ACTIVIDADES PROFESIONALES, CIENTÍFICAS Y TÉCNICAS | G80: 6920 | H80: M | I80: Natural | J80: MICRO | K80: 227131
B81: 63001 | C81: ARMENIA | D81: 63 | E81: QUINDÍO | F81: ACTIVIDADES DE SERVICIOS ADMINISTRATIVOS Y DE APOYO | G81: 7911 | H81: N | I81: Natural | J81: MICRO | K81: 227131
B82: 68276 | C82: FLORIDABLANCA | D82: 68 | E82: SANTANDER | F82: COMERCIO AL POR MAYOR Y AL POR MENOR; REPARACIÓN DE VEHÍCULOS AUTOMOTORES Y MOTOCICLETAS | G82: 4772 | H82: G | I82: Natural | J82: MICRO | K82: 454262
B83: 68307 | C83: GIRÓN | D83: 68 | E83: SANTANDER | F83: INDUSTRIAS MANUFACTURERAS | G83: 1410 | H83: C | I83: Natural | J83: MICRO | K83: 454262
B84: 68001 | C84: BUCARAMANGA | D84: 68 | E84: SANTANDER | F84: COMERCIO AL POR MAYOR Y AL POR MENOR; REPARACIÓN DE VEHÍCULOS AUTOMOTORES Y MOTOCICLETAS | G84: 4541 | H84: G | I84: Natural | J84: PEQUEÑA | K84: 908524
B85: 68001 | C85: BUCARAMANGA | D85: 68 | E85: SANTANDER | F85: COMERCIO AL POR MAYOR Y AL POR MENOR; REPARACIÓN DE VEHÍCULOS AUTOMOTORES Y MOTOCICLETAS | G85: 4530 | H85: G | I85: Natural | J85: MICRO | K85: 227131
B86: 68001 | C86: BUCARAMANGA | D86: 68 | E86: SANTANDER | F86: COMERCIO AL POR MAYOR Y AL POR MENOR; REPARACIÓN DE VEHÍCULOS AUTOMOTORES Y MOTOCICLETAS | G86: 4530 | H86: G | I86: Natural | J86: MICRO | K86: 227131
B87: 68001 | C87: BUCARAMANGA | D87: 68 | E87: SANTANDER | F87: ALOJAMIENTO Y SERVICIOS DE COMIDA | G87: 5619 | H87: I | I87: Natural | J87: MICRO | K87: 227131
B88: 70473 | C88: MORROA | D88: 70 | E88: SUCRE | F88: ACTIVIDADES PROFESIONALES, CIENTÍFICAS Y TÉCNICAS | G88: 6920 | H88: M | I88: Natural | J88: MICRO | K88: 908524
B89: 70001 | C89: SINCELEJO | D89: 70 | E89: SUCRE | F89: ACTIVIDADES PROFESIONALES, CIENTÍFICAS Y TÉCNICAS | G89: 7310 | H89: M | I89: Natural | J89: MICRO | K89: 227131
B90: 8001 | C90: BARRANQUILLA | D90: 8 | E90: ATLÁNTICO | F90: COMERCIO AL POR MAYOR Y AL POR MENOR; REPARACIÓN DE VEHÍCULOS AUTOMOTORES Y MOTOCICLETAS | G90: 4723 | H90: G | I90: Natural | J90: PEQUEÑA | K90: 1135655
B91: 19698 | C91: SANTANDER DE QUILICHAO | D91: 19 | E91: CAUCA | F91: COMERCIO AL POR MAYOR Y AL POR MENOR; REPARACIÓN DE VEHÍCULOS AUTOMOTORES Y MOTOCICLETAS | G91: 4731 | H91: G | I91: Natural | J91: MICRO | K91: 227131
B92: 73001 | C92: IBAGUÉ | D92: 73 | E92: TOLIMA | F92: COMERCIO AL POR MAYOR Y AL POR MENOR; REPARACIÓN DE VEHÍCULOS AUTOMOTORES Y MOTOCICLETAS | G92: 4653 | H92: G | I92: Natural | J92: MICRO | K92: 227131
B93: 73001 | C93: IBAGUÉ | D93: 73 | E93: TOLIMA | F93: COMERCIO AL POR MAYOR Y AL POR MENOR; REPARACIÓN DE VEHÍCULOS AUTOMOTORES Y MOTOCICLETAS | G93: 4773 | H93: G | I93: Natural | J93: MICRO | K93: 227131
B94: 73001 | C94: IBAGUÉ | D94: 73 | E94: TOLIMA | F94: COMERCIO AL POR MAYOR Y AL POR MENOR; REPARACIÓN DE VEHÍCULOS AUTOMOTORES Y MOTOCICLETAS | G94: 4771 | H94: G | I94: Natural | J94: MICRO | K94: 454262
B95: 76147 | C95: CARTAGO | D95: 76 | E95: VALLE DEL CAUCA | F95: ACTIVIDADES DE SERVICIOS ADMINISTRATIVOS Y DE APOYO | G95: 8299 | H95: N | I95: Natural | J95: MICRO | K95: 908524
B96: 25899 | C96: ZIPAQUIRÁ | D96: 25 | E96: CUNDINAMARCA | F96: COMERCIO AL POR MAYOR Y AL POR MENOR; REPARACIÓN DE VEHÍCULOS AUTOMOTORES Y MOTOCICLETAS | G96: 4772 | H96: G | I96: Natural | J96: PEQUEÑA | K96: 908524
B97: 52001 | C97: PASTO | D97: 52 | E97: NARIÑO | F97: ALOJAMIENTO Y SERVICIOS DE COMIDA | G97: 5619 | H97: I | I97: Natural | J97: MICRO | K97: 1135655
B98: 76520 | C98: PALMIRA | D98: 76 | E98: VALLE DEL CAUCA | F98: INDUSTRIAS MANUFACTURERAS | G98: 1084 | H98: C | I98: Natural | J98: MICRO | K98: 227131
B99: 76248 | C99: EL CERRITO | D99: 76 | E99: VALLE DEL CAUCA | F99: INDUSTRIAS MANUFACTURERAS | G99: 1102 | H99: C | I99: Natural | J99: MICRO | K99: 454262
B100: 18001 | C100: FLORENCIA | D100: 18 | E100: CAQUETÁ | F100: COMERCIO AL POR MAYOR Y AL POR MENOR; REPARACIÓN DE VEHÍCULOS AUTOMOTORES Y MOTOCICLETAS | G100: 4773 | H100: G | I100: Natural | J100: MICRO | K100: 227131
B101: 18001 | C101: FLORENCIA | D101: 18 | E101: CAQUETÁ | F101: COMERCIO AL POR MAYOR Y AL POR MENOR; REPARACIÓN DE VEHÍCULOS AUTOMOTORES Y MOTOCICLETAS | G101: 4723 | H101: G | I101: Natural | J101: PEQUEÑA | K101: 1589917
B102: 85001 | C102: YOPAL | D102: 85 | E102: CASANARE | F102: TRANSPORTE Y ALMACENAMIENTO | G102: 4923 | H102: H | I102: Natural | J102: MICRO | K102: 227131
B103: 85001 | C103: YOPAL | D103: 85 | E103: CASANARE | F103: CONSTRUCCIÓN | G103: 4330 | H103: F | I103: Natural | J103: MICRO | K103: 454262
B104: 50573 | C104: PUERTO LÓPEZ | D104: 50 | E104: META | F104: ALOJAMIENTO Y SERVICIOS DE COMIDA | G104: 5611 | H104: I | I104: Natural | J104: MICRO | K104: 454262
B105: 50001 | C105: VILLAVICENCIO | D105: 50 | E105: META | F105: TRANSPORTE Y ALMACENAMIENTO | G105: 5320 | H105: H | I105: Natural | J105: MICRO | K105: 227131
B106: 50001 | C106: VILLAVICENCIO | D106: 50 | E106: META | F106: COMERCIO AL POR MAYOR Y AL POR MENOR; REPARACIÓN DE VEHÍCULOS AUTOMOTORES Y MOTOCICLETAS | G106: 4771 | H106: G | I106: Natural | J106: MICRO | K106: 681393
B107: 50006 | C107: ACACÍAS | D107: 50 | E107: META | F107: AGRICULTURA, GANADERÍA, CAZA, SILVICULTURA Y PESCA | G107: 162 | H107: A | I107: Natural | J107: MICRO | K107: 227131
B108: 17174 | C108: CHINCHINÁ | D108: 17 | E108: CALDAS | F108: COMERCIO AL POR MAYOR Y AL POR MENOR; REPARACIÓN DE VEHÍCULOS AUTOMOTORES Y MOTOCICLETAS | G108: 4772 | H108: G | I108: Natural | J108: MICRO | K108: 227131
B109: 86865 | C109: VALLE DEL GUAMUEZ | D109: 86 | E109: PUTUMAYO | F109: COMERCIO AL POR MAYOR Y AL POR MENOR; REPARACIÓN DE VEHÍCULOS AUTOMOTORES Y MOTOCICLETAS | G109: 4711 | H109: G | I109: Natural | J109: MICRO | K109: 454262
B110: 54405 | C110: LOS PATIOS | D110: 54 | E110: NORTE DE SANTANDER | F110: INDUSTRIAS MANUFACTURERAS | G110: 1081 | H110: C | I110: Natural | J110: MEDIANA | K110: 7268192
B111: 25126 | C111: CAJICÁ | D111: 25 | E111: CUNDINAMARCA | F111: ACTIVIDADES DE LOS HOGARES INDIVIDUALES EN CALIDAD DE EMPLEADORES; ACTIVIDADES NO DIFERENCIADAS DE LOS HOGARES INDIVIDUALES COMO PRODUCTORES DE BIENES Y SERVICIOS PARA USO PROPIO | G111: 9820 | H111: T | I111: Natural | J111: MICRO | K111: 908524
B112: 8001 | C112: BARRANQUILLA | D112: 8 | E112: ATLÁNTICO | F112: INDUSTRIAS MANUFACTURERAS | G112: 3312 | H112: C | I112: Natural | J112: MICRO | K112: 227131
B113: 76001 | C113: CALI | D113: 76 | E113: VALLE DEL CAUCA | F113: ACTIVIDADES PROFESIONALES, CIENTÍFICAS Y TÉCNICAS | G113: 6920 | H113: M | I113: Natural | J113: MICRO | K113: 227131
B114: 25899 | C114: ZIPAQUIRÁ | D114: 25 | E114: CUNDINAMARCA | F114: ALOJAMIENTO Y SERVICIOS DE COMIDA | G114: 5611 | H114: I | I114: Natural | J114: MICRO | K114: 454262
B115: 11001 | C115: BOGOTÁ, D.C. | D115: 11 | E115: BOGOTÁ, D.C. | F115: INDUSTRIAS MANUFACTURERAS | G115: 1410 | H115: C | I115: Natural | J115: MICRO | K115: 454262
B116: 8001 | C116: BARRANQUILLA | D116: 8 | E116: ATLÁNTICO | F116: EDUCACIÓN | G116: 8512 | H116: P | I116: Natural | J116: PEQUEÑA | K116: 908524
B117: 8001 | C117: BARRANQUILLA | D117: 8 | E117: ATLÁNTICO | F117: COMERCIO AL POR MAYOR Y AL POR MENOR; REPARACIÓN DE VEHÍCULOS AUTOMOTORES Y MOTOCICLETAS | G117: 4721 | H117: G | I117: Natural | J117: PEQUEÑA | K117: 227131
B118: 5001 | C118: MEDELLÍN | D118: 5 | E118: ANTIOQUIA | F118: COMERCIO AL POR MAYOR Y AL POR MENOR; REPARACIÓN DE VEHÍCULOS AUTOMOTORES Y MOTOCICLETAS | G118: 4711 | H118: G | I118: Natural | J118: MICRO | K118: 227131
B119: 25286 | C119: FUNZA | D119: 25 | E119: CUNDINAMARCA | F119: ACTIVIDADES PROFESIONALES, CIENTÍFICAS Y TÉCNICAS | G119: 7020 | H119: M | I119: Natural | J119: MICRO | K119: 454262
B120: 76001 | C120: CALI | D120: 76 | E120: VALLE DEL CAUCA | F120: EDUCACIÓN | G120: 8512 | H120: P | I120: Natural | J120: MICRO | K120: 227131
B121: 76364 | C121: JAMUNDÍ | D121: 76 | E121: VALLE DEL CAUCA | F121: COMERCIO AL POR MAYOR Y AL POR MENOR; REPARACIÓN DE VEHÍCULOS AUTOMOTORES Y MOTOCICLETAS | G121: 4724 | H121: G | I121: Natural | J121: MICRO | K121: 1135655
B122: 76001 | C122: CALI | D122: 76 | E122: VALLE DEL CAUCA | F122: INDUSTRIAS MANUFACTURERAS | G122: 1020 | H122: C | I122: Natural | J122: MICRO | K122: 227131
B123: 76001 | C123: CALI | D123: 76 | E123: VALLE DEL CAUCA | F123: EDUCACIÓN | G123: 8512 | H123: P | I123: Natural | J123: MICRO | K123: 454262
B124: 76001 | C124: CALI | D124: 76 | E124: VALLE DEL CAUCA | F124: COMERCIO AL POR MAYOR Y AL POR MENOR; REPARACIÓN DE VEHÍCULOS AUTOMOTORES Y MOTOCICLETAS | G124: 4773 | H124: G | I124: Natural | J124: MICRO | K124: 227131
B125: 5001 | C125: MEDELLÍN | D125: 5 | E125: ANTIOQUIA | F125: COMERCIO AL POR MAYOR Y AL POR MENOR; REPARACIÓN DE VEHÍCULOS AUTOMOTORES Y MOTOCICLETAS | G125: 4530 | H125: G | I125: Natural | J125: MICRO | K125: 227131
B126: 5001 | C126: MEDELLÍN | D126: 5 | E126: ANTIOQUIA | F126: COMERCIO AL POR MAYOR Y AL POR MENOR; REPARACIÓN DE VEHÍCULOS AUTOMOTORES Y MOTOCICLETAS | G126: 4723 | H126: G | I126: Natural | J126: MICRO | K126: 454262
B127: 5001 | C127: MEDELLÍN | D127: 5 | E127: ANTIOQUIA | F127: ALOJAMIENTO Y SERVICIOS DE COMIDA | G127: 5611 | H127: I | I127: Natural | J127: MICRO | K127: 454262
B128: 5001 | C128: MEDELLÍN | D128: 5 | E128: ANTIOQUIA | F128: INDUSTRIAS MANUFACTURERAS | G128: 3210 | H128: C | I128: Natural | J128: MICRO | K128: 227131
B129: 23001 | C129: MONTERÍA | D129: 23 | E129: CÓRDOBA | F129: COMERCIO AL POR MAYOR Y AL POR MENOR; REPARACIÓN DE VEHÍCULOS AUTOMOTORES Y MOTOCICLETAS | G129: 4774 | H129: G | I129: Natural | J129: MICRO | K129: 2498441
B130: 5001 | C130: MEDELLÍN | D130: 5 | E130: ANTIOQUIA | F130: COMERCIO AL POR MAYOR Y AL POR MENOR; REPARACIÓN DE VEHÍCULOS AUTOMOTORES Y MOTOCICLETAS | G130: 4723 | H130: G | I130: Natural | J130: MICRO | K130: 227131
B131: 5001 | C131: MEDELLÍN | D131: 5 | E131: ANTIOQUIA | F131: CONSTRUCCIÓN | G131: 4111 | H131: F | I131: Natural | J131: PEQUEÑA | K131: 227131
B132: 5001 | C132: MEDELLÍN | D132: 5 | E132: ANTIOQUIA | F132: COMERCIO AL POR MAYOR Y AL POR MENOR; REPARACIÓN DE VEHÍCULOS AUTOMOTORES Y MOTOCICLETAS | G132: 4530 | H132: G | I132: Natural | J132: MICRO | K132: 681393
B133: 11001 | C133: BOGOTÁ, D.C. | D133: 11 | E133: BOGOTÁ, D.C. | F133: INDUSTRIAS MANUFACTURERAS | G133: 2394 | H133: C | I133: Natural | J133: MICRO | K133: 454262
B134: 41396 | C134: LA PLATA | D134: 41 | E134: HUILA | F134: COMERCIO AL POR MAYOR Y AL POR MENOR; REPARACIÓN DE VEHÍCULOS AUTOMOTORES Y MOTOCICLETAS | G134: 4754 | H134: G | I134: Natural | J134: MICRO | K134: 454262
B135: 52001 | C135: PASTO | D135: 52 | E135: NARIÑO | F135: INDUSTRIAS MANUFACTURERAS | G135: 1811 | H135: C | I135: Natural | J135: MICRO | K135: 454262
B136: 52001 | C136: PASTO | D136: 52 | E136: NARIÑO | F136: ACTIVIDADES DE SERVICIOS ADMINISTRATIVOS Y DE APOYO | G136: 8299 | H136: N | I136: Natural | J136: MICRO | K136: 454262
B137: 52001 | C137: PASTO | D137: 52 | E137: NARIÑO | F137: COMERCIO AL POR MAYOR Y AL POR MENOR; REPARACIÓN DE VEHÍCULOS AUTOMOTORES Y MOTOCICLETAS | G137: 4729 | H137: G | I137: Natural | J137: PEQUEÑA | K137: 908524
B138: 76001 | C138: CALI | D138: 76 | E138: VALLE DEL CAUCA | F138: COMERCIO AL POR MAYOR Y AL POR MENOR; REPARACIÓN DE VEHÍCULOS AUTOMOTORES Y MOTOCICLETAS | G138: 4520 | H138: G | I138: Natural | J138: MICRO | K138: 227131
B139: 54001 | C139: CÚCUTA | D139: 54 | E139: NORTE DE SANTANDER | F139: OTRAS ACTIVIDADES DE SERVICIOS | G139: 9601 | H139: S | I139: Natural | J139: PEQUEÑA | K139: 454262
B140: 68001 | C140: BUCARAMANGA | D140: 68 | E140: SANTANDER | F140: COMERCIO AL POR MAYOR Y AL POR MENOR; REPARACIÓN DE VEHÍCULOS AUTOMOTORES Y MOTOCICLETAS | G140: 4752 | H140: G | I140: Natural | J140: MICRO | K140: 454262
B141: 68001 | C141: BUCARAMANGA | D141: 68 | E141: SANTANDER | F141: COMERCIO AL POR MAYOR Y AL POR MENOR; REPARACIÓN DE VEHÍCULOS AUTOMOTORES Y MOTOCICLETAS | G141: 4771 | H141: G | I141: Natural | J141: MICRO | K141: 454262
B142: 68001 | C142: BUCARAMANGA | D142: 68 | E142: SANTANDER | F142: ACTIVIDADES PROFESIONALES, CIENTÍFICAS Y TÉCNICAS | G142: 6920 | H142: M | I142: Natural | J142: MICRO | K142: 227131
B143: 54001 | C143: CÚCUTA | D143: 54 | E143: NORTE DE SANTANDER | F143: COMERCIO AL POR MAYOR Y AL POR MENOR; REPARACIÓN DE VEHÍCULOS AUTOMOTORES Y MOTOCICLETAS | G143: 4641 | H143: G | I143: Natural | J143: PEQUEÑA | K143: 227131
B144: 73001 | C144: IBAGUÉ | D144: 73 | E144: TOLIMA | F144: ACTIVIDADES PROFESIONALES, CIENTÍFICAS Y TÉCNICAS | G144: 6920 | H144: M | I144: Natural | J144: MICRO | K144: 454262
B145: 73001 | C145: IBAGUÉ | D145: 73 | E145: TOLIMA | F145: COMERCIO AL POR MAYOR Y AL POR MENOR; REPARACIÓN DE VEHÍCULOS AUTOMOTORES Y MOTOCICLETAS | G145: 4665 | H145: G | I145: Natural | J145: PEQUEÑA | K145: 454262
B146: 11001 | C146: BOGOTÁ, D.C. | D146: 11 | E146: BOGOTÁ, D.C. | F146: ACTIVIDADES PROFESIONALES, CIENTÍFICAS Y TÉCNICAS | G146: 6920 | H146: M | I146: Natural | J146: MICRO | K146: 227131
B147: 73001 | C147: IBAGUÉ | D147: 73 | E147: TOLIMA | F147: ACTIVIDADES DE ATENCIÓN DE LA SALUD HUMANA Y DE ASISTENCIA SOCIAL | G147: 8622 | H147: Q | I147: Natural | J147: MICRO | K147: 227131
B148: 41396 | C148: LA PLATA | D148: 41 | E148: HUILA | F148: COMERCIO AL POR MAYOR Y AL POR MENOR; REPARACIÓN DE VEHÍCULOS AUTOMOTORES Y MOTOCICLETAS | G148: 4711 | H148: G | I148: Natural | J148: MICRO | K148: 908524
B149: 76001 | C149: CALI | D149: 76 | E149: VALLE DEL CAUCA | F149: COMERCIO AL POR MAYOR Y AL POR MENOR; REPARACIÓN DE VEHÍCULOS AUTOMOTORES Y MOTOCICLETAS | G149: 4759 | H149: G | I149: Natural | J149: MICRO | K149: 227131
B150: 76248 | C150: EL CERRITO | D150: 76 | E150: VALLE DEL CAUCA | F150: AGRICULTURA, GANADERÍA, CAZA, SILVICULTURA Y PESCA | G150: 144 | H150: A | I150: Natural | J150: PEQUEÑA | K150: 454262
B151: 5615 | C151: RIONEGRO | D151: 5 | E151: ANTIOQUIA | F151: AGRICULTURA, GANADERÍA, CAZA, SILVICULTURA Y PESCA | G151: 128 | H151: A | I151: Natural | J151: MICRO | K151: 227131
B152: 73001 | C152: IBAGUÉ | D152: 73 | E152: TOLIMA | F152: INDUSTRIAS MANUFACTURERAS | G152: 1410 | H152: C | I152: Natural | J152: MICRO | K152: 227131
B153: 5615 | C153: RIONEGRO | D153: 5 | E153: ANTIOQUIA | F153: TRANSPORTE Y ALMACENAMIENTO | G153: 4923 | H153: H | I153: Natural | J153: MICRO | K153: 1135655
B154: 5045 | C154: APARTADÓ | D154: 5 | E154: ANTIOQUIA | F154: COMERCIO AL POR MAYOR Y AL POR MENOR; REPARACIÓN DE VEHÍCULOS AUTOMOTORES Y MOTOCICLETAS | G154: 4769 | H154: G | I154: Natural | J154: MICRO | K154: 681393
B155: 91001 | C155: LETICIA | D155: 91 | E155: AMAZONAS | F155: EDUCACIÓN | G155: 8521 | H155: P | I155: Natural | J155: PEQUEÑA | K155: 227131
B156: 17001 | C156: MANIZALES | D156: 17 | E156: CALDAS | F156: CONSTRUCCIÓN | G156: 4111 | H156: F | I156: Natural | J156: MICRO | K156: 1135655
B157: 17001 | C157: MANIZALES | D157: 17 | E157: CALDAS | F157: COMERCIO AL POR MAYOR Y AL POR MENOR; REPARACIÓN DE VEHÍCULOS AUTOMOTORES Y MOTOCICLETAS | G157: 4719 | H157: G | I157: Natural | J157: MEDIANA | K157: 227131
B158: 11001 | C158: BOGOTÁ, D.C. | D158: 11 | E158: BOGOTÁ, D.C. | F158: COMERCIO AL POR MAYOR Y AL POR MENOR; REPARACIÓN DE VEHÍCULOS AUTOMOTORES Y MOTOCICLETAS | G158: 4663 | H158: G | I158: Natural | J158: MICRO | K158: 454262
B159: 76001 | C159: CALI | D159: 76 | E159: VALLE DEL CAUCA | F159: AGRICULTURA, GANADERÍA, CAZA, SILVICULTURA Y PESCA | G159: 145 | H159: A | I159: Natural | J159: MICRO | K159: 227131
B160: 66170 | C160: DOSQUEBRADAS | D160: 66 | E160: RISARALDA | F160: INDUSTRIAS MANUFACTURERAS | G160: 2511 | H160: C | I160: Natural | J160: PEQUEÑA | K160: 227131
B161: 76001 | C161: CALI | D161: 76 | E161: VALLE DEL CAUCA | F161: COMERCIO AL POR MAYOR Y AL POR MENOR; REPARACIÓN DE VEHÍCULOS AUTOMOTORES Y MOTOCICLETAS | G161: 4751 | H161: G | I161: Natural | J161: MICRO | K161: 681393
B162: 76364 | C162: JAMUNDÍ | D162: 76 | E162: VALLE DEL CAUCA | F162: AGRICULTURA, GANADERÍA, CAZA, SILVICULTURA Y PESCA | G162: 112 | H162: A | I162: Natural | J162: MICRO | K162: 227131
B163: 76001 | C163: CALI | D163: 76 | E163: VALLE DEL CAUCA | F163: INDUSTRIAS MANUFACTURERAS | G163: 1811 | H163: C | I163: Natural | J163: MICRO | K163: 454262
B164: 76001 | C164: CALI | D164: 76 | E164: VALLE DEL CAUCA | F164: INDUSTRIAS MANUFACTURERAS | G164: 1521 | H164: C | I164: Natural | J164: MICRO | K164: 227131
B165: 5001 | C165: MEDELLÍN | D165: 5 | E165: ANTIOQUIA | F165: COMERCIO AL POR MAYOR Y AL POR MENOR; REPARACIÓN DE VEHÍCULOS AUTOMOTORES Y MOTOCICLETAS | G165: 4774 | H165: G | I165: Natural | J165: PEQUEÑA | K165: 908524
B166: 73268 | C166: ESPINAL | D166: 73 | E166: TOLIMA | F166: COMERCIO AL POR MAYOR Y AL POR MENOR; REPARACIÓN DE VEHÍCULOS AUTOMOTORES Y MOTOCICLETAS | G166: 4731 | H166: G | I166: Natural | J166: PEQUEÑA | K166: 227131
B167: 11001 | C167: BOGOTÁ, D.C. | D167: 11 | E167: BOGOTÁ, D.C. | F167: COMERCIO AL POR MAYOR Y AL POR MENOR; REPARACIÓN DE VEHÍCULOS AUTOMOTORES Y MOTOCICLETAS | G167: 4711 | H167: G | I167: Natural | J167: PEQUEÑA | K167: 227131
B168: 20001 | C168: VALLEDUPAR | D168: 20 | E168: CESAR | F168: AGRICULTURA, GANADERÍA, CAZA, SILVICULTURA Y PESCA | G168: 126 | H168: A | I168: Natural | J168: MEDIANA | K168: 227131
B169: 50001 | C169: VILLAVICENCIO | D169: 50 | E169: META | F169: INDUSTRIAS MANUFACTURERAS | G169: 1081 | H169: C | I169: Natural | J169: MICRO | K169: 227131
B170: 81736 | C170: SARAVENA | D170: 81 | E170: ARAUCA | F170: COMERCIO AL POR MAYOR Y AL POR MENOR; REPARACIÓN DE VEHÍCULOS AUTOMOTORES Y MOTOCICLETAS | G170: 4541 | H170: G | I170: Natural | J170: PEQUEÑA | K170: 454262
B171: 73001 | C171: IBAGUÉ | D171: 73 | E171: TOLIMA | F171: COMERCIO AL POR MAYOR Y AL POR MENOR; REPARACIÓN DE VEHÍCULOS AUTOMOTORES Y MOTOCICLETAS | G171: 4752 | H171: G | I171: Natural | J171: MICRO | K171: 454262
B172: 18001 | C172: FLORENCIA | D172: 18 | E172: CAQUETÁ | F172: COMERCIO AL POR MAYOR Y AL POR MENOR; REPARACIÓN DE VEHÍCULOS AUTOMOTORES Y MOTOCICLETAS | G172: 4729 | H172: G | I172: Natural | J172: PEQUEÑA | K172: 1135655
B173: 54001 | C173: CÚCUTA | D173: 54 | E173: NORTE DE SANTANDER | F173: COMERCIO AL POR MAYOR Y AL POR MENOR; REPARACIÓN DE VEHÍCULOS AUTOMOTORES Y MOTOCICLETAS | G173: 4772 | H173: G | I173: Natural | J173: MICRO | K173: 227131
B174: 11001 | C174: BOGOTÁ, D.C. | D174: 11 | E174: BOGOTÁ, D.C. | F174: INDUSTRIAS MANUFACTURERAS | G174: 1313 | H174: C | I174: Natural | J174: MICRO | K174: 681393
B175: 66682 | C175: SANTA ROSA DE CABAL | D175: 66 | E175: RISARALDA | F175: AGRICULTURA, GANADERÍA, CAZA, SILVICULTURA Y PESCA | G175: 145 | H175: A | I175: Natural | J175: PEQUEÑA | K175: 681393
B176: 11001 | C176: BOGOTÁ, D.C. | D176: 11 | E176: BOGOTÁ, D.C. | F176: CONSTRUCCIÓN | G176: 4210 | H176: F | I176: Natural | J176: MUY GRANDE | K176: 2952703
B177: 11001 | C177: BOGOTÁ, D.C. | D177: 11 | E177: BOGOTÁ, D.C. | F177: INDUSTRIAS MANUFACTURERAS | G177: 3312 | H177: C | I177: Natural | J177: MICRO | K177: 227131
B178: 25175 | C178: CHÍA | D178: 25 | E178: CUNDINAMARCA | F178: EDUCACIÓN | G178: 8530 | H178: P | I178: Natural | J178: PEQUEÑA | K178: 227131
B179: 41001 | C179: NEIVA | D179: 41 | E179: HUILA | F179: CONSTRUCCIÓN | G179: 4112 | H179: F | I179: Natural | J179: MEDIANA | K179: 1817048
B180: 8001 | C180: BARRANQUILLA | D180: 8 | E180: ATLÁNTICO | F180: COMERCIO AL POR MAYOR Y AL POR MENOR; REPARACIÓN DE VEHÍCULOS AUTOMOTORES Y MOTOCICLETAS | G180: 4731 | H180: G | I180: Natural | J180: MICRO | K180: 227131
B181: 11001 | C181: BOGOTÁ, D.C. | D181: 11 | E181: BOGOTÁ, D.C. | F181: COMERCIO AL POR MAYOR Y AL POR MENOR; REPARACIÓN DE VEHÍCULOS AUTOMOTORES Y MOTOCICLETAS | G181: 4754 | H181: G | I181: Natural | J181: MICRO | K181: 454262
B182: 11001 | C182: BOGOTÁ, D.C. | D182: 11 | E182: BOGOTÁ, D.C. | F182: INDUSTRIAS MANUFACTURERAS | G182: 1410 | H182: C | I182: Natural | J182: MICRO | K182: 454262
B183: 11001 | C183: BOGOTÁ, D.C. | D183: 11 | E183: BOGOTÁ, D.C. | F183: COMERCIO AL POR MAYOR Y AL POR MENOR; REPARACIÓN DE VEHÍCULOS AUTOMOTORES Y MOTOCICLETAS | G183: 4751 | H183: G | I183: Natural | J183: MEDIANA | K183: 227131
B184: 11001 | C184: BOGOTÁ, D.C. | D184: 11 | E184: BOGOTÁ, D.C. | F184: COMERCIO AL POR MAYOR Y AL POR MENOR; REPARACIÓN DE VEHÍCULOS AUTOMOTORES Y MOTOCICLETAS | G184: 4620 | H184: G | I184: Natural | J184: PEQUEÑA | K184: 227131
B185: 11001 | C185: BOGOTÁ, D.C. | D185: 11 | E185: BOGOTÁ, D.C. | F185: COMERCIO AL POR MAYOR Y AL POR MENOR; REPARACIÓN DE VEHÍCULOS AUTOMOTORES Y MOTOCICLETAS | G185: 4663 | H185: G | I185: Natural | J185: MICRO | K185: 227131
B186: 63001 | C186: ARMENIA | D186: 63 | E186: QUINDÍO | F186: ACTIVIDADES PROFESIONALES, CIENTÍFICAS Y TÉCNICAS | G186: 6910 | H186: M | I186: Natural | J186: PEQUEÑA | K186: 681393
B187: 11001 | C187: BOGOTÁ, D.C. | D187: 11 | E187: BOGOTÁ, D.C. | F187: INDUSTRIAS MANUFACTURERAS | G187: 1081 | H187: C | I187: Natural | J187: MEDIANA | K187: 908524
B188: 11001 | C188: BOGOTÁ, D.C. | D188: 11 | E188: BOGOTÁ, D.C. | F188: EDUCACIÓN | G188: 8513 | H188: P | I188: Natural | J188: MICRO | K188: 454262
B189: 11001 | C189: BOGOTÁ, D.C. | D189: 11 | E189: BOGOTÁ, D.C. | F189: ACTIVIDADES PROFESIONALES, CIENTÍFICAS Y TÉCNICAS | G189: 6910 | H189: M | I189: Natural | J189: MICRO | K189: 227131
B190: 25740 | C190: SIBATÉ | D190: 25 | E190: CUNDINAMARCA | F190: COMERCIO AL POR MAYOR Y AL POR MENOR; REPARACIÓN DE VEHÍCULOS AUTOMOTORES Y MOTOCICLETAS | G190: 4620 | H190: G | I190: Natural | J190: PEQUEÑA | K190: 681393
B191: 11001 | C191: BOGOTÁ, D.C. | D191: 11 | E191: BOGOTÁ, D.C. | F191: EDUCACIÓN | G191: 8513 | H191: P | I191: Natural | J191: PEQUEÑA | K191: 227131
B192: 11001 | C192: BOGOTÁ, D.C. | D192: 11 | E192: BOGOTÁ, D.C. | F192: COMERCIO AL POR MAYOR Y AL POR MENOR; REPARACIÓN DE VEHÍCULOS AUTOMOTORES Y MOTOCICLETAS | G192: 4721 | H192: G | I192: Natural | J192: PEQUEÑA | K192: 1362786
B193: 85001 | C193: YOPAL | D193: 85 | E193: CASANARE | F193: COMERCIO AL POR MAYOR Y AL POR MENOR; REPARACIÓN DE VEHÍCULOS AUTOMOTORES Y MOTOCICLETAS | G193: 4759 | H193: G | I193: Natural | J193: MICRO | K193: 454262
B194: 25645 | C194: SAN ANTONIO DEL TEQUENDAMA | D194: 25 | E194: CUNDINAMARCA | F194: ALOJAMIENTO Y SERVICIOS DE COMIDA | G194: 5611 | H194: I | I194: Natural | J194: PEQUEÑA | K194: 227131
B195: 25875 | C195: VILLETA | D195: 25 | E195: CUNDINAMARCA | F195: ACTIVIDADES PROFESIONALES, CIENTÍFICAS Y TÉCNICAS | G195: 6920 | H195: M | I195: Natural | J195: MICRO | K195: 227131
B196: 25875 | C196: VILLETA | D196: 25 | E196: CUNDINAMARCA | F196: ACTIVIDADES INMOBILIARIAS | G196: 6820 | H196: L | I196: Natural | J196: MICRO | K196: 227131
B197: 50001 | C197: VILLAVICENCIO | D197: 50 | E197: META | F197: COMERCIO AL POR MAYOR Y AL POR MENOR; REPARACIÓN DE VEHÍCULOS AUTOMOTORES Y MOTOCICLETAS | G197: 4752 | H197: G | I197: Natural | J197: MICRO | K197: 681393
B198: 5045 | C198: APARTADÓ | D198: 5 | E198: ANTIOQUIA | F198: INDUSTRIAS MANUFACTURERAS | G198: 1089 | H198: C | I198: Natural | J198: PEQUEÑA | K198: 227131
B199: 50001 | C199: VILLAVICENCIO | D199: 50 | E199: META | F199: COMERCIO AL POR MAYOR Y AL POR MENOR; REPARACIÓN DE VEHÍCULOS AUTOMOTORES Y MOTOCICLETAS | G199: 4773 | H199: G | I199: Natural | J199: MICRO | K199: 227131
B200: 50001 | C200: VILLAVICENCIO | D200: 50 | E200: META | F200: ACTIVIDADES PROFESIONALES, CIENTÍFICAS Y TÉCNICAS | G200: 6920 | H200: M | I200: Natural | J200: MICRO | K200: 227131
... 6658 more rows

Sheet insumos2 (hidden)
A1: TIPO DE IDENTIFICACION POSTULANTE | B1: NUMERO IDENTIFICACION EMPRESA | C1: CIUDAD - DIVIPOLA - R | D1: Municipio | E1: TOTAL COTIZANTES CON CONCEPTO DE CONFORMIDAD TOTAL A GIRAR | F1: TOTAL COTIZANTES CON CONCEPTO DE NO CONFORMIDAD | G1: TIPO DE PERSONA | H1: Departamento DIVIPOLA (P) | I1: Nombre dpto | J1: ESTADO_TOTAL A GIRAR | K1: Tamaño del Empleador | L1: STRCODPAR_CIIU_EMPRESA | M1: ACTIVIDAD ECONOMICA | N1: ACTIVIDAD ECONOMICA | O1: Division | P1: grupo especial | Q1: SEXO_F_ | R1: SEXO_M_ | S1: SEXO_ND_ | U1: Departamentos | V1: empleadores | W1: Departamentos | X1: empleadores | AE1: TIPO DE IDENTIFICACION POSTULANTE | AF1: NUMERO IDENTIFICACION EMPRESA | AG1: CIUDAD - DIVIPOLA - R | AH1: Municipio | AI1: TOTAL COTIZANTES CON CONCEPTO DE CONFORMIDAD TOTAL A GIRAR | AJ1: TOTAL COTIZANTES CON CONCEPTO DE NO CONFORMIDAD | AK1: TIPO DE PERSONA | AL1: Departamento DIVIPOLA (P) | AM1: Nombre dpto | AN1: ESTADO_TOTAL A GIRAR | AO1: Tamaño del Empleador | AP1: STRCODPAR_CIIU_EMPRESA | AQ1: ACTIVIDAD ECONOMICA | AR1: ACTIVIDAD ECONOMICA | AS1: Division | AT1: Grupo | AU1: SEXO_F_ | AV1: SEXO_M_ | AW1: SEXO_ND_ | AY1: Departamentos | AZ1: empleadores | BA1: Departamentos | BB1: empleadores | BC1: nomdpto | BE1: =BC1 -> nomdpto | BF1: empleadores | BG1: empleados | BI1: codmunicipio | BJ1: aportantes | BK1: codmunicipio | BL1: aportantes | BM1: cod_dpto | BN1: nom_dpto | BO1: nom_mpio | BP1: empleadores | BQ1: empleados | BS1: Grupo | BT1: empleadores | BU1: empleados | BV1: Grupo | BW1: empleadores | BX1: empleados
C2: 11001 | D2: BOGOTÁ, D.C. | E2: 0 | F2: 0 | G2: Jurídica | H2: 11 | I2: BOGOTÁ, D.C. | L2: 9329 | M2: ACTIVIDADES ARTÍSTICAS, DE ENTRETENIMIENTO Y RECREACIÓN | N2: R | O2: Otras actividades recreativas y de esparcimiento | P2: Otras actividades recreativas y de esparcimiento | Q2: 0 | R2: 0 | S2: 0 | U2: 68 | V2: =COUNTIFS($J$2:$J$399999,"Aprobado con subsidio",$H$2:$H$399999,U2) -> 344 | W2: =_xlfn._xlws.SORT($U$2:$V$34,2,-1) -> 11 | X2: 2459 | Y2: =VLOOKUP(W2,Hoja4!$A$29:$B$61,2,FALSE) -> Bogotá | AE2: =_xlfn._xlws.FILTER($A$2:$S$399999,$N$2:$N$399999=Visor!$N$4,"") -> 0 | AF2: 0 | AG2: 25123 | AH2: CACHIPAY | AI2: 0 | AJ2: 0 | AK2: Natural | AL2: 25 | AM2: CUNDINAMARCA | AO2: PEQUEÑA | AP2: 1081 | AQ2: INDUSTRIAS MANUFACTURERAS | AR2: C | AS2: Elaboración de otros productos alimenticios | AT2: Elaboración de productos alimenticios | AU2: 0 | AV2: 0 | AW2: 0 | AY2: 68 | AZ2: =COUNTIFS($AN$2:$AN$399999,"Aprobado con subsidio",$AL$2:$AL$399999,AY2) -> 55 | BA2: =_xlfn._xlws.SORT($AY$2:$AZ$34,2,-1) -> 11 | BB2: 334 | BC2: =VLOOKUP(BA2,Hoja4!$A$29:$B$61,2,FALSE) -> Bogotá | BE2: =BC2 -> Bogotá | BF2: =BB2 -> 334 | BG2: =SUMIFS($AI$2:$AI$399999,$AN$2:$AN$399999,"Aprobado con subsidio",$AL$2:$AL$399999,BA2) -> 1994 | BI2: =_xlfn.UNIQUE($AG$2:$AG$399999) -> 25123 | BJ2: =COUNTIFS($AN$2:$AN$399999,"Aprobado con subsidio",$AG$2:$AG$399999,BI2) -> 1 | BK2: =_xlfn._xlws.SORT($BI$2:$BJ$1122,2,-1) -> 11001 | BL2: 334 | BM2: =IF(LEN(BK2)=5,MID(BK2,1,2),MID(BK2,1,1))*1 -> 11 | BN2: =VLOOKUP(BM2,Hoja4!$A$29:$B$61,2,FALSE) -> Bogotá | BO2: =VLOOKUP(BK2,Hoja4!$D$29:$E$1150,2,FALSE) -> Bogotá, d.c. | BP2: =BL2 -> 334 | BQ2: =SUMIFS($AI$2:$AI$399999,$AG$2:$AG$399999,BK2) -> 1994 | BS2: =_xlfn.UNIQUE($AT$2:$AT$399999) -> Elaboración de productos alimenticios | BT2: =COUNTIFS($AT$2:$AT$399999,BS2,$AN$2:$AN$399999,"Aprobado con subsidio") -> 214 | BU2: =SUMIFS($AI$2:$AI$399999,$AT$2:$AT$399999,BS2,$AN$2:$AN$399999,"Aprobado con subsidio") -> 1560 | BV2: =_xlfn._xlws.SORT(BS2:BU26,2,-1) -> Elaboración de productos alimenticios | BW2: 214 | BX2: 1560
C3: 11001 | D3: BOGOTÁ, D.C. | E3: 0 | F3: 0 | G3: Natural | H3: 11 | I3: BOGOTÁ, D.C. | K3: MICRO | L3: 4729 | M3: COMERCIO AL POR MAYOR Y AL POR MENOR; REPARACIÓN DE VEHÍCULOS AUTOMOTORES Y MOTOCICLETAS | N3: G | O3: Comercio al por menor de alimentos (víveres en general), bebidas y tabaco, en establecimientos especializados | P3: Comercio al por menor de alimentos (víveres en general), bebidas y tabaco, en establecimientos especializados | Q3: 0 | R3: 0 | S3: 0 | U3: 13 | V3: =COUNTIFS($J$2:$J$399999,"Aprobado con subsidio",$H$2:$H$399999,U3) -> 108 | W3: 5 | X3: 1548 | Y3: =VLOOKUP(W3,Hoja4!$A$29:$B$61,2,FALSE) -> Antioquia | AE3: 0 | AF3: 0 | AG3: 11001 | AH3: BOGOTÁ, D.C. | AI3: 0 | AJ3: 0 | AK3: Natural | AL3: 11 | AM3: BOGOTÁ, D.C. | AO3: MEDIANA | AP3: 3290 | AQ3: INDUSTRIAS MANUFACTURERAS | AR3: C | AS3: Otras industrias manufactureras n.c.p. | AT3: Otras industrias manufactureras | AU3: 0 | AV3: 0 | AW3: 0 | AY3: 13 | AZ3: 7 | BA3: 5 | BB3: 322 | BC3: =VLOOKUP(BA3,Hoja4!$A$29:$B$61,2,FALSE) -> Antioquia | BE3: =BC3 -> Antioquia | BF3: =BB3 -> 322 | BG3: 2122 | BI3: 11001 | BJ3: 334 | BK3: 5001 | BL3: 163 | BM3: =IF(LEN(BK3)=5,MID(BK3,1,2),MID(BK3,1,1))*1 -> 5 | BN3: =VLOOKUP(BM3,Hoja4!$A$29:$B$61,2,FALSE) -> Antioquia | BO3: =VLOOKUP(BK3,Hoja4!$D$29:$E$1150,2,FALSE) -> Medellín | BP3: 163 | BQ3: 901 | BS3: Otras industrias manufactureras | BT3: 43 | BU3: 147 | BV3: Confección de prendas de vestir | BW3: 202 | BX3: 1632
C4: 63001 | D4: ARMENIA | E4: 3 | F4: 2 | G4: Natural | H4: 63 | I4: QUINDÍO | J4: Aprobado con subsidio | K4: PEQUEÑA | L4: 4774 | M4: COMERCIO AL POR MAYOR Y AL POR MENOR; REPARACIÓN DE VEHÍCULOS AUTOMOTORES Y MOTOCICLETAS | N4: G | O4: Comercio al por menor de otros productos en establecimientos especializados | P4: Comercio al por menor de otros productos en establecimientos especializados | Q4: 3 | R4: 0 | S4: 0 | U4: 15 | V4: 102 | W4: 76 | X4: 541 | Y4: =VLOOKUP(W4,Hoja4!$A$29:$B$61,2,FALSE) -> Valle del cauca | AE4: 0 | AF4: 0 | AG4: 5001 | AH4: MEDELLÍN | AI4: 0 | AJ4: 0 | AK4: Natural | AL4: 5 | AM4: ANTIOQUIA | AO4: MICRO | AP4: 1410 | AQ4: INDUSTRIAS MANUFACTURERAS | AR4: C | AS4: Confección de prendas de vestir, excepto prendas de piel | AT4: Confección de prendas de vestir | AU4: 0 | AV4: 0 | AW4: 0 | AY4: 15 | AZ4: 12 | BA4: 76 | BB4: 111 | BC4: =VLOOKUP(BA4,Hoja4!$A$29:$B$61,2,FALSE) -> Valle del cauca | BE4: Valle del cauca | BF4: 111 | BG4: 587 | BI4: 5001 | BJ4: 163 | BK4: 76001 | BL4: 74 | BM4: 76 | BN4: =VLOOKUP(BM4,Hoja4!$A$29:$B$61,2,FALSE) -> Valle del cauca | BO4: =VLOOKUP(BK4,Hoja4!$D$29:$E$1150,2,FALSE) -> Cali | BP4: 74 | BQ4: 310 | BS4: Confección de prendas de vestir | BT4: 202 | BU4: 1632 | BV4: Instalación, mantenimiento y reparación especializado de maquinaria y equipo | BW4: 86 | BX4: 260
C5: 50001 | D5: VILLAVICENCIO | E5: 1 | F5: 4 | G5: Natural | H5: 50 | I5: META | J5: Aprobado con subsidio | K5: PEQUEÑA | L5: 4541 | M5: COMERCIO AL POR MAYOR Y AL POR MENOR; REPARACIÓN DE VEHÍCULOS AUTOMOTORES Y MOTOCICLETAS | N5: G | O5: Comercio, mantenimiento y reparación de motocicletas y de sus partes, piezas y accesorios | P5: Comercio, mantenimiento y reparación de motocicletas y de sus partes, piezas y accesorios | Q5: 0 | R5: 1 | S5: 0 | U5: 5 | V5: 1548 | W5: 68 | X5: 344 | Y5: =VLOOKUP(W5,Hoja4!$A$29:$B$61,2,FALSE) -> Santander | AE5: 0 | AF5: 0 | AG5: 5001 | AH5: MEDELLÍN | AI5: 0 | AJ5: 0 | AK5: Natural | AL5: 5 | AM5: ANTIOQUIA | AO5: MICRO | AP5: 2229 | AQ5: INDUSTRIAS MANUFACTURERAS | AR5: C | AS5: Fabricación de productos de plástico | AT5: Fabricación de productos de caucho y de plástico | AU5: 0 | AV5: 0 | AW5: 0 | AY5: 5 | AZ5: 322 | BA5: 25 | BB5: 69 | BC5: =VLOOKUP(BA5,Hoja4!$A$29:$B$61,2,FALSE) -> Cundinamarca | BE5: Cundinamarca | BF5: 69 | BG5: 530 | BI5: 54001 | BJ5: 20 | BK5: 5360 | BL5: 32 | BM5: 5 | BN5: =VLOOKUP(BM5,Hoja4!$A$29:$B$61,2,FALSE) -> Antioquia | BO5: =VLOOKUP(BK5,Hoja4!$D$29:$E$1150,2,FALSE) -> Itagüí | BP5: 32 | BQ5: 181 | BS5: Fabricación de productos de caucho y de plástico | BT5: 62 | BU5: 353 | BV5: Fabricación de productos elaborados de metal, excepto maquinaria y equipo | BW5: 80 | BX5: 335
C6: 5001 | D6: MEDELLÍN | E6: 1 | F6: 0 | G6: Natural | H6: 5 | I6: ANTIOQUIA | J6: Aprobado con subsidio | K6: MICRO | L6: 4773 | M6: COMERCIO AL POR MAYOR Y AL POR MENOR; REPARACIÓN DE VEHÍCULOS AUTOMOTORES Y MOTOCICLETAS | N6: G | O6: Comercio al por menor de otros productos en establecimientos especializados | P6: Comercio al por menor de otros productos en establecimientos especializados | Q6: 1 | R6: 0 | S6: 0 | U6: 76 | V6: 541 | W6: 25 | X6: 302 | Y6: =VLOOKUP(W6,Hoja4!$A$29:$B$61,2,FALSE) -> Cundinamarca | AE6: 0 | AF6: 0 | AG6: 54001 | AH6: CÚCUTA | AI6: 0 | AJ6: 0 | AK6: Natural | AL6: 54 | AM6: NORTE DE SANTANDER | AO6: 0 | AP6: 1399 | AQ6: INDUSTRIAS MANUFACTURERAS | AR6: C | AS6: Fabricación de otros productos textiles | AT6: Fabricación de productos textiles | AU6: 0 | AV6: 0 | AW6: 0 | AY6: 76 | AZ6: 111 | BA6: 68 | BB6: 55 | BC6: =VLOOKUP(BA6,Hoja4!$A$29:$B$61,2,FALSE) -> Santander | BE6: Santander | BF6: 55 | BG6: 215 | BI6: 19517 | BJ6: 0 | BK6: 68001 | BL6: 30 | BM6: 68 | BN6: =VLOOKUP(BM6,Hoja4!$A$29:$B$61,2,FALSE) -> Santander | BO6: =VLOOKUP(BK6,Hoja4!$D$29:$E$1150,2,FALSE) -> Bucaramanga | BP6: 30 | BQ6: 113 | BS6: Fabricación de productos textiles | BT6: 55 | BU6: 405 | BV6: Fabricación de productos de caucho y de plástico | BW6: 62 | BX6: 353
C7: 5368 | D7: JERICÓ | E7: 0 | F7: 0 | G7: Natural | H7: 5 | I7: ANTIOQUIA | L7: 4729 | M7: COMERCIO AL POR MAYOR Y AL POR MENOR; REPARACIÓN DE VEHÍCULOS AUTOMOTORES Y MOTOCICLETAS | N7: G | O7: Comercio al por menor de alimentos (víveres en general), bebidas y tabaco, en establecimientos especializados | P7: Comercio al por menor de alimentos (víveres en general), bebidas y tabaco, en establecimientos especializados | Q7: 0 | R7: 0 | S7: 0 | U7: 54 | V7: 147 | W7: 8 | X7: 239 | Y7: =VLOOKUP(W7,Hoja4!$A$29:$B$61,2,FALSE) -> Atlántico | AE7: 0 | AF7: 0 | AG7: 19517 | AH7: PAEZ | AI7: 0 | AJ7: 0 | AK7: Natural | AL7: 19 | AM7: CAUCA | AO7: MICRO | AP7: 1081 | AQ7: INDUSTRIAS MANUFACTURERAS | AR7: C | AS7: Elaboración de otros productos alimenticios | AT7: Elaboración de productos alimenticios | AU7: 0 | AV7: 0 | AW7: 0 | AY7: 54 | AZ7: 23 | BA7: 8 | BB7: 32 | BC7: =VLOOKUP(BA7,Hoja4!$A$29:$B$61,2,FALSE) -> Atlántico | BE7: Atlántico | BF7: 32 | BG7: 161 | BI7: 5042 | BJ7: 0 | BK7: 8001 | BL7: 25 | BM7: 8 | BN7: =VLOOKUP(BM7,Hoja4!$A$29:$B$61,2,FALSE) -> Atlántico | BO7: =VLOOKUP(BK7,Hoja4!$D$29:$E$1150,2,FALSE) -> Barranquilla | BP7: 25 | BQ7: 123 | BS7: Fabricación de muebles, colchones y somieres | BT7: 22 | BU7: 72 | BV7: Fabricación de sustancias y productos químicos | BW7: 56 | BX7: 300
C8: 76001 | D8: CALI | E8: 0 | F8: 0 | G8: Natural | H8: 76 | I8: VALLE DEL CAUCA | K8: MICRO | L8: 4669 | M8: COMERCIO AL POR MAYOR Y AL POR MENOR; REPARACIÓN DE VEHÍCULOS AUTOMOTORES Y MOTOCICLETAS | N8: G | O8: Comercio al por mayor especializado de otros productos | P8: Comercio al por mayor especializado de otros productos | Q8: 0 | R8: 0 | S8: 0 | U8: 11 | V8: 2459 | W8: 66 | X8: 160 | Y8: =VLOOKUP(W8,Hoja4!$A$29:$B$61,2,FALSE) -> Risaralda | AE8: 0 | AF8: 0 | AG8: 5001 | AH8: MEDELLÍN | AI8: 0 | AJ8: 0 | AK8: Natural | AL8: 5 | AM8: ANTIOQUIA | AO8: PEQUEÑA | AP8: 1011 | AQ8: INDUSTRIAS MANUFACTURERAS | AR8: C | AS8: Procesamiento y conservación de carne, pescado, crustáceos y moluscos | AT8: Elaboración de productos alimenticios | AU8: 0 | AV8: 0 | AW8: 0 | AY8: 11 | AZ8: 334 | BA8: 66 | BB8: 30 | BC8: =VLOOKUP(BA8,Hoja4!$A$29:$B$61,2,FALSE) -> Risaralda | BE8: Risaralda | BF8: 30 | BG8: 252 | BI8: 17001 | BJ8: 10 | BK8: 5380 | BL8: 21 | BM8: 5 | BN8: =VLOOKUP(BM8,Hoja4!$A$29:$B$61,2,FALSE) -> Antioquia | BO8: =VLOOKUP(BK8,Hoja4!$D$29:$E$1150,2,FALSE) -> La estrella | BP8: 21 | BQ8: 128 | BS8: Fabricación de productos elaborados de metal, excepto maquinaria y equipo | BT8: 80 | BU8: 335 | BV8: Fabricación de productos textiles | BW8: 55 | BX8: 405
C9: 5368 | D9: JERICÓ | E9: 0 | F9: 0 | G9: Natural | H9: 5 | I9: ANTIOQUIA | L9: 5611 | M9: ALOJAMIENTO Y SERVICIOS DE COMIDA | N9: I | O9: Actividades de restaurantes, cafeterías y servicio móvil de comidas | P9: Actividades de restaurantes, cafeterías y servicio móvil de comidas | Q9: 0 | R9: 0 | S9: 0 | U9: 66 | V9: 160 | W9: 54 | X9: 147 | Y9: =VLOOKUP(W9,Hoja4!$A$29:$B$61,2,FALSE) -> Norte de stder | AE9: 0 | AF9: 0 | AG9: 11001 | AH9: BOGOTÁ, D.C. | AI9: 3 | AJ9: 2 | AK9: Natural | AL9: 11 | AM9: BOGOTÁ, D.C. | AN9: Aprobado con subsidio | AO9: PEQUEÑA | AP9: 1410 | AQ9: INDUSTRIAS MANUFACTURERAS | AR9: C | AS9: Confección de prendas de vestir, excepto prendas de piel | AT9: Confección de prendas de vestir | AU9: 0 | AV9: 3 | AW9: 0 | AY9: 66 | AZ9: 30 | BA9: 54 | BB9: 23 | BC9: =VLOOKUP(BA9,Hoja4!$A$29:$B$61,2,FALSE) -> Norte de stder | BE9: Norte de stder | BF9: 23 | BG9: 104 | BI9: 68001 | BJ9: 30 | BK9: 54001 | BL9: 20 | BM9: 54 | BN9: =VLOOKUP(BM9,Hoja4!$A$29:$B$61,2,FALSE) -> Norte de stder | BO9: =VLOOKUP(BK9,Hoja4!$D$29:$E$1150,2,FALSE) -> Cucuta | BP9: 20 | BQ9: 64 | BS9: Curtido y recurtido de cueros; fabricación de calzado; fabricación de artículos de viaje, maletas, bolsos de mano y artículos similares, y fabricación de artículos de talabartería y guarnicionería; adobo y teñido de pieles | BT9: 35 | BU9: 360 | BV9: Otras industrias manufactureras | BW9: 43 | BX9: 147
C10: 47001 | D10: SANTA MARTA | E10: 0 | F10: 0 | G10: Natural | H10: 47 | I10: MAGDALENA | K10: MICRO | L10: 5611 | M10: ALOJAMIENTO Y SERVICIOS DE COMIDA | N10: I | O10: Actividades de restaurantes, cafeterías y servicio móvil de comidas | P10: Actividades de restaurantes, cafeterías y servicio móvil de comidas | Q10: 0 | R10: 0 | S10: 0 | U10: 52 | V10: 83 | W10: 50 | X10: 130 | Y10: =VLOOKUP(W10,Hoja4!$A$29:$B$61,2,FALSE) -> Meta | AE10: 0 | AF10: 0 | AG10: 5042 | AH10: SANTAFÉ DE ANTIOQUIA | AI10: 0 | AJ10: 0 | AK10: Natural | AL10: 5 | AM10: ANTIOQUIA | AO10: MICRO | AP10: 1084 | AQ10: INDUSTRIAS MANUFACTURERAS | AR10: C | AS10: Elaboración de otros productos alimenticios | AT10: Elaboración de productos alimenticios | AU10: 0 | AV10: 0 | AW10: 0 | AY10: 52 | AZ10: 9 | BA10: 73 | BB10: 15 | BC10: =VLOOKUP(BA10,Hoja4!$A$29:$B$61,2,FALSE) -> Tolima | BE10: Tolima | BF10: 15 | BG10: 68 | BI10: 5197 | BJ10: 0 | BK10: 5615 | BL10: 18 | BM10: 5 | BN10: =VLOOKUP(BM10,Hoja4!$A$29:$B$61,2,FALSE) -> Antioquia | BO10: =VLOOKUP(BK10,Hoja4!$D$29:$E$1150,2,FALSE) -> Rionegro | BP10: 18 | BQ10: 248 | BS10: Instalación, mantenimiento y reparación especializado de maquinaria y equipo | BT10: 86 | BU10: 260 | BV10: Curtido y recurtido de cueros; fabricación de calzado; fabricación de artículos de viaje, maletas, bolsos de mano y artículos similares, y fabricación de artículos de talabartería y guarnicionería; adobo y teñido de pieles | BW10: 35 | BX10: 360
C11: 66001 | D11: PEREIRA | E11: 0 | F11: 0 | G11: Natural | H11: 66 | I11: RISARALDA | K11: MICRO | L11: 4722 | M11: COMERCIO AL POR MAYOR Y AL POR MENOR; REPARACIÓN DE VEHÍCULOS AUTOMOTORES Y MOTOCICLETAS | N11: G | O11: Comercio al por menor de alimentos (víveres en general), bebidas y tabaco, en establecimientos especializados | P11: Comercio al por menor de alimentos (víveres en general), bebidas y tabaco, en establecimientos especializados | Q11: 0 | R11: 0 | S11: 0 | U11: 19 | V11: 43 | W11: 73 | X11: 119 | Y11: =VLOOKUP(W11,Hoja4!$A$29:$B$61,2,FALSE) -> Tolima | AE11: 0 | AF11: 0 | AG11: 17001 | AH11: MANIZALES | AI11: 0 | AJ11: 0 | AK11: Natural | AL11: 17 | AM11: CALDAS | AO11: MICRO | AP11: 3110 | AQ11: INDUSTRIAS MANUFACTURERAS | AR11: C | AS11: Fabricación de muebles | AT11: Fabricación de muebles, colchones y somieres | AU11: 0 | AV11: 0 | AW11: 0 | AY11: 19 | AZ11: 3 | BA11: 15 | BB11: 12 | BC11: =VLOOKUP(BA11,Hoja4!$A$29:$B$61,2,FALSE) -> Boyacá | BE11: Boyacá | BF11: 12 | BG11: 53 | BI11: 5615 | BJ11: 18 | BK11: 76892 | BL11: 18 | BM11: 76 | BN11: =VLOOKUP(BM11,Hoja4!$A$29:$B$61,2,FALSE) -> Valle del cauca | BO11: =VLOOKUP(BK11,Hoja4!$D$29:$E$1150,2,FALSE) -> Yumbo | BP11: 18 | BQ11: 203 | BS11: Elaboración de bebidas | BT11: 20 | BU11: 56 | BV11: Actividades de impresión y de producción de copias a partir de grabaciones originales | BW11: 31 | BX11: 84
C12: 63001 | D12: ARMENIA | E12: 2 | F12: 0 | G12: Natural | H12: 63 | I12: QUINDÍO | J12: Aprobado con subsidio | K12: MICRO | L12: 4752 | M12: COMERCIO AL POR MAYOR Y AL POR MENOR; REPARACIÓN DE VEHÍCULOS AUTOMOTORES Y MOTOCICLETAS | N12: G | O12: Comercio al por menor de otros enseres domésticos en establecimientos especializados | P12: Comercio al por menor de otros enseres domésticos en establecimientos especializados | Q12: 1 | R12: 1 | S12: 0 | U12: 47 | V12: 42 | W12: 13 | X12: 108 | Y12: =VLOOKUP(W12,Hoja4!$A$29:$B$61,2,FALSE) -> Bolívar | AE12: 0 | AF12: 0 | AG12: 11001 | AH12: BOGOTÁ, D.C. | AI12: 1 | AJ12: 0 | AK12: Natural | AL12: 11 | AM12: BOGOTÁ, D.C. | AN12: Aprobado con subsidio | AO12: MICRO | AP12: 1410 | AQ12: INDUSTRIAS MANUFACTURERAS | AR12: C | AS12: Confección de prendas de vestir, excepto prendas de piel | AT12: Confección de prendas de vestir | AU12: 0 | AV12: 1 | AW12: 0 | AY12: 47 | AZ12: 2 | BA12: 63 | BB12: 12 | BC12: =VLOOKUP(BA12,Hoja4!$A$29:$B$61,2,FALSE) -> Quindío | BE12: Quindío | BF12: 12 | BG12: 114 | BI12: 8001 | BJ12: 25 | BK12: 66001 | BL12: 17 | BM12: 66 | BN12: =VLOOKUP(BM12,Hoja4!$A$29:$B$61,2,FALSE) -> Risaralda | BO12: =VLOOKUP(BK12,Hoja4!$D$29:$E$1150,2,FALSE) -> Pereira | BP12: 17 | BQ12: 118 | BS12: Transformación de la madera y fabricación de productos de madera y de corcho, excepto muebles; fabricación de artículos de cestería y espartería | BT12: 20 | BU12: 55 | BV12: Fabricación de otros productos minerales no metálicos | BW12: 26 | BX12: 154
C13: 25123 | D13: CACHIPAY | E13: 0 | F13: 0 | G13: Natural | H13: 25 | I13: CUNDINAMARCA | K13: PEQUEÑA | L13: 1081 | M13: INDUSTRIAS MANUFACTURERAS | N13: C | O13: Elaboración de otros productos alimenticios | P13: Elaboración de productos alimenticios | Q13: 0 | R13: 0 | S13: 0 | U13: 50 | V13: 130 | W13: 15 | X13: 102 | Y13: =VLOOKUP(W13,Hoja4!$A$29:$B$61,2,FALSE) -> Boyacá | AE13: 0 | AF13: 0 | AG13: 68001 | AH13: BUCARAMANGA | AI13: 0 | AJ13: 0 | AK13: Natural | AL13: 68 | AM13: SANTANDER | AO13: MICRO | AP13: 2511 | AQ13: INDUSTRIAS MANUFACTURERAS | AR13: C | AS13: Fabricación de productos metálicos para uso estructural, tanques, depósitos y generadores de vapor. | AT13: Fabricación de productos elaborados de metal, excepto maquinaria y equipo | AU13: 0 | AV13: 0 | AW13: 0 | AY13: 50 | AZ13: 11 | BA13: 17 | BB13: 12 | BC13: =VLOOKUP(BA13,Hoja4!$A$29:$B$61,2,FALSE) -> Caldas | BE13: Caldas | BF13: 12 | BG13: 38 | BI13: 5697 | BJ13: 9 | BK13: 5266 | BL13: 15 | BM13: 5 | BN13: =VLOOKUP(BM13,Hoja4!$A$29:$B$61,2,FALSE) -> Antioquia | BO13: =VLOOKUP(BK13,Hoja4!$D$29:$E$1150,2,FALSE) -> Envigado | BP13: 15 | BQ13: 54 | BS13: Fabricación de otros productos minerales no metálicos | BT13: 26 | BU13: 154 | BV13: Fabricación de maquinaria y equipo n.c.p. | BW13: 25 | BX13: 155
C14: 50001 | D14: VILLAVICENCIO | E14: 0 | F14: 0 | G14: Natural | H14: 50 | I14: META | K14: MICRO | L14: 5511 | M14: ALOJAMIENTO Y SERVICIOS DE COMIDA | N14: I | O14: Actividades de alojamiento de estancias cortas | P14: Actividades de alojamiento de estancias cortas | Q14: 0 | R14: 0 | S14: 0 | U14: 63 | V14: 81 | W14: 41 | X14: 95 | Y14: =VLOOKUP(W14,Hoja4!$A$29:$B$61,2,FALSE) -> Huila | AE14: 0 | AF14: 0 | AG14: 5001 | AH14: MEDELLÍN | AI14: 0 | AJ14: 0 | AK14: Natural | AL14: 5 | AM14: ANTIOQUIA | AO14: MICRO | AP14: 1020 | AQ14: INDUSTRIAS MANUFACTURERAS | AR14: C | AS14: Procesamiento y conservación de frutas, legumbres, hortalizas y tubérculos | AT14: Elaboración de productos alimenticios | AU14: 0 | AV14: 0 | AW14: 0 | AY14: 63 | AZ14: 12 | BA14: 50 | BB14: 11 | BC14: =VLOOKUP(BA14,Hoja4!$A$29:$B$61,2,FALSE) -> Meta | BE14: Meta | BF14: 11 | BG14: 20 | BI14: 15189 | BJ14: 2 | BK14: 25214 | BL14: 15 | BM14: 25 | BN14: =VLOOKUP(BM14,Hoja4!$A$29:$B$61,2,FALSE) -> Cundinamarca | BO14: =VLOOKUP(BK14,Hoja4!$D$29:$E$1150,2,FALSE) -> Cota | BP14: 15 | BQ14: 61 | BS14: Actividades de impresión y de producción de copias a partir de grabaciones originales | BT14: 31 | BU14: 84 | BV14: Fabricación de muebles, colchones y somieres | BW14: 22 | BX14: 72
C15: 66001 | D15: PEREIRA | E15: 0 | F15: 0 | G15: Natural | H15: 66 | I15: RISARALDA | K15: PEQUEÑA | L15: 6910 | M15: ACTIVIDADES PROFESIONALES, CIENTÍFICAS Y TÉCNICAS | N15: M | O15: Actividades jurídicas | P15: Actividades jurídicas | Q15: 0 | R15: 0 | S15: 0 | U15: 70 | V15: 20 | W15: 17 | X15: 89 | Y15: =VLOOKUP(W15,Hoja4!$A$29:$B$61,2,FALSE) -> Caldas | AE15: 0 | AF15: 0 | AG15: 5197 | AH15: COCORNÁ | AI15: 0 | AJ15: 0 | AK15: Natural | AL15: 5 | AM15: ANTIOQUIA | AO15: MICRO | AP15: 1410 | AQ15: INDUSTRIAS MANUFACTURERAS | AR15: C | AS15: Confección de prendas de vestir, excepto prendas de piel | AT15: Confección de prendas de vestir | AU15: 0 | AV15: 0 | AW15: 0 | AY15: 70 | AZ15: 1 | BA15: 52 | BB15: 9 | BC15: =VLOOKUP(BA15,Hoja4!$A$29:$B$61,2,FALSE) -> Nariño | BE15: Nariño | BF15: 9 | BG15: 20 | BI15: 76001 | BJ15: 74 | BK15: 5631 | BL15: 14 | BM15: 5 | BN15: =VLOOKUP(BM15,Hoja4!$A$29:$B$61,2,FALSE) -> Antioquia | BO15: =VLOOKUP(BK15,Hoja4!$D$29:$E$1150,2,FALSE) -> Sabaneta | BP15: 14 | BQ15: 88 | BS15: Coquización, fabricación de productos de la refinación del petróleo y actividad de mezcla de combustibles | BT15: 2 | BU15: 2 | BV15: Fabricación de productos farmacéuticos, sustancias químicas medicinales y productos botánicos de uso farmacéutico | BW15: 22 | BX15: 96
C16: 66001 | D16: PEREIRA | E16: 0 | F16: 0 | G16: Natural | H16: 66 | I16: RISARALDA | K16: MICRO | L16: 4620 | M16: COMERCIO AL POR MAYOR Y AL POR MENOR; REPARACIÓN DE VEHÍCULOS AUTOMOTORES Y MOTOCICLETAS | N16: G | O16: Comercio al por mayor de materias primas agropecuarias; animales vivos | P16: Comercio al por mayor de materias primas agropecuarias; animales vivos | Q16: 0 | R16: 0 | S16: 0 | U16: 41 | V16: 95 | W16: 52 | X16: 83 | Y16: =VLOOKUP(W16,Hoja4!$A$29:$B$61,2,FALSE) -> Nariño | AE16: 0 | AF16: 0 | AG16: 5001 | AH16: MEDELLÍN | AI16: 0 | AJ16: 0 | AK16: Natural | AL16: 5 | AM16: ANTIOQUIA | AO16: 0 | AP16: 1512 | AQ16: INDUSTRIAS MANUFACTURERAS | AR16: C | AS16: Curtido y recurtido de cueros; fabricación de artículos de viaje, bolsos de mano y artículos similares, y fabricación de artículos de talabartería y guarnicionería; adobo y teñido de pieles | AT16: Curtido y recurtido de cueros; fabricación de calzado; fabricación de artículos de viaje, maletas, bolsos de mano y artículos similares, y fabricación de artículos de talabartería y guarnicionería; adobo y teñido de pieles | AU16: 0 | AV16: 0 | AW16: 0 | AY16: 41 | AZ16: 2 | BA16: 13 | BB16: 7 | BC16: =VLOOKUP(BA16,Hoja4!$A$29:$B$61,2,FALSE) -> Bolívar | BE16: Bolívar | BF16: 7 | BG16: 65 | BI16: 5631 | BJ16: 14 | BK16: 73001 | BL16: 12 | BM16: 73 | BN16: =VLOOKUP(BM16,Hoja4!$A$29:$B$61,2,FALSE) -> Tolima | BO16: =VLOOKUP(BK16,Hoja4!$D$29:$E$1150,2,FALSE) -> Ibagué | BP16: 12 | BQ16: 56 | BS16: Fabricación de productos metalúrgicos básicos | BT16: 11 | BU16: 36 | BV16: Elaboración de bebidas | BW16: 20 | BX16: 56
C17: 5615 | D17: RIONEGRO | E17: 1 | F17: 1 | G17: Natural | H17: 5 | I17: ANTIOQUIA | J17: Aprobado con subsidio | K17: MICRO | L17: 9312 | M17: ACTIVIDADES ARTÍSTICAS, DE ENTRETENIMIENTO Y RECREACIÓN | N17: R | O17: Actividades deportivas | P17: Actividades deportivas | Q17: 1 | R17: 0 | S17: 0 | U17: 25 | V17: 302 | W17: 63 | X17: 81 | Y17: =VLOOKUP(W17,Hoja4!$A$29:$B$61,2,FALSE) -> Quindío | AE17: 0 | AF17: 0 | AG17: 5615 | AH17: RIONEGRO | AI17: 0 | AJ17: 0 | AK17: Natural | AL17: 5 | AM17: ANTIOQUIA | AO17: MICRO | AP17: 1313 | AQ17: INDUSTRIAS MANUFACTURERAS | AR17: C | AS17: Preparación, hilatura, tejeduría y acabado de productos textiles | AT17: Fabricación de productos textiles | AU17: 0 | AV17: 0 | AW17: 0 | AY17: 25 | AZ17: 69 | BA17: 23 | BB17: 4 | BC17: =VLOOKUP(BA17,Hoja4!$A$29:$B$61,2,FALSE) -> Córdoba | BE17: Córdoba | BF17: 4 | BG17: 143 | BI17: 54874 | BJ17: 0 | BK17: 66170 | BL17: 12 | BM17: 66 | BN17: =VLOOKUP(BM17,Hoja4!$A$29:$B$61,2,FALSE) -> Risaralda | BO17: =VLOOKUP(BK17,Hoja4!$D$29:$E$1150,2,FALSE) -> Dosquebradas | BP17: 12 | BQ17: 131 | BS17: Fabricación de sustancias y productos químicos | BT17: 56 | BU17: 300 | BV17: Transformación de la madera y fabricación de productos de madera y de corcho, excepto muebles; fabricación de artículos de cestería y espartería | BW17: 20 | BX17: 55
C18: 66001 | D18: PEREIRA | E18: 5 | F18: 0 | G18: Natural | H18: 66 | I18: RISARALDA | J18: Aprobado con subsidio | K18: MICRO | L18: 4771 | M18: COMERCIO AL POR MAYOR Y AL POR MENOR; REPARACIÓN DE VEHÍCULOS AUTOMOTORES Y MOTOCICLETAS | N18: G | O18: Comercio al por menor de otros productos en establecimientos especializados | P18: Comercio al por menor de otros productos en establecimientos especializados | Q18: 4 | R18: 1 | S18: 0 | U18: 8 | V18: 239 | W18: 23 | X18: 53 | Y18: =VLOOKUP(W18,Hoja4!$A$29:$B$61,2,FALSE) -> Córdoba | AE18: 0 | AF18: 0 | AG18: 5001 | AH18: MEDELLÍN | AI18: 0 | AJ18: 0 | AK18: Natural | AL18: 5 | AM18: ANTIOQUIA | AO18: 0 | AP18: 1410 | AQ18: INDUSTRIAS MANUFACTURERAS | AR18: C | AS18: Confección de prendas de vestir, excepto prendas de piel | AT18: Confección de prendas de vestir | AU18: 0 | AV18: 0 | AW18: 0 | AY18: 8 | AZ18: 32 | BA18: 19 | BB18: 3 | BC18: =VLOOKUP(BA18,Hoja4!$A$29:$B$61,2,FALSE) -> Cauca | BE18: Cauca | BF18: 3 | BG18: 18 | BI18: 54405 | BJ18: 2 | BK18: 25286 | BL18: 11 | BM18: 25 | BN18: =VLOOKUP(BM18,Hoja4!$A$29:$B$61,2,FALSE) -> Cundinamarca | BO18: =VLOOKUP(BK18,Hoja4!$D$29:$E$1150,2,FALSE) -> Funza | BP18: 11 | BQ18: 36 | BS18: Fabricación de vehículos automotores, remolques y semirremolques | BT18: 18 | BU18: 74 | BV18: Fabricación de papel, cartón y productos de papel y cartón | BW18: 19 | BX18: 61
C19: 25269 | D19: FACATATIVÁ | E19: 1 | F19: 2 | G19: Natural | H19: 25 | I19: CUNDINAMARCA | J19: Aprobado con subsidio | K19: MICRO | L19: 4773 | M19: COMERCIO AL POR MAYOR Y AL POR MENOR; REPARACIÓN DE VEHÍCULOS AUTOMOTORES Y MOTOCICLETAS | N19: G | O19: Comercio al por menor de otros productos en establecimientos especializados | P19: Comercio al por menor de otros productos en establecimientos especializados | Q19: 0 | R19: 1 | S19: 0 | U19: 85 | V19: 45 | W19: 85 | X19: 45 | Y19: =VLOOKUP(W19,Hoja4!$A$29:$B$61,2,FALSE) -> Casanare | AE19: 0 | AF19: 0 | AG19: 8001 | AH19: BARRANQUILLA | AI19: 0 | AJ19: 0 | AK19: Natural | AL19: 8 | AM19: ATLÁNTICO | AO19: 0 | AP19: 1081 | AQ19: INDUSTRIAS MANUFACTURERAS | AR19: C | AS19: Elaboración de otros productos alimenticios | AT19: Elaboración de productos alimenticios | AU19: 0 | AV19: 0 | AW19: 0 | AY19: 85 | AZ19: 2 | BA19: 47 | BB19: 2 | BC19: =VLOOKUP(BA19,Hoja4!$A$29:$B$61,2,FALSE) -> Magdalena | BE19: Magdalena | BF19: 2 | BG19: 4 | BI19: 68307 | BJ19: 9 | BK19: 25754 | BL19: 11 | BM19: 25 | BN19: =VLOOKUP(BM19,Hoja4!$A$29:$B$61,2,FALSE) -> Cundinamarca | BO19: =VLOOKUP(BK19,Hoja4!$D$29:$E$1150,2,FALSE) -> Soacha | BP19: 11 | BQ19: 58 | BS19: Fabricación de maquinaria y equipo n.c.p. | BT19: 25 | BU19: 155 | BV19: Fabricación de vehículos automotores, remolques y semirremolques | BW19: 18 | BX19: 74
C20: 11001 | D20: BOGOTÁ, D.C. | E20: 5 | F20: 0 | G20: Natural | H20: 11 | I20: BOGOTÁ, D.C. | J20: Aprobado con subsidio | K20: MICRO | L20: 4723 | M20: COMERCIO AL POR MAYOR Y AL POR MENOR; REPARACIÓN DE VEHÍCULOS AUTOMOTORES Y MOTOCICLETAS | N20: G | O20: Comercio al por menor de alimentos (víveres en general), bebidas y tabaco, en establecimientos especializados | P20: Comercio al por menor de alimentos (víveres en general), bebidas y tabaco, en establecimientos especializados | Q20: 3 | R20: 2 | S20: 0 | U20: 73 | V20: 119 | W20: 19 | X20: 43 | Y20: =VLOOKUP(W20,Hoja4!$A$29:$B$61,2,FALSE) -> Cauca | AE20: 0 | AF20: 0 | AG20: 5697 | AH20: EL SANTUARIO | AI20: 1 | AJ20: 2 | AK20: Natural | AL20: 5 | AM20: ANTIOQUIA | AN20: Aprobado con subsidio | AO20: PEQUEÑA | AP20: 1410 | AQ20: INDUSTRIAS MANUFACTURERAS | AR20: C | AS20: Confección de prendas de vestir, excepto prendas de piel | AT20: Confección de prendas de vestir | AU20: 1 | AV20: 0 | AW20: 0 | AY20: 73 | AZ20: 15 | BA20: 41 | BB20: 2 | BC20: =VLOOKUP(BA20,Hoja4!$A$29:$B$61,2,FALSE) -> Huila | BE20: Huila | BF20: 2 | BG20: 5 | BI20: 68679 | BJ20: 2 | BK20: 17001 | BL20: 10 | BM20: 17 | BN20: =VLOOKUP(BM20,Hoja4!$A$29:$B$61,2,FALSE) -> Caldas | BO20: =VLOOKUP(BK20,Hoja4!$D$29:$E$1150,2,FALSE) -> Manizales | BP20: 10 | BQ20: 30 | BS20: Fabricación de productos farmacéuticos, sustancias químicas medicinales y productos botánicos de uso farmacéutico | BT20: 22 | BU20: 96 | BV20: Fabricación de aparatos y equipo eléctrico | BW20: 14 | BX20: 242
C21: 66001 | D21: PEREIRA | E21: 1 | F21: 2 | G21: Natural | H21: 66 | I21: RISARALDA | J21: Aprobado con subsidio | K21: MICRO | L21: 4772 | M21: COMERCIO AL POR MAYOR Y AL POR MENOR; REPARACIÓN DE VEHÍCULOS AUTOMOTORES Y MOTOCICLETAS | N21: G | O21: Comercio al por menor de otros productos en establecimientos especializados | P21: Comercio al por menor de otros productos en establecimientos especializados | Q21: 0 | R21: 1 | S21: 0 | U21: 20 | V21: 38 | W21: 47 | X21: 42 | Y21: =VLOOKUP(W21,Hoja4!$A$29:$B$61,2,FALSE) -> Magdalena | AE21: 0 | AF21: 0 | AG21: 15189 | AH21: CIÉNEGA | AI21: 1 | AJ21: 2 | AK21: Natural | AL21: 15 | AM21: BOYACÁ | AN21: Aprobado con subsidio | AO21: PEQUEÑA | AP21: 1040 | AQ21: INDUSTRIAS MANUFACTURERAS | AR21: C | AS21: Elaboración de productos lácteos | AT21: Elaboración de productos alimenticios | AU21: 1 | AV21: 0 | AW21: 0 | AY21: 20 | AZ21: 2 | BA21: 85 | BB21: 2 | BC21: =VLOOKUP(BA21,Hoja4!$A$29:$B$61,2,FALSE) -> Casanare | BE21: Casanare | BF21: 2 | BG21: 35 | BI21: 73001 | BJ21: 12 | BK21: 76520 | BL21: 10 | BM21: 76 | BN21: =VLOOKUP(BM21,Hoja4!$A$29:$B$61,2,FALSE) -> Valle del cauca | BO21: =VLOOKUP(BK21,Hoja4!$D$29:$E$1150,2,FALSE) -> Palmira | BP21: 10 | BQ21: 40 | BS21: Fabricación de papel, cartón y productos de papel y cartón | BT21: 19 | BU21: 61 | BV21: Fabricación de productos metalúrgicos básicos | BW21: 11 | BX21: 36
C22: 25899 | D22: ZIPAQUIRÁ | E22: 3 | F22: 1 | G22: Natural | H22: 25 | I22: CUNDINAMARCA | J22: Aprobado con subsidio | K22: MICRO | L22: 4632 | M22: COMERCIO AL POR MAYOR Y AL POR MENOR; REPARACIÓN DE VEHÍCULOS AUTOMOTORES Y MOTOCICLETAS | N22: G | O22: Comercio al por mayor de alimentos, bebidas y tabaco | P22: Comercio al por mayor de alimentos, bebidas y tabaco | Q22: 3 | R22: 0 | S22: 0 | U22: 97 | V22: 0 | W22: 20 | X22: 38 | Y22: =VLOOKUP(W22,Hoja4!$A$29:$B$61,2,FALSE) -> Cesar | AE22: 0 | AF22: 0 | AG22: 5001 | AH22: MEDELLÍN | AI22: 1 | AJ22: 0 | AK22: Natural | AL22: 5 | AM22: ANTIOQUIA | AN22: Aprobado con subsidio | AO22: MICRO | AP22: 1081 | AQ22: INDUSTRIAS MANUFACTURERAS | AR22: C | AS22: Elaboración de otros productos alimenticios | AT22: Elaboración de productos alimenticios | AU22: 0 | AV22: 1 | AW22: 0 | AY22: 97 | AZ22: 0 | BA22: 20 | BB22: 2 | BC22: =VLOOKUP(BA22,Hoja4!$A$29:$B$61,2,FALSE) -> Cesar | BE22: Cesar | BF22: 2 | BG22: 3 | BI22: 76520 | BJ22: 10 | BK22: 5088 | BL22: 10 | BM22: 5 | BN22: =VLOOKUP(BM22,Hoja4!$A$29:$B$61,2,FALSE) -> Antioquia | BO22: =VLOOKUP(BK22,Hoja4!$D$29:$E$1150,2,FALSE) -> Bello | BP22: 10 | BQ22: 29 | BS22: Fabricación de aparatos y equipo eléctrico | BT22: 14 | BU22: 242 | BV22: Fabricación de productos informáticos, electrónicos y ópticos | BW22: 6 | BX22: 31
C23: 11001 | D23: BOGOTÁ, D.C. | E23: 0 | F23: 0 | G23: Natural | H23: 11 | I23: BOGOTÁ, D.C. | K23: MEDIANA | L23: 3290 | M23: INDUSTRIAS MANUFACTURERAS | N23: C | O23: Otras industrias manufactureras n.c.p. | P23: Otras industrias manufactureras | Q23: 0 | R23: 0 | S23: 0 | U23: 81 | V23: 18 | W23: 70 | X23: 20 | Y23: =VLOOKUP(W23,Hoja4!$A$29:$B$61,2,FALSE) -> Sucre | AE23: 0 | AF23: 0 | AG23: 17001 | AH23: MANIZALES | AI23: 0 | AJ23: 0 | AK23: Natural | AL23: 17 | AM23: CALDAS | AO23: MICRO | AP23: 2511 | AQ23: INDUSTRIAS MANUFACTURERAS | AR23: C | AS23: Fabricación de productos metálicos para uso estructural, tanques, depósitos y generadores de vapor. | AT23: Fabricación de productos elaborados de metal, excepto maquinaria y equipo | AU23: 0 | AV23: 0 | AW23: 0 | AY23: 81 | AZ23: 1 | BA23: 18 | BB23: 2 | BC23: =VLOOKUP(BA23,Hoja4!$A$29:$B$61,2,FALSE) -> Caquetá | BE23: Caquetá | BF23: 2 | BG23: 6 | BI23: 76248 | BJ23: 1 | BK23: 5697 | BL23: 9 | BM23: 5 | BN23: =VLOOKUP(BM23,Hoja4!$A$29:$B$61,2,FALSE) -> Antioquia | BO23: =VLOOKUP(BK23,Hoja4!$D$29:$E$1150,2,FALSE) -> El santuario | BP23: 9 | BQ23: 20 | BS23: Fabricación de otros tipos de equipo de transporte | BT23: 3 | BU23: 83 | BV23: Fabricación de otros tipos de equipo de transporte | BW23: 3 | BX23: 83
C24: 66001 | D24: PEREIRA | E24: 0 | F24: 0 | G24: Natural | H24: 66 | I24: RISARALDA | K24: PEQUEÑA | L24: 4620 | M24: COMERCIO AL POR MAYOR Y AL POR MENOR; REPARACIÓN DE VEHÍCULOS AUTOMOTORES Y MOTOCICLETAS | N24: G | O24: Comercio al por mayor de materias primas agropecuarias; animales vivos | P24: Comercio al por mayor de materias primas agropecuarias; animales vivos | Q24: 0 | R24: 0 | S24: 0 | U24: 44 | V24: 9 | W24: 81 | X24: 18 | Y24: =VLOOKUP(W24,Hoja4!$A$29:$B$61,2,FALSE) -> Arauca | AE24: 0 | AF24: 0 | AG24: 5001 | AH24: MEDELLÍN | AI24: 0 | AJ24: 0 | AK24: Natural | AL24: 5 | AM24: ANTIOQUIA | AO24: MICRO | AP24: 1410 | AQ24: INDUSTRIAS MANUFACTURERAS | AR24: C | AS24: Confección de prendas de vestir, excepto prendas de piel | AT24: Confección de prendas de vestir | AU24: 0 | AV24: 0 | AW24: 0 | AY24: 44 | AZ24: 0 | BA24: 70 | BB24: 1 | BC24: =VLOOKUP(BA24,Hoja4!$A$29:$B$61,2,FALSE) -> Sucre | BE24: Sucre | BF24: 1 | BG24: 6 | BI24: 76834 | BJ24: 1 | BK24: 68307 | BL24: 9 | BM24: 68 | BN24: =VLOOKUP(BM24,Hoja4!$A$29:$B$61,2,FALSE) -> Santander | BO24: =VLOOKUP(BK24,Hoja4!$D$29:$E$1150,2,FALSE) -> Girón | BP24: 9 | BQ24: 39 | BS24: Fabricación de productos informáticos, electrónicos y ópticos | BT24: 6 | BU24: 31 | BV24: Coquización, fabricación de productos de la refinación del petróleo y actividad de mezcla de combustibles | BW24: 2 | BX24: 2
C25: 76001 | D25: CALI | E25: 0 | F25: 0 | G25: Natural | H25: 76 | I25: VALLE DEL CAUCA | K25: MICRO | L25: 5613 | M25: ALOJAMIENTO Y SERVICIOS DE COMIDA | N25: I | O25: Actividades de restaurantes, cafeterías y servicio móvil de comidas | P25: Actividades de restaurantes, cafeterías y servicio móvil de comidas | Q25: 0 | R25: 0 | S25: 0 | U25: 17 | V25: 89 | W25: 18 | X25: 17 | Y25: =VLOOKUP(W25,Hoja4!$A$29:$B$61,2,FALSE) -> Caquetá | AE25: 0 | AF25: 0 | AG25: 76001 | AH25: CALI | AI25: 2 | AJ25: 2 | AK25: Natural | AL25: 76 | AM25: VALLE DEL CAUCA | AN25: Aprobado con subsidio | AO25: MICRO | AP25: 1089 | AQ25: INDUSTRIAS MANUFACTURERAS | AR25: C | AS25: Elaboración de otros productos alimenticios | AT25: Elaboración de productos alimenticios | AU25: 1 | AV25: 1 | AW25: 0 | AY25: 17 | AZ25: 12 | BA25: 81 | BB25: 1 | BC25: =VLOOKUP(BA25,Hoja4!$A$29:$B$61,2,FALSE) -> Arauca | BE25: =BC25 -> Arauca | BF25: =BB25 -> 1 | BG25: 2 | BI25: 76892 | BJ25: 18 | BK25: 5308 | BL25: 9 | BM25: 5 | BN25: =VLOOKUP(BM25,Hoja4!$A$29:$B$61,2,FALSE) -> Antioquia | BO25: =VLOOKUP(BK25,Hoja4!$D$29:$E$1150,2,FALSE) -> Girardota | BP25: 9 | BQ25: 132 | BS25: Elaboración de productos de tabaco | BT25: 1 | BU25: 12 | BV25: Elaboración de productos de tabaco | BW25: 1 | BX25: 12
C26: 25035 | D26: ANAPOIMA | E26: 0 | F26: 0 | G26: Natural | H26: 25 | I26: CUNDINAMARCA | K26: MICRO | L26: 4663 | M26: COMERCIO AL POR MAYOR Y AL POR MENOR; REPARACIÓN DE VEHÍCULOS AUTOMOTORES Y MOTOCICLETAS | N26: G | O26: Comercio al por mayor especializado de otros productos | P26: Comercio al por mayor especializado de otros productos | Q26: 0 | R26: 0 | S26: 0 | U26: 18 | V26: 17 | W26: 44 | X26: 9 | Y26: =VLOOKUP(W26,Hoja4!$A$29:$B$61,2,FALSE) -> La guajira | AE26: 0 | AF26: 0 | AG26: 5631 | AH26: SABANETA | AI26: 0 | AJ26: 0 | AK26: Natural | AL26: 5 | AM26: ANTIOQUIA | AO26: MICRO | AP26: 1089 | AQ26: INDUSTRIAS MANUFACTURERAS | AR26: C | AS26: Elaboración de otros productos alimenticios | AT26: Elaboración de productos alimenticios | AU26: 0 | AV26: 0 | AW26: 0 | AY26: 18 | AZ26: 2 | BA26: 97 | BB26: 0 | BC26: =VLOOKUP(BA26,Hoja4!$A$29:$B$61,2,FALSE) -> Vaupés | BE26: Vaupés | BF26: =BB26 -> 0 | BG26: 0 | BI26: 50006 | BJ26: 0 | BK26: 52001 | BL26: 8 | BM26: 52 | BN26: =VLOOKUP(BM26,Hoja4!$A$29:$B$61,2,FALSE) -> Nariño | BO26: =VLOOKUP(BK26,Hoja4!$D$29:$E$1150,2,FALSE) -> Pasto | BP26: 8 | BQ26: 18 | BS26: 0 | BT26: 0 | BU26: 0 | BV26: 0 | BW26: 0 | BX26: 0
C27: 5001 | D27: MEDELLÍN | E27: 0 | F27: 0 | G27: Natural | H27: 5 | I27: ANTIOQUIA | K27: PEQUEÑA | L27: 4711 | M27: COMERCIO AL POR MAYOR Y AL POR MENOR; REPARACIÓN DE VEHÍCULOS AUTOMOTORES Y MOTOCICLETAS | N27: G | O27: Comercio al por menor en establecimientos no especializados | P27: Comercio al por menor en establecimientos no especializados | Q27: 0 | R27: 0 | S27: 0 | U27: 23 | V27: 53 | W27: 88 | X27: 7 | Y27: =VLOOKUP(W27,Hoja4!$A$29:$B$61,2,FALSE) -> San Andrés | AE27: 0 | AF27: 0 | AG27: 5631 | AH27: SABANETA | AI27: 7 | AJ27: 4 | AK27: Natural | AL27: 5 | AM27: ANTIOQUIA | AN27: Aprobado con subsidio | AO27: PEQUEÑA | AP27: 2511 | AQ27: INDUSTRIAS MANUFACTURERAS | AR27: C | AS27: Fabricación de productos metálicos para uso estructural, tanques, depósitos y generadores de vapor. | AT27: Fabricación de productos elaborados de metal, excepto maquinaria y equipo | AU27: 7 | AV27: 0 | AW27: 0 | AY27: 23 | AZ27: 4 | BA27: 44 | BB27: 0 | BC27: =VLOOKUP(BA27,Hoja4!$A$29:$B$61,2,FALSE) -> La guajira | BE27: La guajira | BF27: =BB27 -> 0 | BG27: 0 | BI27: 52001 | BJ27: 8 | BK27: 50001 | BL27: 7 | BM27: 50 | BN27: =VLOOKUP(BM27,Hoja4!$A$29:$B$61,2,FALSE) -> Meta | BO27: =VLOOKUP(BK27,Hoja4!$D$29:$E$1150,2,FALSE) -> Villavicencio | BP27: 7 | BQ27: 16 | BT27: 0 | BU27: 0
C28: 5001 | D28: MEDELLÍN | E28: 1 | F28: 0 | G28: Natural | H28: 5 | I28: ANTIOQUIA | J28: Aprobado con subsidio | K28: MICRO | L28: 9609 | M28: OTRAS ACTIVIDADES DE SERVICIOS | N28: S | O28: Otras actividades de servicios personales | P28: Otras actividades de servicios personales | Q28: 0 | R28: 1 | S28: 0 | U28: 88 | V28: 7 | W28: 86 | X28: 7 | Y28: =VLOOKUP(W28,Hoja4!$A$29:$B$61,2,FALSE) -> Putumayo | AE28: 0 | AF28: 0 | AG28: 54874 | AH28: VILLA DEL ROSARIO | AI28: 0 | AJ28: 0 | AK28: Natural | AL28: 54 | AM28: NORTE DE SANTANDER | AO28: MICRO | AP28: 3120 | AQ28: INDUSTRIAS MANUFACTURERAS | AR28: C | AS28: Fabricación de colchones y somieres | AT28: Fabricación de muebles, colchones y somieres | AU28: 0 | AV28: 0 | AW28: 0 | AY28: 88 | AZ28: 0 | BA28: 88 | BB28: 0 | BC28: =VLOOKUP(BA28,Hoja4!$A$29:$B$61,2,FALSE) -> San Andrés | BE28: San Andrés | BF28: =BB28 -> 0 | BG28: 0 | BI28: 76147 | BJ28: 3 | BK28: 5440 | BL28: 7 | BM28: 5 | BN28: =VLOOKUP(BM28,Hoja4!$A$29:$B$61,2,FALSE) -> Antioquia | BO28: =VLOOKUP(BK28,Hoja4!$D$29:$E$1150,2,FALSE) -> Marinilla | BP28: 7 | BQ28: 35 | BT28: =SUM(BT2:BT27) -> 1073 | BU28: =SUM(BU2:BU27) -> 6565
C29: 5001 | D29: MEDELLÍN | E29: 0 | F29: 0 | G29: Natural | H29: 5 | I29: ANTIOQUIA | K29: MICRO | L29: 4719 | M29: COMERCIO AL POR MAYOR Y AL POR MENOR; REPARACIÓN DE VEHÍCULOS AUTOMOTORES Y MOTOCICLETAS | N29: G | O29: Comercio al por menor en establecimientos no especializados | P29: Comercio al por menor en establecimientos no especializados | Q29: 0 | R29: 0 | S29: 0 | U29: 91 | V29: 4 | W29: 91 | X29: 4 | Y29: =VLOOKUP(W29,Hoja4!$A$29:$B$61,2,FALSE) -> Amazonas | AE29: 0 | AF29: 0 | AG29: 54405 | AH29: LOS PATIOS | AI29: 0 | AJ29: 0 | AK29: Natural | AL29: 54 | AM29: NORTE DE SANTANDER | AO29: MICRO | AP29: 1040 | AQ29: INDUSTRIAS MANUFACTURERAS | AR29: C | AS29: Elaboración de productos lácteos | AT29: Elaboración de productos alimenticios | AU29: 0 | AV29: 0 | AW29: 0 | AY29: 91 | AZ29: 0 | BA29: 91 | BB29: 0 | BC29: =VLOOKUP(BA29,Hoja4!$A$29:$B$61,2,FALSE) -> Amazonas | BE29: Otros | BF29: =SUM(BB29:BB34) -> 0 | BG29: =SUMIFS($AI$2:$AI$399999,$AN$2:$AN$399999,"Aprobado con subsidio")-SUM(BG2:BG28) -> 0 | BI29: 66170 | BJ29: 12 | BK29: 25473 | BL29: 7 | BN29: Otros | BO29: Otros | BP29: =SUM(BL29:BL1000) -> 152 | BQ29: =SUMIFS($AI$2:$AI$399999,$AN$2:$AN$399999,"Aprobado con subsidio")-SUM(BQ2:BQ28) -> 1339
C30: 5001 | D30: MEDELLÍN | E30: 0 | F30: 0 | G30: Natural | H30: 5 | I30: ANTIOQUIA | K30: MICRO | L30: 1410 | M30: INDUSTRIAS MANUFACTURERAS | N30: C | O30: Confección de prendas de vestir, excepto prendas de piel | P30: Confección de prendas de vestir | Q30: 0 | R30: 0 | S30: 0 | U30: 95 | V30: 0 | W30: 27 | X30: 4 | Y30: =VLOOKUP(W30,Hoja4!$A$29:$B$61,2,FALSE) -> Chocó | AE30: 0 | AF30: 0 | AG30: 68307 | AH30: GIRÓN | AI30: 2 | AJ30: 3 | AK30: Natural | AL30: 68 | AM30: SANTANDER | AN30: Aprobado con subsidio | AO30: MICRO | AP30: 1410 | AQ30: INDUSTRIAS MANUFACTURERAS | AR30: C | AS30: Confección de prendas de vestir, excepto prendas de piel | AT30: Confección de prendas de vestir | AU30: 0 | AV30: 2 | AW30: 0 | AY30: 95 | AZ30: 0 | BA30: 95 | BB30: 0 | BC30: =VLOOKUP(BA30,Hoja4!$A$29:$B$61,2,FALSE) -> Guaviare | BE30: Total | BF30: =SUM(BF2:BF29) -> 1073 | BG30: =SUM(BG2:BG29) -> 6565 | BI30: 50001 | BJ30: 7 | BK30: 63001 | BL30: 6 | BN30: Total | BP30: =SUM(BP2:BP29) -> 1073 | BQ30: =SUM(BQ2:BQ29) -> 6565
C31: 5001 | D31: MEDELLÍN | E31: 0 | F31: 0 | G31: Natural | H31: 5 | I31: ANTIOQUIA | L31: 4520 | M31: COMERCIO AL POR MAYOR Y AL POR MENOR; REPARACIÓN DE VEHÍCULOS AUTOMOTORES Y MOTOCICLETAS | N31: G | O31: Mantenimiento y reparación de vehículos automotores | P31: Mantenimiento y reparación de vehículos automotores | Q31: 0 | R31: 0 | S31: 0 | U31: 86 | V31: 7 | W31: 99 | X31: 2 | Y31: =VLOOKUP(W31,Hoja4!$A$29:$B$61,2,FALSE) -> Vichada | AE31: 0 | AF31: 0 | AG31: 68001 | AH31: BUCARAMANGA | AI31: 0 | AJ31: 0 | AK31: Natural | AL31: 68 | AM31: SANTANDER | AO31: PEQUEÑA | AP31: 1081 | AQ31: INDUSTRIAS MANUFACTURERAS | AR31: C | AS31: Elaboración de otros productos alimenticios | AT31: Elaboración de productos alimenticios | AU31: 0 | AV31: 0 | AW31: 0 | AY31: 86 | AZ31: 0 | BA31: 86 | BB31: 0 | BC31: =VLOOKUP(BA31,Hoja4!$A$29:$B$61,2,FALSE) -> Putumayo | BI31: 5045 | BJ31: 1 | BK31: 13001 | BL31: 6
C32: 5001 | D32: MEDELLÍN | E32: 1 | F32: 0 | G32: Natural | H32: 5 | I32: ANTIOQUIA | J32: Aprobado con subsidio | K32: MICRO | L32: 4642 | M32: COMERCIO AL POR MAYOR Y AL POR MENOR; REPARACIÓN DE VEHÍCULOS AUTOMOTORES Y MOTOCICLETAS | N32: G | O32: Comercio al por mayor de artículos y enseres domésticos (incluidas prendas de vestir) | P32: Comercio al por mayor de artículos y enseres domésticos (incluidas prendas de vestir) | Q32: 1 | R32: 0 | S32: 0 | U32: 27 | V32: 4 | W32: 94 | X32: 1 | Y32: =VLOOKUP(W32,Hoja4!$A$29:$B$61,2,FALSE) -> Guainía | AE32: 0 | AF32: 0 | AG32: 68679 | AH32: SAN GIL | AI32: 0 | AJ32: 0 | AK32: Natural | AL32: 68 | AM32: SANTANDER | AO32: MICRO | AP32: 1081 | AQ32: INDUSTRIAS MANUFACTURERAS | AR32: C | AS32: Elaboración de otros productos alimenticios | AT32: Elaboración de productos alimenticios | AU32: 0 | AV32: 0 | AW32: 0 | AY32: 27 | AZ32: 0 | BA32: 27 | BB32: 0 | BC32: =VLOOKUP(BA32,Hoja4!$A$29:$B$61,2,FALSE) -> Chocó | BI32: 5360 | BJ32: 32 | BK32: 68276 | BL32: 6
C33: 5266 | D33: ENVIGADO | E33: 0 | F33: 0 | G33: Natural | H33: 5 | I33: ANTIOQUIA | K33: PEQUEÑA | L33: 6820 | M33: ACTIVIDADES INMOBILIARIAS | N33: L | O33: Actividades inmobiliarias realizadas a cambio de una retribución o por contrata | P33: Actividades inmobiliarias realizadas a cambio de una retribución o por contrata | Q33: 0 | R33: 0 | S33: 0 | U33: 94 | V33: 1 | W33: 97 | X33: 0 | Y33: =VLOOKUP(W33,Hoja4!$A$29:$B$61,2,FALSE) -> Vaupés | AE33: 0 | AF33: 0 | AG33: 73001 | AH33: IBAGUÉ | AI33: 0 | AJ33: 0 | AK33: Natural | AL33: 73 | AM33: TOLIMA | AO33: PEQUEÑA | AP33: 1081 | AQ33: INDUSTRIAS MANUFACTURERAS | AR33: C | AS33: Elaboración de otros productos alimenticios | AT33: Elaboración de productos alimenticios | AU33: 0 | AV33: 0 | AW33: 0 | AY33: 94 | AZ33: 0 | BA33: 94 | BB33: 0 | BC33: =VLOOKUP(BA33,Hoja4!$A$29:$B$61,2,FALSE) -> Guainía | BI33: 15238 | BJ33: 2 | BK33: 25817 | BL33: 5
C34: 5001 | D34: MEDELLÍN | E34: 0 | F34: 0 | G34: Natural | H34: 5 | I34: ANTIOQUIA | K34: MICRO | L34: 4711 | M34: COMERCIO AL POR MAYOR Y AL POR MENOR; REPARACIÓN DE VEHÍCULOS AUTOMOTORES Y MOTOCICLETAS | N34: G | O34: Comercio al por menor en establecimientos no especializados | P34: Comercio al por menor en establecimientos no especializados | Q34: 0 | R34: 0 | S34: 0 | U34: 99 | V34: 2 | W34: 95 | X34: 0 | Y34: =VLOOKUP(W34,Hoja4!$A$29:$B$61,2,FALSE) -> Guaviare | AE34: 0 | AF34: 0 | AG34: 73001 | AH34: IBAGUÉ | AI34: 0 | AJ34: 0 | AK34: Natural | AL34: 73 | AM34: TOLIMA | AO34: MICRO | AP34: 3312 | AQ34: INDUSTRIAS MANUFACTURERAS | AR34: C | AS34: Mantenimiento y reparación especializado de productos elaborados en metal y de maquinaria y equipo | AT34: Instalación, mantenimiento y reparación especializado de maquinaria y equipo | AU34: 0 | AV34: 0 | AW34: 0 | AY34: 99 | AZ34: 0 | BA34: 99 | BB34: 0 | BC34: =VLOOKUP(BA34,Hoja4!$A$29:$B$61,2,FALSE) -> Vichada | BI34: 25269 | BJ34: 2 | BK34: 25430 | BL34: 5
C35: 5001 | D35: MEDELLÍN | E35: 0 | F35: 0 | G35: Natural | H35: 5 | I35: ANTIOQUIA | K35: PEQUEÑA | L35: 4755 | M35: COMERCIO AL POR MAYOR Y AL POR MENOR; REPARACIÓN DE VEHÍCULOS AUTOMOTORES Y MOTOCICLETAS | N35: G | O35: Comercio al por menor de otros enseres domésticos en establecimientos especializados | P35: Comercio al por menor de otros enseres domésticos en establecimientos especializados | Q35: 0 | R35: 0 | S35: 0 | AE35: 0 | AF35: 0 | AG35: 76520 | AH35: PALMIRA | AI35: 1 | AJ35: 1 | AK35: Natural | AL35: 76 | AM35: VALLE DEL CAUCA | AN35: Aprobado con subsidio | AO35: MICRO | AP35: 1084 | AQ35: INDUSTRIAS MANUFACTURERAS | AR35: C | AS35: Elaboración de otros productos alimenticios | AT35: Elaboración de productos alimenticios | AU35: 0 | AV35: 1 | AW35: 0 | BI35: 23001 | BJ35: 3 | BK35: 68081 | BL35: 5
C36: 5001 | D36: MEDELLÍN | E36: 1 | F36: 1 | G36: Natural | H36: 5 | I36: ANTIOQUIA | J36: Aprobado con subsidio | K36: MICRO | L36: 4723 | M36: COMERCIO AL POR MAYOR Y AL POR MENOR; REPARACIÓN DE VEHÍCULOS AUTOMOTORES Y MOTOCICLETAS | N36: G | O36: Comercio al por menor de alimentos (víveres en general), bebidas y tabaco, en establecimientos especializados | P36: Comercio al por menor de alimentos (víveres en general), bebidas y tabaco, en establecimientos especializados | Q36: 1 | R36: 0 | S36: 0 | AE36: 0 | AF36: 0 | AG36: 76248 | AH36: EL CERRITO | AI36: 2 | AJ36: 0 | AK36: Natural | AL36: 76 | AM36: VALLE DEL CAUCA | AN36: Aprobado con subsidio | AO36: MICRO | AP36: 1102 | AQ36: INDUSTRIAS MANUFACTURERAS | AR36: C | AS36: Elaboración de bebidas | AT36: Elaboración de bebidas | AU36: 1 | AV36: 1 | AW36: 0 | BI36: 5237 | BJ36: 2 | BK36: 5318 | BL36: 4
C37: 5001 | D37: MEDELLÍN | E37: 0 | F37: 0 | G37: Natural | H37: 5 | I37: ANTIOQUIA | K37: MICRO | L37: 5612 | M37: ALOJAMIENTO Y SERVICIOS DE COMIDA | N37: I | O37: Actividades de restaurantes, cafeterías y servicio móvil de comidas | P37: Actividades de restaurantes, cafeterías y servicio móvil de comidas | Q37: 0 | R37: 0 | S37: 0 | AE37: 0 | AF37: 0 | AG37: 68001 | AH37: BUCARAMANGA | AI37: 0 | AJ37: 0 | AK37: Natural | AL37: 68 | AM37: SANTANDER | AO37: MICRO | AP37: 1081 | AQ37: INDUSTRIAS MANUFACTURERAS | AR37: C | AS37: Elaboración de otros productos alimenticios | AT37: Elaboración de productos alimenticios | AU37: 0 | AV37: 0 | AW37: 0 | BI37: 5212 | BJ37: 3 | BK37: 63401 | BL37: 4
C38: 5360 | D38: ITAGUI | E38: 3 | F38: 0 | G38: Natural | H38: 5 | I38: ANTIOQUIA | J38: Aprobado con subsidio | K38: MICRO | L38: 4723 | M38: COMERCIO AL POR MAYOR Y AL POR MENOR; REPARACIÓN DE VEHÍCULOS AUTOMOTORES Y MOTOCICLETAS | N38: G | O38: Comercio al por menor de alimentos (víveres en general), bebidas y tabaco, en establecimientos especializados | P38: Comercio al por menor de alimentos (víveres en general), bebidas y tabaco, en establecimientos especializados | Q38: 3 | R38: 0 | S38: 0 | AE38: 0 | AF38: 0 | AG38: 76834 | AH38: TULUÁ | AI38: 0 | AJ38: 0 | AK38: Natural | AL38: 76 | AM38: VALLE DEL CAUCA | AO38: MEDIANA | AP38: 1410 | AQ38: INDUSTRIAS MANUFACTURERAS | AR38: C | AS38: Confección de prendas de vestir, excepto prendas de piel | AT38: Confección de prendas de vestir | AU38: 0 | AV38: 0 | AW38: 0 | BI38: 25175 | BJ38: 0 | BK38: 15759 | BL38: 4
C39: 5001 | D39: MEDELLÍN | E39: 0 | F39: 0 | G39: Natural | H39: 5 | I39: ANTIOQUIA | K39: MICRO | L39: 4752 | M39: COMERCIO AL POR MAYOR Y AL POR MENOR; REPARACIÓN DE VEHÍCULOS AUTOMOTORES Y MOTOCICLETAS | N39: G | O39: Comercio al por menor de otros enseres domésticos en establecimientos especializados | P39: Comercio al por menor de otros enseres domésticos en establecimientos especializados | Q39: 0 | R39: 0 | S39: 0 | AE39: 0 | AF39: 0 | AG39: 76892 | AH39: YUMBO | AI39: 0 | AJ39: 0 | AK39: Natural | AL39: 76 | AM39: VALLE DEL CAUCA | AO39: MICRO | AP39: 1081 | AQ39: INDUSTRIAS MANUFACTURERAS | AR39: C | AS39: Elaboración de otros productos alimenticios | AT39: Elaboración de productos alimenticios | AU39: 0 | AV39: 0 | AW39: 0 | BI39: 15542 | BJ39: 1 | BK39: 76147 | BL39: 3
C40: 5001 | D40: MEDELLÍN | E40: 1 | F40: 0 | G40: Natural | H40: 5 | I40: ANTIOQUIA | J40: Aprobado con subsidio | K40: MICRO | L40: 141 | M40: AGRICULTURA, GANADERÍA, CAZA, SILVICULTURA Y PESCA | N40: A | O40: Ganadería | P40: Ganadería | Q40: 1 | R40: 0 | S40: 0 | AE40: 0 | AF40: 0 | AG40: 50006 | AH40: ACACÍAS | AI40: 0 | AJ40: 0 | AK40: Natural | AL40: 50 | AM40: META | AO40: 0 | AP40: 3312 | AQ40: INDUSTRIAS MANUFACTURERAS | AR40: C | AS40: Mantenimiento y reparación especializado de productos elaborados en metal y de maquinaria y equipo | AT40: Instalación, mantenimiento y reparación especializado de maquinaria y equipo | AU40: 0 | AV40: 0 | AW40: 0 | BI40: 63001 | BJ40: 6 | BK40: 23001 | BL40: 3
C41: 5001 | D41: MEDELLÍN | E41: 0 | F41: 0 | G41: Natural | H41: 5 | I41: ANTIOQUIA | K41: MICRO | L41: 2229 | M41: INDUSTRIAS MANUFACTURERAS | N41: C | O41: Fabricación de productos de plástico | P41: Fabricación de productos de caucho y de plástico | Q41: 0 | R41: 0 | S41: 0 | AE41: 0 | AF41: 0 | AG41: 54405 | AH41: LOS PATIOS | AI41: 20 | AJ41: 12 | AK41: Natural | AL41: 54 | AM41: NORTE DE SANTANDER | AN41: Aprobado con subsidio | AO41: MEDIANA | AP41: 1081 | AQ41: INDUSTRIAS MANUFACTURERAS | AR41: C | AS41: Elaboración de otros productos alimenticios | AT41: Elaboración de productos alimenticios | AU41: 3 | AV41: 10 | AW41: 7 | BI41: 5148 | BJ41: 0 | BK41: 5212 | BL41: 3
C42: 50573 | D42: PUERTO LÓPEZ | E42: 0 | F42: 0 | G42: Natural | H42: 50 | I42: META | K42: MICRO | L42: 4530 | M42: COMERCIO AL POR MAYOR Y AL POR MENOR; REPARACIÓN DE VEHÍCULOS AUTOMOTORES Y MOTOCICLETAS | N42: G | O42: Comercio de partes, piezas (autopartes) y accesorios (lujos) para vehículos automotores | P42: Comercio de partes, piezas (autopartes) y accesorios (lujos) para vehículos automotores | Q42: 0 | R42: 0 | S42: 0 | AE42: 0 | AF42: 0 | AG42: 8001 | AH42: BARRANQUILLA | AI42: 1 | AJ42: 1 | AK42: Natural | AL42: 8 | AM42: ATLÁNTICO | AN42: Aprobado con subsidio | AO42: MICRO | AP42: 3312 | AQ42: INDUSTRIAS MANUFACTURERAS | AR42: C | AS42: Mantenimiento y reparación especializado de productos elaborados en metal y de maquinaria y equipo | AT42: Instalación, mantenimiento y reparación especializado de maquinaria y equipo | AU42: 1 | AV42: 0 | AW42: 0 | BI42: 5664 | BJ42: 1 | BK42: 5129 | BL42: 3
C43: 54001 | D43: CÚCUTA | E43: 0 | F43: 0 | G43: Natural | H43: 54 | I43: NORTE DE SANTANDER | L43: 1399 | M43: INDUSTRIAS MANUFACTURERAS | N43: C | O43: Fabricación de otros productos textiles | P43: Fabricación de productos textiles | Q43: 0 | R43: 0 | S43: 0 | AE43: 0 | AF43: 0 | AG43: 11001 | AH43: BOGOTÁ, D.C. | AI43: 0 | AJ43: 0 | AK43: Natural | AL43: 11 | AM43: BOGOTÁ, D.C. | AO43: MICRO | AP43: 2591 | AQ43: INDUSTRIAS MANUFACTURERAS | AR43: C | AS43: Fabricación de otros productos elaborados de metal y actividades de servicios relacionadas con el trabajo de metales | AT43: Fabricación de productos elaborados de metal, excepto maquinaria y equipo | AU43: 0 | AV43: 0 | AW43: 0 | BI43: 5308 | BJ43: 9 | BK43: 8758 | BL43: 3
C44: 19001 | D44: POPAYÁN | E44: 0 | F44: 0 | G44: Natural | H44: 19 | I44: CAUCA | K44: MICRO | L44: 4651 | M44: COMERCIO AL POR MAYOR Y AL POR MENOR; REPARACIÓN DE VEHÍCULOS AUTOMOTORES Y MOTOCICLETAS | N44: G | O44: Comercio al por mayor de maquinaria y equipo | P44: Comercio al por mayor de maquinaria y equipo | Q44: 0 | R44: 0 | S44: 0 | AE44: 0 | AF44: 0 | AG44: 11001 | AH44: BOGOTÁ, D.C. | AI44: 1 | AJ44: 0 | AK44: Natural | AL44: 11 | AM44: BOGOTÁ, D.C. | AN44: Aprobado con subsidio | AO44: MICRO | AP44: 1410 | AQ44: INDUSTRIAS MANUFACTURERAS | AR44: C | AS44: Confección de prendas de vestir, excepto prendas de piel | AT44: Confección de prendas de vestir | AU44: 1 | AV44: 0 | AW44: 0 | BI44: 5440 | BJ44: 7 | BK44: 25799 | BL44: 3
C45: 76001 | D45: CALI | E45: 0 | F45: 0 | G45: Natural | H45: 76 | I45: VALLE DEL CAUCA | K45: MICRO | L45: 4752 | M45: COMERCIO AL POR MAYOR Y AL POR MENOR; REPARACIÓN DE VEHÍCULOS AUTOMOTORES Y MOTOCICLETAS | N45: G | O45: Comercio al por menor de otros enseres domésticos en establecimientos especializados | P45: Comercio al por menor de otros enseres domésticos en establecimientos especializados | Q45: 0 | R45: 0 | S45: 0 | AE45: 0 | AF45: 0 | AG45: 8001 | AH45: BARRANQUILLA | AI45: 0 | AJ45: 0 | AK45: Natural | AL45: 8 | AM45: ATLÁNTICO | AO45: MICRO | AP45: 1630 | AQ45: INDUSTRIAS MANUFACTURERAS | AR45: C | AS45: Fabricación de partes y piezas de madera, de carpintería y ebanistería para la construcción | AT45: Transformación de la madera y fabricación de productos de madera y de corcho, excepto muebles; fabricación de artículos de cestería y espartería | AU45: 0 | AV45: 0 | AW45: 0 | BI45: 5129 | BJ45: 3 | BK45: 25899 | BL45: 3
C46: 41551 | D46: PITALITO | E46: 0 | F46: 0 | G46: Natural | H46: 41 | I46: HUILA | K46: MICRO | L46: 4719 | M46: COMERCIO AL POR MAYOR Y AL POR MENOR; REPARACIÓN DE VEHÍCULOS AUTOMOTORES Y MOTOCICLETAS | N46: G | O46: Comercio al por menor en establecimientos no especializados | P46: Comercio al por menor en establecimientos no especializados | Q46: 0 | R46: 0 | S46: 0 | AE46: 0 | AF46: 0 | AG46: 76001 | AH46: CALI | AI46: 1 | AJ46: 0 | AK46: Natural | AL46: 76 | AM46: VALLE DEL CAUCA | AN46: Aprobado con subsidio | AO46: MICRO | AP46: 1020 | AQ46: INDUSTRIAS MANUFACTURERAS | AR46: C | AS46: Procesamiento y conservación de frutas, legumbres, hortalizas y tubérculos | AT46: Elaboración de productos alimenticios | AU46: 1 | AV46: 0 | AW46: 0 | BI46: 85010 | BJ46: 0 | BK46: 15189 | BL46: 2
C47: 41551 | D47: PITALITO | E47: 0 | F47: 0 | G47: Natural | H47: 41 | I47: HUILA | K47: MICRO | L47: 4771 | M47: COMERCIO AL POR MAYOR Y AL POR MENOR; REPARACIÓN DE VEHÍCULOS AUTOMOTORES Y MOTOCICLETAS | N47: G | O47: Comercio al por menor de otros productos en establecimientos especializados | P47: Comercio al por menor de otros productos en establecimientos especializados | Q47: 0 | R47: 0 | S47: 0 | AE47: 0 | AF47: 0 | AG47: 76001 | AH47: CALI | AI47: 0 | AJ47: 0 | AK47: Natural | AL47: 76 | AM47: VALLE DEL CAUCA | AO47: MICRO | AP47: 1084 | AQ47: INDUSTRIAS MANUFACTURERAS | AR47: C | AS47: Elaboración de otros productos alimenticios | AT47: Elaboración de productos alimenticios | AU47: 0 | AV47: 0 | AW47: 0 | BI47: 20001 | BJ47: 1 | BK47: 54405 | BL47: 2
C48: 50001 | D48: VILLAVICENCIO | E48: 0 | F48: 0 | G48: Natural | H48: 50 | I48: META | K48: MICRO | L48: 5619 | M48: ALOJAMIENTO Y SERVICIOS DE COMIDA | N48: I | O48: Actividades de restaurantes, cafeterías y servicio móvil de comidas | P48: Actividades de restaurantes, cafeterías y servicio móvil de comidas | Q48: 0 | R48: 0 | S48: 0 | AE48: 0 | AF48: 0 | AG48: 5001 | AH48: MEDELLÍN | AI48: 1 | AJ48: 1 | AK48: Natural | AL48: 5 | AM48: ANTIOQUIA | AN48: Aprobado con subsidio | AO48: MICRO | AP48: 3210 | AQ48: INDUSTRIAS MANUFACTURERAS | AR48: C | AS48: Fabricación de joyas, bisutería y artículos conexos | AT48: Otras industrias manufactureras | AU48: 0 | AV48: 1 | AW48: 0 | BI48: 5318 | BJ48: 4 | BK48: 68679 | BL48: 2
C49: 52001 | D49: PASTO | E49: 0 | F49: 0 | G49: Natural | H49: 52 | I49: NARIÑO | K49: MICRO | L49: 5611 | M49: ALOJAMIENTO Y SERVICIOS DE COMIDA | N49: I | O49: Actividades de restaurantes, cafeterías y servicio móvil de comidas | P49: Actividades de restaurantes, cafeterías y servicio móvil de comidas | Q49: 0 | R49: 0 | S49: 0 | AE49: 0 | AF49: 0 | AG49: 11001 | AH49: BOGOTÁ, D.C. | AI49: 1 | AJ49: 0 | AK49: Natural | AL49: 11 | AM49: BOGOTÁ, D.C. | AN49: Aprobado con subsidio | AO49: MICRO | AP49: 2394 | AQ49: INDUSTRIAS MANUFACTURERAS | AR49: C | AS49: Fabricación de productos minerales no metálicos n.c.p. | AT49: Fabricación de otros productos minerales no metálicos | AU49: 1 | AV49: 0 | AW49: 0 | BI49: 41001 | BJ49: 1 | BK49: 15238 | BL49: 2
C50: 25322 | D50: GUASCA | E50: 3 | F50: 1 | G50: Natural | H50: 25 | I50: CUNDINAMARCA | J50: Aprobado con subsidio | K50: MICRO | L50: 4771 | M50: COMERCIO AL POR MAYOR Y AL POR MENOR; REPARACIÓN DE VEHÍCULOS AUTOMOTORES Y MOTOCICLETAS | N50: G | O50: Comercio al por menor de otros productos en establecimientos especializados | P50: Comercio al por menor de otros productos en establecimientos especializados | Q50: 0 | R50: 3 | S50: 0 | AE50: 0 | AF50: 0 | AG50: 52001 | AH50: PASTO | AI50: 1 | AJ50: 1 | AK50: Natural | AL50: 52 | AM50: NARIÑO | AN50: Aprobado con subsidio | AO50: MICRO | AP50: 1811 | AQ50: INDUSTRIAS MANUFACTURERAS | AR50: C | AS50: Actividades de impresión y actividades de servicios relacionados con la impresión | AT50: Actividades de impresión y de producción de copias a partir de grabaciones originales | AU50: 0 | AV50: 1 | AW50: 0 | BI50: 25286 | BJ50: 11 | BK50: 25269 | BL50: 2
C51: 11001 | D51: BOGOTÁ, D.C. | E51: 0 | F51: 0 | G51: Natural | H51: 11 | I51: BOGOTÁ, D.C. | K51: MICRO | L51: 5613 | M51: ALOJAMIENTO Y SERVICIOS DE COMIDA | N51: I | O51: Actividades de restaurantes, cafeterías y servicio móvil de comidas | P51: Actividades de restaurantes, cafeterías y servicio móvil de comidas | Q51: 0 | R51: 0 | S51: 0 | AE51: 0 | AF51: 0 | AG51: 54001 | AH51: CÚCUTA | AI51: 0 | AJ51: 0 | AK51: Natural | AL51: 54 | AM51: NORTE DE SANTANDER | AO51: MICRO | AP51: 1313 | AQ51: INDUSTRIAS MANUFACTURERAS | AR51: C | AS51: Preparación, hilatura, tejeduría y acabado de productos textiles | AT51: Fabricación de productos textiles | AU51: 0 | AV51: 0 | AW51: 0 | BI51: 13836 | BJ51: 1 | BK51: 5237 | BL51: 2
C52: 19517 | D52: PAEZ | E52: 0 | F52: 0 | G52: Natural | H52: 19 | I52: CAUCA | K52: MICRO | L52: 1081 | M52: INDUSTRIAS MANUFACTURERAS | N52: C | O52: Elaboración de otros productos alimenticios | P52: Elaboración de productos alimenticios | Q52: 0 | R52: 0 | S52: 0 | AE52: 0 | AF52: 0 | AG52: 68307 | AH52: GIRÓN | AI52: 0 | AJ52: 0 | AK52: Natural | AL52: 68 | AM52: SANTANDER | AO52: MICRO | AP52: 2511 | AQ52: INDUSTRIAS MANUFACTURERAS | AR52: C | AS52: Fabricación de productos metálicos para uso estructural, tanques, depósitos y generadores de vapor. | AT52: Fabricación de productos elaborados de metal, excepto maquinaria y equipo | AU52: 0 | AV52: 0 | AW52: 0 | BI52: 76111 | BJ52: 0 | BK52: 47001 | BL52: 2
C53: 11001 | D53: BOGOTÁ, D.C. | E53: 3 | F53: 1 | G53: Natural | H53: 11 | I53: BOGOTÁ, D.C. | J53: Aprobado con subsidio | K53: MICRO | L53: 5611 | M53: ALOJAMIENTO Y SERVICIOS DE COMIDA | N53: I | O53: Actividades de restaurantes, cafeterías y servicio móvil de comidas | P53: Actividades de restaurantes, cafeterías y servicio móvil de comidas | Q53: 3 | R53: 0 | S53: 0 | AE53: 0 | AF53: 0 | AG53: 11001 | AH53: BOGOTÁ, D.C. | AI53: 0 | AJ53: 0 | AK53: Natural | AL53: 11 | AM53: BOGOTÁ, D.C. | AO53: PEQUEÑA | AP53: 1410 | AQ53: INDUSTRIAS MANUFACTURERAS | AR53: C | AS53: Confección de prendas de vestir, excepto prendas de piel | AT53: Confección de prendas de vestir | AU53: 0 | AV53: 0 | AW53: 0 | BI53: 5380 | BJ53: 21 | BK53: 5607 | BL53: 2
C54: 5360 | D54: ITAGUI | E54: 0 | F54: 0 | G54: Natural | H54: 5 | I54: ANTIOQUIA | K54: MICRO | L54: 5611 | M54: ALOJAMIENTO Y SERVICIOS DE COMIDA | N54: I | O54: Actividades de restaurantes, cafeterías y servicio móvil de comidas | P54: Actividades de restaurantes, cafeterías y servicio móvil de comidas | Q54: 0 | R54: 0 | S54: 0 | AE54: 0 | AF54: 0 | AG54: 5001 | AH54: MEDELLÍN | AI54: 0 | AJ54: 0 | AK54: Natural | AL54: 5 | AM54: ANTIOQUIA | AO54: MICRO | AP54: 1089 | AQ54: INDUSTRIAS MANUFACTURERAS | AR54: C | AS54: Elaboración de otros productos alimenticios | AT54: Elaboración de productos alimenticios | AU54: 0 | AV54: 0 | AW54: 0 | BI54: 66001 | BJ54: 17 | BK54: 15001 | BL54: 2
C55: 5001 | D55: MEDELLÍN | E55: 0 | F55: 0 | G55: Natural | H55: 5 | I55: ANTIOQUIA | K55: PEQUEÑA | L55: 1011 | M55: INDUSTRIAS MANUFACTURERAS | N55: C | O55: Procesamiento y conservación de carne, pescado, crustáceos y moluscos | P55: Elaboración de productos alimenticios | Q55: 0 | R55: 0 | S55: 0 | AE55: 0 | AF55: 0 | AG55: 5615 | AH55: RIONEGRO | AI55: 0 | AJ55: 0 | AK55: Natural | AL55: 5 | AM55: ANTIOQUIA | AO55: MICRO | AP55: 1610 | AQ55: INDUSTRIAS MANUFACTURERAS | AR55: C | AS55: Aserrado, acepillado e impregnación de la madera | AT55: Transformación de la madera y fabricación de productos de madera y de corcho, excepto muebles; fabricación de artículos de cestería y espartería | AU55: 0 | AV55: 0 | AW55: 0 | BI55: 25126 | BJ55: 1 | BK55: 8433 | BL55: 2
C56: 5088 | D56: BELLO | E56: 1 | F56: 0 | G56: Natural | H56: 5 | I56: ANTIOQUIA | J56: Aprobado con subsidio | K56: MICRO | L56: 4719 | M56: COMERCIO AL POR MAYOR Y AL POR MENOR; REPARACIÓN DE VEHÍCULOS AUTOMOTORES Y MOTOCICLETAS | N56: G | O56: Comercio al por menor en establecimientos no especializados | P56: Comercio al por menor en establecimientos no especializados | Q56: 0 | R56: 1 | S56: 0 | AE56: 0 | AF56: 0 | AG56: 73001 | AH56: IBAGUÉ | AI56: 1 | AJ56: 1 | AK56: Natural | AL56: 73 | AM56: TOLIMA | AN56: Aprobado con subsidio | AO56: MICRO | AP56: 1410 | AQ56: INDUSTRIAS MANUFACTURERAS | AR56: C | AS56: Confección de prendas de vestir, excepto prendas de piel | AT56: Confección de prendas de vestir | AU56: 0 | AV56: 1 | AW56: 0 | BI56: 25817 | BJ56: 5 | BK56: 18001 | BL56: 2
C57: 5001 | D57: MEDELLÍN | E57: 1 | F57: 0 | G57: Natural | H57: 5 | I57: ANTIOQUIA | J57: Aprobado con subsidio | K57: MICRO | L57: 4669 | M57: COMERCIO AL POR MAYOR Y AL POR MENOR; REPARACIÓN DE VEHÍCULOS AUTOMOTORES Y MOTOCICLETAS | N57: G | O57: Comercio al por mayor especializado de otros productos | P57: Comercio al por mayor especializado de otros productos | Q57: 1 | R57: 0 | S57: 0 | AE57: 0 | AF57: 0 | AG57: 54001 | AH57: CÚCUTA | AI57: 0 | AJ57: 0 | AK57: Natural | AL57: 54 | AM57: NORTE DE SANTANDER | AO57: MICRO | AP57: 1410 | AQ57: INDUSTRIAS MANUFACTURERAS | AR57: C | AS57: Confección de prendas de vestir, excepto prendas de piel | AT57: Confección de prendas de vestir | AU57: 0 | AV57: 0 | AW57: 0 | BI57: 25754 | BJ57: 11 | BK57: 85001 | BL57: 2
C58: 5088 | D58: BELLO | E58: 0 | F58: 0 | G58: Natural | H58: 5 | I58: ANTIOQUIA | K58: MICRO | L58: 5611 | M58: ALOJAMIENTO Y SERVICIOS DE COMIDA | N58: I | O58: Actividades de restaurantes, cafeterías y servicio móvil de comidas | P58: Actividades de restaurantes, cafeterías y servicio móvil de comidas | Q58: 0 | R58: 0 | S58: 0 | AE58: 0 | AF58: 0 | AG58: 76147 | AH58: CARTAGO | AI58: 0 | AJ58: 0 | AK58: Natural | AL58: 76 | AM58: VALLE DEL CAUCA | AO58: MEDIANA | AP58: 1410 | AQ58: INDUSTRIAS MANUFACTURERAS | AR58: C | AS58: Confección de prendas de vestir, excepto prendas de piel | AT58: Confección de prendas de vestir | AU58: 0 | AV58: 0 | AW58: 0 | BI58: 5266 | BJ58: 15 | BK58: 5670 | BL58: 2
C59: 5088 | D59: BELLO | E59: 1 | F59: 0 | G59: Natural | H59: 5 | I59: ANTIOQUIA | J59: Aprobado con subsidio | K59: MICRO | L59: 6920 | M59: ACTIVIDADES PROFESIONALES, CIENTÍFICAS Y TÉCNICAS | N59: M | O59: Actividades de contabilidad, teneduría de libros, auditoria financiera y asesoría tributaria | P59: Actividades de contabilidad, teneduría de libros, auditoria financiera y asesoría tributaria | Q59: 0 | R59: 1 | S59: 0 | AE59: 0 | AF59: 0 | AG59: 66170 | AH59: DOSQUEBRADAS | AI59: 1 | AJ59: 2 | AK59: Natural | AL59: 66 | AM59: RISARALDA | AN59: Aprobado con subsidio | AO59: PEQUEÑA | AP59: 2511 | AQ59: INDUSTRIAS MANUFACTURERAS | AR59: C | AS59: Fabricación de productos metálicos para uso estructural, tanques, depósitos y generadores de vapor. | AT59: Fabricación de productos elaborados de metal, excepto maquinaria y equipo | AU59: 1 | AV59: 0 | AW59: 0 | BI59: 8758 | BJ59: 3 | BK59: 25123 | BL59: 1
C60: 5088 | D60: BELLO | E60: 0 | F60: 0 | G60: Natural | H60: 5 | I60: ANTIOQUIA | K60: MICRO | L60: 5611 | M60: ALOJAMIENTO Y SERVICIOS DE COMIDA | N60: I | O60: Actividades de restaurantes, cafeterías y servicio móvil de comidas | P60: Actividades de restaurantes, cafeterías y servicio móvil de comidas | Q60: 0 | R60: 0 | S60: 0 | AE60: 0 | AF60: 0 | AG60: 76001 | AH60: CALI | AI60: 1 | AJ60: 0 | AK60: Natural | AL60: 76 | AM60: VALLE DEL CAUCA | AN60: Aprobado con subsidio | AO60: MICRO | AP60: 1811 | AQ60: INDUSTRIAS MANUFACTURERAS | AR60: C | AS60: Actividades de impresión y actividades de servicios relacionados con la impresión | AT60: Actividades de impresión y de producción de copias a partir de grabaciones originales | AU60: 1 | AV60: 0 | AW60: 0 | BI60: 25473 | BJ60: 7 | BK60: 76248 | BL60: 1
C61: 11001 | D61: BOGOTÁ, D.C. | E61: 1 | F61: 0 | G61: Natural | H61: 11 | I61: BOGOTÁ, D.C. | J61: Aprobado con subsidio | K61: MICRO | L61: 6910 | M61: ACTIVIDADES PROFESIONALES, CIENTÍFICAS Y TÉCNICAS | N61: M | O61: Actividades jurídicas | P61: Actividades jurídicas | Q61: 0 | R61: 1 | S61: 0 | AE61: 0 | AF61: 0 | AG61: 76001 | AH61: CALI | AI61: 1 | AJ61: 1 | AK61: Natural | AL61: 76 | AM61: VALLE DEL CAUCA | AN61: Aprobado con subsidio | AO61: MICRO | AP61: 1521 | AQ61: INDUSTRIAS MANUFACTURERAS | AR61: C | AS61: Fabricación de calzado | AT61: Curtido y recurtido de cueros; fabricación de calzado; fabricación de artículos de viaje, maletas, bolsos de mano y artículos similares, y fabricación de artículos de talabartería y guarnicionería; adobo y teñido de pieles | AU61: 1 | AV61: 0 | AW61: 0 | BI61: 5079 | BJ61: 1 | BK61: 76834 | BL61: 1
C62: 68547 | D62: PIEDECUESTA | E62: 8 | F62: 10 | G62: Natural | H62: 68 | I62: SANTANDER | J62: Aprobado con subsidio | K62: MEDIANA | L62: 5511 | M62: ALOJAMIENTO Y SERVICIOS DE COMIDA | N62: I | O62: Actividades de alojamiento de estancias cortas | P62: Actividades de alojamiento de estancias cortas | Q62: 6 | R62: 2 | S62: 0 | AE62: 0 | AF62: 0 | AG62: 76001 | AH62: CALI | AI62: 0 | AJ62: 0 | AK62: Natural | AL62: 76 | AM62: VALLE DEL CAUCA | AO62: MICRO | AP62: 1921 | AQ62: INDUSTRIAS MANUFACTURERAS | AR62: C | AS62: Fabricación de productos de la refinación del petróleo | AT62: Coquización, fabricación de productos de la refinación del petróleo y actividad de mezcla de combustibles | AU62: 0 | AV62: 0 | AW62: 0 | BI62: 25430 | BJ62: 5 | BK62: 5045 | BL62: 1
C63: 11001 | D63: BOGOTÁ, D.C. | E63: 0 | F63: 0 | G63: Natural | H63: 11 | I63: BOGOTÁ, D.C. | L63: 5619 | M63: ALOJAMIENTO Y SERVICIOS DE COMIDA | N63: I | O63: Actividades de restaurantes, cafeterías y servicio móvil de comidas | P63: Actividades de restaurantes, cafeterías y servicio móvil de comidas | Q63: 0 | R63: 0 | S63: 0 | AE63: 0 | AF63: 0 | AG63: 50001 | AH63: VILLAVICENCIO | AI63: 0 | AJ63: 0 | AK63: Natural | AL63: 50 | AM63: META | AO63: MICRO | AP63: 1104 | AQ63: INDUSTRIAS MANUFACTURERAS | AR63: C | AS63: Elaboración de bebidas | AT63: Elaboración de bebidas | AU63: 0 | AV63: 0 | AW63: 0 | BI63: 19698 | BJ63: 1 | BK63: 15542 | BL63: 1
C64: 11001 | D64: BOGOTÁ, D.C. | E64: 3 | F64: 2 | G64: Natural | H64: 11 | I64: BOGOTÁ, D.C. | J64: Aprobado con subsidio | K64: PEQUEÑA | L64: 1410 | M64: INDUSTRIAS MANUFACTURERAS | N64: C | O64: Confección de prendas de vestir, excepto prendas de piel | P64: Confección de prendas de vestir | Q64: 0 | R64: 3 | S64: 0 | AE64: 0 | AF64: 0 | AG64: 50001 | AH64: VILLAVICENCIO | AI64: 1 | AJ64: 0 | AK64: Natural | AL64: 50 | AM64: META | AN64: Aprobado con subsidio | AO64: MICRO | AP64: 1081 | AQ64: INDUSTRIAS MANUFACTURERAS | AR64: C | AS64: Elaboración de otros productos alimenticios | AT64: Elaboración de productos alimenticios | AU64: 1 | AV64: 0 | AW64: 0 | BI64: 25214 | BJ64: 15 | BK64: 5664 | BL64: 1
C65: 5042 | D65: SANTAFÉ DE ANTIOQUIA | E65: 0 | F65: 0 | G65: Natural | H65: 5 | I65: ANTIOQUIA | K65: MICRO | L65: 1084 | M65: INDUSTRIAS MANUFACTURERAS | N65: C | O65: Elaboración de otros productos alimenticios | P65: Elaboración de productos alimenticios | Q65: 0 | R65: 0 | S65: 0 | AE65: 0 | AF65: 0 | AG65: 50001 | AH65: VILLAVICENCIO | AI65: 0 | AJ65: 0 | AK65: Natural | AL65: 50 | AM65: META | AO65: MICRO | AP65: 1081 | AQ65: INDUSTRIAS MANUFACTURERAS | AR65: C | AS65: Elaboración de otros productos alimenticios | AT65: Elaboración de productos alimenticios | AU65: 0 | AV65: 0 | AW65: 0 | BI65: 68081 | BJ65: 5 | BK65: 20001 | BL65: 1
C66: 17001 | D66: MANIZALES | E66: 0 | F66: 0 | G66: Natural | H66: 17 | I66: CALDAS | K66: MICRO | L66: 3110 | M66: INDUSTRIAS MANUFACTURERAS | N66: C | O66: Fabricación de muebles | P66: Fabricación de muebles, colchones y somieres | Q66: 0 | R66: 0 | S66: 0 | AE66: 0 | AF66: 0 | AG66: 11001 | AH66: BOGOTÁ, D.C. | AI66: 2 | AJ66: 0 | AK66: Natural | AL66: 11 | AM66: BOGOTÁ, D.C. | AN66: Aprobado con subsidio | AO66: MICRO | AP66: 1313 | AQ66: INDUSTRIAS MANUFACTURERAS | AR66: C | AS66: Preparación, hilatura, tejeduría y acabado de productos textiles | AT66: Fabricación de productos textiles | AU66: 2 | AV66: 0 | AW66: 0 | BI66: 54498 | BJ66: =COUNTIFS($AN$2:$AN$399999,"Aprobado con subsidio",$AG$2:$AG$399999,BI66) -> 0 | BK66: 41001 | BL66: 1
C67: 76001 | D67: CALI | E67: 0 | F67: 0 | G67: Natural | H67: 76 | I67: VALLE DEL CAUCA | K67: MICRO | L67: 7500 | M67: ACTIVIDADES PROFESIONALES, CIENTÍFICAS Y TÉCNICAS | N67: M | O67: Actividades veterinarias | P67: Actividades veterinarias | Q67: 0 | R67: 0 | S67: 0 | AE67: 0 | AF67: 0 | AG67: 11001 | AH67: BOGOTÁ, D.C. | AI67: 0 | AJ67: 0 | AK67: Natural | AL67: 11 | AM67: BOGOTÁ, D.C. | AO67: MICRO | AP67: 3312 | AQ67: INDUSTRIAS MANUFACTURERAS | AR67: C | AS67: Mantenimiento y reparación especializado de productos elaborados en metal y de maquinaria y equipo | AT67: Instalación, mantenimiento y reparación especializado de maquinaria y equipo | AU67: 0 | AV67: 0 | AW67: 0 | BI67: 47001 | BJ67: 2 | BK67: 13836 | BL67: 1
C68: 11001 | D68: BOGOTÁ, D.C. | E68: 0 | F68: 0 | G68: Natural | H68: 11 | I68: BOGOTÁ, D.C. | K68: MICRO | L68: 4719 | M68: COMERCIO AL POR MAYOR Y AL POR MENOR; REPARACIÓN DE VEHÍCULOS AUTOMOTORES Y MOTOCICLETAS | N68: G | O68: Comercio al por menor en establecimientos no especializados | P68: Comercio al por menor en establecimientos no especializados | Q68: 0 | R68: 0 | S68: 0 | AE68: 0 | AF68: 0 | AG68: 11001 | AH68: BOGOTÁ, D.C. | AI68: 0 | AJ68: 0 | AK68: Natural | AL68: 11 | AM68: BOGOTÁ, D.C. | AO68: PEQUEÑA | AP68: 1020 | AQ68: INDUSTRIAS MANUFACTURERAS | AR68: C | AS68: Procesamiento y conservación de frutas, legumbres, hortalizas y tubérculos | AT68: Elaboración de productos alimenticios | AU68: 0 | AV68: 0 | AW68: 0 | BI68: 23660 | BJ68: 0 | BK68: 25126 | BL68: 1
C69: 11001 | D69: BOGOTÁ, D.C. | E69: 1 | F69: 0 | G69: Natural | H69: 11 | I69: BOGOTÁ, D.C. | J69: Aprobado con subsidio | K69: MICRO | L69: 1410 | M69: INDUSTRIAS MANUFACTURERAS | N69: C | O69: Confección de prendas de vestir, excepto prendas de piel | P69: Confección de prendas de vestir | Q69: 0 | R69: 1 | S69: 0 | AE69: 0 | AF69: 0 | AG69: 76001 | AH69: CALI | AI69: 0 | AJ69: 0 | AK69: Natural | AL69: 76 | AM69: VALLE DEL CAUCA | AO69: PEQUEÑA | AP69: 2310 | AQ69: INDUSTRIAS MANUFACTURERAS | AR69: C | AS69: Fabricación de vidrio y productos de vidrio | AT69: Fabricación de otros productos minerales no metálicos | AU69: 0 | AV69: 0 | AW69: 0 | BI69: 13001 | BJ69: 6 | BK69: 5079 | BL69: 1
C70: 11001 | D70: BOGOTÁ, D.C. | E70: 0 | F70: 0 | G70: Natural | H70: 11 | I70: BOGOTÁ, D.C. | K70: MEDIANA | L70: 8430 | M70: ADMINISTRACIÓN PÚBLICA Y DEFENSA; PLANES DE SEGURIDAD SOCIAL DE AFILIACIÓN OBLIGATORIA | N70: O | O70: Actividades de planes de seguridad social de afiliación obligatoria | P70: Actividades de planes de seguridad social de afiliación obligatoria | Q70: 0 | R70: 0 | S70: 0 | AE70: 0 | AF70: 0 | AG70: 11001 | AH70: BOGOTÁ, D.C. | AI70: 0 | AJ70: 0 | AK70: Natural | AL70: 11 | AM70: BOGOTÁ, D.C. | AO70: MICRO | AP70: 1081 | AQ70: INDUSTRIAS MANUFACTURERAS | AR70: C | AS70: Elaboración de otros productos alimenticios | AT70: Elaboración de productos alimenticios | AU70: 0 | AV70: 0 | AW70: 0 | BI70: 76130 | BJ70: 1 | BK70: 19698 | BL70: 1
C71: 17001 | D71: MANIZALES | E71: 0 | F71: 0 | G71: Natural | H71: 17 | I71: CALDAS | K71: MEDIANA | L71: 4290 | M71: CONSTRUCCIÓN | N71: F | O71: Construcción de otras obras de ingeniería civil | P71: Construcción de otras obras de ingeniería civil | Q71: 0 | R71: 0 | S71: 0 | AE71: 0 | AF71: 0 | AG71: 11001 | AH71: BOGOTÁ, D.C. | AI71: 1 | AJ71: 0 | AK71: Natural | AL71: 11 | AM71: BOGOTÁ, D.C. | AN71: Aprobado con subsidio | AO71: MICRO | AP71: 3312 | AQ71: INDUSTRIAS MANUFACTURERAS | AR71: C | AS71: Mantenimiento y reparación especializado de productos elaborados en metal y de maquinaria y equipo | AT71: Instalación, mantenimiento y reparación especializado de maquinaria y equipo | AU71: 1 | AV71: 0 | AW71: 0 | BI71: 63401 | BJ71: 4 | BK71: 76130 | BL71: 1
C72: 66001 | D72: PEREIRA | E72: 0 | F72: 0 | G72: Natural | H72: 66 | I72: RISARALDA | K72: PEQUEÑA | L72: 6910 | M72: ACTIVIDADES PROFESIONALES, CIENTÍFICAS Y TÉCNICAS | N72: M | O72: Actividades jurídicas | P72: Actividades jurídicas | Q72: 0 | R72: 0 | S72: 0 | AE72: 0 | AF72: 0 | AG72: 11001 | AH72: BOGOTÁ, D.C. | AI72: 0 | AJ72: 0 | AK72: Natural | AL72: 11 | AM72: BOGOTÁ, D.C. | AO72: MICRO | AP72: 1410 | AQ72: INDUSTRIAS MANUFACTURERAS | AR72: C | AS72: Confección de prendas de vestir, excepto prendas de piel | AT72: Confección de prendas de vestir | AU72: 0 | AV72: 0 | AW72: 0 | BI72: 8634 | BJ72: 1 | BK72: 8634 | BL72: 1
C73: 68276 | D73: FLORIDABLANCA | E73: 0 | F73: 0 | G73: Natural | H73: 68 | I73: SANTANDER | K73: MICRO | L73: 5619 | M73: ALOJAMIENTO Y SERVICIOS DE COMIDA | N73: I | O73: Actividades de restaurantes, cafeterías y servicio móvil de comidas | P73: Actividades de restaurantes, cafeterías y servicio móvil de comidas | Q73: 0 | R73: 0 | S73: 0 | AE73: 0 | AF73: 0 | AG73: 11001 | AH73: BOGOTÁ, D.C. | AI73: 2 | AJ73: 0 | AK73: Natural | AL73: 11 | AM73: BOGOTÁ, D.C. | AN73: Aprobado con subsidio | AO73: MICRO | AP73: 1410 | AQ73: INDUSTRIAS MANUFACTURERAS | AR73: C | AS73: Confección de prendas de vestir, excepto prendas de piel | AT73: Confección de prendas de vestir | AU73: 1 | AV73: 1 | AW73: 0 | BI73: 68229 | BJ73: 0 | BK73: 73268 | BL73: 1
C74: 54001 | D74: CÚCUTA | E74: 0 | F74: 0 | G74: Natural | H74: 54 | I74: NORTE DE SANTANDER | L74: 5611 | M74: ALOJAMIENTO Y SERVICIOS DE COMIDA | N74: I | O74: Actividades de restaurantes, cafeterías y servicio móvil de comidas | P74: Actividades de restaurantes, cafeterías y servicio móvil de comidas | Q74: 0 | R74: 0 | S74: 0 | AE74: 0 | AF74: 0 | AG74: 76001 | AH74: CALI | AI74: 0 | AJ74: 0 | AK74: Natural | AL74: 76 | AM74: VALLE DEL CAUCA | AO74: MICRO | AP74: 2511 | AQ74: INDUSTRIAS MANUFACTURERAS | AR74: C | AS74: Fabricación de productos metálicos para uso estructural, tanques, depósitos y generadores de vapor. | AT74: Fabricación de productos elaborados de metal, excepto maquinaria y equipo | AU74: 0 | AV74: 0 | AW74: 0 | BI74: 73268 | BJ74: 1 | BK74: 73443 | BL74: 1
C75: 54001 | D75: CÚCUTA | E75: 2 | F75: 0 | G75: Natural | H75: 54 | I75: NORTE DE SANTANDER | J75: Aprobado con subsidio | K75: MICRO | L75: 5611 | M75: ALOJAMIENTO Y SERVICIOS DE COMIDA | N75: I | O75: Actividades de restaurantes, cafeterías y servicio móvil de comidas | P75: Actividades de restaurantes, cafeterías y servicio móvil de comidas | Q75: 1 | R75: 1 | S75: 0 | AE75: 0 | AF75: 0 | AG75: 11001 | AH75: BOGOTÁ, D.C. | AI75: 0 | AJ75: 0 | AK75: Natural | AL75: 11 | AM75: BOGOTÁ, D.C. | AO75: MICRO | AP75: 2410 | AQ75: INDUSTRIAS MANUFACTURERAS | AR75: C | AS75: Industrias básicas de hierro y de acero | AT75: Fabricación de productos metalúrgicos básicos | AU75: 0 | AV75: 0 | AW75: 0 | BI75: 73443 | BJ75: 1 | BK75: 5310 | BL75: 1
C76: 11001 | D76: BOGOTÁ, D.C. | E76: 0 | F76: 0 | G76: Natural | H76: 11 | I76: BOGOTÁ, D.C. | L76: 4771 | M76: COMERCIO AL POR MAYOR Y AL POR MENOR; REPARACIÓN DE VEHÍCULOS AUTOMOTORES Y MOTOCICLETAS | N76: G | O76: Comercio al por menor de otros productos en establecimientos especializados | P76: Comercio al por menor de otros productos en establecimientos especializados | Q76: 0 | R76: 0 | S76: 0 | AE76: 0 | AF76: 0 | AG76: 11001 | AH76: BOGOTÁ, D.C. | AI76: 4 | AJ76: 16 | AK76: Natural | AL76: 11 | AM76: BOGOTÁ, D.C. | AN76: Aprobado con subsidio | AO76: MEDIANA | AP76: 1081 | AQ76: INDUSTRIAS MANUFACTURERAS | AR76: C | AS76: Elaboración de otros productos alimenticios | AT76: Elaboración de productos alimenticios | AU76: 2 | AV76: 2 | AW76: 0 | BI76: 5607 | BJ76: 2 | BK76: 41319 | BL76: 1
C77: 11001 | D77: BOGOTÁ, D.C. | E77: 1 | F77: 0 | G77: Natural | H77: 11 | I77: BOGOTÁ, D.C. | J77: Aprobado con subsidio | K77: MICRO | L77: 6920 | M77: ACTIVIDADES PROFESIONALES, CIENTÍFICAS Y TÉCNICAS | N77: M | O77: Actividades de contabilidad, teneduría de libros, auditoria financiera y asesoría tributaria | P77: Actividades de contabilidad, teneduría de libros, auditoria financiera y asesoría tributaria | Q77: 0 | R77: 1 | S77: 0 | AE77: 0 | AF77: 0 | AG77: 11001 | AH77: BOGOTÁ, D.C. | AI77: 0 | AJ77: 0 | AK77: Natural | AL77: 11 | AM77: BOGOTÁ, D.C. | AO77: MICRO | AP77: 1011 | AQ77: INDUSTRIAS MANUFACTURERAS | AR77: C | AS77: Procesamiento y conservación de carne, pescado, crustáceos y moluscos | AT77: Elaboración de productos alimenticios | AU77: 0 | AV77: 0 | AW77: 0 | BI77: 5579 | BJ77: 0 | BK77: 19001 | BL77: 1
C78: 17001 | D78: MANIZALES | E78: 0 | F78: 0 | G78: Natural | H78: 17 | I78: CALDAS | K78: PEQUEÑA | L78: 4631 | M78: COMERCIO AL POR MAYOR Y AL POR MENOR; REPARACIÓN DE VEHÍCULOS AUTOMOTORES Y MOTOCICLETAS | N78: G | O78: Comercio al por mayor de alimentos, bebidas y tabaco | P78: Comercio al por mayor de alimentos, bebidas y tabaco | Q78: 0 | R78: 0 | S78: 0 | AE78: 0 | AF78: 0 | AG78: 5045 | AH78: APARTADÓ | AI78: 1 | AJ78: 12 | AK78: Natural | AL78: 5 | AM78: ANTIOQUIA | AN78: Aprobado con subsidio | AO78: PEQUEÑA | AP78: 1089 | AQ78: INDUSTRIAS MANUFACTURERAS | AR78: C | AS78: Elaboración de otros productos alimenticios | AT78: Elaboración de productos alimenticios | AU78: 0 | AV78: 1 | AW78: 0 | BI78: 5088 | BJ78: 10 | BK78: 25740 | BL78: 1
C79: 11001 | D79: BOGOTÁ, D.C. | E79: 0 | F79: 0 | G79: Natural | H79: 11 | I79: BOGOTÁ, D.C. | K79: MICRO | L79: 4773 | M79: COMERCIO AL POR MAYOR Y AL POR MENOR; REPARACIÓN DE VEHÍCULOS AUTOMOTORES Y MOTOCICLETAS | N79: G | O79: Comercio al por menor de otros productos en establecimientos especializados | P79: Comercio al por menor de otros productos en establecimientos especializados | Q79: 0 | R79: 0 | S79: 0 | AE79: 0 | AF79: 0 | AG79: 5001 | AH79: MEDELLÍN | AI79: 3 | AJ79: 3 | AK79: Natural | AL79: 5 | AM79: ANTIOQUIA | AN79: Aprobado con subsidio | AO79: MICRO | AP79: 1410 | AQ79: INDUSTRIAS MANUFACTURERAS | AR79: C | AS79: Confección de prendas de vestir, excepto prendas de piel | AT79: Confección de prendas de vestir | AU79: 1 | AV79: 2 | AW79: 0 | BI79: 5310 | BJ79: 1 | BK79: 5147 | BL79: 1
C80: 17001 | D80: MANIZALES | E80: 1 | F80: 2 | G80: Natural | H80: 17 | I80: CALDAS | J80: Aprobado con subsidio | K80: MICRO | L80: 4290 | M80: CONSTRUCCIÓN | N80: F | O80: Construcción de otras obras de ingeniería civil | P80: Construcción de otras obras de ingeniería civil | Q80: 0 | R80: 1 | S80: 0 | AE80: 0 | AF80: 0 | AG80: 5631 | AH80: SABANETA | AI80: 0 | AJ80: 0 | AK80: Natural | AL80: 5 | AM80: ANTIOQUIA | AO80: MICRO | AP80: 2599 | AQ80: INDUSTRIAS MANUFACTURERAS | AR80: C | AS80: Fabricación de otros productos elaborados de metal y actividades de servicios relacionadas con el trabajo de metales | AT80: Fabricación de productos elaborados de metal, excepto maquinaria y equipo | AU80: 0 | AV80: 0 | AW80: 0 | BI80: 41319 | BJ80: 1 | BK80: 25288 | BL80: 1
C81: 76001 | D81: CALI | E81: 0 | F81: 0 | G81: Natural | H81: 76 | I81: VALLE DEL CAUCA | K81: PEQUEÑA | L81: 145 | M81: AGRICULTURA, GANADERÍA, CAZA, SILVICULTURA Y PESCA | N81: A | O81: Ganadería | P81: Ganadería | Q81: 0 | R81: 0 | S81: 0 | AE81: 0 | AF81: 0 | AG81: 5360 | AH81: ITAGUI | AI81: 0 | AJ81: 0 | AK81: Natural | AL81: 5 | AM81: ANTIOQUIA | AO81: PEQUEÑA | AP81: 1020 | AQ81: INDUSTRIAS MANUFACTURERAS | AR81: C | AS81: Procesamiento y conservación de frutas, legumbres, hortalizas y tubérculos | AT81: Elaboración de productos alimenticios | AU81: 0 | AV81: 0 | AW81: 0 | BI81: 19001 | BJ81: 1 | BK81: 68547 | BL81: 1
C82: 17001 | D82: MANIZALES | E82: 9 | F82: 13 | G82: Natural | H82: 17 | I82: CALDAS | J82: Aprobado con subsidio | K82: MICRO | L82: 4290 | M82: CONSTRUCCIÓN | N82: F | O82: Construcción de otras obras de ingeniería civil | P82: Construcción de otras obras de ingeniería civil | Q82: 8 | R82: 1 | S82: 0 | AE82: 0 | AF82: 0 | AG82: 11001 | AH82: BOGOTÁ, D.C. | AI82: 0 | AJ82: 0 | AK82: Natural | AL82: 11 | AM82: BOGOTÁ, D.C. | AO82: MICRO | AP82: 1081 | AQ82: INDUSTRIAS MANUFACTURERAS | AR82: C | AS82: Elaboración de otros productos alimenticios | AT82: Elaboración de productos alimenticios | AU82: 0 | AV82: 0 | AW82: 0 | BI82: 19845 | BJ82: 0 | BK82: 76364 | BL82: 1
C83: 76001 | D83: CALI | E83: 0 | F83: 0 | G83: Natural | H83: 76 | I83: VALLE DEL CAUCA | K83: MICRO | L83: 7500 | M83: ACTIVIDADES PROFESIONALES, CIENTÍFICAS Y TÉCNICAS | N83: M | O83: Actividades veterinarias | P83: Actividades veterinarias | Q83: 0 | R83: 0 | S83: 0 | AE83: 0 | AF83: 0 | AG83: 8001 | AH83: BARRANQUILLA | AI83: 0 | AJ83: 0 | AK83: Natural | AL83: 8 | AM83: ATLÁNTICO | AO83: MICRO | AP83: 3250 | AQ83: INDUSTRIAS MANUFACTURERAS | AR83: C | AS83: Fabricación de instrumentos, aparatos y materiales médicos y odontológicos (incluido mobiliario) | AT83: Otras industrias manufactureras | AU83: 0 | AV83: 0 | AW83: 0 | BI83: 15001 | BJ83: 2 | BK83: 17541 | BL83: 1
C84: 5368 | D84: JERICÓ | E84: 0 | F84: 0 | G84: Natural | H84: 5 | I84: ANTIOQUIA | L84: 4761 | M84: COMERCIO AL POR MAYOR Y AL POR MENOR; REPARACIÓN DE VEHÍCULOS AUTOMOTORES Y MOTOCICLETAS | N84: G | O84: Comercio al por menor de artículos culturales y de entretenimiento, en establecimientos especializados | P84: Comercio al por menor de artículos culturales y de entretenimiento, en establecimientos especializados | Q84: 0 | R84: 0 | S84: 0 | AE84: 0 | AF84: 0 | AG84: 15238 | AH84: DUITAMA | AI84: 0 | AJ84: 0 | AK84: Natural | AL84: 15 | AM84: BOYACÁ | AO84: MICRO | AP84: 2599 | AQ84: INDUSTRIAS MANUFACTURERAS | AR84: C | AS84: Fabricación de otros productos elaborados de metal y actividades de servicios relacionadas con el trabajo de metales | AT84: Fabricación de productos elaborados de metal, excepto maquinaria y equipo | AU84: 0 | AV84: 0 | AW84: 0 | BI84: 15764 | BJ84: 0 | BK84: 76400 | BL84: 1
C85: 5045 | D85: APARTADÓ | E85: 0 | F85: 0 | G85: Natural | H85: 5 | I85: ANTIOQUIA | K85: MICRO | L85: 4773 | M85: COMERCIO AL POR MAYOR Y AL POR MENOR; REPARACIÓN DE VEHÍCULOS AUTOMOTORES Y MOTOCICLETAS | N85: G | O85: Comercio al por menor de otros productos en establecimientos especializados | P85: Comercio al por menor de otros productos en establecimientos especializados | Q85: 0 | R85: 0 | S85: 0 | AE85: 0 | AF85: 0 | AG85: 25269 | AH85: FACATATIVÁ | AI85: 3 | AJ85: 1 | AK85: Natural | AL85: 25 | AM85: CUNDINAMARCA | AN85: Aprobado con subsidio | AO85: PEQUEÑA | AP85: 1081 | AQ85: INDUSTRIAS MANUFACTURERAS | AR85: C | AS85: Elaboración de otros productos alimenticios | AT85: Elaboración de productos alimenticios | AU85: 0 | AV85: 2 | AW85: 1 | BI85: 20621 | BJ85: 0 | BK85: 25200 | BL85: 1
C86: 17001 | D86: MANIZALES | E86: 1 | F86: 8 | G86: Natural | H86: 17 | I86: CALDAS | J86: Aprobado con subsidio | K86: PEQUEÑA | L86: 4759 | M86: COMERCIO AL POR MAYOR Y AL POR MENOR; REPARACIÓN DE VEHÍCULOS AUTOMOTORES Y MOTOCICLETAS | N86: G | O86: Comercio al por menor de otros enseres domésticos en establecimientos especializados | P86: Comercio al por menor de otros enseres domésticos en establecimientos especializados | Q86: 1 | R86: 0 | S86: 0 | AE86: 0 | AF86: 0 | AG86: 17001 | AH86: MANIZALES | AI86: 0 | AJ86: 0 | AK86: Natural | AL86: 17 | AM86: CALDAS | AO86: MICRO | AP86: 1084 | AQ86: INDUSTRIAS MANUFACTURERAS | AR86: C | AS86: Elaboración de otros productos alimenticios | AT86: Elaboración de productos alimenticios | AU86: 0 | AV86: 0 | AW86: 0 | BI86: 25799 | BJ86: 3 | BK86: 17174 | BL86: 1
C87: 11001 | D87: BOGOTÁ, D.C. | E87: 0 | F87: 0 | G87: Natural | H87: 11 | I87: BOGOTÁ, D.C. | K87: MICRO | L87: 4530 | M87: COMERCIO AL POR MAYOR Y AL POR MENOR; REPARACIÓN DE VEHÍCULOS AUTOMOTORES Y MOTOCICLETAS | N87: G | O87: Comercio de partes, piezas (autopartes) y accesorios (lujos) para vehículos automotores | P87: Comercio de partes, piezas (autopartes) y accesorios (lujos) para vehículos automotores | Q87: 0 | R87: 0 | S87: 0 | AE87: 0 | AF87: 0 | AG87: 17001 | AH87: MANIZALES | AI87: 0 | AJ87: 0 | AK87: Natural | AL87: 17 | AM87: CALDAS | AO87: PEQUEÑA | AP87: 1523 | AQ87: INDUSTRIAS MANUFACTURERAS | AR87: C | AS87: Fabricación de calzado | AT87: Curtido y recurtido de cueros; fabricación de calzado; fabricación de artículos de viaje, maletas, bolsos de mano y artículos similares, y fabricación de artículos de talabartería y guarnicionería; adobo y teñido de pieles | AU87: 0 | AV87: 0 | AW87: 0 | BI87: 8433 | BJ87: 2 | BK87: 15516 | BL87: 1
C88: 68001 | D88: BUCARAMANGA | E88: 2 | F88: 4 | G88: Natural | H88: 68 | I88: SANTANDER | J88: Aprobado con subsidio | K88: PEQUEÑA | L88: 4741 | M88: COMERCIO AL POR MAYOR Y AL POR MENOR; REPARACIÓN DE VEHÍCULOS AUTOMOTORES Y MOTOCICLETAS | N88: G | O88: Comercio al por menor de equipos de informática y de comunicaciones, en establecimientos especializados | P88: Comercio al por menor de equipos de informática y de comunicaciones, en establecimientos especializados | Q88: 1 | R88: 1 | S88: 0 | AE88: 0 | AF88: 0 | AG88: 17001 | AH88: MANIZALES | AI88: 2 | AJ88: 2 | AK88: Natural | AL88: 17 | AM88: CALDAS | AN88: Aprobado con subsidio | AO88: PEQUEÑA | AP88: 1081 | AQ88: INDUSTRIAS MANUFACTURERAS | AR88: C | AS88: Elaboración de otros productos alimenticios | AT88: Elaboración de productos alimenticios | AU88: 0 | AV88: 2 | AW88: 0 | BI88: 25899 | BJ88: 3 | BK88: 20178 | BL88: 1
C89: 50313 | D89: GRANADA | E89: 0 | F89: 0 | G89: Natural | H89: 50 | I89: META | K89: MICRO | L89: 5511 | M89: ALOJAMIENTO Y SERVICIOS DE COMIDA | N89: I | O89: Actividades de alojamiento de estancias cortas | P89: Actividades de alojamiento de estancias cortas | Q89: 0 | R89: 0 | S89: 0 | AE89: 0 | AF89: 0 | AG89: 23001 | AH89: MONTERÍA | AI89: 0 | AJ89: 0 | AK89: Natural | AL89: 23 | AM89: CÓRDOBA | AO89: PEQUEÑA | AP89: 3110 | AQ89: INDUSTRIAS MANUFACTURERAS | AR89: C | AS89: Fabricación de muebles | AT89: Fabricación de muebles, colchones y somieres | AU89: 0 | AV89: 0 | AW89: 0 | BI89: 25181 | BJ89: 0 | BK89: 23189 | BL89: 1
C90: 68001 | D90: BUCARAMANGA | E90: 0 | F90: 0 | G90: Natural | H90: 68 | I90: SANTANDER | K90: MICRO | L90: 2511 | M90: INDUSTRIAS MANUFACTURERAS | N90: C | O90: Fabricación de productos metálicos para uso estructural, tanques, depósitos y generadores de vapor. | P90: Fabricación de productos elaborados de metal, excepto maquinaria y equipo | Q90: 0 | R90: 0 | S90: 0 | AE90: 0 | AF90: 0 | AG90: 54001 | AH90: CÚCUTA | AI90: 1 | AJ90: 0 | AK90: Natural | AL90: 54 | AM90: NORTE DE SANTANDER | AN90: Aprobado con subsidio | AO90: MICRO | AP90: 1410 | AQ90: INDUSTRIAS MANUFACTURERAS | AR90: C | AS90: Confección de prendas de vestir, excepto prendas de piel | AT90: Confección de prendas de vestir | AU90: 1 | AV90: 0 | AW90: 0 | BI90: 5368 | BJ90: 0 | BK90: 8296 | BL90: 1
C91: 11001 | D91: BOGOTÁ, D.C. | E91: 0 | F91: 0 | G91: Natural | H91: 11 | I91: BOGOTÁ, D.C. | K91: MICRO | L91: 4759 | M91: COMERCIO AL POR MAYOR Y AL POR MENOR; REPARACIÓN DE VEHÍCULOS AUTOMOTORES Y MOTOCICLETAS | N91: G | O91: Comercio al por menor de otros enseres domésticos en establecimientos especializados | P91: Comercio al por menor de otros enseres domésticos en establecimientos especializados | Q91: 0 | R91: 0 | S91: 0 | AE91: 0 | AF91: 0 | AG91: 11001 | AH91: BOGOTÁ, D.C. | AI91: 2 | AJ91: 0 | AK91: Natural | AL91: 11 | AM91: BOGOTÁ, D.C. | AN91: Aprobado con subsidio | AO91: MICRO | AP91: 1811 | AQ91: INDUSTRIAS MANUFACTURERAS | AR91: C | AS91: Actividades de impresión y actividades de servicios relacionados con la impresión | AT91: Actividades de impresión y de producción de copias a partir de grabaciones originales | AU91: 1 | AV91: 1 | AW91: 0 | BI91: 85410 | BJ91: 0 | BK91: 68077 | BL91: 1
C92: 11001 | D92: BOGOTÁ, D.C. | E92: 1 | F92: 0 | G92: Natural | H92: 11 | I92: BOGOTÁ, D.C. | J92: Aprobado con subsidio | K92: MICRO | L92: 4645 | M92: COMERCIO AL POR MAYOR Y AL POR MENOR; REPARACIÓN DE VEHÍCULOS AUTOMOTORES Y MOTOCICLETAS | N92: G | O92: Comercio al por mayor de artículos y enseres domésticos (incluidas prendas de vestir) | P92: Comercio al por mayor de artículos y enseres domésticos (incluidas prendas de vestir) | Q92: 0 | R92: 1 | S92: 0 | AE92: 0 | AF92: 0 | AG92: 52001 | AH92: PASTO | AI92: 0 | AJ92: 0 | AK92: Natural | AL92: 52 | AM92: NARIÑO | AO92: MICRO | AP92: 3250 | AQ92: INDUSTRIAS MANUFACTURERAS | AR92: C | AS92: Fabricación de instrumentos, aparatos y materiales médicos y odontológicos (incluido mobiliario) | AT92: Otras industrias manufactureras | AU92: 0 | AV92: 0 | AW92: 0 | BI92: 25740 | BJ92: 1 | BK92: 19573 | BL92: 1
C93: 11001 | D93: BOGOTÁ, D.C. | E93: 1 | F93: 0 | G93: Natural | H93: 11 | I93: BOGOTÁ, D.C. | J93: Aprobado con subsidio | K93: MICRO | L93: 4771 | M93: COMERCIO AL POR MAYOR Y AL POR MENOR; REPARACIÓN DE VEHÍCULOS AUTOMOTORES Y MOTOCICLETAS | N93: G | O93: Comercio al por menor de otros productos en establecimientos especializados | P93: Comercio al por menor de otros productos en establecimientos especializados | Q93: 1 | R93: 0 | S93: 0 | AE93: 0 | AF93: 0 | AG93: 76001 | AH93: CALI | AI93: 1 | AJ93: 1 | AK93: Natural | AL93: 76 | AM93: VALLE DEL CAUCA | AN93: Aprobado con subsidio | AO93: PEQUEÑA | AP93: 1089 | AQ93: INDUSTRIAS MANUFACTURERAS | AR93: C | AS93: Elaboración de otros productos alimenticios | AT93: Elaboración de productos alimenticios | AU93: 1 | AV93: 0 | AW93: 0 | BI93: 25486 | BJ93: 0 | BK93: 73026 | BL93: 1
C94: 11001 | D94: BOGOTÁ, D.C. | E94: 3 | F94: 3 | G94: Natural | H94: 11 | I94: BOGOTÁ, D.C. | J94: Aprobado con subsidio | K94: PEQUEÑA | L94: 4773 | M94: COMERCIO AL POR MAYOR Y AL POR MENOR; REPARACIÓN DE VEHÍCULOS AUTOMOTORES Y MOTOCICLETAS | N94: G | O94: Comercio al por menor de otros productos en establecimientos especializados | P94: Comercio al por menor de otros productos en establecimientos especializados | Q94: 1 | R94: 2 | S94: 0 | AE94: 0 | AF94: 0 | AG94: 76001 | AH94: CALI | AI94: 0 | AJ94: 0 | AK94: Natural | AL94: 76 | AM94: VALLE DEL CAUCA | AO94: PEQUEÑA | AP94: 1089 | AQ94: INDUSTRIAS MANUFACTURERAS | AR94: C | AS94: Elaboración de otros productos alimenticios | AT94: Elaboración de productos alimenticios | AU94: 0 | AV94: 0 | AW94: 0 | BI94: 5147 | BJ94: 1 | BK94: 5861 | BL94: 1
C95: 11001 | D95: BOGOTÁ, D.C. | E95: 0 | F95: 0 | G95: Natural | H95: 11 | I95: BOGOTÁ, D.C. | K95: MICRO | L95: 6920 | M95: ACTIVIDADES PROFESIONALES, CIENTÍFICAS Y TÉCNICAS | N95: M | O95: Actividades de contabilidad, teneduría de libros, auditoria financiera y asesoría tributaria | P95: Actividades de contabilidad, teneduría de libros, auditoria financiera y asesoría tributaria | Q95: 0 | R95: 0 | S95: 0 | AE95: 0 | AF95: 0 | AG95: 76001 | AH95: CALI | AI95: 0 | AJ95: 0 | AK95: Natural | AL95: 76 | AM95: VALLE DEL CAUCA | AO95: MICRO | AP95: 1521 | AQ95: INDUSTRIAS MANUFACTURERAS | AR95: C | AS95: Fabricación de calzado | AT95: Curtido y recurtido de cueros; fabricación de calzado; fabricación de artículos de viaje, maletas, bolsos de mano y artículos similares, y fabricación de artículos de talabartería y guarnicionería; adobo y teñido de pieles | AU95: 0 | AV95: 0 | AW95: 0 | BI95: 25288 | BJ95: 1 | BK95: 66088 | BL95: 1
C96: 5360 | D96: ITAGUI | E96: 0 | F96: 0 | G96: Natural | H96: 5 | I96: ANTIOQUIA | L96: 8622 | M96: ACTIVIDADES DE ATENCIÓN DE LA SALUD HUMANA Y DE ASISTENCIA SOCIAL | N96: Q | O96: Actividades de práctica médica y odontológica, sin internación | P96: Actividades de práctica médica y odontológica, sin internación | Q96: 0 | R96: 0 | S96: 0 | AE96: 0 | AF96: 0 | AG96: 76001 | AH96: CALI | AI96: 2 | AJ96: 2 | AK96: Natural | AL96: 76 | AM96: VALLE DEL CAUCA | AN96: Aprobado con subsidio | AO96: PEQUEÑA | AP96: 2511 | AQ96: INDUSTRIAS MANUFACTURERAS | AR96: C | AS96: Fabricación de productos metálicos para uso estructural, tanques, depósitos y generadores de vapor. | AT96: Fabricación de productos elaborados de metal, excepto maquinaria y equipo | AU96: 1 | AV96: 0 | AW96: 1 | BI96: 68547 | BJ96: 1 | BK96: 25769 | BL96: 1
C97: 11001 | D97: BOGOTÁ, D.C. | E97: 0 | F97: 0 | G97: Natural | H97: 11 | I97: BOGOTÁ, D.C. | K97: MICRO | L97: 5221 | M97: TRANSPORTE Y ALMACENAMIENTO | N97: H | O97: Actividades de las estaciones, vías y servicios complementarios para el transporte | P97: Actividades de las estaciones, vías y servicios complementarios para el transporte | Q97: 0 | R97: 0 | S97: 0 | AE97: 0 | AF97: 0 | AG97: 5001 | AH97: MEDELLÍN | AI97: 0 | AJ97: 0 | AK97: Natural | AL97: 5 | AM97: ANTIOQUIA | AO97: PEQUEÑA | AP97: 3110 | AQ97: INDUSTRIAS MANUFACTURERAS | AR97: C | AS97: Fabricación de muebles | AT97: Fabricación de muebles, colchones y somieres | AU97: 0 | AV97: 0 | AW97: 0 | BI97: 76364 | BJ97: 1 | BK97: 70820 | BL97: 1
C98: 11001 | D98: BOGOTÁ, D.C. | E98: 0 | F98: 0 | G98: Natural | H98: 11 | I98: BOGOTÁ, D.C. | K98: MICRO | L98: 4530 | M98: COMERCIO AL POR MAYOR Y AL POR MENOR; REPARACIÓN DE VEHÍCULOS AUTOMOTORES Y MOTOCICLETAS | N98: G | O98: Comercio de partes, piezas (autopartes) y accesorios (lujos) para vehículos automotores | P98: Comercio de partes, piezas (autopartes) y accesorios (lujos) para vehículos automotores | Q98: 0 | R98: 0 | S98: 0 | AE98: 0 | AF98: 0 | AG98: 5001 | AH98: MEDELLÍN | AI98: 0 | AJ98: 0 | AK98: Natural | AL98: 5 | AM98: ANTIOQUIA | AO98: MICRO | AP98: 1811 | AQ98: INDUSTRIAS MANUFACTURERAS | AR98: C | AS98: Actividades de impresión y actividades de servicios relacionados con la impresión | AT98: Actividades de impresión y de producción de copias a partir de grabaciones originales | AU98: 0 | AV98: 0 | AW98: 0 | BI98: 17541 | BJ98: 1 | BK98: 5264 | BL98: 1
C99: 11001 | D99: BOGOTÁ, D.C. | E99: 11 | F99: 1 | G99: Natural | H99: 11 | I99: BOGOTÁ, D.C. | J99: Aprobado con subsidio | K99: PEQUEÑA | L99: 8220 | M99: ACTIVIDADES DE SERVICIOS ADMINISTRATIVOS Y DE APOYO | N99: N | O99: Actividades de centros de llamadas (Call center) | P99: Actividades de centros de llamadas (Call center) | Q99: 0 | R99: 1 | S99: 10 | AE99: 0 | AF99: 0 | AG99: 5001 | AH99: MEDELLÍN | AI99: 0 | AJ99: 0 | AK99: Natural | AL99: 5 | AM99: ANTIOQUIA | AO99: PEQUEÑA | AP99: 1410 | AQ99: INDUSTRIAS MANUFACTURERAS | AR99: C | AS99: Confección de prendas de vestir, excepto prendas de piel | AT99: Confección de prendas de vestir | AU99: 0 | AV99: 0 | AW99: 0 | BI99: 5030 | BJ99: 0 | BK99: 54261 | BL99: 1
C100: 5001 | D100: MEDELLÍN | E100: 0 | F100: 0 | G100: Natural | H100: 5 | I100: ANTIOQUIA | K100: MICRO | L100: 1020 | M100: INDUSTRIAS MANUFACTURERAS | N100: C | O100: Procesamiento y conservación de frutas, legumbres, hortalizas y tubérculos | P100: Elaboración de productos alimenticios | Q100: 0 | R100: 0 | S100: 0 | AE100: 0 | AF100: 0 | AG100: 8001 | AH100: BARRANQUILLA | AI100: 0 | AJ100: 0 | AK100: Natural | AL100: 8 | AM100: ATLÁNTICO | AO100: 0 | AP100: 1410 | AQ100: INDUSTRIAS MANUFACTURERAS | AR100: C | AS100: Confección de prendas de vestir, excepto prendas de piel | AT100: Confección de prendas de vestir | AU100: 0 | AV100: 0 | AW100: 0 | BI100: 66682 | BJ100: 0 | BK100: 25736 | BL100: 1
C101: 5212 | D101: COPACABANA | E101: 0 | F101: 0 | G101: Natural | H101: 5 | I101: ANTIOQUIA | K101: PEQUEÑA | L101: 5613 | M101: ALOJAMIENTO Y SERVICIOS DE COMIDA | N101: I | O101: Actividades de restaurantes, cafeterías y servicio móvil de comidas | P101: Actividades de restaurantes, cafeterías y servicio móvil de comidas | Q101: 0 | R101: 0 | S101: 0 | AE101: 0 | AF101: 0 | AG101: 5615 | AH101: RIONEGRO | AI101: 2 | AJ101: 0 | AK101: Natural | AL101: 5 | AM101: ANTIOQUIA | AN101: Aprobado con subsidio | AO101: MICRO | AP101: 1081 | AQ101: INDUSTRIAS MANUFACTURERAS | AR101: C | AS101: Elaboración de otros productos alimenticios | AT101: Elaboración de productos alimenticios | AU101: 1 | AV101: 1 | AW101: 0 | BI101: 76400 | BJ101: 1 | BK101: 76036 | BL101: 1
C102: 5264 | D102: ENTRERRIOS | E102: 0 | F102: 0 | G102: Natural | H102: 5 | I102: ANTIOQUIA | K102: MICRO | L102: 8622 | M102: ACTIVIDADES DE ATENCIÓN DE LA SALUD HUMANA Y DE ASISTENCIA SOCIAL | N102: Q | O102: Actividades de práctica médica y odontológica, sin internación | P102: Actividades de práctica médica y odontológica, sin internación | Q102: 0 | R102: 0 | S102: 0 | AE102: 0 | AF102: 0 | AG102: 5001 | AH102: MEDELLÍN | AI102: 2 | AJ102: 0 | AK102: Natural | AL102: 5 | AM102: ANTIOQUIA | AN102: Aprobado con subsidio | AO102: MICRO | AP102: 3240 | AQ102: INDUSTRIAS MANUFACTURERAS | AR102: C | AS102: Fabricación de juegos, juguetes y rompecabezas | AT102: Otras industrias manufactureras | AU102: 0 | AV102: 2 | AW102: 0 | BI102: 25200 | BJ102: 1 | BK102: 63130 | BL102: 1
C103: 5264 | D103: ENTRERRIOS | E103: 0 | F103: 0 | G103: Natural | H103: 5 | I103: ANTIOQUIA | K103: MICRO | L103: 4923 | M103: TRANSPORTE Y ALMACENAMIENTO | N103: H | O103: Transporte terrestre publico automotor | P103: Transporte terrestre publico automotor | Q103: 0 | R103: 0 | S103: 0 | AE103: 0 | AF103: 0 | AG103: 5001 | AH103: MEDELLÍN | AI103: 0 | AJ103: 0 | AK103: Natural | AL103: 5 | AM103: ANTIOQUIA | AO103: PEQUEÑA | AP103: 1011 | AQ103: INDUSTRIAS MANUFACTURERAS | AR103: C | AS103: Procesamiento y conservación de carne, pescado, crustáceos y moluscos | AT103: Elaboración de productos alimenticios | AU103: 0 | AV103: 0 | AW103: 0 | BI103: 41524 | BJ103: 0 | BK103: 68655 | BL103: 1
C104: 5001 | D104: MEDELLÍN | E104: 2 | F104: 0 | G104: Natural | H104: 5 | I104: ANTIOQUIA | J104: Aprobado con subsidio | K104: MICRO | L104: 4620 | M104: COMERCIO AL POR MAYOR Y AL POR MENOR; REPARACIÓN DE VEHÍCULOS AUTOMOTORES Y MOTOCICLETAS | N104: G | O104: Comercio al por mayor de materias primas agropecuarias; animales vivos | P104: Comercio al por mayor de materias primas agropecuarias; animales vivos | Q104: 1 | R104: 1 | S104: 0 | AE104: 0 | AF104: 0 | AG104: 23001 | AH104: MONTERÍA | AI104: 0 | AJ104: 0 | AK104: Natural | AL104: 23 | AM104: CÓRDOBA | AO104: MICRO | AP104: 1089 | AQ104: INDUSTRIAS MANUFACTURERAS | AR104: C | AS104: Elaboración de otros productos alimenticios | AT104: Elaboración de productos alimenticios | AU104: 0 | AV104: 0 | AW104: 0 | BI104: 68276 | BJ104: 6 | BK104: 50318 | BL104: 1
C105: 5001 | D105: MEDELLÍN | E105: 0 | F105: 0 | G105: Natural | H105: 5 | I105: ANTIOQUIA | L105: 8219 | M105: ACTIVIDADES DE SERVICIOS ADMINISTRATIVOS Y DE APOYO | N105: N | O105: Actividades administrativas y de apoyo de oficina | P105: Actividades administrativas y de apoyo de oficina | Q105: 0 | R105: 0 | S105: 0 | AE105: 0 | AF105: 0 | AG105: 11001 | AH105: BOGOTÁ, D.C. | AI105: 1 | AJ105: 0 | AK105: Natural | AL105: 11 | AM105: BOGOTÁ, D.C. | AN105: Aprobado con subsidio | AO105: MICRO | AP105: 1104 | AQ105: INDUSTRIAS MANUFACTURERAS | AR105: C | AS105: Elaboración de bebidas | AT105: Elaboración de bebidas | AU105: 0 | AV105: 0 | AW105: 1 | BI105: 70001 | BJ105: 0 | BK105: 52356 | BL105: 1
C106: 5197 | D106: COCORNÁ | E106: 0 | F106: 0 | G106: Natural | H106: 5 | I106: ANTIOQUIA | K106: MICRO | L106: 1410 | M106: INDUSTRIAS MANUFACTURERAS | N106: C | O106: Confección de prendas de vestir, excepto prendas de piel | P106: Confección de prendas de vestir | Q106: 0 | R106: 0 | S106: 0 | AE106: 0 | AF106: 0 | AG106: 5001 | AH106: MEDELLÍN | AI106: 2 | AJ106: 0 | AK106: Natural | AL106: 5 | AM106: ANTIOQUIA | AN106: Aprobado con subsidio | AO106: MICRO | AP106: 3110 | AQ106: INDUSTRIAS MANUFACTURERAS | AR106: C | AS106: Fabricación de muebles | AT106: Fabricación de muebles, colchones y somieres | AU106: 1 | AV106: 1 | AW106: 0 | BI106: 15755 | BJ106: 0 | BK106: 50568 | BL106: 1
C107: 5001 | D107: MEDELLÍN | E107: 0 | F107: 0 | G107: Natural | H107: 5 | I107: ANTIOQUIA | L107: 1512 | M107: INDUSTRIAS MANUFACTURERAS | N107: C | O107: Curtido y recurtido de cueros; fabricación de artículos de viaje, bolsos de mano y artículos similares, y fabricación de artículos de talabartería y guarnicionería; adobo y teñido de pieles | P107: Curtido y recurtido de cueros; fabricación de calzado; fabricación de artículos de viaje, maletas, bolsos de mano y artículos similares, y fabricación de artículos de talabartería y guarnicionería; adobo y teñido de pieles | Q107: 0 | R107: 0 | S107: 0 | AE107: 0 | AF107: 0 | AG107: 68307 | AH107: GIRÓN | AI107: 1 | AJ107: 7 | AK107: Natural | AL107: 68 | AM107: SANTANDER | AN107: Aprobado con subsidio | AO107: MICRO | AP107: 1410 | AQ107: INDUSTRIAS MANUFACTURERAS | AR107: C | AS107: Confección de prendas de vestir, excepto prendas de piel | AT107: Confección de prendas de vestir | AU107: 1 | AV107: 0 | AW107: 0 | BI107: 17873 | BJ107: 0 | BK107: 81300 | BL107: 1
C108: 5129 | D108: CALDAS | E108: 0 | F108: 0 | G108: Natural | H108: 5 | I108: ANTIOQUIA | K108: MICRO | L108: 4754 | M108: COMERCIO AL POR MAYOR Y AL POR MENOR; REPARACIÓN DE VEHÍCULOS AUTOMOTORES Y MOTOCICLETAS | N108: G | O108: Comercio al por menor de otros enseres domésticos en establecimientos especializados | P108: Comercio al por menor de otros enseres domésticos en establecimientos especializados | Q108: 0 | R108: 0 | S108: 0 | AE108: 0 | AF108: 0 | AG108: 76001 | AH108: CALI | AI108: 0 | AJ108: 0 | AK108: Natural | AL108: 76 | AM108: VALLE DEL CAUCA | AO108: MICRO | AP108: 1081 | AQ108: INDUSTRIAS MANUFACTURERAS | AR108: C | AS108: Elaboración de otros productos alimenticios | AT108: Elaboración de productos alimenticios | AU108: 0 | AV108: 0 | AW108: 0 | BI108: 17174 | BJ108: 1 | BK108: 50287 | BL108: 1
C109: 5088 | D109: BELLO | E109: 0 | F109: 0 | G109: Natural | H109: 5 | I109: ANTIOQUIA | K109: MICRO | L109: 5611 | M109: ALOJAMIENTO Y SERVICIOS DE COMIDA | N109: I | O109: Actividades de restaurantes, cafeterías y servicio móvil de comidas | P109: Actividades de restaurantes, cafeterías y servicio móvil de comidas | Q109: 0 | R109: 0 | S109: 0 | AE109: 0 | AF109: 0 | AG109: 5045 | AH109: APARTADÓ | AI109: 0 | AJ109: 0 | AK109: Natural | AL109: 5 | AM109: ANTIOQUIA | AO109: MICRO | AP109: 1089 | AQ109: INDUSTRIAS MANUFACTURERAS | AR109: C | AS109: Elaboración de otros productos alimenticios | AT109: Elaboración de productos alimenticios | AU109: 0 | AV109: 0 | AW109: 0 | BI109: 95001 | BJ109: 0 | BK109: 50226 | BL109: 1
C110: 5001 | D110: MEDELLÍN | E110: 2 | F110: 1 | G110: Natural | H110: 5 | I110: ANTIOQUIA | J110: Aprobado con subsidio | K110: MICRO | L110: 4530 | M110: COMERCIO AL POR MAYOR Y AL POR MENOR; REPARACIÓN DE VEHÍCULOS AUTOMOTORES Y MOTOCICLETAS | N110: G | O110: Comercio de partes, piezas (autopartes) y accesorios (lujos) para vehículos automotores | P110: Comercio de partes, piezas (autopartes) y accesorios (lujos) para vehículos automotores | Q110: 2 | R110: 0 | S110: 0 | AE110: 0 | AF110: 0 | AG110: 50001 | AH110: VILLAVICENCIO | AI110: 1 | AJ110: 0 | AK110: Natural | AL110: 50 | AM110: META | AN110: Aprobado con subsidio | AO110: MICRO | AP110: 1081 | AQ110: INDUSTRIAS MANUFACTURERAS | AR110: C | AS110: Elaboración de otros productos alimenticios | AT110: Elaboración de productos alimenticios | AU110: 0 | AV110: 1 | AW110: 0 | BI110: 15759 | BJ110: 4 | BK110: 63272 | BL110: 1
C111: 5001 | D111: MEDELLÍN | E111: 2 | F111: 0 | G111: Natural | H111: 5 | I111: ANTIOQUIA | J111: Aprobado con subsidio | K111: MICRO | L111: 5611 | M111: ALOJAMIENTO Y SERVICIOS DE COMIDA | N111: I | O111: Actividades de restaurantes, cafeterías y servicio móvil de comidas | P111: Actividades de restaurantes, cafeterías y servicio móvil de comidas | Q111: 2 | R111: 0 | S111: 0 | AE111: 0 | AF111: 0 | AG111: 11001 | AH111: BOGOTÁ, D.C. | AI111: 0 | AJ111: 0 | AK111: Natural | AL111: 11 | AM111: BOGOTÁ, D.C. | AO111: MICRO | AP111: 1081 | AQ111: INDUSTRIAS MANUFACTURERAS | AR111: C | AS111: Elaboración de otros productos alimenticios | AT111: Elaboración de productos alimenticios | AU111: 0 | AV111: 0 | AW111: 0 | BI111: 15516 | BJ111: 1 | BK111: 5656 | BL111: 1
C112: 5001 | D112: MEDELLÍN | E112: 0 | F112: 0 | G112: Natural | H112: 5 | I112: ANTIOQUIA | K112: PEQUEÑA | L112: 4645 | M112: COMERCIO AL POR MAYOR Y AL POR MENOR; REPARACIÓN DE VEHÍCULOS AUTOMOTORES Y MOTOCICLETAS | N112: G | O112: Comercio al por mayor de artículos y enseres domésticos (incluidas prendas de vestir) | P112: Comercio al por mayor de artículos y enseres domésticos (incluidas prendas de vestir) | Q112: 0 | R112: 0 | S112: 0 | AE112: 0 | AF112: 0 | AG112: 5001 | AH112: MEDELLÍN | AI112: 0 | AJ112: 0 | AK112: Natural | AL112: 5 | AM112: ANTIOQUIA | AO112: PEQUEÑA | AP112: 1313 | AQ112: INDUSTRIAS MANUFACTURERAS | AR112: C | AS112: Preparación, hilatura, tejeduría y acabado de productos textiles | AT112: Fabricación de productos textiles | AU112: 0 | AV112: 0 | AW112: 0 | BI112: 18001 | BJ112: 2 | BK112: 19517 | BL112: 0
C113: 5615 | D113: RIONEGRO | E113: 0 | F113: 0 | G113: Natural | H113: 5 | I113: ANTIOQUIA | K113: PEQUEÑA | L113: 128 | M113: AGRICULTURA, GANADERÍA, CAZA, SILVICULTURA Y PESCA | N113: A | O113: Cultivos agrícolas permanentes | P113: Cultivos agrícolas permanentes | Q113: 0 | R113: 0 | S113: 0 | AE113: 0 | AF113: 0 | AG113: 5237 | AH113: DON MATÍAS | AI113: 0 | AJ113: 0 | AK113: Natural | AL113: 5 | AM113: ANTIOQUIA | AO113: PEQUEÑA | AP113: 1410 | AQ113: INDUSTRIAS MANUFACTURERAS | AR113: C | AS113: Confección de prendas de vestir, excepto prendas de piel | AT113: Confección de prendas de vestir | AU113: 0 | AV113: 0 | AW113: 0 | BI113: 20178 | BJ113: 1 | BK113: 5042 | BL113: 0
C114: 5615 | D114: RIONEGRO | E114: 0 | F114: 0 | G114: Natural | H114: 5 | I114: ANTIOQUIA | K114: MICRO | L114: 1313 | M114: INDUSTRIAS MANUFACTURERAS | N114: C | O114: Preparación, hilatura, tejeduría y acabado de productos textiles | P114: Fabricación de productos textiles | Q114: 0 | R114: 0 | S114: 0 | AE114: 0 | AF114: 0 | AG114: 5001 | AH114: MEDELLÍN | AI114: 0 | AJ114: 0 | AK114: Natural | AL114: 5 | AM114: ANTIOQUIA | AO114: MICRO | AP114: 1084 | AQ114: INDUSTRIAS MANUFACTURERAS | AR114: C | AS114: Elaboración de otros productos alimenticios | AT114: Elaboración de productos alimenticios | AU114: 0 | AV114: 0 | AW114: 0 | BI114: 23189 | BJ114: 1 | BK114: 5197 | BL114: 0
C115: 5001 | D115: MEDELLÍN | E115: 0 | F115: 0 | G115: Natural | H115: 5 | I115: ANTIOQUIA | L115: 1410 | M115: INDUSTRIAS MANUFACTURERAS | N115: C | O115: Confección de prendas de vestir, excepto prendas de piel | P115: Confección de prendas de vestir | Q115: 0 | R115: 0 | S115: 0 | AE115: 0 | AF115: 0 | AG115: 5001 | AH115: MEDELLÍN | AI115: 1 | AJ115: 5 | AK115: Natural | AL115: 5 | AM115: ANTIOQUIA | AN115: Aprobado con subsidio | AO115: MICRO | AP115: 1521 | AQ115: INDUSTRIAS MANUFACTURERAS | AR115: C | AS115: Fabricación de calzado | AT115: Curtido y recurtido de cueros; fabricación de calzado; fabricación de artículos de viaje, maletas, bolsos de mano y artículos similares, y fabricación de artículos de talabartería y guarnicionería; adobo y teñido de pieles | AU115: 0 | AV115: 0 | AW115: 1 | BI115: 5686 | BJ115: 0 | BK115: 54874 | BL115: 0
C116: 54001 | D116: CÚCUTA | E116: 0 | F116: 0 | G116: Natural | H116: 54 | I116: NORTE DE SANTANDER | K116: MICRO | L116: 5613 | M116: ALOJAMIENTO Y SERVICIOS DE COMIDA | N116: I | O116: Actividades de restaurantes, cafeterías y servicio móvil de comidas | P116: Actividades de restaurantes, cafeterías y servicio móvil de comidas | Q116: 0 | R116: 0 | S116: 0 | AE116: 0 | AF116: 0 | AG116: 5001 | AH116: MEDELLÍN | AI116: 0 | AJ116: 0 | AK116: Natural | AL116: 5 | AM116: ANTIOQUIA | AO116: PEQUEÑA | AP116: 1630 | AQ116: INDUSTRIAS MANUFACTURERAS | AR116: C | AS116: Fabricación de partes y piezas de madera, de carpintería y ebanistería para la construcción | AT116: Transformación de la madera y fabricación de productos de madera y de corcho, excepto muebles; fabricación de artículos de cestería y espartería | AU116: 0 | AV116: 0 | AW116: 0 | BI116: 52473 | BJ116: 0 | BK116: 50006 | BL116: 0
C117: 5001 | D117: MEDELLÍN | E117: 0 | F117: 0 | G117: Natural | H117: 5 | I117: ANTIOQUIA | K117: MICRO | L117: 4542 | M117: COMERCIO AL POR MAYOR Y AL POR MENOR; REPARACIÓN DE VEHÍCULOS AUTOMOTORES Y MOTOCICLETAS | N117: G | O117: Comercio, mantenimiento y reparación de motocicletas y de sus partes, piezas y accesorios | P117: Comercio, mantenimiento y reparación de motocicletas y de sus partes, piezas y accesorios | Q117: 0 | R117: 0 | S117: 0 | AE117: 0 | AF117: 0 | AG117: 5615 | AH117: RIONEGRO | AI117: 1 | AJ117: 1 | AK117: Natural | AL117: 5 | AM117: ANTIOQUIA | AN117: Aprobado con subsidio | AO117: MICRO | AP117: 1630 | AQ117: INDUSTRIAS MANUFACTURERAS | AR117: C | AS117: Fabricación de partes y piezas de madera, de carpintería y ebanistería para la construcción | AT117: Transformación de la madera y fabricación de productos de madera y de corcho, excepto muebles; fabricación de artículos de cestería y espartería | AU117: 1 | AV117: 0 | AW117: 0 | BI117: 85001 | BJ117: 2 | BK117: 25175 | BL117: 0
C118: 5001 | D118: MEDELLÍN | E118: 0 | F118: 0 | G118: Natural | H118: 5 | I118: ANTIOQUIA | K118: PEQUEÑA | L118: 4711 | M118: COMERCIO AL POR MAYOR Y AL POR MENOR; REPARACIÓN DE VEHÍCULOS AUTOMOTORES Y MOTOCICLETAS | N118: G | O118: Comercio al por menor en establecimientos no especializados | P118: Comercio al por menor en establecimientos no especializados | Q118: 0 | R118: 0 | S118: 0 | AE118: 0 | AF118: 0 | AG118: 5212 | AH118: COPACABANA | AI118: 0 | AJ118: 0 | AK118: Natural | AL118: 5 | AM118: ANTIOQUIA | AO118: MICRO | AP118: 3319 | AQ118: INDUSTRIAS MANUFACTURERAS | AR118: C | AS118: Mantenimiento y reparación especializado de productos elaborados en metal y de maquinaria y equipo | AT118: Instalación, mantenimiento y reparación especializado de maquinaria y equipo | AU118: 0 | AV118: 0 | AW118: 0 | BI118: 8296 | BJ118: 1 | BK118: 5148 | BL118: 0
C119: 5001 | D119: MEDELLÍN | E119: 0 | F119: 0 | G119: Natural | H119: 5 | I119: ANTIOQUIA | K119: MICRO | L119: 4645 | M119: COMERCIO AL POR MAYOR Y AL POR MENOR; REPARACIÓN DE VEHÍCULOS AUTOMOTORES Y MOTOCICLETAS | N119: G | O119: Comercio al por mayor de artículos y enseres domésticos (incluidas prendas de vestir) | P119: Comercio al por mayor de artículos y enseres domésticos (incluidas prendas de vestir) | Q119: 0 | R119: 0 | S119: 0 | AE119: 0 | AF119: 0 | AG119: 5001 | AH119: MEDELLÍN | AI119: 0 | AJ119: 0 | AK119: Natural | AL119: 5 | AM119: ANTIOQUIA | AO119: PEQUEÑA | AP119: 1089 | AQ119: INDUSTRIAS MANUFACTURERAS | AR119: C | AS119: Elaboración de otros productos alimenticios | AT119: Elaboración de productos alimenticios | AU119: 0 | AV119: 0 | AW119: 0 | BI119: 25099 | BJ119: 0 | BK119: 85010 | BL119: 0
C120: 5001 | D120: MEDELLÍN | E120: 0 | F120: 0 | G120: Natural | H120: 5 | I120: ANTIOQUIA | K120: MICRO | L120: 9602 | M120: OTRAS ACTIVIDADES DE SERVICIOS | N120: S | O120: Otras actividades de servicios personales | P120: Otras actividades de servicios personales | Q120: 0 | R120: 0 | S120: 0 | AE120: 0 | AF120: 0 | AG120: 5001 | AH120: MEDELLÍN | AI120: 1 | AJ120: 0 | AK120: Natural | AL120: 5 | AM120: ANTIOQUIA | AN120: Aprobado con subsidio | AO120: PEQUEÑA | AP120: 3290 | AQ120: INDUSTRIAS MANUFACTURERAS | AR120: C | AS120: Otras industrias manufactureras n.c.p. | AT120: Otras industrias manufactureras | AU120: 0 | AV120: 1 | AW120: 0 | BI120: 76622 | BJ120: 0 | BK120: 76111 | BL120: 0
C121: 5631 | D121: SABANETA | E121: 0 | F121: 0 | G121: Natural | H121: 5 | I121: ANTIOQUIA | K121: MICRO | L121: 5611 | M121: ALOJAMIENTO Y SERVICIOS DE COMIDA | N121: I | O121: Actividades de restaurantes, cafeterías y servicio móvil de comidas | P121: Actividades de restaurantes, cafeterías y servicio móvil de comidas | Q121: 0 | R121: 0 | S121: 0 | AE121: 0 | AF121: 0 | AG121: 5001 | AH121: MEDELLÍN | AI121: 0 | AJ121: 0 | AK121: Natural | AL121: 5 | AM121: ANTIOQUIA | AO121: MICRO | AP121: 1081 | AQ121: INDUSTRIAS MANUFACTURERAS | AR121: C | AS121: Elaboración de otros productos alimenticios | AT121: Elaboración de productos alimenticios | AU121: 0 | AV121: 0 | AW121: 0 | BI121: 68077 | BJ121: 1 | BK121: 54498 | BL121: 0
C122: 5001 | D122: MEDELLÍN | E122: 1 | F122: 0 | G122: Natural | H122: 5 | I122: ANTIOQUIA | J122: Aprobado con subsidio | K122: MICRO | L122: 5612 | M122: ALOJAMIENTO Y SERVICIOS DE COMIDA | N122: I | O122: Actividades de restaurantes, cafeterías y servicio móvil de comidas | P122: Actividades de restaurantes, cafeterías y servicio móvil de comidas | Q122: 1 | R122: 0 | S122: 0 | AE122: 0 | AF122: 0 | AG122: 5360 | AH122: ITAGUI | AI122: 0 | AJ122: 0 | AK122: Natural | AL122: 5 | AM122: ANTIOQUIA | AO122: MICRO | AP122: 1313 | AQ122: INDUSTRIAS MANUFACTURERAS | AR122: C | AS122: Preparación, hilatura, tejeduría y acabado de productos textiles | AT122: Fabricación de productos textiles | AU122: 0 | AV122: 0 | AW122: 0 | BI122: 19573 | BJ122: 1 | BK122: 23660 | BL122: 0
C123: 5147 | D123: CAREPA | E123: 0 | F123: 0 | G123: Natural | H123: 5 | I123: ANTIOQUIA | K123: MICRO | L123: 4773 | M123: COMERCIO AL POR MAYOR Y AL POR MENOR; REPARACIÓN DE VEHÍCULOS AUTOMOTORES Y MOTOCICLETAS | N123: G | O123: Comercio al por menor de otros productos en establecimientos especializados | P123: Comercio al por menor de otros productos en establecimientos especializados | Q123: 0 | R123: 0 | S123: 0 | AE123: 0 | AF123: 0 | AG123: 5615 | AH123: RIONEGRO | AI123: 2 | AJ123: 0 | AK123: Natural | AL123: 5 | AM123: ANTIOQUIA | AN123: Aprobado con subsidio | AO123: PEQUEÑA | AP123: 1089 | AQ123: INDUSTRIAS MANUFACTURERAS | AR123: C | AS123: Elaboración de otros productos alimenticios | AT123: Elaboración de productos alimenticios | AU123: 2 | AV123: 0 | AW123: 0 | BI123: 5591 | BJ123: 0 | BK123: 68229 | BL123: 0
C124: 5045 | D124: APARTADÓ | E124: 1 | F124: 1 | G124: Natural | H124: 5 | I124: ANTIOQUIA | J124: Aprobado con subsidio | K124: MICRO | L124: 4530 | M124: COMERCIO AL POR MAYOR Y AL POR MENOR; REPARACIÓN DE VEHÍCULOS AUTOMOTORES Y MOTOCICLETAS | N124: G | O124: Comercio de partes, piezas (autopartes) y accesorios (lujos) para vehículos automotores | P124: Comercio de partes, piezas (autopartes) y accesorios (lujos) para vehículos automotores | Q124: 0 | R124: 1 | S124: 0 | AE124: 0 | AF124: 0 | AG124: 5697 | AH124: EL SANTUARIO | AI124: 0 | AJ124: 0 | AK124: Natural | AL124: 5 | AM124: ANTIOQUIA | AO124: MICRO | AP124: 1410 | AQ124: INDUSTRIAS MANUFACTURERAS | AR124: C | AS124: Confección de prendas de vestir, excepto prendas de piel | AT124: Confección de prendas de vestir | AU124: 0 | AV124: 0 | AW124: 0 | BI124: 73026 | BJ124: 1 | BK124: 5579 | BL124: 0
C125: 5360 | D125: ITAGUI | E125: 3 | F125: 0 | G125: Natural | H125: 5 | I125: ANTIOQUIA | J125: Aprobado con subsidio | K125: MICRO | L125: 4791 | M125: COMERCIO AL POR MAYOR Y AL POR MENOR; REPARACIÓN DE VEHÍCULOS AUTOMOTORES Y MOTOCICLETAS | N125: G | O125: Comercio al por menor no realizado en establecimientos, puestos de venta o mercados | P125: Comercio al por menor no realizado en establecimientos, puestos de venta o mercados | Q125: 1 | R125: 2 | S125: 0 | AE125: 0 | AF125: 0 | AG125: 5001 | AH125: MEDELLÍN | AI125: 1 | AJ125: 0 | AK125: Natural | AL125: 5 | AM125: ANTIOQUIA | AN125: Aprobado con subsidio | AO125: MICRO | AP125: 1081 | AQ125: INDUSTRIAS MANUFACTURERAS | AR125: C | AS125: Elaboración de otros productos alimenticios | AT125: Elaboración de productos alimenticios | AU125: 0 | AV125: 1 | AW125: 0 | BI125: 5861 | BJ125: 1 | BK125: 19845 | BL125: 0
C126: 5368 | D126: JERICÓ | E126: 0 | F126: 0 | G126: Natural | H126: 5 | I126: ANTIOQUIA | L126: 5611 | M126: ALOJAMIENTO Y SERVICIOS DE COMIDA | N126: I | O126: Actividades de restaurantes, cafeterías y servicio móvil de comidas | P126: Actividades de restaurantes, cafeterías y servicio móvil de comidas | Q126: 0 | R126: 0 | S126: 0 | AE126: 0 | AF126: 0 | AG126: 5001 | AH126: MEDELLÍN | AI126: 0 | AJ126: 0 | AK126: Natural | AL126: 5 | AM126: ANTIOQUIA | AO126: PEQUEÑA | AP126: 1081 | AQ126: INDUSTRIAS MANUFACTURERAS | AR126: C | AS126: Elaboración de otros productos alimenticios | AT126: Elaboración de productos alimenticios | AU126: 0 | AV126: 0 | AW126: 0 | BI126: 66088 | BJ126: 1 | BK126: 15764 | BL126: 0
C127: 5368 | D127: JERICÓ | E127: 0 | F127: 0 | G127: Natural | H127: 5 | I127: ANTIOQUIA | L127: 5611 | M127: ALOJAMIENTO Y SERVICIOS DE COMIDA | N127: I | O127: Actividades de restaurantes, cafeterías y servicio móvil de comidas | P127: Actividades de restaurantes, cafeterías y servicio móvil de comidas | Q127: 0 | R127: 0 | S127: 0 | AE127: 0 | AF127: 0 | AG127: 5001 | AH127: MEDELLÍN | AI127: 0 | AJ127: 0 | AK127: Natural | AL127: 5 | AM127: ANTIOQUIA | AO127: MEDIANA | AP127: 1410 | AQ127: INDUSTRIAS MANUFACTURERAS | AR127: C | AS127: Confección de prendas de vestir, excepto prendas de piel | AT127: Confección de prendas de vestir | AU127: 0 | AV127: 0 | AW127: 0 | BI127: 25769 | BJ127: 1 | BK127: 20621 | BL127: 0
C128: 5266 | D128: ENVIGADO | E128: 0 | F128: 0 | G128: Natural | H128: 5 | I128: ANTIOQUIA | K128: MICRO | L128: 9602 | M128: OTRAS ACTIVIDADES DE SERVICIOS | N128: S | O128: Otras actividades de servicios personales | P128: Otras actividades de servicios personales | Q128: 0 | R128: 0 | S128: 0 | AE128: 0 | AF128: 0 | AG128: 68307 | AH128: GIRÓN | AI128: 3 | AJ128: 0 | AK128: Natural | AL128: 68 | AM128: SANTANDER | AN128: Aprobado con subsidio | AO128: MICRO | AP128: 1410 | AQ128: INDUSTRIAS MANUFACTURERAS | AR128: C | AS128: Confección de prendas de vestir, excepto prendas de piel | AT128: Confección de prendas de vestir | AU128: 0 | AV128: 2 | AW128: 1 | BI128: 5541 | BJ128: 0 | BK128: 25181 | BL128: 0
C129: 5001 | D129: MEDELLÍN | E129: 0 | F129: 0 | G129: Natural | H129: 5 | I129: ANTIOQUIA | L129: 6920 | M129: ACTIVIDADES PROFESIONALES, CIENTÍFICAS Y TÉCNICAS | N129: M | O129: Actividades de contabilidad, teneduría de libros, auditoria financiera y asesoría tributaria | P129: Actividades de contabilidad, teneduría de libros, auditoria financiera y asesoría tributaria | Q129: 0 | R129: 0 | S129: 0 | AE129: 0 | AF129: 0 | AG129: 11001 | AH129: BOGOTÁ, D.C. | AI129: 0 | AJ129: 0 | AK129: Natural | AL129: 11 | AM129: BOGOTÁ, D.C. | AO129: MICRO | AP129: 1410 | AQ129: INDUSTRIAS MANUFACTURERAS | AR129: C | AS129: Confección de prendas de vestir, excepto prendas de piel | AT129: Confección de prendas de vestir | AU129: 0 | AV129: 0 | AW129: 0 | BI129: 70820 | BJ129: 1 | BK129: 5368 | BL129: 0
C130: 5380 | D130: LA ESTRELLA | E130: 0 | F130: 0 | G130: Natural | H130: 5 | I130: ANTIOQUIA | K130: MICRO | L130: 4773 | M130: COMERCIO AL POR MAYOR Y AL POR MENOR; REPARACIÓN DE VEHÍCULOS AUTOMOTORES Y MOTOCICLETAS | N130: G | O130: Comercio al por menor de otros productos en establecimientos especializados | P130: Comercio al por menor de otros productos en establecimientos especializados | Q130: 0 | R130: 0 | S130: 0 | AE130: 0 | AF130: 0 | AG130: 15238 | AH130: DUITAMA | AI130: 0 | AJ130: 0 | AK130: Natural | AL130: 15 | AM130: BOYACÁ | AO130: MICRO | AP130: 1081 | AQ130: INDUSTRIAS MANUFACTURERAS | AR130: C | AS130: Elaboración de otros productos alimenticios | AT130: Elaboración de productos alimenticios | AU130: 0 | AV130: 0 | AW130: 0 | BI130: 23162 | BJ130: =COUNTIFS($AN$2:$AN$399999,"Aprobado con subsidio",$AG$2:$AG$399999,BI130) -> 0 | BK130: 85410 | BL130: 0
C131: 5266 | D131: ENVIGADO | E131: 0 | F131: 0 | G131: Natural | H131: 5 | I131: ANTIOQUIA | K131: PEQUEÑA | L131: 6920 | M131: ACTIVIDADES PROFESIONALES, CIENTÍFICAS Y TÉCNICAS | N131: M | O131: Actividades de contabilidad, teneduría de libros, auditoria financiera y asesoría tributaria | P131: Actividades de contabilidad, teneduría de libros, auditoria financiera y asesoría tributaria | Q131: 0 | R131: 0 | S131: 0 | AE131: 0 | AF131: 0 | AG131: 11001 | AH131: BOGOTÁ, D.C. | AI131: 0 | AJ131: 0 | AK131: Natural | AL131: 11 | AM131: BOGOTÁ, D.C. | AO131: MICRO | AP131: 1521 | AQ131: INDUSTRIAS MANUFACTURERAS | AR131: C | AS131: Fabricación de calzado | AT131: Curtido y recurtido de cueros; fabricación de calzado; fabricación de artículos de viaje, maletas, bolsos de mano y artículos similares, y fabricación de artículos de talabartería y guarnicionería; adobo y teñido de pieles | AU131: 0 | AV131: 0 | AW131: 0 | BI131: 41551 | BJ131: 0 | BK131: 25486 | BL131: 0
C132: 5001 | D132: MEDELLÍN | E132: 1 | F132: 0 | G132: Natural | H132: 5 | I132: ANTIOQUIA | J132: Aprobado con subsidio | K132: MICRO | L132: 4741 | M132: COMERCIO AL POR MAYOR Y AL POR MENOR; REPARACIÓN DE VEHÍCULOS AUTOMOTORES Y MOTOCICLETAS | N132: G | O132: Comercio al por menor de equipos de informática y de comunicaciones, en establecimientos especializados | P132: Comercio al por menor de equipos de informática y de comunicaciones, en establecimientos especializados | Q132: 0 | R132: 1 | S132: 0 | AE132: 0 | AF132: 0 | AG132: 25175 | AH132: CHÍA | AI132: 0 | AJ132: 0 | AK132: Natural | AL132: 25 | AM132: CUNDINAMARCA | AO132: MICRO | AP132: 1081 | AQ132: INDUSTRIAS MANUFACTURERAS | AR132: C | AS132: Elaboración de otros productos alimenticios | AT132: Elaboración de productos alimenticios | AU132: 0 | AV132: 0 | AW132: 0 | BI132: 5264 | BJ132: 1 | BK132: 5030 | BL132: 0
C133: 5001 | D133: MEDELLÍN | E133: 0 | F133: 0 | G133: Natural | H133: 5 | I133: ANTIOQUIA | L133: 4711 | M133: COMERCIO AL POR MAYOR Y AL POR MENOR; REPARACIÓN DE VEHÍCULOS AUTOMOTORES Y MOTOCICLETAS | N133: G | O133: Comercio al por menor en establecimientos no especializados | P133: Comercio al por menor en establecimientos no especializados | Q133: 0 | R133: 0 | S133: 0 | AE133: 0 | AF133: 0 | AG133: 11001 | AH133: BOGOTÁ, D.C. | AI133: 1 | AJ133: 3 | AK133: Natural | AL133: 11 | AM133: BOGOTÁ, D.C. | AN133: Aprobado con subsidio | AO133: PEQUEÑA | AP133: 1523 | AQ133: INDUSTRIAS MANUFACTURERAS | AR133: C | AS133: Fabricación de calzado | AT133: Curtido y recurtido de cueros; fabricación de calzado; fabricación de artículos de viaje, maletas, bolsos de mano y artículos similares, y fabricación de artículos de talabartería y guarnicionería; adobo y teñido de pieles | AU133: 0 | AV133: 1 | AW133: 0 | BI133: 18753 | BJ133: 0 | BK133: 66682 | BL133: 0
C134: 5001 | D134: MEDELLÍN | E134: 1 | F134: 2 | G134: Natural | H134: 5 | I134: ANTIOQUIA | J134: Aprobado con subsidio | K134: MICRO | L134: 4719 | M134: COMERCIO AL POR MAYOR Y AL POR MENOR; REPARACIÓN DE VEHÍCULOS AUTOMOTORES Y MOTOCICLETAS | N134: G | O134: Comercio al por menor en establecimientos no especializados | P134: Comercio al por menor en establecimientos no especializados | Q134: 1 | R134: 0 | S134: 0 | AE134: 0 | AF134: 0 | AG134: 11001 | AH134: BOGOTÁ, D.C. | AI134: 1 | AJ134: 0 | AK134: Natural | AL134: 11 | AM134: BOGOTÁ, D.C. | AN134: Aprobado con subsidio | AO134: MICRO | AP134: 1081 | AQ134: INDUSTRIAS MANUFACTURERAS | AR134: C | AS134: Elaboración de otros productos alimenticios | AT134: Elaboración de productos alimenticios | AU134: 0 | AV134: 1 | AW134: 0 | BI134: 15176 | BJ134: 0 | BK134: 41524 | BL134: 0
C135: 8001 | D135: BARRANQUILLA | E135: 0 | F135: 0 | G135: Natural | H135: 8 | I135: ATLÁNTICO | L135: 1081 | M135: INDUSTRIAS MANUFACTURERAS | N135: C | O135: Elaboración de otros productos alimenticios | P135: Elaboración de productos alimenticios | Q135: 0 | R135: 0 | S135: 0 | AE135: 0 | AF135: 0 | AG135: 11001 | AH135: BOGOTÁ, D.C. | AI135: 0 | AJ135: 0 | AK135: Natural | AL135: 11 | AM135: BOGOTÁ, D.C. | AO135: MICRO | AP135: 2511 | AQ135: INDUSTRIAS MANUFACTURERAS | AR135: C | AS135: Fabricación de productos metálicos para uso estructural, tanques, depósitos y generadores de vapor. | AT135: Fabricación de productos elaborados de metal, excepto maquinaria y equipo | AU135: 0 | AV135: 0 | AW135: 0 | BI135: 73449 | BJ135: 0 | BK135: 70001 | BL135: 0
C136: 5686 | D136: SANTA ROSA DE OSOS | E136: 0 | F136: 0 | G136: Natural | H136: 5 | I136: ANTIOQUIA | K136: MICRO | L136: 141 | M136: AGRICULTURA, GANADERÍA, CAZA, SILVICULTURA Y PESCA | N136: A | O136: Ganadería | P136: Ganadería | Q136: 0 | R136: 0 | S136: 0 | AE136: 0 | AF136: 0 | AG136: 25123 | AH136: CACHIPAY | AI136: 3 | AJ136: 0 | AK136: Natural | AL136: 25 | AM136: CUNDINAMARCA | AN136: Aprobado con subsidio | AO136: MICRO | AP136: 1081 | AQ136: INDUSTRIAS MANUFACTURERAS | AR136: C | AS136: Elaboración de otros productos alimenticios | AT136: Elaboración de productos alimenticios | AU136: 0 | AV136: 3 | AW136: 0 | BI136: 66400 | BJ136: 0 | BK136: 15755 | BL136: 0
C137: 5001 | D137: MEDELLÍN | E137: 0 | F137: 0 | G137: Natural | H137: 5 | I137: ANTIOQUIA | K137: MICRO | L137: 4631 | M137: COMERCIO AL POR MAYOR Y AL POR MENOR; REPARACIÓN DE VEHÍCULOS AUTOMOTORES Y MOTOCICLETAS | N137: G | O137: Comercio al por mayor de alimentos, bebidas y tabaco | P137: Comercio al por mayor de alimentos, bebidas y tabaco | Q137: 0 | R137: 0 | S137: 0 | AE137: 0 | AF137: 0 | AG137: 11001 | AH137: BOGOTÁ, D.C. | AI137: 0 | AJ137: 0 | AK137: Natural | AL137: 11 | AM137: BOGOTÁ, D.C. | AO137: 0 | AP137: 1081 | AQ137: INDUSTRIAS MANUFACTURERAS | AR137: C | AS137: Elaboración de otros productos alimenticios | AT137: Elaboración de productos alimenticios | AU137: 0 | AV137: 0 | AW137: 0 | BI137: 5670 | BJ137: 2 | BK137: 17873 | BL137: 0
C138: 23417 | D138: LORICA | E138: 2 | F138: 0 | G138: Natural | H138: 23 | I138: CÓRDOBA | J138: Aprobado con subsidio | K138: MICRO | L138: 4773 | M138: COMERCIO AL POR MAYOR Y AL POR MENOR; REPARACIÓN DE VEHÍCULOS AUTOMOTORES Y MOTOCICLETAS | N138: G | O138: Comercio al por menor de otros productos en establecimientos especializados | P138: Comercio al por menor de otros productos en establecimientos especializados | Q138: 1 | R138: 1 | S138: 0 | AE138: 0 | AF138: 0 | AG138: 15542 | AH138: PESCA | AI138: 3 | AJ138: 2 | AK138: Natural | AL138: 15 | AM138: BOYACÁ | AN138: Aprobado con subsidio | AO138: PEQUEÑA | AP138: 1040 | AQ138: INDUSTRIAS MANUFACTURERAS | AR138: C | AS138: Elaboración de productos lácteos | AT138: Elaboración de productos alimenticios | AU138: 2 | AV138: 1 | AW138: 0 | BI138: 81736 | BJ138: 0 | BK138: 95001 | BL138: 0
C139: 5697 | D139: EL SANTUARIO | E139: 1 | F139: 2 | G139: Natural | H139: 5 | I139: ANTIOQUIA | J139: Aprobado con subsidio | K139: PEQUEÑA | L139: 1410 | M139: INDUSTRIAS MANUFACTURERAS | N139: C | O139: Confección de prendas de vestir, excepto prendas de piel | P139: Confección de prendas de vestir | Q139: 1 | R139: 0 | S139: 0 | AE139: 0 | AF139: 0 | AG139: 11001 | AH139: BOGOTÁ, D.C. | AI139: 0 | AJ139: 0 | AK139: Natural | AL139: 11 | AM139: BOGOTÁ, D.C. | AO139: MICRO | AP139: 1063 | AQ139: INDUSTRIAS MANUFACTURERAS | AR139: C | AS139: Elaboración de productos de café | AT139: Elaboración de productos alimenticios | AU139: 0 | AV139: 0 | AW139: 0 | BI139: 54261 | BJ139: 1 | BK139: 5686 | BL139: 0
C140: 5045 | D140: APARTADÓ | E140: 0 | F140: 0 | G140: Natural | H140: 5 | I140: ANTIOQUIA | K140: MICRO | L140: 4774 | M140: COMERCIO AL POR MAYOR Y AL POR MENOR; REPARACIÓN DE VEHÍCULOS AUTOMOTORES Y MOTOCICLETAS | N140: G | O140: Comercio al por menor de otros productos en establecimientos especializados | P140: Comercio al por menor de otros productos en establecimientos especializados | Q140: 0 | R140: 0 | S140: 0 | AE140: 0 | AF140: 0 | AG140: 11001 | AH140: BOGOTÁ, D.C. | AI140: 0 | AJ140: 0 | AK140: Natural | AL140: 11 | AM140: BOGOTÁ, D.C. | AO140: PEQUEÑA | AP140: 1410 | AQ140: INDUSTRIAS MANUFACTURERAS | AR140: C | AS140: Confección de prendas de vestir, excepto prendas de piel | AT140: Confección de prendas de vestir | AU140: 0 | AV140: 0 | AW140: 0 | BI140: 25377 | BJ140: 0 | BK140: 52473 | BL140: 0
C141: 5266 | D141: ENVIGADO | E141: 0 | F141: 0 | G141: Natural | H141: 5 | I141: ANTIOQUIA | K141: MICRO | L141: 7020 | M141: ACTIVIDADES PROFESIONALES, CIENTÍFICAS Y TÉCNICAS | N141: M | O141: Actividades de consultoría de gestión | P141: Actividades de consultoría de gestión | Q141: 0 | R141: 0 | S141: 0 | AE141: 0 | AF141: 0 | AG141: 11001 | AH141: BOGOTÁ, D.C. | AI141: 1 | AJ141: 1 | AK141: Natural | AL141: 11 | AM141: BOGOTÁ, D.C. | AN141: Aprobado con subsidio | AO141: MICRO | AP141: 1089 | AQ141: INDUSTRIAS MANUFACTURERAS | AR141: C | AS141: Elaboración de otros productos alimenticios | AT141: Elaboración de productos alimenticios | AU141: 0 | AV141: 0 | AW141: 1 | BI141: 66687 | BJ141: 0 | BK141: 25099 | BL141: 0
C142: 8758 | D142: SOLEDAD | E142: 2 | F142: 0 | G142: Natural | H142: 8 | I142: ATLÁNTICO | J142: Aprobado con subsidio | K142: PEQUEÑA | L142: 4723 | M142: COMERCIO AL POR MAYOR Y AL POR MENOR; REPARACIÓN DE VEHÍCULOS AUTOMOTORES Y MOTOCICLETAS | N142: G | O142: Comercio al por menor de alimentos (víveres en general), bebidas y tabaco, en establecimientos especializados | P142: Comercio al por menor de alimentos (víveres en general), bebidas y tabaco, en establecimientos especializados | Q142: 0 | R142: 2 | S142: 0 | AE142: 0 | AF142: 0 | AG142: 54001 | AH142: CÚCUTA | AI142: 0 | AJ142: 0 | AK142: Natural | AL142: 54 | AM142: NORTE DE SANTANDER | AO142: MICRO | AP142: 1410 | AQ142: INDUSTRIAS MANUFACTURERAS | AR142: C | AS142: Confección de prendas de vestir, excepto prendas de piel | AT142: Confección de prendas de vestir | AU142: 0 | AV142: 0 | AW142: 0 | BI142: 44001 | BJ142: 0 | BK142: 76622 | BL142: 0
C143: 70001 | D143: SINCELEJO | E143: 1 | F143: 1 | G143: Natural | H143: 70 | I143: SUCRE | J143: Aprobado con subsidio | K143: MICRO | L143: 9602 | M143: OTRAS ACTIVIDADES DE SERVICIOS | N143: S | O143: Otras actividades de servicios personales | P143: Otras actividades de servicios personales | Q143: 1 | R143: 0 | S143: 0 | AE143: 0 | AF143: 0 | AG143: 76892 | AH143: YUMBO | AI143: 0 | AJ143: 0 | AK143: Natural | AL143: 76 | AM143: VALLE DEL CAUCA | AO143: MICRO | AP143: 1410 | AQ143: INDUSTRIAS MANUFACTURERAS | AR143: C | AS143: Confección de prendas de vestir, excepto prendas de piel | AT143: Confección de prendas de vestir | AU143: 0 | AV143: 0 | AW143: 0 | BI143: 76736 | BJ143: 0 | BK143: 5591 | BL143: 0
C144: 13001 | D144: CARTAGENA | E144: 0 | F144: 0 | G144: Natural | H144: 13 | I144: BOLÍVAR | K144: MICRO | L144: 4774 | M144: COMERCIO AL POR MAYOR Y AL POR MENOR; REPARACIÓN DE VEHÍCULOS AUTOMOTORES Y MOTOCICLETAS | N144: G | O144: Comercio al por menor de otros productos en establecimientos especializados | P144: Comercio al por menor de otros productos en establecimientos especializados | Q144: 0 | R144: 0 | S144: 0 | AE144: 0 | AF144: 0 | AG144: 68001 | AH144: BUCARAMANGA | AI144: 1 | AJ144: 1 | AK144: Natural | AL144: 68 | AM144: SANTANDER | AN144: Aprobado con subsidio | AO144: PEQUEÑA | AP144: 1410 | AQ144: INDUSTRIAS MANUFACTURERAS | AR144: C | AS144: Confección de prendas de vestir, excepto prendas de piel | AT144: Confección de prendas de vestir | AU144: 1 | AV144: 0 | AW144: 0 | BI144: 25736 | BJ144: 1 | BK144: 5541 | BL144: 0
C145: 13001 | D145: CARTAGENA | E145: 1 | F145: 1 | G145: Natural | H145: 13 | I145: BOLÍVAR | J145: Aprobado con subsidio | K145: MICRO | L145: 5613 | M145: ALOJAMIENTO Y SERVICIOS DE COMIDA | N145: I | O145: Actividades de restaurantes, cafeterías y servicio móvil de comidas | P145: Actividades de restaurantes, cafeterías y servicio móvil de comidas | Q145: 1 | R145: 0 | S145: 0 | AE145: 0 | AF145: 0 | AG145: 68001 | AH145: BUCARAMANGA | AI145: 1 | AJ145: 0 | AK145: Natural | AL145: 68 | AM145: SANTANDER | AN145: Aprobado con subsidio | AO145: MICRO | AP145: 3110 | AQ145: INDUSTRIAS MANUFACTURERAS | AR145: C | AS145: Fabricación de muebles | AT145: Fabricación de muebles, colchones y somieres | AU145: 1 | AV145: 0 | AW145: 0 | BI145: 86001 | BJ145: 0 | BK145: 23162 | BL145: 0
C146: 47001 | D146: SANTA MARTA | E146: 0 | F146: 0 | G146: Natural | H146: 47 | I146: MAGDALENA | K146: MICRO | L146: 4530 | M146: COMERCIO AL POR MAYOR Y AL POR MENOR; REPARACIÓN DE VEHÍCULOS AUTOMOTORES Y MOTOCICLETAS | N146: G | O146: Comercio de partes, piezas (autopartes) y accesorios (lujos) para vehículos automotores | P146: Comercio de partes, piezas (autopartes) y accesorios (lujos) para vehículos automotores | Q146: 0 | R146: 0 | S146: 0 | AE146: 0 | AF146: 0 | AG146: 68679 | AH146: SAN GIL | AI146: 1 | AJ146: 0 | AK146: Natural | AL146: 68 | AM146: SANTANDER | AN146: Aprobado con subsidio | AO146: MICRO | AP146: 1081 | AQ146: INDUSTRIAS MANUFACTURERAS | AR146: C | AS146: Elaboración de otros productos alimenticios | AT146: Elaboración de productos alimenticios | AU146: 0 | AV146: 0 | AW146: 1 | BI146: 5376 | BJ146: 0 | BK146: 41551 | BL146: 0
C147: 15001 | D147: TUNJA | E147: 0 | F147: 0 | G147: Natural | H147: 15 | I147: BOYACÁ | K147: MICRO | L147: 4771 | M147: COMERCIO AL POR MAYOR Y AL POR MENOR; REPARACIÓN DE VEHÍCULOS AUTOMOTORES Y MOTOCICLETAS | N147: G | O147: Comercio al por menor de otros productos en establecimientos especializados | P147: Comercio al por menor de otros productos en establecimientos especializados | Q147: 0 | R147: 0 | S147: 0 | AE147: 0 | AF147: 0 | AG147: 76001 | AH147: CALI | AI147: 0 | AJ147: 0 | AK147: Natural | AL147: 76 | AM147: VALLE DEL CAUCA | AO147: PEQUEÑA | AP147: 1410 | AQ147: INDUSTRIAS MANUFACTURERAS | AR147: C | AS147: Confección de prendas de vestir, excepto prendas de piel | AT147: Confección de prendas de vestir | AU147: 0 | AV147: 0 | AW147: 0 | BI147: 76036 | BJ147: 1 | BK147: 18753 | BL147: 0
C148: 15001 | D148: TUNJA | E148: 1 | F148: 1 | G148: Natural | H148: 15 | I148: BOYACÁ | J148: Aprobado con subsidio | K148: MICRO | L148: 5611 | M148: ALOJAMIENTO Y SERVICIOS DE COMIDA | N148: I | O148: Actividades de restaurantes, cafeterías y servicio móvil de comidas | P148: Actividades de restaurantes, cafeterías y servicio móvil de comidas | Q148: 0 | R148: 1 | S148: 0 | AE148: 0 | AF148: 0 | AG148: 76520 | AH148: PALMIRA | AI148: 0 | AJ148: 0 | AK148: Natural | AL148: 76 | AM148: VALLE DEL CAUCA | AO148: MICRO | AP148: 3110 | AQ148: INDUSTRIAS MANUFACTURERAS | AR148: C | AS148: Fabricación de muebles | AT148: Fabricación de muebles, colchones y somieres | AU148: 0 | AV148: 0 | AW148: 0 | BI148: 63130 | BJ148: 1 | BK148: 15176 | BL148: 0
C149: 15189 | D149: CIÉNEGA | E149: 1 | F149: 2 | G149: Natural | H149: 15 | I149: BOYACÁ | J149: Aprobado con subsidio | K149: PEQUEÑA | L149: 1040 | M149: INDUSTRIAS MANUFACTURERAS | N149: C | O149: Elaboración de productos lácteos | P149: Elaboración de productos alimenticios | Q149: 1 | R149: 0 | S149: 0 | AE149: 0 | AF149: 0 | AG149: 63001 | AH149: ARMENIA | AI149: 1 | AJ149: 0 | AK149: Natural | AL149: 63 | AM149: QUINDÍO | AN149: Aprobado con subsidio | AO149: MICRO | AP149: 1020 | AQ149: INDUSTRIAS MANUFACTURERAS | AR149: C | AS149: Procesamiento y conservación de frutas, legumbres, hortalizas y tubérculos | AT149: Elaboración de productos alimenticios | AU149: 1 | AV149: 0 | AW149: 0 | BI149: 5138 | BJ149: 0 | BK149: 73449 | BL149: 0
C150: 13001 | D150: CARTAGENA | E150: 0 | F150: 0 | G150: Natural | H150: 13 | I150: BOLÍVAR | K150: MICRO | L150: 4741 | M150: COMERCIO AL POR MAYOR Y AL POR MENOR; REPARACIÓN DE VEHÍCULOS AUTOMOTORES Y MOTOCICLETAS | N150: G | O150: Comercio al por menor de equipos de informática y de comunicaciones, en establecimientos especializados | P150: Comercio al por menor de equipos de informática y de comunicaciones, en establecimientos especializados | Q150: 0 | R150: 0 | S150: 0 | AE150: 0 | AF150: 0 | AG150: 5148 | AH150: EL CARMEN DE VIBORAL | AI150: 0 | AJ150: 0 | AK150: Natural | AL150: 5 | AM150: ANTIOQUIA | AO150: MICRO | AP150: 1020 | AQ150: INDUSTRIAS MANUFACTURERAS | AR150: C | AS150: Procesamiento y conservación de frutas, legumbres, hortalizas y tubérculos | AT150: Elaboración de productos alimenticios | AU150: 0 | AV150: 0 | AW150: 0 | BI150: 25843 | BJ150: 0 | BK150: 66400 | BL150: 0
C151: 15238 | D151: DUITAMA | E151: 2 | F151: 0 | G151: Natural | H151: 15 | I151: BOYACÁ | J151: Aprobado con subsidio | K151: MICRO | L151: 4111 | M151: CONSTRUCCIÓN | N151: F | O151: Construcción de edificios | P151: Construcción de edificios | Q151: 1 | R151: 1 | S151: 0 | AE151: 0 | AF151: 0 | AG151: 5664 | AH151: SAN PEDRO DE LOS MILAGROS | AI151: 7 | AJ151: 9 | AK151: Natural | AL151: 5 | AM151: ANTIOQUIA | AN151: Aprobado con subsidio | AO151: MEDIANA | AP151: 1610 | AQ151: INDUSTRIAS MANUFACTURERAS | AR151: C | AS151: Aserrado, acepillado e impregnación de la madera | AT151: Transformación de la madera y fabricación de productos de madera y de corcho, excepto muebles; fabricación de artículos de cestería y espartería | AU151: 6 | AV151: 1 | AW151: 0 | BI151: 23466 | BJ151: 0 | BK151: 81736 | BL151: 0
C152: 15238 | D152: DUITAMA | E152: 0 | F152: 0 | G152: Natural | H152: 15 | I152: BOYACÁ | K152: MICRO | L152: 4520 | M152: COMERCIO AL POR MAYOR Y AL POR MENOR; REPARACIÓN DE VEHÍCULOS AUTOMOTORES Y MOTOCICLETAS | N152: G | O152: Mantenimiento y reparación de vehículos automotores | P152: Mantenimiento y reparación de vehículos automotores | Q152: 0 | R152: 0 | S152: 0 | AE152: 0 | AF152: 0 | AG152: 5308 | AH152: GIRARDOTA | AI152: 0 | AJ152: 0 | AK152: Natural | AL152: 5 | AM152: ANTIOQUIA | AO152: MICRO | AP152: 3110 | AQ152: INDUSTRIAS MANUFACTURERAS | AR152: C | AS152: Fabricación de muebles | AT152: Fabricación de muebles, colchones y somieres | AU152: 0 | AV152: 0 | AW152: 0 | BI152: 44430 | BJ152: 0 | BK152: 25377 | BL152: 0
C153: 15001 | D153: TUNJA | E153: 1 | F153: 0 | G153: Natural | H153: 15 | I153: BOYACÁ | J153: Aprobado con subsidio | K153: MICRO | L153: 5611 | M153: ALOJAMIENTO Y SERVICIOS DE COMIDA | N153: I | O153: Actividades de restaurantes, cafeterías y servicio móvil de comidas | P153: Actividades de restaurantes, cafeterías y servicio móvil de comidas | Q153: 0 | R153: 1 | S153: 0 | AE153: 0 | AF153: 0 | AG153: 5001 | AH153: MEDELLÍN | AI153: 0 | AJ153: 0 | AK153: Natural | AL153: 5 | AM153: ANTIOQUIA | AO153: PEQUEÑA | AP153: 1081 | AQ153: INDUSTRIAS MANUFACTURERAS | AR153: C | AS153: Elaboración de otros productos alimenticios | AT153: Elaboración de productos alimenticios | AU153: 0 | AV153: 0 | AW153: 0 | BI153: 68655 | BJ153: 1 | BK153: 66687 | BL153: 0
C154: 8001 | D154: BARRANQUILLA | E154: 0 | F154: 0 | G154: Natural | H154: 8 | I154: ATLÁNTICO | K154: MICRO | L154: 4722 | M154: COMERCIO AL POR MAYOR Y AL POR MENOR; REPARACIÓN DE VEHÍCULOS AUTOMOTORES Y MOTOCICLETAS | N154: G | O154: Comercio al por menor de alimentos (víveres en general), bebidas y tabaco, en establecimientos especializados | P154: Comercio al por menor de alimentos (víveres en general), bebidas y tabaco, en establecimientos especializados | Q154: 0 | R154: 0 | S154: 0 | AE154: 0 | AF154: 0 | AG154: 5001 | AH154: MEDELLÍN | AI154: 0 | AJ154: 0 | AK154: Natural | AL154: 5 | AM154: ANTIOQUIA | AO154: PEQUEÑA | AP154: 1081 | AQ154: INDUSTRIAS MANUFACTURERAS | AR154: C | AS154: Elaboración de otros productos alimenticios | AT154: Elaboración de productos alimenticios | AU154: 0 | AV154: 0 | AW154: 0 | BI154: 76275 | BJ154: 0 | BK154: 44001 | BL154: 0
C155: 15001 | D155: TUNJA | E155: 1 | F155: 0 | G155: Natural | H155: 15 | I155: BOYACÁ | J155: Aprobado con subsidio | K155: MICRO | L155: 6810 | M155: ACTIVIDADES INMOBILIARIAS | N155: L | O155: Actividades inmobiliarias realizadas con bienes propios o arrendados | P155: Actividades inmobiliarias realizadas con bienes propios o arrendados | Q155: 0 | R155: 1 | S155: 0 | AE155: 0 | AF155: 0 | AG155: 5001 | AH155: MEDELLÍN | AI155: 3 | AJ155: 1 | AK155: Natural | AL155: 5 | AM155: ANTIOQUIA | AN155: Aprobado con subsidio | AO155: MICRO | AP155: 2011 | AQ155: INDUSTRIAS MANUFACTURERAS | AR155: C | AS155: Fabricación de sustancias químicas básicas, abonos y compuestos inorgánicos nitrogenados, plásticos y caucho sintético en formas primarias | AT155: Fabricación de sustancias y productos químicos | AU155: 2 | AV155: 0 | AW155: 1 | BI155: 54518 | BJ155: 0 | BK155: 76736 | BL155: 0
C156: 66001 | D156: PEREIRA | E156: 0 | F156: 0 | G156: Natural | H156: 66 | I156: RISARALDA | K156: PEQUEÑA | L156: 5611 | M156: ALOJAMIENTO Y SERVICIOS DE COMIDA | N156: I | O156: Actividades de restaurantes, cafeterías y servicio móvil de comidas | P156: Actividades de restaurantes, cafeterías y servicio móvil de comidas | Q156: 0 | R156: 0 | S156: 0 | AE156: 0 | AF156: 0 | AG156: 5001 | AH156: MEDELLÍN | AI156: 0 | AJ156: 0 | AK156: Natural | AL156: 5 | AM156: ANTIOQUIA | AO156: PEQUEÑA | AP156: 1522 | AQ156: INDUSTRIAS MANUFACTURERAS | AR156: C | AS156: Fabricación de calzado | AT156: Curtido y recurtido de cueros; fabricación de calzado; fabricación de artículos de viaje, maletas, bolsos de mano y artículos similares, y fabricación de artículos de talabartería y guarnicionería; adobo y teñido de pieles | AU156: 0 | AV156: 0 | AW156: 0 | BI156: 50318 | BJ156: 1 | BK156: 86001 | BL156: 0
C157: 15491 | D157: NOBSA | E157: 1 | F157: 0 | G157: Natural | H157: 15 | I157: BOYACÁ | J157: Aprobado con subsidio | K157: PEQUEÑA | L157: 8513 | M157: EDUCACIÓN | N157: P | O157: Educación de la primera infancia, preescolar y básica primaria | P157: Educación de la primera infancia, preescolar y básica primaria | Q157: 1 | R157: 0 | S157: 0 | AE157: 0 | AF157: 0 | AG157: 5001 | AH157: MEDELLÍN | AI157: 0 | AJ157: 0 | AK157: Natural | AL157: 5 | AM157: ANTIOQUIA | AO157: MICRO | AP157: 1081 | AQ157: INDUSTRIAS MANUFACTURERAS | AR157: C | AS157: Elaboración de otros productos alimenticios | AT157: Elaboración de productos alimenticios | AU157: 0 | AV157: 0 | AW157: 0 | BI157: 52356 | BJ157: 1 | BK157: 5376 | BL157: 0
C158: 66001 | D158: PEREIRA | E158: 0 | F158: 0 | G158: Natural | H158: 66 | I158: RISARALDA | K158: MICRO | L158: 9700 | M158: ACTIVIDADES DE LOS HOGARES INDIVIDUALES EN CALIDAD DE EMPLEADORES; ACTIVIDADES NO DIFERENCIADAS DE LOS HOGARES INDIVIDUALES COMO PRODUCTORES DE BIENES Y SERVICIOS PARA USO PROPIO | N158: T | O158: Actividades de los hogares individuales como empleadores de personal doméstico | P158: Actividades de los hogares individuales como empleadores de personal doméstico | Q158: 0 | R158: 0 | S158: 0 | AE158: 0 | AF158: 0 | AG158: 5001 | AH158: MEDELLÍN | AI158: 0 | AJ158: 0 | AK158: Natural | AL158: 5 | AM158: ANTIOQUIA | AO158: PEQUEÑA | AP158: 1040 | AQ158: INDUSTRIAS MANUFACTURERAS | AR158: C | AS158: Elaboración de productos lácteos | AT158: Elaboración de productos alimenticios | AU158: 0 | AV158: 0 | AW158: 0 | BI158: 15646 | BJ158: 0 | BK158: 5138 | BL158: 0
C159: 17001 | D159: MANIZALES | E159: 1 | F159: 1 | G159: Natural | H159: 17 | I159: CALDAS | J159: Aprobado con subsidio | K159: MICRO | L159: 5611 | M159: ALOJAMIENTO Y SERVICIOS DE COMIDA | N159: I | O159: Actividades de restaurantes, cafeterías y servicio móvil de comidas | P159: Actividades de restaurantes, cafeterías y servicio móvil de comidas | Q159: 1 | R159: 0 | S159: 0 | AE159: 0 | AF159: 0 | AG159: 68001 | AH159: BUCARAMANGA | AI159: 0 | AJ159: 0 | AK159: Natural | AL159: 68 | AM159: SANTANDER | AO159: MICRO | AP159: 1081 | AQ159: INDUSTRIAS MANUFACTURERAS | AR159: C | AS159: Elaboración de otros productos alimenticios | AT159: Elaboración de productos alimenticios | AU159: 0 | AV159: 0 | AW159: 0 | BI159: 50568 | BJ159: 1 | BK159: 25843 | BL159: 0
C160: 5001 | D160: MEDELLÍN | E160: 1 | F160: 0 | G160: Natural | H160: 5 | I160: ANTIOQUIA | J160: Aprobado con subsidio | K160: MICRO | L160: 1081 | M160: INDUSTRIAS MANUFACTURERAS | N160: C | O160: Elaboración de otros productos alimenticios | P160: Elaboración de productos alimenticios | Q160: 0 | R160: 1 | S160: 0 | AE160: 0 | AF160: 0 | AG160: 5440 | AH160: MARINILLA | AI160: 0 | AJ160: 0 | AK160: Natural | AL160: 5 | AM160: ANTIOQUIA | AO160: MICRO | AP160: 3290 | AQ160: INDUSTRIAS MANUFACTURERAS | AR160: C | AS160: Otras industrias manufactureras n.c.p. | AT160: Otras industrias manufactureras | AU160: 0 | AV160: 0 | AW160: 0 | BI160: 68406 | BJ160: 0 | BK160: 23466 | BL160: 0
C161: 17001 | D161: MANIZALES | E161: 0 | F161: 0 | G161: Natural | H161: 17 | I161: CALDAS | K161: PEQUEÑA | L161: 7490 | M161: ACTIVIDADES PROFESIONALES, CIENTÍFICAS Y TÉCNICAS | N161: M | O161: Otras actividades profesionales, científicas y técnicas n.c.p. | P161: Otras actividades profesionales, científicas y técnicas n.c.p. | Q161: 0 | R161: 0 | S161: 0 | AE161: 0 | AF161: 0 | AG161: 5001 | AH161: MEDELLÍN | AI161: 0 | AJ161: 0 | AK161: Natural | AL161: 5 | AM161: ANTIOQUIA | AO161: MICRO | AP161: 1081 | AQ161: INDUSTRIAS MANUFACTURERAS | AR161: C | AS161: Elaboración de otros productos alimenticios | AT161: Elaboración de productos alimenticios | AU161: 0 | AV161: 0 | AW161: 0 | BI161: 25307 | BJ161: 0 | BK161: 44430 | BL161: 0
C162: 17001 | D162: MANIZALES | E162: 0 | F162: 0 | G162: Natural | H162: 17 | I162: CALDAS | K162: MICRO | L162: 2511 | M162: INDUSTRIAS MANUFACTURERAS | N162: C | O162: Fabricación de productos metálicos para uso estructural, tanques, depósitos y generadores de vapor. | P162: Fabricación de productos elaborados de metal, excepto maquinaria y equipo | Q162: 0 | R162: 0 | S162: 0 | AE162: 0 | AF162: 0 | AG162: 76520 | AH162: PALMIRA | AI162: 1 | AJ162: 0 | AK162: Natural | AL162: 76 | AM162: VALLE DEL CAUCA | AN162: Aprobado con subsidio | AO162: MICRO | AP162: 1081 | AQ162: INDUSTRIAS MANUFACTURERAS | AR162: C | AS162: Elaboración de otros productos alimenticios | AT162: Elaboración de productos alimenticios | AU162: 0 | AV162: 1 | AW162: 0 | BI162: 15638 | BJ162: 0 | BK162: 76275 | BL162: 0
C163: 17001 | D163: MANIZALES | E163: 0 | F163: 0 | G163: Natural | H163: 17 | I163: CALDAS | K163: MICRO | L163: 5611 | M163: ALOJAMIENTO Y SERVICIOS DE COMIDA | N163: I | O163: Actividades de restaurantes, cafeterías y servicio móvil de comidas | P163: Actividades de restaurantes, cafeterías y servicio móvil de comidas | Q163: 0 | R163: 0 | S163: 0 | AE163: 0 | AF163: 0 | AG163: 5001 | AH163: MEDELLÍN | AI163: 0 | AJ163: 0 | AK163: Natural | AL163: 5 | AM163: ANTIOQUIA | AO163: MICRO | AP163: 1081 | AQ163: INDUSTRIAS MANUFACTURERAS | AR163: C | AS163: Elaboración de otros productos alimenticios | AT163: Elaboración de productos alimenticios | AU163: 0 | AV163: 0 | AW163: 0 | BI163: 81300 | BJ163: 1 | BK163: 54518 | BL163: 0
C164: 63690 | D164: SALENTO | E164: 0 | F164: 0 | G164: Natural | H164: 63 | I164: QUINDÍO | K164: MICRO | L164: 5514 | M164: ALOJAMIENTO Y SERVICIOS DE COMIDA | N164: I | O164: Actividades de alojamiento de estancias cortas | P164: Actividades de alojamiento de estancias cortas | Q164: 0 | R164: 0 | S164: 0 | AE164: 0 | AF164: 0 | AG164: 5001 | AH164: MEDELLÍN | AI164: 0 | AJ164: 0 | AK164: Natural | AL164: 5 | AM164: ANTIOQUIA | AO164: PEQUEÑA | AP164: 1410 | AQ164: INDUSTRIAS MANUFACTURERAS | AR164: C | AS164: Confección de prendas de vestir, excepto prendas de piel | AT164: Confección de prendas de vestir | AU164: 0 | AV164: 0 | AW164: 0 | BI164: 50287 | BJ164: 1 | BK164: 15646 | BL164: 0
C165: 17001 | D165: MANIZALES | E165: 0 | F165: 0 | G165: Natural | H165: 17 | I165: CALDAS | K165: MICRO | L165: 5619 | M165: ALOJAMIENTO Y SERVICIOS DE COMIDA | N165: I | O165: Actividades de restaurantes, cafeterías y servicio móvil de comidas | P165: Actividades de restaurantes, cafeterías y servicio móvil de comidas | Q165: 0 | R165: 0 | S165: 0 | AE165: 0 | AF165: 0 | AG165: 11001 | AH165: BOGOTÁ, D.C. | AI165: 0 | AJ165: 0 | AK165: Natural | AL165: 11 | AM165: BOGOTÁ, D.C. | AO165: MICRO | AP165: 1410 | AQ165: INDUSTRIAS MANUFACTURERAS | AR165: C | AS165: Confección de prendas de vestir, excepto prendas de piel | AT165: Confección de prendas de vestir | AU165: 0 | AV165: 0 | AW165: 0 | BI165: 50226 | BJ165: 1 | BK165: 68406 | BL165: 0
C166: 5001 | D166: MEDELLÍN | E166: 0 | F166: 0 | G166: Natural | H166: 5 | I166: ANTIOQUIA | K166: MICRO | L166: 1410 | M166: INDUSTRIAS MANUFACTURERAS | N166: C | O166: Confección de prendas de vestir, excepto prendas de piel | P166: Confección de prendas de vestir | Q166: 0 | R166: 0 | S166: 0 | AE166: 0 | AF166: 0 | AG166: 5001 | AH166: MEDELLÍN | AI166: 0 | AJ166: 0 | AK166: Natural | AL166: 5 | AM166: ANTIOQUIA | AO166: PEQUEÑA | AP166: 1410 | AQ166: INDUSTRIAS MANUFACTURERAS | AR166: C | AS166: Confección de prendas de vestir, excepto prendas de piel | AT166: Confección de prendas de vestir | AU166: 0 | AV166: 0 | AW166: 0 | BI166: 73275 | BJ166: 0 | BK166: 25307 | BL166: 0
C167: 17001 | D167: MANIZALES | E167: 0 | F167: 0 | G167: Natural | H167: 17 | I167: CALDAS | L167: 5619 | M167: ALOJAMIENTO Y SERVICIOS DE COMIDA | N167: I | O167: Actividades de restaurantes, cafeterías y servicio móvil de comidas | P167: Actividades de restaurantes, cafeterías y servicio móvil de comidas | Q167: 0 | R167: 0 | S167: 0 | AE167: 0 | AF167: 0 | AG167: 5001 | AH167: MEDELLÍN | AI167: 0 | AJ167: 0 | AK167: Natural | AL167: 5 | AM167: ANTIOQUIA | AO167: MICRO | AP167: 1313 | AQ167: INDUSTRIAS MANUFACTURERAS | AR167: C | AS167: Preparación, hilatura, tejeduría y acabado de productos textiles | AT167: Fabricación de productos textiles | AU167: 0 | AV167: 0 | AW167: 0 | BI167: 5400 | BJ167: 0 | BK167: 15638 | BL167: 0
C168: 19001 | D168: POPAYÁN | E168: 1 | F168: 1 | G168: Natural | H168: 19 | I168: CAUCA | J168: Aprobado con subsidio | K168: MICRO | L168: 4773 | M168: COMERCIO AL POR MAYOR Y AL POR MENOR; REPARACIÓN DE VEHÍCULOS AUTOMOTORES Y MOTOCICLETAS | N168: G | O168: Comercio al por menor de otros productos en establecimientos especializados | P168: Comercio al por menor de otros productos en establecimientos especializados | Q168: 0 | R168: 1 | S168: 0 | AE168: 0 | AF168: 0 | AG168: 5129 | AH168: CALDAS | AI168: 0 | AJ168: 0 | AK168: Natural | AL168: 5 | AM168: ANTIOQUIA | AO168: MICRO | AP168: 2393 | AQ168: INDUSTRIAS MANUFACTURERAS | AR168: C | AS168: Fabricación de productos minerales no metálicos n.c.p. | AT168: Fabricación de otros productos minerales no metálicos | AU168: 0 | AV168: 0 | AW168: 0 | BI168: 5364 | BJ168: 0 | BK168: 73275 | BL168: 0
C169: 19698 | D169: SANTANDER DE QUILICHAO | E169: 0 | F169: 0 | G169: Natural | H169: 19 | I169: CAUCA | K169: MICRO | L169: 4752 | M169: COMERCIO AL POR MAYOR Y AL POR MENOR; REPARACIÓN DE VEHÍCULOS AUTOMOTORES Y MOTOCICLETAS | N169: G | O169: Comercio al por menor de otros enseres domésticos en establecimientos especializados | P169: Comercio al por menor de otros enseres domésticos en establecimientos especializados | Q169: 0 | R169: 0 | S169: 0 | AE169: 0 | AF169: 0 | AG169: 5001 | AH169: MEDELLÍN | AI169: 0 | AJ169: 0 | AK169: Natural | AL169: 5 | AM169: ANTIOQUIA | AO169: MICRO | AP169: 1089 | AQ169: INDUSTRIAS MANUFACTURERAS | AR169: C | AS169: Elaboración de otros productos alimenticios | AT169: Elaboración de productos alimenticios | AU169: 0 | AV169: 0 | AW169: 0 | BI169: 63272 | BJ169: 1 | BK169: 5400 | BL169: 0
C170: 17001 | D170: MANIZALES | E170: 0 | F170: 0 | G170: Natural | H170: 17 | I170: CALDAS | K170: MICRO | L170: 8512 | M170: EDUCACIÓN | N170: P | O170: Educación de la primera infancia, preescolar y básica primaria | P170: Educación de la primera infancia, preescolar y básica primaria | Q170: 0 | R170: 0 | S170: 0 | AE170: 0 | AF170: 0 | AG170: 5001 | AH170: MEDELLÍN | AI170: 2 | AJ170: 0 | AK170: Natural | AL170: 5 | AM170: ANTIOQUIA | AN170: Aprobado con subsidio | AO170: PEQUEÑA | AP170: 1081 | AQ170: INDUSTRIAS MANUFACTURERAS | AR170: C | AS170: Elaboración de otros productos alimenticios | AT170: Elaboración de productos alimenticios | AU170: 0 | AV170: 1 | AW170: 1 | BI170: 5656 | BJ170: 1 | BK170: 5364 | BL170: 0
C171: 76001 | D171: CALI | E171: 2 | F171: 2 | G171: Natural | H171: 76 | I171: VALLE DEL CAUCA | J171: Aprobado con subsidio | K171: MICRO | L171: 1089 | M171: INDUSTRIAS MANUFACTURERAS | N171: C | O171: Elaboración de otros productos alimenticios | P171: Elaboración de productos alimenticios | Q171: 1 | R171: 1 | S171: 0 | AE171: 0 | AF171: 0 | AG171: 5001 | AH171: MEDELLÍN | AI171: 5 | AJ171: 14 | AK171: Natural | AL171: 5 | AM171: ANTIOQUIA | AN171: Aprobado con subsidio | AO171: PEQUEÑA | AP171: 2930 | AQ171: INDUSTRIAS MANUFACTURERAS | AR171: C | AS171: Fabricación de partes, piezas (autopartes) y accesorios (lujos) para vehículos automotores | AT171: Fabricación de vehículos automotores, remolques y semirremolques | AU171: 1 | AV171: 4 | AW171: 0 | BI171: 19533 | BJ171: 0 | BK171: 19533 | BL171: 0
C172: 76001 | D172: CALI | E172: 0 | F172: 0 | G172: Natural | H172: 76 | I172: VALLE DEL CAUCA | K172: MICRO | L172: 6910 | M172: ACTIVIDADES PROFESIONALES, CIENTÍFICAS Y TÉCNICAS | N172: M | O172: Actividades jurídicas | P172: Actividades jurídicas | Q172: 0 | R172: 0 | S172: 0 | AE172: 0 | AF172: 0 | AG172: 5001 | AH172: MEDELLÍN | AI172: 0 | AJ172: 0 | AK172: Natural | AL172: 5 | AM172: ANTIOQUIA | AO172: PEQUEÑA | AP172: 1410 | AQ172: INDUSTRIAS MANUFACTURERAS | AR172: C | AS172: Confección de prendas de vestir, excepto prendas de piel | AT172: Confección de prendas de vestir | AU172: 0 | AV172: 0 | AW172: 0 | BI172: 15087 | BJ172: 0 | BK172: 15087 | BL172: 0
C173: 76001 | D173: CALI | E173: 0 | F173: 0 | G173: Natural | H173: 76 | I173: VALLE DEL CAUCA | L173: 5612 | M173: ALOJAMIENTO Y SERVICIOS DE COMIDA | N173: I | O173: Actividades de restaurantes, cafeterías y servicio móvil de comidas | P173: Actividades de restaurantes, cafeterías y servicio móvil de comidas | Q173: 0 | R173: 0 | S173: 0 | AE173: 0 | AF173: 0 | AG173: 5001 | AH173: MEDELLÍN | AI173: 3 | AJ173: 3 | AK173: Natural | AL173: 5 | AM173: ANTIOQUIA | AN173: Aprobado con subsidio | AO173: MICRO | AP173: 1410 | AQ173: INDUSTRIAS MANUFACTURERAS | AR173: C | AS173: Confección de prendas de vestir, excepto prendas de piel | AT173: Confección de prendas de vestir | AU173: 1 | AV173: 2 | AW173: 0 | BI173: 0 | BJ173: 0 | BK173: 0 | BL173: 0
C174: 19001 | D174: POPAYÁN | E174: 1 | F174: 0 | G174: Natural | H174: 19 | I174: CAUCA | J174: Aprobado con subsidio | K174: MICRO | L174: 90 | M174: OTRAS | N174: Otras | O174: Otras | P174: Otras | Q174: 1 | R174: 0 | S174: 0 | AE174: 0 | AF174: 0 | AG174: 76834 | AH174: TULUÁ | AI174: 0 | AJ174: 0 | AK174: Natural | AL174: 76 | AM174: VALLE DEL CAUCA | AO174: MICRO | AP174: 3110 | AQ174: INDUSTRIAS MANUFACTURERAS | AR174: C | AS174: Fabricación de muebles | AT174: Fabricación de muebles, colchones y somieres | AU174: 0 | AV174: 0 | AW174: 0 | BJ174: 0 | BK174: 0 | BL174: 0
C175: 19698 | D175: SANTANDER DE QUILICHAO | E175: 4 | F175: 1 | G175: Natural | H175: 19 | I175: CAUCA | J175: Aprobado con subsidio | K175: MICRO | L175: 4772 | M175: COMERCIO AL POR MAYOR Y AL POR MENOR; REPARACIÓN DE VEHÍCULOS AUTOMOTORES Y MOTOCICLETAS | N175: G | O175: Comercio al por menor de otros productos en establecimientos especializados | P175: Comercio al por menor de otros productos en establecimientos especializados | Q175: 3 | R175: 1 | S175: 0 | AE175: 0 | AF175: 0 | AG175: 85010 | AH175: AGUAZUL | AI175: 0 | AJ175: 0 | AK175: Natural | AL175: 85 | AM175: CASANARE | AO175: PEQUEÑA | AP175: 3311 | AQ175: INDUSTRIAS MANUFACTURERAS | AR175: C | AS175: Mantenimiento y reparación especializado de productos elaborados en metal y de maquinaria y equipo | AT175: Instalación, mantenimiento y reparación especializado de maquinaria y equipo | AU175: 0 | AV175: 0 | AW175: 0 | BJ175: 0 | BK175: 0 | BL175: 0
C176: 19698 | D176: SANTANDER DE QUILICHAO | E176: 1 | F176: 0 | G176: Natural | H176: 19 | I176: CAUCA | J176: Aprobado con subsidio | K176: MICRO | L176: 4773 | M176: COMERCIO AL POR MAYOR Y AL POR MENOR; REPARACIÓN DE VEHÍCULOS AUTOMOTORES Y MOTOCICLETAS | N176: G | O176: Comercio al por menor de otros productos en establecimientos especializados | P176: Comercio al por menor de otros productos en establecimientos especializados | Q176: 0 | R176: 1 | S176: 0 | AE176: 0 | AF176: 0 | AG176: 20001 | AH176: VALLEDUPAR | AI176: 0 | AJ176: 0 | AK176: Natural | AL176: 20 | AM176: CESAR | AO176: PEQUEÑA | AP176: 1081 | AQ176: INDUSTRIAS MANUFACTURERAS | AR176: C | AS176: Elaboración de otros productos alimenticios | AT176: Elaboración de productos alimenticios | AU176: 0 | AV176: 0 | AW176: 0 | BJ176: 0 | BK176: 0 | BL176: 0
C177: 5631 | D177: SABANETA | E177: 0 | F177: 0 | G177: Natural | H177: 5 | I177: ANTIOQUIA | K177: MICRO | L177: 1089 | M177: INDUSTRIAS MANUFACTURERAS | N177: C | O177: Elaboración de otros productos alimenticios | P177: Elaboración de productos alimenticios | Q177: 0 | R177: 0 | S177: 0 | AE177: 0 | AF177: 0 | AG177: 63001 | AH177: ARMENIA | AI177: 0 | AJ177: 0 | AK177: Natural | AL177: 63 | AM177: QUINDÍO | AO177: MICRO | AP177: 2511 | AQ177: INDUSTRIAS MANUFACTURERAS | AR177: C | AS177: Fabricación de productos metálicos para uso estructural, tanques, depósitos y generadores de vapor. | AT177: Fabricación de productos elaborados de metal, excepto maquinaria y equipo | AU177: 0 | AV177: 0 | AW177: 0 | BJ177: 0 | BK177: 0 | BL177: 0
C178: 20250 | D178: EL PASO | E178: 2 | F178: 0 | G178: Natural | H178: 20 | I178: CESAR | J178: Aprobado con subsidio | K178: MICRO | L178: 4723 | M178: COMERCIO AL POR MAYOR Y AL POR MENOR; REPARACIÓN DE VEHÍCULOS AUTOMOTORES Y MOTOCICLETAS | N178: G | O178: Comercio al por menor de alimentos (víveres en general), bebidas y tabaco, en establecimientos especializados | P178: Comercio al por menor de alimentos (víveres en general), bebidas y tabaco, en establecimientos especializados | Q178: 1 | R178: 1 | S178: 0 | AE178: 0 | AF178: 0 | AG178: 5318 | AH178: GUARNE | AI178: 0 | AJ178: 0 | AK178: Natural | AL178: 5 | AM178: ANTIOQUIA | AO178: PEQUEÑA | AP178: 2221 | AQ178: INDUSTRIAS MANUFACTURERAS | AR178: C | AS178: Fabricación de productos de plástico | AT178: Fabricación de productos de caucho y de plástico | AU178: 0 | AV178: 0 | AW178: 0 | BJ178: 0 | BK178: 0 | BL178: 0
C179: 23001 | D179: MONTERÍA | E179: 2 | F179: 2 | G179: Natural | H179: 23 | I179: CÓRDOBA | J179: Aprobado con subsidio | K179: MICRO | L179: 5619 | M179: ALOJAMIENTO Y SERVICIOS DE COMIDA | N179: I | O179: Actividades de restaurantes, cafeterías y servicio móvil de comidas | P179: Actividades de restaurantes, cafeterías y servicio móvil de comidas | Q179: 2 | R179: 0 | S179: 0 | AE179: 0 | AF179: 0 | AG179: 41001 | AH179: NEIVA | AI179: 0 | AJ179: 0 | AK179: Natural | AL179: 41 | AM179: HUILA | AO179: MICRO | AP179: 3110 | AQ179: INDUSTRIAS MANUFACTURERAS | AR179: C | AS179: Fabricación de muebles | AT179: Fabricación de muebles, colchones y somieres | AU179: 0 | AV179: 0 | AW179: 0 | BJ179: 0 | BK179: 0 | BL179: 0
C180: 68001 | D180: BUCARAMANGA | E180: 0 | F180: 0 | G180: Natural | H180: 68 | I180: SANTANDER | K180: PEQUEÑA | L180: 5611 | M180: ALOJAMIENTO Y SERVICIOS DE COMIDA | N180: I | O180: Actividades de restaurantes, cafeterías y servicio móvil de comidas | P180: Actividades de restaurantes, cafeterías y servicio móvil de comidas | Q180: 0 | R180: 0 | S180: 0 | AE180: 0 | AF180: 0 | AG180: 11001 | AH180: BOGOTÁ, D.C. | AI180: 0 | AJ180: 0 | AK180: Natural | AL180: 11 | AM180: BOGOTÁ, D.C. | AO180: MICRO | AP180: 2511 | AQ180: INDUSTRIAS MANUFACTURERAS | AR180: C | AS180: Fabricación de productos metálicos para uso estructural, tanques, depósitos y generadores de vapor. | AT180: Fabricación de productos elaborados de metal, excepto maquinaria y equipo | AU180: 0 | AV180: 0 | AW180: 0 | BJ180: 0 | BK180: 0 | BL180: 0
C181: 20011 | D181: AGUACHICA | E181: 1 | F181: 1 | G181: Natural | H181: 20 | I181: CESAR | J181: Aprobado con subsidio | K181: MICRO | L181: 4754 | M181: COMERCIO AL POR MAYOR Y AL POR MENOR; REPARACIÓN DE VEHÍCULOS AUTOMOTORES Y MOTOCICLETAS | N181: G | O181: Comercio al por menor de otros enseres domésticos en establecimientos especializados | P181: Comercio al por menor de otros enseres domésticos en establecimientos especializados | Q181: 0 | R181: 1 | S181: 0 | AE181: 0 | AF181: 0 | AG181: 11001 | AH181: BOGOTÁ, D.C. | AI181: 0 | AJ181: 0 | AK181: Natural | AL181: 11 | AM181: BOGOTÁ, D.C. | AO181: MICRO | AP181: 2930 | AQ181: INDUSTRIAS MANUFACTURERAS | AR181: C | AS181: Fabricación de partes, piezas (autopartes) y accesorios (lujos) para vehículos automotores | AT181: Fabricación de vehículos automotores, remolques y semirremolques | AU181: 0 | AV181: 0 | AW181: 0 | BJ181: 0 | BK181: 0 | BL181: 0
C182: 5631 | D182: SABANETA | E182: 7 | F182: 4 | G182: Natural | H182: 5 | I182: ANTIOQUIA | J182: Aprobado con subsidio | K182: PEQUEÑA | L182: 2511 | M182: INDUSTRIAS MANUFACTURERAS | N182: C | O182: Fabricación de productos metálicos para uso estructural, tanques, depósitos y generadores de vapor. | P182: Fabricación de productos elaborados de metal, excepto maquinaria y equipo | Q182: 7 | R182: 0 | S182: 0 | AE182: 0 | AF182: 0 | AG182: 11001 | AH182: BOGOTÁ, D.C. | AI182: 2 | AJ182: 7 | AK182: Natural | AL182: 11 | AM182: BOGOTÁ, D.C. | AN182: Aprobado con subsidio | AO182: PEQUEÑA | AP182: 1081 | AQ182: INDUSTRIAS MANUFACTURERAS | AR182: C | AS182: Elaboración de otros productos alimenticios | AT182: Elaboración de productos alimenticios | AU182: 2 | AV182: 0 | AW182: 0 | BJ182: 0 | BK182: 0 | BL182: 0
C183: 54001 | D183: CÚCUTA | E183: 0 | F183: 0 | G183: Natural | H183: 54 | I183: NORTE DE SANTANDER | L183: 9491 | M183: OTRAS ACTIVIDADES DE SERVICIOS | N183: S | O183: Actividades de otras asociaciones | P183: Actividades de otras asociaciones | Q183: 0 | R183: 0 | S183: 0 | AE183: 0 | AF183: 0 | AG183: 11001 | AH183: BOGOTÁ, D.C. | AI183: 1 | AJ183: 2 | AK183: Natural | AL183: 11 | AM183: BOGOTÁ, D.C. | AN183: Aprobado con subsidio | AO183: PEQUEÑA | AP183: 1410 | AQ183: INDUSTRIAS MANUFACTURERAS | AR183: C | AS183: Confección de prendas de vestir, excepto prendas de piel | AT183: Confección de prendas de vestir | AU183: 1 | AV183: 0 | AW183: 0 | BJ183: 0 | BK183: 0 | BL183: 0
C184: 23001 | D184: MONTERÍA | E184: 0 | F184: 0 | G184: Natural | H184: 23 | I184: CÓRDOBA | K184: MICRO | L184: 7112 | M184: ACTIVIDADES PROFESIONALES, CIENTÍFICAS Y TÉCNICAS | N184: M | O184: Actividades de arquitectura e ingeniería y otras actividades conexas de consultoría técnica | P184: Actividades de arquitectura e ingeniería y otras actividades conexas de consultoría técnica | Q184: 0 | R184: 0 | S184: 0 | AE184: 0 | AF184: 0 | AG184: 11001 | AH184: BOGOTÁ, D.C. | AI184: 0 | AJ184: 0 | AK184: Natural | AL184: 11 | AM184: BOGOTÁ, D.C. | AO184: 0 | AP184: 1410 | AQ184: INDUSTRIAS MANUFACTURERAS | AR184: C | AS184: Confección de prendas de vestir, excepto prendas de piel | AT184: Confección de prendas de vestir | AU184: 0 | AV184: 0 | AW184: 0 | BJ184: 0 | BK184: 0 | BL184: 0
C185: 52356 | D185: IPIALES | E185: 0 | F185: 0 | G185: Natural | H185: 52 | I185: NARIÑO | K185: MICRO | L185: 4530 | M185: COMERCIO AL POR MAYOR Y AL POR MENOR; REPARACIÓN DE VEHÍCULOS AUTOMOTORES Y MOTOCICLETAS | N185: G | O185: Comercio de partes, piezas (autopartes) y accesorios (lujos) para vehículos automotores | P185: Comercio de partes, piezas (autopartes) y accesorios (lujos) para vehículos automotores | Q185: 0 | R185: 0 | S185: 0 | AE185: 0 | AF185: 0 | AG185: 11001 | AH185: BOGOTÁ, D.C. | AI185: 0 | AJ185: 0 | AK185: Natural | AL185: 11 | AM185: BOGOTÁ, D.C. | AO185: MICRO | AP185: 2229 | AQ185: INDUSTRIAS MANUFACTURERAS | AR185: C | AS185: Fabricación de productos de plástico | AT185: Fabricación de productos de caucho y de plástico | AU185: 0 | AV185: 0 | AW185: 0 | BJ185: 0 | BK185: 0 | BL185: 0
C186: 25269 | D186: FACATATIVÁ | E186: 0 | F186: 0 | G186: Natural | H186: 25 | I186: CUNDINAMARCA | K186: MICRO | L186: 5611 | M186: ALOJAMIENTO Y SERVICIOS DE COMIDA | N186: I | O186: Actividades de restaurantes, cafeterías y servicio móvil de comidas | P186: Actividades de restaurantes, cafeterías y servicio móvil de comidas | Q186: 0 | R186: 0 | S186: 0 | AE186: 0 | AF186: 0 | AG186: 11001 | AH186: BOGOTÁ, D.C. | AI186: 0 | AJ186: 0 | AK186: Natural | AL186: 11 | AM186: BOGOTÁ, D.C. | AO186: MICRO | AP186: 3110 | AQ186: INDUSTRIAS MANUFACTURERAS | AR186: C | AS186: Fabricación de muebles | AT186: Fabricación de muebles, colchones y somieres | AU186: 0 | AV186: 0 | AW186: 0 | BJ186: 0 | BK186: 0 | BL186: 0
C187: 41551 | D187: PITALITO | E187: 1 | F187: 2 | G187: Natural | H187: 41 | I187: HUILA | J187: Aprobado con subsidio | K187: MICRO | L187: 4755 | M187: COMERCIO AL POR MAYOR Y AL POR MENOR; REPARACIÓN DE VEHÍCULOS AUTOMOTORES Y MOTOCICLETAS | N187: G | O187: Comercio al por menor de otros enseres domésticos en establecimientos especializados | P187: Comercio al por menor de otros enseres domésticos en establecimientos especializados | Q187: 1 | R187: 0 | S187: 0 | AE187: 0 | AF187: 0 | AG187: 11001 | AH187: BOGOTÁ, D.C. | AI187: 0 | AJ187: 0 | AK187: Natural | AL187: 11 | AM187: BOGOTÁ, D.C. | AO187: MICRO | AP187: 1081 | AQ187: INDUSTRIAS MANUFACTURERAS | AR187: C | AS187: Elaboración de otros productos alimenticios | AT187: Elaboración de productos alimenticios | AU187: 0 | AV187: 0 | AW187: 0 | BJ187: 0 | BK187: 0 | BL187: 0
C188: 41001 | D188: NEIVA | E188: 0 | F188: 0 | G188: Natural | H188: 41 | I188: HUILA | K188: PEQUEÑA | L188: 4732 | M188: COMERCIO AL POR MAYOR Y AL POR MENOR; REPARACIÓN DE VEHÍCULOS AUTOMOTORES Y MOTOCICLETAS | N188: G | O188: Comercio al por menor de combustible, lubricantes, aditivos y productos de limpieza para automotores, en establecimientos especializados | P188: Comercio al por menor de combustible, lubricantes, aditivos y productos de limpieza para automotores, en establecimientos especializados | Q188: 0 | R188: 0 | S188: 0 | AE188: 0 | AF188: 0 | AG188: 11001 | AH188: BOGOTÁ, D.C. | AI188: 0 | AJ188: 0 | AK188: Natural | AL188: 11 | AM188: BOGOTÁ, D.C. | AO188: MICRO | AP188: 1811 | AQ188: INDUSTRIAS MANUFACTURERAS | AR188: C | AS188: Actividades de impresión y actividades de servicios relacionados con la impresión | AT188: Actividades de impresión y de producción de copias a partir de grabaciones originales | AU188: 0 | AV188: 0 | AW188: 0 | BJ188: 0 | BK188: 0 | BL188: 0
C189: 41001 | D189: NEIVA | E189: 0 | F189: 0 | G189: Natural | H189: 41 | I189: HUILA | K189: MICRO | L189: 4620 | M189: COMERCIO AL POR MAYOR Y AL POR MENOR; REPARACIÓN DE VEHÍCULOS AUTOMOTORES Y MOTOCICLETAS | N189: G | O189: Comercio al por mayor de materias primas agropecuarias; animales vivos | P189: Comercio al por mayor de materias primas agropecuarias; animales vivos | Q189: 0 | R189: 0 | S189: 0 | AE189: 0 | AF189: 0 | AG189: 25286 | AH189: FUNZA | AI189: 1 | AJ189: 0 | AK189: Natural | AL189: 25 | AM189: CUNDINAMARCA | AN189: Aprobado con subsidio | AO189: PEQUEÑA | AP189: 1394 | AQ189: INDUSTRIAS MANUFACTURERAS | AR189: C | AS189: Fabricación de otros productos textiles | AT189: Fabricación de productos textiles | AU189: 0 | AV189: 1 | AW189: 0 | BJ189: 0 | BK189: 0 | BL189: 0
C190: 41615 | D190: RIVERA | E190: 0 | F190: 0 | G190: Natural | H190: 41 | I190: HUILA | L190: 4719 | M190: COMERCIO AL POR MAYOR Y AL POR MENOR; REPARACIÓN DE VEHÍCULOS AUTOMOTORES Y MOTOCICLETAS | N190: G | O190: Comercio al por menor en establecimientos no especializados | P190: Comercio al por menor en establecimientos no especializados | Q190: 0 | R190: 0 | S190: 0 | AE190: 0 | AF190: 0 | AG190: 5001 | AH190: MEDELLÍN | AI190: 0 | AJ190: 0 | AK190: Jurídica | AL190: 5 | AM190: ANTIOQUIA | AO190: PEQUEÑA | AP190: 2599 | AQ190: INDUSTRIAS MANUFACTURERAS | AR190: C | AS190: Fabricación de otros productos elaborados de metal y actividades de servicios relacionadas con el trabajo de metales | AT190: Fabricación de productos elaborados de metal, excepto maquinaria y equipo | AU190: 0 | AV190: 0 | AW190: 0 | BJ190: 0 | BK190: 0 | BL190: 0
C191: 41001 | D191: NEIVA | E191: 0 | F191: 0 | G191: Natural | H191: 41 | I191: HUILA | K191: MICRO | L191: 6920 | M191: ACTIVIDADES PROFESIONALES, CIENTÍFICAS Y TÉCNICAS | N191: M | O191: Actividades de contabilidad, teneduría de libros, auditoria financiera y asesoría tributaria | P191: Actividades de contabilidad, teneduría de libros, auditoria financiera y asesoría tributaria | Q191: 0 | R191: 0 | S191: 0 | AE191: 0 | AF191: 0 | AG191: 11001 | AH191: BOGOTÁ, D.C. | AI191: 1 | AJ191: 1 | AK191: Jurídica | AL191: 11 | AM191: BOGOTÁ, D.C. | AN191: Aprobado con subsidio | AO191: MICRO | AP191: 1410 | AQ191: INDUSTRIAS MANUFACTURERAS | AR191: C | AS191: Confección de prendas de vestir, excepto prendas de piel | AT191: Confección de prendas de vestir | AU191: 1 | AV191: 0 | AW191: 0 | BJ191: 0 | BK191: 0 | BL191: 0
C192: 25817 | D192: TOCANCIPÁ | E192: 0 | F192: 0 | G192: Natural | H192: 25 | I192: CUNDINAMARCA | L192: 9529 | M192: OTRAS ACTIVIDADES DE SERVICIOS | N192: S | O192: Mantenimiento y reparación de efectos personales y enseres domésticos | P192: Mantenimiento y reparación de efectos personales y enseres domésticos | Q192: 0 | R192: 0 | S192: 0 | AE192: 0 | AF192: 0 | AG192: 11001 | AH192: BOGOTÁ, D.C. | AI192: 0 | AJ192: 0 | AK192: Jurídica | AL192: 11 | AM192: BOGOTÁ, D.C. | AO192: MICRO | AP192: 2029 | AQ192: INDUSTRIAS MANUFACTURERAS | AR192: C | AS192: Fabricación de otros productos químicos | AT192: Fabricación de sustancias y productos químicos | AU192: 0 | AV192: 0 | AW192: 0 | BJ192: 0 | BK192: 0 | BL192: 0
C193: 23001 | D193: MONTERÍA | E193: 0 | F193: 0 | G193: Natural | H193: 23 | I193: CÓRDOBA | K193: PEQUEÑA | L193: 4530 | M193: COMERCIO AL POR MAYOR Y AL POR MENOR; REPARACIÓN DE VEHÍCULOS AUTOMOTORES Y MOTOCICLETAS | N193: G | O193: Comercio de partes, piezas (autopartes) y accesorios (lujos) para vehículos automotores | P193: Comercio de partes, piezas (autopartes) y accesorios (lujos) para vehículos automotores | Q193: 0 | R193: 0 | S193: 0 | AE193: 0 | AF193: 0 | AG193: 11001 | AH193: BOGOTÁ, D.C. | AI193: 18 | AJ193: 10 | AK193: Jurídica | AL193: 11 | AM193: BOGOTÁ, D.C. | AN193: Aprobado con subsidio | AO193: GRANDE | AP193: 2513 | AQ193: INDUSTRIAS MANUFACTURERAS | AR193: C | AS193: Fabricación de productos metálicos para uso estructural, tanques, depósitos y generadores de vapor. | AT193: Fabricación de productos elaborados de metal, excepto maquinaria y equipo | AU193: 18 | AV193: 0 | AW193: 0 | BJ193: 0 | BK193: 0 | BL193: 0
C194: 41396 | D194: LA PLATA | E194: 2 | F194: 2 | G194: Natural | H194: 41 | I194: HUILA | J194: Aprobado con subsidio | K194: PEQUEÑA | L194: 4663 | M194: COMERCIO AL POR MAYOR Y AL POR MENOR; REPARACIÓN DE VEHÍCULOS AUTOMOTORES Y MOTOCICLETAS | N194: G | O194: Comercio al por mayor especializado de otros productos | P194: Comercio al por mayor especializado de otros productos | Q194: 1 | R194: 1 | S194: 0 | AE194: 0 | AF194: 0 | AG194: 11001 | AH194: BOGOTÁ, D.C. | AI194: 0 | AJ194: 0 | AK194: Jurídica | AL194: 11 | AM194: BOGOTÁ, D.C. | AO194: MICRO | AP194: 3290 | AQ194: INDUSTRIAS MANUFACTURERAS | AR194: C | AS194: Otras industrias manufactureras n.c.p. | AT194: Otras industrias manufactureras | AU194: 0 | AV194: 0 | AW194: 0 | BJ194: =COUNTIFS($AN$2:$AN$399999,"Aprobado con subsidio",$AG$2:$AG$399999,BI194) -> 0 | BK194: 0 | BL194: 0
C195: 85001 | D195: YOPAL | E195: 0 | F195: 0 | G195: Natural | H195: 85 | I195: CASANARE | L195: 8621 | M195: ACTIVIDADES DE ATENCIÓN DE LA SALUD HUMANA Y DE ASISTENCIA SOCIAL | N195: Q | O195: Actividades de práctica médica y odontológica, sin internación | P195: Actividades de práctica médica y odontológica, sin internación | Q195: 0 | R195: 0 | S195: 0 | AE195: 0 | AF195: 0 | AG195: 11001 | AH195: BOGOTÁ, D.C. | AI195: 8 | AJ195: 31 | AK195: Jurídica | AL195: 11 | AM195: BOGOTÁ, D.C. | AN195: Aprobado con subsidio | AO195: MEDIANA | AP195: 2819 | AQ195: INDUSTRIAS MANUFACTURERAS | AR195: C | AS195: Fabricación de maquinaria y equipo de uso general | AT195: Fabricación de maquinaria y equipo n.c.p. | AU195: 5 | AV195: 3 | AW195: 0 | BJ195: 0 | BK195: 0 | BL195: 0
C196: 8001 | D196: BARRANQUILLA | E196: 0 | F196: 0 | G196: Natural | H196: 8 | I196: ATLÁNTICO | L196: 9499 | M196: OTRAS ACTIVIDADES DE SERVICIOS | N196: S | O196: Actividades de otras asociaciones | P196: Actividades de otras asociaciones | Q196: 0 | R196: 0 | S196: 0 | AE196: 0 | AF196: 0 | AG196: 11001 | AH196: BOGOTÁ, D.C. | AI196: 0 | AJ196: 0 | AK196: Jurídica | AL196: 11 | AM196: BOGOTÁ, D.C. | AO196: PEQUEÑA | AP196: 1089 | AQ196: INDUSTRIAS MANUFACTURERAS | AR196: C | AS196: Elaboración de otros productos alimenticios | AT196: Elaboración de productos alimenticios | AU196: 0 | AV196: 0 | AW196: 0 | BJ196: 0 | BK196: 0 | BL196: 0
C197: 47001 | D197: SANTA MARTA | E197: 0 | F197: 0 | G197: Natural | H197: 47 | I197: MAGDALENA | K197: MICRO | L197: 4641 | M197: COMERCIO AL POR MAYOR Y AL POR MENOR; REPARACIÓN DE VEHÍCULOS AUTOMOTORES Y MOTOCICLETAS | N197: G | O197: Comercio al por mayor de artículos y enseres domésticos (incluidas prendas de vestir) | P197: Comercio al por mayor de artículos y enseres domésticos (incluidas prendas de vestir) | Q197: 0 | R197: 0 | S197: 0 | AE197: 0 | AF197: 0 | AG197: 5001 | AH197: MEDELLÍN | AI197: 2 | AJ197: 0 | AK197: Jurídica | AL197: 5 | AM197: ANTIOQUIA | AN197: Aprobado con subsidio | AO197: PEQUEÑA | AP197: 3290 | AQ197: INDUSTRIAS MANUFACTURERAS | AR197: C | AS197: Otras industrias manufactureras n.c.p. | AT197: Otras industrias manufactureras | AU197: 0 | AV197: 1 | AW197: 1 | BJ197: 0 | BK197: 0 | BL197: 0
C198: 47001 | D198: SANTA MARTA | E198: 0 | F198: 0 | G198: Natural | H198: 47 | I198: MAGDALENA | K198: MICRO | L198: 4773 | M198: COMERCIO AL POR MAYOR Y AL POR MENOR; REPARACIÓN DE VEHÍCULOS AUTOMOTORES Y MOTOCICLETAS | N198: G | O198: Comercio al por menor de otros productos en establecimientos especializados | P198: Comercio al por menor de otros productos en establecimientos especializados | Q198: 0 | R198: 0 | S198: 0 | AE198: 0 | AF198: 0 | AG198: 5001 | AH198: MEDELLÍN | AI198: 6 | AJ198: 15 | AK198: Jurídica | AL198: 5 | AM198: ANTIOQUIA | AN198: Aprobado con subsidio | AO198: MEDIANA | AP198: 1811 | AQ198: INDUSTRIAS MANUFACTURERAS | AR198: C | AS198: Actividades de impresión y actividades de servicios relacionados con la impresión | AT198: Actividades de impresión y de producción de copias a partir de grabaciones originales | AU198: 3 | AV198: 3 | AW198: 0 | BJ198: 0 | BK198: 0 | BL198: 0
C199: 20001 | D199: VALLEDUPAR | E199: 1 | F199: 1 | G199: Natural | H199: 20 | I199: CESAR | J199: Aprobado con subsidio | K199: MICRO | L199: 4719 | M199: COMERCIO AL POR MAYOR Y AL POR MENOR; REPARACIÓN DE VEHÍCULOS AUTOMOTORES Y MOTOCICLETAS | N199: G | O199: Comercio al por menor en establecimientos no especializados | P199: Comercio al por menor en establecimientos no especializados | Q199: 0 | R199: 1 | S199: 0 | AE199: 0 | AF199: 0 | AG199: 11001 | AH199: BOGOTÁ, D.C. | AI199: 5 | AJ199: 5 | AK199: Jurídica | AL199: 11 | AM199: BOGOTÁ, D.C. | AN199: Aprobado con subsidio | AO199: MEDIANA | AP199: 2229 | AQ199: INDUSTRIAS MANUFACTURERAS | AR199: C | AS199: Fabricación de productos de plástico | AT199: Fabricación de productos de caucho y de plástico | AU199: 4 | AV199: 1 | AW199: 0 | BJ199: 0 | BK199: 0 | BL199: 0
C200: 52001 | D200: PASTO | E200: 0 | F200: 0 | G200: Natural | H200: 52 | I200: NARIÑO | K200: MICRO | L200: 4752 | M200: COMERCIO AL POR MAYOR Y AL POR MENOR; REPARACIÓN DE VEHÍCULOS AUTOMOTORES Y MOTOCICLETAS | N200: G | O200: Comercio al por menor de otros enseres domésticos en establecimientos especializados | P200: Comercio al por menor de otros enseres domésticos en establecimientos especializados | Q200: 0 | R200: 0 | S200: 0 | AE200: 0 | AF200: 0 | AG200: 11001 | AH200: BOGOTÁ, D.C. | AI200: 6 | AJ200: 0 | AK200: Jurídica | AL200: 11 | AM200: BOGOTÁ, D.C. | AN200: Aprobado con subsidio | AO200: PEQUEÑA | AP200: 1312 | AQ200: INDUSTRIAS MANUFACTURERAS | AR200: C | AS200: Preparación, hilatura, tejeduría y acabado de productos textiles | AT200: Fabricación de productos textiles | AU200: 2 | AV200: 4 | AW200: 0 | BJ200: 0 | BK200: 0 | BL200: 0
... 2050 more rows

Sheet Hoja4 (hidden)
A1: Descripción Sección Rev. 4 | B1: Sección Rev. 4 | C1: Nombre | D1: Seccion | E1: Total | G1: Nombre | H1: Seccion | I1: Total empleadores | J1: Empleadores % | K1: Total empleados | L1: Empleados % | M1: Monto | N1: Hombres | O1: Mujeres | P1: no disponible | Q1: Actividad | R1: Indice | T1: cod_dpto | U1: Departamento | V1: % empleadores general | W1: ="% empleadores sección "&Visor!$N$4 -> % empleadores sección C
A2: AGRICULTURA, GANADERÍA, CAZA, SILVICULTURA Y PESCA | B2: A | C2: Agricultura, ganadería, caza, silvicultura y pesca | D2: =B2 -> A | E2: =COUNTIFS(insumos2!$N$2:$N$399999,Hoja4!D2,insumos2!$J$2:$J$399999,"Aprobado con subsidio") -> 191 | G2: =MID(VLOOKUP(H2,$B$2:$C$23,2,FALSE),1,36) -> Comercio al por mayor y al por menor | H2: =_xlfn._xlws.SORT($D$2:$E$23,2,-1) -> G | I2: 1468 | J2: =I2/$I$24 -> 0.2140877935 | K2: =SUMIFS(insumos2!$E$2:$E$399999,insumos2!$J$2:$J$399999,"Aprobado con subsidio",insumos2!$N$2:$N$399999,Hoja4!H2) -> 6482 | L2: =K2/$K$24 -> 0.08355892438 | M2: =SUMIFS(insumos1!$K$2:$K$372158,insumos1!$H$2:$H$372158,Hoja4!H2) -> 1837262659 | N2: =SUMIFS(insumos2!$R$2:$R$399999,insumos2!$J$2:$J$399999,"Aprobado con subsidio",insumos2!$N$2:$N$399999,Hoja4!H2) -> 3141 | O2: =SUMIFS(insumos2!$Q$2:$Q$399999,insumos2!$J$2:$J$399999,"Aprobado con subsidio",insumos2!$N$2:$N$399999,Hoja4!H2) -> 3237 | P2: =SUMIFS(insumos2!$S$2:$S$399999,insumos2!$J$2:$J$399999,"Aprobado con subsidio",insumos2!$N$2:$N$399999,Hoja4!H2) -> 104 | Q2: =G2 -> Comercio al por mayor y al por menor | R2: =O2/N2*100 -> 103.0563515 | T2: 11 | U2: BOGOTÁ, D.C. | V2: =(VLOOKUP(T2,_xlfn.ANCHORARRAY(insumos2!$W$2),2,0)/SUM(insumos2!$X$2:$X$34)) -> 0.3586116377 | W2: =VLOOKUP(T2,insumos2!$AY$2:$AZ$34,2,FALSE)/insumos2!$BF$30 -> 0.311276794
A3: EXPLOTACIÓN DE MINAS Y CANTERAS | B3: B | C3: Explotación de minas y canteras | D3: =B3 -> B | E3: =COUNTIFS(insumos2!$N$2:$N$399999,Hoja4!D3,insumos2!$J$2:$J$399999,"Aprobado con subsidio") -> 36 | G3: =MID(VLOOKUP(H3,$B$2:$C$23,2,FALSE),1,30) -> Industrias manufactureras | H3: C | I3: 1073 | J3: 0.1564824267 | K3: =SUMIFS(insumos2!$E$2:$E$399999,insumos2!$J$2:$J$399999,"Aprobado con subsidio",insumos2!$N$2:$N$399999,Hoja4!H3) -> 6565 | L3: =K3/$K$24 -> 0.0846288705 | M3: =SUMIFS(insumos1!$K$2:$K$372158,insumos1!$H$2:$H$372158,Hoja4!H3) -> 1896543850 | N3: =SUMIFS(insumos2!$R$2:$R$399999,insumos2!$J$2:$J$399999,"Aprobado con subsidio",insumos2!$N$2:$N$399999,Hoja4!H3) -> 2488 | O3: =SUMIFS(insumos2!$Q$2:$Q$399999,insumos2!$J$2:$J$399999,"Aprobado con subsidio",insumos2!$N$2:$N$399999,Hoja4!H3) -> 3914 | P3: =SUMIFS(insumos2!$S$2:$S$399999,insumos2!$J$2:$J$399999,"Aprobado con subsidio",insumos2!$N$2:$N$399999,Hoja4!H3) -> 163 | Q3: =G3 -> Industrias manufactureras | R3: 157.3151125 | T3: 5 | U3: ANTIOQUIA | V3: =(VLOOKUP(T3,_xlfn.ANCHORARRAY(insumos2!$W$2),2,0)/SUM(insumos2!$X$2:$X$34)) -> 0.2257547032 | W3: =VLOOKUP(T3,insumos2!$AY$2:$AZ$34,2,FALSE)/insumos2!$BF$30 -> 0.3000931966
A4: INDUSTRIAS MANUFACTURERAS | B4: C | C4: Industrias manufactureras | D4: C | E4: =COUNTIFS(insumos2!$N$2:$N$399999,Hoja4!D4,insumos2!$J$2:$J$399999,"Aprobado con subsidio") -> 1073 | G4: =MID(VLOOKUP(H4,$B$2:$C$23,2,FALSE),1,85) -> Actividades profesionales, científicas y técnicas | H4: M | I4: 778 | J4: 0.1134606971 | K4: =SUMIFS(insumos2!$E$2:$E$399999,insumos2!$J$2:$J$399999,"Aprobado con subsidio",insumos2!$N$2:$N$399999,Hoja4!H4) -> 3028 | L4: 0.03903369686 | M4: =SUMIFS(insumos1!$K$2:$K$372158,insumos1!$H$2:$H$372158,Hoja4!H4) -> 859009442 | N4: =SUMIFS(insumos2!$R$2:$R$399999,insumos2!$J$2:$J$399999,"Aprobado con subsidio",insumos2!$N$2:$N$399999,Hoja4!H4) -> 1442 | O4: =SUMIFS(insumos2!$Q$2:$Q$399999,insumos2!$J$2:$J$399999,"Aprobado con subsidio",insumos2!$N$2:$N$399999,Hoja4!H4) -> 1558 | P4: =SUMIFS(insumos2!$S$2:$S$399999,insumos2!$J$2:$J$399999,"Aprobado con subsidio",insumos2!$N$2:$N$399999,Hoja4!H4) -> 28 | Q4: Actividades profesionales, científicas y técnicas | R4: 108.0443828 | T4: 76 | U4: VALLE DEL CAUCA | V4: =(VLOOKUP(T4,_xlfn.ANCHORARRAY(insumos2!$W$2),2,0)/SUM(insumos2!$X$2:$X$34)) -> 0.07889747703 | W4: =VLOOKUP(T4,insumos2!$AY$2:$AZ$34,2,FALSE)/insumos2!$BF$30 -> 0.1034482759
A5: SUMINISTRO DE ELECTRICIDAD, GAS, VAPOR Y AIRE ACONDICIONADO | B5: D | C5: Suministro de electricidad, gas, vapor y aire acondicionado | D5: D | E5: =COUNTIFS(insumos2!$N$2:$N$399999,Hoja4!D5,insumos2!$J$2:$J$399999,"Aprobado con subsidio") -> 9 | G5: =MID(VLOOKUP(H5,$B$2:$C$23,2,FALSE),1,30) -> Actividades de servicios admin | H5: N | I5: 675 | J5: 0.09843955082 | K5: =SUMIFS(insumos2!$E$2:$E$399999,insumos2!$J$2:$J$399999,"Aprobado con subsidio",insumos2!$N$2:$N$399999,Hoja4!H5) -> 36911 | L5: 0.4758166396 | M5: =SUMIFS(insumos1!$K$2:$K$372158,insumos1!$H$2:$H$372158,Hoja4!H5) -> 11329067149 | N5: =SUMIFS(insumos2!$R$2:$R$399999,insumos2!$J$2:$J$399999,"Aprobado con subsidio",insumos2!$N$2:$N$399999,Hoja4!H5) -> 16662 | O5: =SUMIFS(insumos2!$Q$2:$Q$399999,insumos2!$J$2:$J$399999,"Aprobado con subsidio",insumos2!$N$2:$N$399999,Hoja4!H5) -> 19880 | P5: =SUMIFS(insumos2!$S$2:$S$399999,insumos2!$J$2:$J$399999,"Aprobado con subsidio",insumos2!$N$2:$N$399999,Hoja4!H5) -> 369 | Q5: Actividades de servicios admin | R5: 119.3134078 | T5: 8 | U5: ATLÁNTICO | V5: =(VLOOKUP(T5,_xlfn.ANCHORARRAY(insumos2!$W$2),2,0)/SUM(insumos2!$X$2:$X$34)) -> 0.03485489281 | W5: =VLOOKUP(T5,insumos2!$AY$2:$AZ$34,2,FALSE)/insumos2!$BF$30 -> 0.02982292637
A6: DISTRIBUCIÓN DE AGUA; EVACUACIÓN Y TRATAMIENTO DE AGUAS RESIDUALES, GESTIÓN DE DESECHOS Y ACTIVIDADES DE SANEAMIENTO AMBIENTAL | B6: E | C6: Distribución de agua; evacuación y tratamiento de aguas residuales, gestión de desechos y actividades de saneamiento ambiental | D6: E | E6: =COUNTIFS(insumos2!$N$2:$N$399999,Hoja4!D6,insumos2!$J$2:$J$399999,"Aprobado con subsidio") -> 35 | G6: =MID(VLOOKUP(H6,$B$2:$C$23,2,FALSE),1,35) -> Construcción | H6: F | I6: 641 | J6: 0.09348111419 | K6: =SUMIFS(insumos2!$E$2:$E$399999,insumos2!$J$2:$J$399999,"Aprobado con subsidio",insumos2!$N$2:$N$399999,Hoja4!H6) -> 4735 | L6: 0.06103849228 | M6: =SUMIFS(insumos1!$K$2:$K$372158,insumos1!$H$2:$H$372158,Hoja4!H6) -> 1364375917 | N6: =SUMIFS(insumos2!$R$2:$R$399999,insumos2!$J$2:$J$399999,"Aprobado con subsidio",insumos2!$N$2:$N$399999,Hoja4!H6) -> 776 | O6: =SUMIFS(insumos2!$Q$2:$Q$399999,insumos2!$J$2:$J$399999,"Aprobado con subsidio",insumos2!$N$2:$N$399999,Hoja4!H6) -> 3901 | P6: =SUMIFS(insumos2!$S$2:$S$399999,insumos2!$J$2:$J$399999,"Aprobado con subsidio",insumos2!$N$2:$N$399999,Hoja4!H6) -> 58 | Q6: Construcción | R6: 502.7061856 | T6: 25 | U6: CUNDINAMARCA | V6: =(VLOOKUP(T6,_xlfn.ANCHORARRAY(insumos2!$W$2),2,0)/SUM(insumos2!$X$2:$X$34)) -> 0.04404258422 | W6: =VLOOKUP(T6,insumos2!$AY$2:$AZ$34,2,FALSE)/insumos2!$BF$30 -> 0.064305685
A7: CONSTRUCCIÓN | B7: F | C7: Construcción | D7: F | E7: =COUNTIFS(insumos2!$N$2:$N$399999,Hoja4!D7,insumos2!$J$2:$J$399999,"Aprobado con subsidio") -> 641 | G7: =MID(VLOOKUP(H7,$B$2:$C$23,2,FALSE),1,30) -> información y comunicaciones | H7: J | I7: 417 | J7: 0.06081376695 | K7: =SUMIFS(insumos2!$E$2:$E$399999,insumos2!$J$2:$J$399999,"Aprobado con subsidio",insumos2!$N$2:$N$399999,Hoja4!H7) -> 3518 | L7: 0.04535024622 | M7: =SUMIFS(insumos1!$K$2:$K$372158,insumos1!$H$2:$H$372158,Hoja4!H7) -> 986202802 | N7: =SUMIFS(insumos2!$R$2:$R$399999,insumos2!$J$2:$J$399999,"Aprobado con subsidio",insumos2!$N$2:$N$399999,Hoja4!H7) -> 1391 | O7: =SUMIFS(insumos2!$Q$2:$Q$399999,insumos2!$J$2:$J$399999,"Aprobado con subsidio",insumos2!$N$2:$N$399999,Hoja4!H7) -> 2097 | P7: =SUMIFS(insumos2!$S$2:$S$399999,insumos2!$J$2:$J$399999,"Aprobado con subsidio",insumos2!$N$2:$N$399999,Hoja4!H7) -> 30 | Q7: información y comunicaciones | R7: 150.7548526 | T7: 68 | U7: SANTANDER | V7: =(VLOOKUP(T7,_xlfn.ANCHORARRAY(insumos2!$W$2),2,0)/SUM(insumos2!$X$2:$X$34)) -> 0.05016771183 | W7: =VLOOKUP(T7,insumos2!$AY$2:$AZ$34,2,FALSE)/insumos2!$BF$30 -> 0.05125815471
A8: COMERCIO AL POR MAYOR Y AL POR MENOR; REPARACIÓN DE VEHÍCULOS AUTOMOTORES Y MOTOCICLETAS | B8: G | C8: Comercio al por mayor y al por menor; reparación de vehículos automotores y motocicletas | D8: G | E8: =COUNTIFS(insumos2!$N$2:$N$399999,Hoja4!D8,insumos2!$J$2:$J$399999,"Aprobado con subsidio") -> 1468 | G8: =MID(VLOOKUP(H8,$B$2:$C$23,2,FALSE),1,40) -> Alojamiento y servicios de comida | H8: I | I8: 346 | J8: 0.05045938457 | K8: =SUMIFS(insumos2!$E$2:$E$399999,insumos2!$J$2:$J$399999,"Aprobado con subsidio",insumos2!$N$2:$N$399999,Hoja4!H8) -> 2898 | L8: 0.03735787764 | M8: =SUMIFS(insumos1!$K$2:$K$372158,insumos1!$H$2:$H$372158,Hoja4!H8) -> 835614949 | N8: =SUMIFS(insumos2!$R$2:$R$399999,insumos2!$J$2:$J$399999,"Aprobado con subsidio",insumos2!$N$2:$N$399999,Hoja4!H8) -> 1374 | O8: =SUMIFS(insumos2!$Q$2:$Q$399999,insumos2!$J$2:$J$399999,"Aprobado con subsidio",insumos2!$N$2:$N$399999,Hoja4!H8) -> 1409 | P8: =SUMIFS(insumos2!$S$2:$S$399999,insumos2!$J$2:$J$399999,"Aprobado con subsidio",insumos2!$N$2:$N$399999,Hoja4!H8) -> 115 | Q8: Alojamiento y servicios de comida | R8: 102.5473071 | T8: 13 | U8: BOLÍVAR | V8: =(VLOOKUP(T8,_xlfn.ANCHORARRAY(insumos2!$W$2),2,0)/SUM(insumos2!$X$2:$X$34)) -> 0.01575032813 | W8: =VLOOKUP(T8,insumos2!$AY$2:$AZ$34,2,FALSE)/insumos2!$BF$30 -> 0.006523765144
A9: TRANSPORTE Y ALMACENAMIENTO | B9: H | C9: Transporte y almacenamiento | D9: H | E9: =COUNTIFS(insumos2!$N$2:$N$399999,Hoja4!D9,insumos2!$J$2:$J$399999,"Aprobado con subsidio") -> 274 | G9: =MID(VLOOKUP(H9,$B$2:$C$23,2,FALSE),1,42) -> Actividades de atención de la salud humana | H9: Q | I9: 324 | J9: 0.0472509844 | K9: =SUMIFS(insumos2!$E$2:$E$399999,insumos2!$J$2:$J$399999,"Aprobado con subsidio",insumos2!$N$2:$N$399999,Hoja4!H9) -> 4835 | L9: 0.06232758398 | M9: =SUMIFS(insumos1!$K$2:$K$372158,insumos1!$H$2:$H$372158,Hoja4!H9) -> 1566976769 | N9: =SUMIFS(insumos2!$R$2:$R$399999,insumos2!$J$2:$J$399999,"Aprobado con subsidio",insumos2!$N$2:$N$399999,Hoja4!H9) -> 3615 | O9: =SUMIFS(insumos2!$Q$2:$Q$399999,insumos2!$J$2:$J$399999,"Aprobado con subsidio",insumos2!$N$2:$N$399999,Hoja4!H9) -> 1209 | P9: =SUMIFS(insumos2!$S$2:$S$399999,insumos2!$J$2:$J$399999,"Aprobado con subsidio",insumos2!$N$2:$N$399999,Hoja4!H9) -> 11 | Q9: Actividades de atención de la salud humana | R9: 33.4439834 | T9: 66 | U9: RISARALDA | V9: =(VLOOKUP(T9,_xlfn.ANCHORARRAY(insumos2!$W$2),2,0)/SUM(insumos2!$X$2:$X$34)) -> 0.02333381945 | W9: =VLOOKUP(T9,insumos2!$AY$2:$AZ$34,2,FALSE)/insumos2!$BF$30 -> 0.02795899348
A10: ALOJAMIENTO Y SERVICIOS DE COMIDA | B10: I | C10: Alojamiento y servicios de comida | D10: I | E10: =COUNTIFS(insumos2!$N$2:$N$399999,Hoja4!D10,insumos2!$J$2:$J$399999,"Aprobado con subsidio") -> 346 | G10: =MID(VLOOKUP(H10,$B$2:$C$23,2,FALSE),1,30) -> Transporte y almacenamiento | H10: H | I10: 274 | J10: 0.03995916582 | K10: =SUMIFS(insumos2!$E$2:$E$399999,insumos2!$J$2:$J$399999,"Aprobado con subsidio",insumos2!$N$2:$N$399999,Hoja4!H10) -> 2273 | L10: 0.02930105448 | M10: =SUMIFS(insumos1!$K$2:$K$372158,insumos1!$H$2:$H$372158,Hoja4!H10) -> 620521892 | N10: =SUMIFS(insumos2!$R$2:$R$399999,insumos2!$J$2:$J$399999,"Aprobado con subsidio",insumos2!$N$2:$N$399999,Hoja4!H10) -> 703 | O10: =SUMIFS(insumos2!$Q$2:$Q$399999,insumos2!$J$2:$J$399999,"Aprobado con subsidio",insumos2!$N$2:$N$399999,Hoja4!H10) -> 1547 | P10: =SUMIFS(insumos2!$S$2:$S$399999,insumos2!$J$2:$J$399999,"Aprobado con subsidio",insumos2!$N$2:$N$399999,Hoja4!H10) -> 23 | Q10: Transporte y almacenamiento | R10: 220.056899 | T10: 54 | U10: NORTE DE SANTANDER | V10: =(VLOOKUP(T10,_xlfn.ANCHORARRAY(insumos2!$W$2),2,0)/SUM(insumos2!$X$2:$X$34)) -> 0.02143794662 | W10: =VLOOKUP(T10,insumos2!$AY$2:$AZ$34,2,FALSE)/insumos2!$BF$30 -> 0.02143522833
A11: INFORMACIÓN Y COMUNICACIONES | B11: J | C11: información y comunicaciones | D11: J | E11: =COUNTIFS(insumos2!$N$2:$N$399999,Hoja4!D11,insumos2!$J$2:$J$399999,"Aprobado con subsidio") -> 417 | G11: =MID(VLOOKUP(H11,$B$2:$C$23,2,FALSE),1,30) -> Educación | H11: P | I11: 198 | J11: 0.02887560158 | K11: =SUMIFS(insumos2!$E$2:$E$399999,insumos2!$J$2:$J$399999,"Aprobado con subsidio",insumos2!$N$2:$N$399999,Hoja4!H11) -> 1441 | L11: 0.01857581148 | M11: =SUMIFS(insumos1!$K$2:$K$372158,insumos1!$H$2:$H$372158,Hoja4!H11) -> 487650257 | N11: =SUMIFS(insumos2!$R$2:$R$399999,insumos2!$J$2:$J$399999,"Aprobado con subsidio",insumos2!$N$2:$N$399999,Hoja4!H11) -> 1137 | O11: =SUMIFS(insumos2!$Q$2:$Q$399999,insumos2!$J$2:$J$399999,"Aprobado con subsidio",insumos2!$N$2:$N$399999,Hoja4!H11) -> 301 | P11: =SUMIFS(insumos2!$S$2:$S$399999,insumos2!$J$2:$J$399999,"Aprobado con subsidio",insumos2!$N$2:$N$399999,Hoja4!H11) -> 3 | Q11: Educación | R11: 26.47317502 | T11: 15 | U11: BOYACÁ | V11: =(VLOOKUP(T11,_xlfn.ANCHORARRAY(insumos2!$W$2),2,0)/SUM(insumos2!$X$2:$X$34)) -> 0.0148753099 | W11: =VLOOKUP(T11,insumos2!$AY$2:$AZ$34,2,FALSE)/insumos2!$BF$30 -> 0.01118359739
A12: ACTIVIDADES FINANCIERAS Y DE SEGUROS | B12: K | C12: Actividades financieras y de seguros | D12: K | E12: =COUNTIFS(insumos2!$N$2:$N$399999,Hoja4!D12,insumos2!$J$2:$J$399999,"Aprobado con subsidio") -> 82 | G12: =MID(VLOOKUP(H12,$B$2:$C$23,2,FALSE),1,30) -> Agricultura, ganadería, caza, | H12: A | I12: 191 | J12: 0.02785474697 | K12: =SUMIFS(insumos2!$E$2:$E$399999,insumos2!$J$2:$J$399999,"Aprobado con subsidio",insumos2!$N$2:$N$399999,Hoja4!H12) -> 1494 | L12: 0.01925903009 | M12: =SUMIFS(insumos1!$K$2:$K$372158,insumos1!$H$2:$H$372158,Hoja4!H12) -> 424962101 | N12: =SUMIFS(insumos2!$R$2:$R$399999,insumos2!$J$2:$J$399999,"Aprobado con subsidio",insumos2!$N$2:$N$399999,Hoja4!H12) -> 429 | O12: =SUMIFS(insumos2!$Q$2:$Q$399999,insumos2!$J$2:$J$399999,"Aprobado con subsidio",insumos2!$N$2:$N$399999,Hoja4!H12) -> 1046 | P12: =SUMIFS(insumos2!$S$2:$S$399999,insumos2!$J$2:$J$399999,"Aprobado con subsidio",insumos2!$N$2:$N$399999,Hoja4!H12) -> 19 | Q12: Agricultura, ganadería, caza, | R12: 243.8228438 | T12: 73 | U12: TOLIMA | V12: =(VLOOKUP(T12,_xlfn.ANCHORARRAY(insumos2!$W$2),2,0)/SUM(insumos2!$X$2:$X$34)) -> 0.01735452822 | W12: =VLOOKUP(T12,insumos2!$AY$2:$AZ$34,2,FALSE)/insumos2!$BF$30 -> 0.01397949674
A13: ACTIVIDADES INMOBILIARIAS | B13: L | C13: Actividades inmobiliarias | D13: L | E13: =COUNTIFS(insumos2!$N$2:$N$399999,Hoja4!D13,insumos2!$J$2:$J$399999,"Aprobado con subsidio") -> 102 | G13: =MID(VLOOKUP(H13,$B$2:$C$23,2,FALSE),1,30) -> Otras actividades de servicios | H13: S | I13: 118 | J13: 0.01720869185 | K13: =SUMIFS(insumos2!$E$2:$E$399999,insumos2!$J$2:$J$399999,"Aprobado con subsidio",insumos2!$N$2:$N$399999,Hoja4!H13) -> 795 | L13: 0.01024827906 | M13: =SUMIFS(insumos1!$K$2:$K$372158,insumos1!$H$2:$H$372158,Hoja4!H13) -> 233944930 | N13: =SUMIFS(insumos2!$R$2:$R$399999,insumos2!$J$2:$J$399999,"Aprobado con subsidio",insumos2!$N$2:$N$399999,Hoja4!H13) -> 434 | O13: =SUMIFS(insumos2!$Q$2:$Q$399999,insumos2!$J$2:$J$399999,"Aprobado con subsidio",insumos2!$N$2:$N$399999,Hoja4!H13) -> 356 | P13: =SUMIFS(insumos2!$S$2:$S$399999,insumos2!$J$2:$J$399999,"Aprobado con subsidio",insumos2!$N$2:$N$399999,Hoja4!H13) -> 5 | Q13: Otras actividades de servicios | R13: 82.02764977 | T13: 17 | U13: CALDAS | V13: =(VLOOKUP(T13,_xlfn.ANCHORARRAY(insumos2!$W$2),2,0)/SUM(insumos2!$X$2:$X$34)) -> 0.01297943707 | W13: =VLOOKUP(T13,insumos2!$AY$2:$AZ$34,2,FALSE)/insumos2!$BF$30 -> 0.01118359739
A14: ACTIVIDADES PROFESIONALES, CIENTÍFICAS Y TÉCNICAS | B14: M | C14: Actividades profesionales, científicas y técnicas | D14: M | E14: =COUNTIFS(insumos2!$N$2:$N$399999,Hoja4!D14,insumos2!$J$2:$J$399999,"Aprobado con subsidio") -> 778 | G14: =MID(VLOOKUP(H14,$B$2:$C$23,2,FALSE),1,34) -> Actividades inmobiliarias | H14: L | I14: 102 | J14: 0.0148753099 | K14: =SUMIFS(insumos2!$E$2:$E$399999,insumos2!$J$2:$J$399999,"Aprobado con subsidio",insumos2!$N$2:$N$399999,Hoja4!H14) -> 190 | L14: 0.002449274241 | M14: =SUMIFS(insumos1!$K$2:$K$372158,insumos1!$H$2:$H$372158,Hoja4!H14) -> 47697510 | N14: =SUMIFS(insumos2!$R$2:$R$399999,insumos2!$J$2:$J$399999,"Aprobado con subsidio",insumos2!$N$2:$N$399999,Hoja4!H14) -> 100 | O14: =SUMIFS(insumos2!$Q$2:$Q$399999,insumos2!$J$2:$J$399999,"Aprobado con subsidio",insumos2!$N$2:$N$399999,Hoja4!H14) -> 88 | P14: =SUMIFS(insumos2!$S$2:$S$399999,insumos2!$J$2:$J$399999,"Aprobado con subsidio",insumos2!$N$2:$N$399999,Hoja4!H14) -> 2 | Q14: Actividades inmobiliarias | R14: 88 | T14: 50 | U14: META | V14: =(VLOOKUP(T14,_xlfn.ANCHORARRAY(insumos2!$W$2),2,0)/SUM(insumos2!$X$2:$X$34)) -> 0.01895872831 | W14: =VLOOKUP(T14,insumos2!$AY$2:$AZ$34,2,FALSE)/insumos2!$BF$30 -> 0.01025163094
A15: ACTIVIDADES DE SERVICIOS ADMINISTRATIVOS Y DE APOYO | B15: N | C15: Actividades de servicios administrativos y de apoyo | D15: N | E15: =COUNTIFS(insumos2!$N$2:$N$399999,Hoja4!D15,insumos2!$J$2:$J$399999,"Aprobado con subsidio") -> 675 | G15: =MID(VLOOKUP(H15,$B$2:$C$23,2,FALSE),1,40) -> Actividades financieras y de seguros | H15: K | I15: 82 | J15: 0.01195858247 | K15: =SUMIFS(insumos2!$E$2:$E$399999,insumos2!$J$2:$J$399999,"Aprobado con subsidio",insumos2!$N$2:$N$399999,Hoja4!H15) -> 370 | L15: 0.004769639312 | M15: =SUMIFS(insumos1!$K$2:$K$372158,insumos1!$H$2:$H$372158,Hoja4!H15) -> 100391902 | N15: =SUMIFS(insumos2!$R$2:$R$399999,insumos2!$J$2:$J$399999,"Aprobado con subsidio",insumos2!$N$2:$N$399999,Hoja4!H15) -> 233 | O15: =SUMIFS(insumos2!$Q$2:$Q$399999,insumos2!$J$2:$J$399999,"Aprobado con subsidio",insumos2!$N$2:$N$399999,Hoja4!H15) -> 135 | P15: =SUMIFS(insumos2!$S$2:$S$399999,insumos2!$J$2:$J$399999,"Aprobado con subsidio",insumos2!$N$2:$N$399999,Hoja4!H15) -> 2 | Q15: Actividades financieras y de seguros | R15: 57.93991416 | T15: 41 | U15: HUILA | V15: =(VLOOKUP(T15,_xlfn.ANCHORARRAY(insumos2!$W$2),2,0)/SUM(insumos2!$X$2:$X$34)) -> 0.0138544553 | W15: =VLOOKUP(T15,insumos2!$AY$2:$AZ$34,2,FALSE)/insumos2!$BF$30 -> 0.001863932898
A16: ADMINISTRACIÓN PÚBLICA Y DEFENSA; PLANES DE SEGURIDAD SOCIAL DE AFILIACIÓN OBLIGATORIA | B16: O | C16: Administración pública y defensa; planes de seguridad social de afiliación obligatoria | D16: O | E16: =COUNTIFS(insumos2!$N$2:$N$399999,Hoja4!D16,insumos2!$J$2:$J$399999,"Aprobado con subsidio") -> 11 | G16: =MID(VLOOKUP(H16,$B$2:$C$23,2,FALSE),1,35) -> Actividades artísticas de entreteni | H16: R | I16: 75 | J16: 0.01093772787 | K16: =SUMIFS(insumos2!$E$2:$E$399999,insumos2!$J$2:$J$399999,"Aprobado con subsidio",insumos2!$N$2:$N$399999,Hoja4!H16) -> 741 | L16: 0.009552169541 | M16: =SUMIFS(insumos1!$K$2:$K$372158,insumos1!$H$2:$H$372158,Hoja4!H16) -> 213730271 | N16: =SUMIFS(insumos2!$R$2:$R$399999,insumos2!$J$2:$J$399999,"Aprobado con subsidio",insumos2!$N$2:$N$399999,Hoja4!H16) -> 472 | O16: =SUMIFS(insumos2!$Q$2:$Q$399999,insumos2!$J$2:$J$399999,"Aprobado con subsidio",insumos2!$N$2:$N$399999,Hoja4!H16) -> 261 | P16: =SUMIFS(insumos2!$S$2:$S$399999,insumos2!$J$2:$J$399999,"Aprobado con subsidio",insumos2!$N$2:$N$399999,Hoja4!H16) -> 8 | Q16: Actividades artísticas de entreteni | R16: 55.29661017 | T16: 52 | U16: NARIÑO | V16: =(VLOOKUP(T16,_xlfn.ANCHORARRAY(insumos2!$W$2),2,0)/SUM(insumos2!$X$2:$X$34)) -> 0.01210441884 | W16: =VLOOKUP(T16,insumos2!$AY$2:$AZ$34,2,FALSE)/insumos2!$BF$30 -> 0.008387698043
A17: EDUCACIÓN | B17: P | C17: Educación | D17: P | E17: =COUNTIFS(insumos2!$N$2:$N$399999,Hoja4!D17,insumos2!$J$2:$J$399999,"Aprobado con subsidio") -> 198 | G17: =MID(VLOOKUP(H17,$B$2:$C$23,2,FALSE),1,31) -> Explotación de minas y canteras | H17: B | I17: 36 | J17: 0.005250109377 | K17: =SUMIFS(insumos2!$E$2:$E$399999,insumos2!$J$2:$J$399999,"Aprobado con subsidio",insumos2!$N$2:$N$399999,Hoja4!H17) -> 348 | L17: 0.004486039137 | M17: =SUMIFS(insumos1!$K$2:$K$372158,insumos1!$H$2:$H$372158,Hoja4!H17) -> 96303544 | N17: =SUMIFS(insumos2!$R$2:$R$399999,insumos2!$J$2:$J$399999,"Aprobado con subsidio",insumos2!$N$2:$N$399999,Hoja4!H17) -> 61 | O17: =SUMIFS(insumos2!$Q$2:$Q$399999,insumos2!$J$2:$J$399999,"Aprobado con subsidio",insumos2!$N$2:$N$399999,Hoja4!H17) -> 287 | P17: =SUMIFS(insumos2!$S$2:$S$399999,insumos2!$J$2:$J$399999,"Aprobado con subsidio",insumos2!$N$2:$N$399999,Hoja4!H17) -> 0 | Q17: Explotación de minas y canteras | R17: 470.4918033 | T17: 23 | U17: CÓRDOBA | V17: =(VLOOKUP(T17,_xlfn.ANCHORARRAY(insumos2!$W$2),2,0)/SUM(insumos2!$X$2:$X$34)) -> 0.007729327694 | W17: =VLOOKUP(T17,insumos2!$AY$2:$AZ$34,2,FALSE)/insumos2!$BF$30 -> 0.003727865797
A18: ACTIVIDADES DE ATENCIÓN DE LA SALUD HUMANA Y DE ASISTENCIA SOCIAL | B18: Q | C18: Actividades de atención de la salud humana y de asistencia social | D18: Q | E18: =COUNTIFS(insumos2!$N$2:$N$399999,Hoja4!D18,insumos2!$J$2:$J$399999,"Aprobado con subsidio") -> 324 | G18: =MID(VLOOKUP(H18,$B$2:$C$23,2,FALSE),1,20) -> Distribución de agua | H18: E | I18: 35 | J18: 0.005104273006 | K18: =SUMIFS(insumos2!$E$2:$E$399999,insumos2!$J$2:$J$399999,"Aprobado con subsidio",insumos2!$N$2:$N$399999,Hoja4!H18) -> 214 | L18: 0.002758656251 | M18: =SUMIFS(insumos1!$K$2:$K$372158,insumos1!$H$2:$H$372158,Hoja4!H18) -> 64278073 | N18: =SUMIFS(insumos2!$R$2:$R$399999,insumos2!$J$2:$J$399999,"Aprobado con subsidio",insumos2!$N$2:$N$399999,Hoja4!H18) -> 39 | O18: =SUMIFS(insumos2!$Q$2:$Q$399999,insumos2!$J$2:$J$399999,"Aprobado con subsidio",insumos2!$N$2:$N$399999,Hoja4!H18) -> 174 | P18: =SUMIFS(insumos2!$S$2:$S$399999,insumos2!$J$2:$J$399999,"Aprobado con subsidio",insumos2!$N$2:$N$399999,Hoja4!H18) -> 1 | Q18: Distribución de agua | R18: 446.1538462 | T18: 63 | U18: QUINDÍO | V18: =(VLOOKUP(T18,_xlfn.ANCHORARRAY(insumos2!$W$2),2,0)/SUM(insumos2!$X$2:$X$34)) -> 0.0118127461 | W18: =VLOOKUP(T18,insumos2!$AY$2:$AZ$34,2,FALSE)/insumos2!$BF$30 -> 0.01118359739
A19: ACTIVIDADES ARTÍSTICAS, DE ENTRETENIMIENTO Y RECREACIÓN | B19: R | C19: Actividades artísticas de entretenimiento y recreación | D19: R | E19: =COUNTIFS(insumos2!$N$2:$N$399999,Hoja4!D19,insumos2!$J$2:$J$399999,"Aprobado con subsidio") -> 75 | G19: =MID(VLOOKUP(H19,$B$2:$C$23,2,FALSE),1,32) -> Administración pública y defensa | H19: O | I19: 11 | J19: 0.001604200088 | K19: =SUMIFS(insumos2!$E$2:$E$399999,insumos2!$J$2:$J$399999,"Aprobado con subsidio",insumos2!$N$2:$N$399999,Hoja4!H19) -> 651 | L19: 0.008391987006 | M19: =SUMIFS(insumos1!$K$2:$K$372158,insumos1!$H$2:$H$372158,Hoja4!H19) -> 209414782 | N19: =SUMIFS(insumos2!$R$2:$R$399999,insumos2!$J$2:$J$399999,"Aprobado con subsidio",insumos2!$N$2:$N$399999,Hoja4!H19) -> 492 | O19: =SUMIFS(insumos2!$Q$2:$Q$399999,insumos2!$J$2:$J$399999,"Aprobado con subsidio",insumos2!$N$2:$N$399999,Hoja4!H19) -> 159 | P19: =SUMIFS(insumos2!$S$2:$S$399999,insumos2!$J$2:$J$399999,"Aprobado con subsidio",insumos2!$N$2:$N$399999,Hoja4!H19) -> 0 | Q19: Administración pública y defensa | R19: 32.31707317 | T19: 47 | U19: MAGDALENA | V19: =(VLOOKUP(T19,_xlfn.ANCHORARRAY(insumos2!$W$2),2,0)/SUM(insumos2!$X$2:$X$34)) -> 0.006125127607 | W19: =VLOOKUP(T19,insumos2!$AY$2:$AZ$34,2,FALSE)/insumos2!$BF$30 -> 0.001863932898
A20: OTRAS ACTIVIDADES DE SERVICIOS | B20: S | C20: Otras actividades de servicios | D20: S | E20: =COUNTIFS(insumos2!$N$2:$N$399999,Hoja4!D20,insumos2!$J$2:$J$399999,"Aprobado con subsidio") -> 118 | G20: =MID(VLOOKUP(H20,$B$2:$C$23,2,FALSE),1,33) -> Suministro de electricidad, gas, | H20: D | I20: 9 | J20: 0.001312527344 | K20: =SUMIFS(insumos2!$E$2:$E$399999,insumos2!$J$2:$J$399999,"Aprobado con subsidio",insumos2!$N$2:$N$399999,Hoja4!H20) -> 79 | L20: 0.001018382448 | M20: =SUMIFS(insumos1!$K$2:$K$372158,insumos1!$H$2:$H$372158,Hoja4!H20) -> 19760397 | N20: =SUMIFS(insumos2!$R$2:$R$399999,insumos2!$J$2:$J$399999,"Aprobado con subsidio",insumos2!$N$2:$N$399999,Hoja4!H20) -> 21 | O20: =SUMIFS(insumos2!$Q$2:$Q$399999,insumos2!$J$2:$J$399999,"Aprobado con subsidio",insumos2!$N$2:$N$399999,Hoja4!H20) -> 58 | P20: =SUMIFS(insumos2!$S$2:$S$399999,insumos2!$J$2:$J$399999,"Aprobado con subsidio",insumos2!$N$2:$N$399999,Hoja4!H20) -> 0 | Q20: Suministro de electricidad, gas, | R20: 276.1904762 | T20: 20 | U20: CESAR | V20: =(VLOOKUP(T20,_xlfn.ANCHORARRAY(insumos2!$W$2),2,0)/SUM(insumos2!$X$2:$X$34)) -> 0.00554178212 | W20: =VLOOKUP(T20,insumos2!$AY$2:$AZ$34,2,FALSE)/insumos2!$BF$30 -> 0.001863932898
A21: ACTIVIDADES DE LOS HOGARES INDIVIDUALES EN CALIDAD DE EMPLEADORES; ACTIVIDADES NO DIFERENCIADAS DE LOS HOGARES INDIVIDUALES COMO PRODUCTORES DE BIENES Y SERVICIOS PARA USO PROPIO | B21: T | C21: Actividad de los hogares en calidad de empleadores; actividades no diferenciadas de los hogares individuales como productores de bienes y servicios para uso propio | D21: T | E21: =COUNTIFS(insumos2!$N$2:$N$399999,Hoja4!D21,insumos2!$J$2:$J$399999,"Aprobado con subsidio") -> 2 | G21: =MID(VLOOKUP(H21,$B$2:$C$23,2,FALSE),1,30) -> Actividad de los hogares en ca | H21: T | I21: 2 | J21: 0.0002916727432 | K21: =SUMIFS(insumos2!$E$2:$E$399999,insumos2!$J$2:$J$399999,"Aprobado con subsidio",insumos2!$N$2:$N$399999,Hoja4!H21) -> 4 | L21: 5.156366824e-05 | M21: =SUMIFS(insumos1!$K$2:$K$372158,insumos1!$H$2:$H$372158,Hoja4!H21) -> 1362786 | N21: =SUMIFS(insumos2!$R$2:$R$399999,insumos2!$J$2:$J$399999,"Aprobado con subsidio",insumos2!$N$2:$N$399999,Hoja4!H21) -> 4 | O21: =SUMIFS(insumos2!$Q$2:$Q$399999,insumos2!$J$2:$J$399999,"Aprobado con subsidio",insumos2!$N$2:$N$399999,Hoja4!H21) -> 0 | P21: =SUMIFS(insumos2!$S$2:$S$399999,insumos2!$J$2:$J$399999,"Aprobado con subsidio",insumos2!$N$2:$N$399999,Hoja4!H21) -> 0 | Q21: Actividad de los hogares en ca | R21: 0 | T21: 19 | U21: CAUCA | V21: =(VLOOKUP(T21,_xlfn.ANCHORARRAY(insumos2!$W$2),2,0)/SUM(insumos2!$X$2:$X$34)) -> 0.006270963978 | W21: =VLOOKUP(T21,insumos2!$AY$2:$AZ$34,2,FALSE)/insumos2!$BF$30 -> 0.002795899348
A22: ACTIVIDADES DE ORGANIZACIONES Y ENTIDADES EXTRATERRITORIALES | B22: U | C22: Actividad de organizaciones y entidades extraterritoriales | D22: U | E22: =COUNTIFS(insumos2!$N$2:$N$399999,Hoja4!D22,insumos2!$J$2:$J$399999,"Aprobado con subsidio") -> 0 | G22: =MID(VLOOKUP(H22,$B$2:$C$23,2,FALSE),1,24) -> Otras | H22: Otras | I22: 2 | J22: 0.0002916727432 | K22: =SUMIFS(insumos2!$E$2:$E$399999,insumos2!$J$2:$J$399999,"Aprobado con subsidio",insumos2!$N$2:$N$399999,Hoja4!H22) -> 2 | L22: 2.578183412e-05 | M22: =SUMIFS(insumos1!$K$2:$K$372158,insumos1!$H$2:$H$372158,Hoja4!H22) -> 454262 | N22: =SUMIFS(insumos2!$R$2:$R$399999,insumos2!$J$2:$J$399999,"Aprobado con subsidio",insumos2!$N$2:$N$399999,Hoja4!H22) -> 1 | O22: =SUMIFS(insumos2!$Q$2:$Q$399999,insumos2!$J$2:$J$399999,"Aprobado con subsidio",insumos2!$N$2:$N$399999,Hoja4!H22) -> 1 | P22: =SUMIFS(insumos2!$S$2:$S$399999,insumos2!$J$2:$J$399999,"Aprobado con subsidio",insumos2!$N$2:$N$399999,Hoja4!H22) -> 0 | Q22: Otras | R22: 100 | T22: 85 | U22: CASANARE | V22: =(VLOOKUP(T22,_xlfn.ANCHORARRAY(insumos2!$W$2),2,0)/SUM(insumos2!$X$2:$X$34)) -> 0.006562636722 | W22: =VLOOKUP(T22,insumos2!$AY$2:$AZ$34,2,FALSE)/insumos2!$BF$30 -> 0.001863932898
A23: OTRAS | B23: Otras | C23: Otras | D23: Otras | E23: =COUNTIFS(insumos2!$N$2:$N$399999,Hoja4!D23,insumos2!$J$2:$J$399999,"Aprobado con subsidio") -> 2 | G23: =MID(VLOOKUP(H23,$B$2:$C$23,2,FALSE),1,45) -> Actividad de organizaciones y entidades extra | H23: U | I23: 0 | J23: 0 | K23: =SUMIFS(insumos2!$E$2:$E$399999,insumos2!$J$2:$J$399999,"Aprobado con subsidio",insumos2!$N$2:$N$399999,Hoja4!H23) -> 0 | L23: 0 | M23: =SUMIFS(insumos1!$K$2:$K$372158,insumos1!$H$2:$H$372158,Hoja4!H23) -> 0 | N23: =SUMIFS(insumos2!$R$2:$R$399999,insumos2!$J$2:$J$399999,"Aprobado con subsidio",insumos2!$N$2:$N$399999,Hoja4!H23) -> 0 | O23: =SUMIFS(insumos2!$Q$2:$Q$399999,insumos2!$J$2:$J$399999,"Aprobado con subsidio",insumos2!$N$2:$N$399999,Hoja4!H23) -> 0 | P23: =SUMIFS(insumos2!$S$2:$S$399999,insumos2!$J$2:$J$399999,"Aprobado con subsidio",insumos2!$N$2:$N$399999,Hoja4!H23) -> 0 | Q23: Actividad de organizaciones y entidades extra | T23: 70 | U23: SUCRE | V23: =(VLOOKUP(T23,_xlfn.ANCHORARRAY(insumos2!$W$2),2,0)/SUM(insumos2!$X$2:$X$34)) -> 0.002916727432 | W23: =VLOOKUP(T23,insumos2!$AY$2:$AZ$34,2,FALSE)/insumos2!$BF$30 -> 0.0009319664492
E24: =SUM(E2:E23) -> 6857 | H24: General | I24: =SUM(I2:I23) -> 6857 | K24: =SUM(K2:K23) -> 77574 | M24: =SUM(M2:M23) -> 23195526244 | N24: =SUM(N2:N23) -> 35015 | O24: =SUM(O2:O23) -> 41618 | P24: =SUM(P2:P23) -> 941 | T24: 18 | U24: CAQUETÁ | V24: =(VLOOKUP(T24,_xlfn.ANCHORARRAY(insumos2!$W$2),2,0)/SUM(insumos2!$X$2:$X$34)) -> 0.002479218317 | W24: =VLOOKUP(T24,insumos2!$AY$2:$AZ$34,2,FALSE)/insumos2!$BF$30 -> 0.001863932898
T25: 44 | U25: LA GUAJIRA | V25: =(VLOOKUP(T25,_xlfn.ANCHORARRAY(insumos2!$W$2),2,0)/SUM(insumos2!$X$2:$X$34)) -> 0.001312527344 | W25: =VLOOKUP(T25,insumos2!$AY$2:$AZ$34,2,FALSE)/insumos2!$BF$30 -> 0
T26: 88 | U26: SAN ANDRÉS | V26: =(VLOOKUP(T26,_xlfn.ANCHORARRAY(insumos2!$W$2),2,0)/SUM(insumos2!$X$2:$X$34)) -> 0.001020854601 | W26: =VLOOKUP(T26,insumos2!$AY$2:$AZ$34,2,FALSE)/insumos2!$BF$30 -> 0
T27: 81 | U27: ARAUCA | V27: =(VLOOKUP(T27,_xlfn.ANCHORARRAY(insumos2!$W$2),2,0)/SUM(insumos2!$X$2:$X$34)) -> 0.002625054689 | W27: =VLOOKUP(T27,insumos2!$AY$2:$AZ$34,2,FALSE)/insumos2!$BF$30 -> 0.0009319664492
A28: Código | B28: Nombre | D28: Municipio | T28: 86 | U28: PUTUMAYO | V28: =(VLOOKUP(T28,_xlfn.ANCHORARRAY(insumos2!$W$2),2,0)/SUM(insumos2!$X$2:$X$34)) -> 0.001020854601 | W28: =VLOOKUP(T28,insumos2!$AY$2:$AZ$34,2,FALSE)/insumos2!$BF$30 -> 0
A29: 5 | B29: Antioquia | D29: Código | E29: Nombre | T29: 27 | U29: CHOCÓ | V29: =(VLOOKUP(T29,_xlfn.ANCHORARRAY(insumos2!$W$2),2,0)/SUM(insumos2!$X$2:$X$34)) -> 0.0005833454864 | W29: =VLOOKUP(T29,insumos2!$AY$2:$AZ$34,2,FALSE)/insumos2!$BF$30 -> 0
A30: 8 | B30: Atlántico | D30: 5001 | E30: Medellín | T30: 91 | U30: AMAZONAS | V30: =(VLOOKUP(T30,_xlfn.ANCHORARRAY(insumos2!$W$2),2,0)/SUM(insumos2!$X$2:$X$34)) -> 0.0005833454864 | W30: =VLOOKUP(T30,insumos2!$AY$2:$AZ$34,2,FALSE)/insumos2!$BF$30 -> 0
A31: 11 | B31: Bogotá | D31: 5002 | E31: Abejorral | T31: 95 | U31: GUAVIARE | V31: =(VLOOKUP(T31,_xlfn.ANCHORARRAY(insumos2!$W$2),2,0)/SUM(insumos2!$X$2:$X$34)) -> 0 | W31: =VLOOKUP(T31,insumos2!$AY$2:$AZ$34,2,FALSE)/insumos2!$BF$30 -> 0
A32: 13 | B32: Bolívar | D32: 5004 | E32: Abriaquí | T32: 99 | U32: VICHADA | V32: =(VLOOKUP(T32,_xlfn.ANCHORARRAY(insumos2!$W$2),2,0)/SUM(insumos2!$X$2:$X$34)) -> 0.0002916727432 | W32: =VLOOKUP(T32,insumos2!$AY$2:$AZ$34,2,FALSE)/insumos2!$BF$30 -> 0
A33: 15 | B33: Boyacá | D33: 5021 | E33: Alejandría | T33: 94 | U33: GUAINÍA | V33: =(VLOOKUP(T33,_xlfn.ANCHORARRAY(insumos2!$W$2),2,0)/SUM(insumos2!$X$2:$X$34)) -> 0.0001458363716 | W33: =VLOOKUP(T33,insumos2!$AY$2:$AZ$34,2,FALSE)/insumos2!$BF$30 -> 0
A34: 17 | B34: Caldas | D34: 5030 | E34: Amagá | T34: 97 | U34: VAUPÉS | V34: =(VLOOKUP(T34,_xlfn.ANCHORARRAY(insumos2!$W$2),2,0)/SUM(insumos2!$X$2:$X$34)) -> 0 | W34: =VLOOKUP(T34,insumos2!$AY$2:$AZ$34,2,FALSE)/insumos2!$BF$30 -> 0
A35: 18 | B35: Caquetá | D35: 5031 | E35: Amalfi | U35: Total general | V35: =SUM(V2:V34) -> 1 | W35: =SUM(W2:W34) -> 1
A36: 19 | B36: Cauca | D36: 5034 | E36: Andes
A37: 20 | B37: Cesar | D37: 5036 | E37: Angelópolis
A38: 23 | B38: Córdoba | D38: 5038 | E38: Angostura
A39: 25 | B39: Cundinamarca | D39: 5040 | E39: Anorí
A40: 27 | B40: Chocó | D40: 5042 | E40: Santa fé de anti
A41: 41 | B41: Huila | D41: 5044 | E41: Anzá
A42: 44 | B42: La guajira | D42: 5045 | E42: Apartadó
A43: 47 | B43: Magdalena | D43: 5051 | E43: Arboletes
A44: 50 | B44: Meta | D44: 5055 | E44: Argelia
A45: 52 | B45: Nariño | D45: 5059 | E45: Armenia
A46: 54 | B46: Norte de stder | D46: 5079 | E46: Barbosa
A47: 63 | B47: Quindío | D47: 5086 | E47: Belmira
A48: 66 | B48: Risaralda | D48: 5088 | E48: Bello
A49: 68 | B49: Santander | D49: 5091 | E49: Betania
A50: 70 | B50: Sucre | D50: 5093 | E50: Betulia
A51: 73 | B51: Tolima | D51: 5101 | E51: Ciudad bolívar
A52: 76 | B52: Valle del cauca | D52: 5107 | E52: Briceño
A53: 81 | B53: Arauca | D53: 5113 | E53: Buriticá
A54: 85 | B54: Casanare | D54: 5120 | E54: Cáceres
A55: 86 | B55: Putumayo | D55: 5125 | E55: Caicedo
A56: 88 | B56: San Andrés | D56: 5129 | E56: Caldas
A57: 91 | B57: Amazonas | D57: 5134 | E57: Campamento
A58: 94 | B58: Guainía | D58: 5138 | E58: Cañasgordas
A59: 95 | B59: Guaviare | D59: 5142 | E59: Caracolí
A60: 97 | B60: Vaupés | D60: 5145 | E60: Caramanta
A61: 99 | B61: Vichada | D61: 5147 | E61: Carepa
D62: 5148 | E62: El carmen de vib
D63: 5150 | E63: Carolina
D64: 5154 | E64: Caucasia
D65: 5172 | E65: Chigorodó
D66: 5190 | E66: Cisneros
D67: 5197 | E67: Cocorná
D68: 5206 | E68: Concepción
D69: 5209 | E69: Concordia
D70: 5212 | E70: Copacabana
D71: 5234 | E71: Dabeiba
D72: 5237 | E72: Donmatías
D73: 5240 | E73: Ebéjico
D74: 5250 | E74: El bagre
D75: 5264 | E75: Entrerríos
D76: 5266 | E76: Envigado
D77: 5282 | E77: Fredonia
D78: 5284 | E78: Frontino
D79: 5306 | E79: Giraldo
D80: 5308 | E80: Girardota
D81: 5310 | E81: Gómez plata
D82: 5313 | E82: Granada
D83: 5315 | E83: Guadalupe
D84: 5318 | E84: Guarne
D85: 5321 | E85: Guatapé
D86: 5347 | E86: Heliconia
D87: 5353 | E87: Hispania
D88: 5360 | E88: Itagüí
D89: 5361 | E89: Ituango
D90: 5364 | E90: Jardín
D91: 5368 | E91: Jericó
D92: 5376 | E92: La ceja
D93: 5380 | E93: La estrella
D94: 5390 | E94: La pintada
D95: 5400 | E95: La unión
D96: 5411 | E96: Liborina
D97: 5425 | E97: Maceo
D98: 5440 | E98: Marinilla
D99: 5467 | E99: Montebello
D100: 5475 | E100: Murindó
D101: 5480 | E101: Mutatá
D102: 5483 | E102: Nariño
D103: 5490 | E103: Necoclí
D104: 5495 | E104: Nechí
D105: 5501 | E105: Olaya
D106: 5541 | E106: Peñol
D107: 5543 | E107: Peque
D108: 5576 | E108: Pueblorrico
D109: 5579 | E109: Puerto berrío
D110: 5585 | E110: Puerto nare
D111: 5591 | E111: Puerto triunfo
D112: 5604 | E112: Remedios
D113: 5607 | E113: Retiro
D114: 5615 | E114: Rionegro
D115: 5628 | E115: Sabanalarga
D116: 5631 | E116: Sabaneta
D117: 5642 | E117: Salgar
D118: 5647 | E118: San andrés de cu
D119: 5649 | E119: San carlos
D120: 5652 | E120: San francisco
D121: 5656 | E121: San jerónimo
D122: 5658 | E122: San josé de la m
D123: 5659 | E123: San juan de urab
D124: 5660 | E124: San luis
D125: 5664 | E125: San pedro de los
D126: 5665 | E126: San pedro de ura
D127: 5667 | E127: San rafael
D128: 5670 | E128: San roque
D129: 5674 | E129: San vicente ferr
D130: 5679 | E130: Santa bárbara
D131: 5686 | E131: Santa rosa de os
D132: 5690 | E132: Santo domingo
D133: 5697 | E133: El santuario
D134: 5736 | E134: Segovia
D135: 5756 | E135: Sonsón
D136: 5761 | E136: Sopetrán
D137: 5789 | E137: Támesis
D138: 5790 | E138: Tarazá
D139: 5792 | E139: Tarso
D140: 5809 | E140: Titiribí
D141: 5819 | E141: Toledo
D142: 5837 | E142: Turbo
D143: 5842 | E143: Uramita
D144: 5847 | E144: Urrao
D145: 5854 | E145: Valdivia
D146: 5856 | E146: Valparaíso
D147: 5858 | E147: Vegachí
D148: 5861 | E148: Venecia
D149: 5873 | E149: Vigía del fuerte
D150: 5885 | E150: Yalí
D151: 5887 | E151: Yarumal
D152: 5890 | E152: Yolombó
D153: 5893 | E153: Yondó
D154: 5895 | E154: Zaragoza
D155: 8001 | E155: Barranquilla
D156: 8078 | E156: Baranoa
D157: 8137 | E157: Campo de la cruz
D158: 8141 | E158: Candelaria
D159: 8296 | E159: Galapa
D160: 8372 | E160: Juan de acosta
D161: 8421 | E161: Luruaco
D162: 8433 | E162: Malambo
D163: 8436 | E163: Manatí
D164: 8520 | E164: Palmar de varela
D165: 8549 | E165: Piojó
D166: 8558 | E166: Polonuevo
D167: 8560 | E167: Ponedera
D168: 8573 | E168: Puerto colombia
D169: 8606 | E169: Repelón
D170: 8634 | E170: Sabanagrande
D171: 8638 | E171: Sabanalarga
D172: 8675 | E172: Santa lucía
D173: 8685 | E173: Santo tomás
D174: 8758 | E174: Soledad
D175: 8770 | E175: Suan
D176: 8832 | E176: Tubará
D177: 8849 | E177: Usiacurí
D178: 11001 | E178: Bogotá, d.c.
D179: 13001 | E179: Cartagena de ind
D180: 13006 | E180: Achí
D181: 13030 | E181: Altos del rosari
D182: 13042 | E182: Arenal
D183: 13052 | E183: Arjona
D184: 13062 | E184: Arroyohondo
D185: 13074 | E185: Barranco de loba
D186: 13140 | E186: Calamar
D187: 13160 | E187: Cantagallo
D188: 13188 | E188: Cicuco
D189: 13212 | E189: Córdoba
D190: 13222 | E190: Clemencia
D191: 13244 | E191: El carmen de bol
D192: 13248 | E192: El guamo
D193: 13268 | E193: El peñón
D194: 13300 | E194: Hatillo de loba
D195: 13430 | E195: Magangué
D196: 13433 | E196: Mahates
D197: 13440 | E197: Margarita
D198: 13442 | E198: María la baja
D199: 13458 | E199: Montecristo
D200: 13468 | E200: Santa cruz de mo
... 950 more rows
